{"text_format":"1","workbook":"xlsx","n_sheets":13,"sheets":["Disaggregated","TradersFinancialFutures","DisaggregatedNoNum","TradersFinancialFuturesNoNum","Sheet1","Sheet2","Sheet1 (2)","Sheet2 (2)","Sheet1 (3)","Sheet2 (3)","Sheet1 (4)","Sheet2 (4)","Symbols"],"not_rendered":{"charts":24,"images":2,"macros":1,"external_links":0,"defined_names":0,"comments":0,"pivot_tables":0},"unopened":[],"bounds":{"document_bytes":16777216,"sheet_cells":100000,"rows_first":2000,"rows_last":500,"rows_between":2000,"halvings":0,"cell_chars":16384,"cell_head_chars":4096},"cells_cut":0,"cells_raw":0,"read":"whole","date_system":"1900"}

{"sheet":"Disaggregated","index":0,"n_rows":45,"n_cols":21,"rows_kept":45,"cut":false,"hidden":false,"merged":[[1,21,2,23],[3,1,3,16],[3,17,3,23],[23,17,23,23],[43,5,43,6],[43,7,43,10],[43,13,43,14],[1,5,2,19],[1,1,2,3],[41,4,41,14]]}
[]
[null,null,null,null,null,"CQG CFTC Disaggreated COT Data",null,null,null,null,null,null,null,null,null,null,null,null,null,null,"Ribbon"]
[]
[null,{"$f":"Sheet1!$P$20","v":"Disaggregated COT as a Percentage of Total Open Interest, Weeks: 10/20/20 vs. 08/18/20"},null,null,null,null,null,null,null,null,null,null,null,null,null,null,null,"Nominal Difference Between Longs and Shorts"]
[]
[]
[]
[]
[]
[]
[]
[]
[]
[]
[]
[]
[]
[]
[]
[]
[]
[]
[]
[null,null,null,null,null,null,null,null,null,null,null,null,null,null,null,null,null,"Difference Between Longs and Shorts as a Percentage of OI"]
[]
[]
[]
[]
[]
[]
[]
[]
[]
[]
[]
[]
[]
[]
[]
[]
[]
[null,null,null,null,{"$f":"IF(Sheet1!B3=1,Sheet1!B7,\"\")","v":""}]
[]
[null,null,"Symbol: ","ZSE","Date: ",{"$f":"Sheet1!J1","v":"2020-10-20"},null,"Lookback Comparison (Weeks): ",null,null,null,-10,"Date: ",{"$f":"Sheet1!N1","v":"2020-08-18"}]
[null,"  Copyright CQG, Inc.  © 2020",null,null,null,"Designed by Thom Hartle"]

{"sheet":"TradersFinancialFutures","index":1,"n_rows":45,"n_cols":21,"rows_kept":45,"cut":false,"hidden":false,"merged":[[1,21,2,23],[3,1,3,16],[3,17,3,23],[23,17,23,23],[41,4,41,14],[43,5,43,6],[43,7,43,10],[43,13,43,14],[1,1,2,3],[1,5,2,19]]}
[]
[null,null,null,null,null,"CQG CFTC Traders in Financial Futures",null,null,null,null,null,null,null,null,null,null,null,null,null,null,"Ribbon"]
[]
[null,{"$f":"'Sheet1 (2)'!P20","v":"Traders in Financial Futures COT as a Percentage of Total Open Interest, Weeks: 10/20/20 vs. 09/01/20"},null,null,null,null,null,null,null,null,null,null,null,null,null,null,null,"Nominal Difference Between Longs and Shorts"]
[]
[]
[]
[]
[]
[]
[]
[]
[]
[]
[]
[]
[]
[]
[]
[]
[]
[]
[]
[null,null,null,null,null,null,null,null,null,null,null,null,null,null,null,null,null,"Difference Between Longs and Shorts as a Percentage of OI"]
[]
[]
[]
[]
[]
[]
[]
[]
[]
[]
[]
[]
[]
[]
[]
[]
[]
[null,null,null,null,{"$f":"IF('Sheet1 (2)'!B3=1,'Sheet1 (2)'!B7,\"\")","v":""}]
[]
[null,null,"Symbol: ","TYA","Date: ",{"$f":"Sheet1!J1","v":"2020-10-20"},null,"Lookback Comparison (Weeks): ",null,null,null,-8,"Date: ",{"$f":"'Sheet1 (2)'!N1","v":"2020-09-01"}]
[null,"  Copyright CQG, Inc.  © 2020",null,null,null,"Designed by Thom Hartle"]

{"sheet":"DisaggregatedNoNum","index":2,"n_rows":45,"n_cols":21,"rows_kept":45,"cut":false,"hidden":false,"merged":[[43,5,43,6],[43,7,43,10],[43,13,43,14],[1,1,2,3],[1,5,2,19],[1,21,2,23],[3,1,3,16],[3,17,3,23],[23,17,23,23],[41,4,41,14]]}
[]
[null,null,null,null,null,"CQG CFTC Disaggreated Notional COT Data",null,null,null,null,null,null,null,null,null,null,null,null,null,null,"Ribbon"]
[]
[null,{"$f":"'Sheet1 (3)'!P20","v":"Disaggregated Notional COT, Weeks: 10/20/20 vs. 08/18/20"},null,null,null,null,null,null,null,null,null,null,null,null,null,null,null,"Notional Nominal Difference Between Longs and Shorts"]
[]
[]
[]
[]
[]
[]
[]
[]
[]
[]
[]
[]
[]
[]
[]
[]
[]
[]
[]
[null,null,null,null,null,null,null,null,null,null,null,null,null,null,null,null,null,"Difference Between Notional Longs and Shorts as a  % of Notional OI"]
[]
[]
[]
[]
[]
[]
[]
[]
[]
[]
[]
[]
[]
[]
[]
[]
[]
[null,null,null,null,{"$f":"IF(Sheet1!B3=1,Sheet1!B7,\"\")","v":""}]
[]
[null,null,"Symbol: ","ZSE","Date: ",{"$f":"Sheet1!J1","v":"2020-10-20"},null,"Lookback Comparison (Weeks): ",null,null,null,-10,"Date: ",{"$f":"'Sheet1 (3)'!N1","v":"2020-08-18"}]
[null,"  Copyright CQG, Inc.  © 2020",null,null,null,"Designed by Thom Hartle"]

{"sheet":"TradersFinancialFuturesNoNum","index":3,"n_rows":45,"n_cols":21,"rows_kept":45,"cut":false,"hidden":false,"merged":[[1,21,2,23],[3,1,3,16],[3,17,3,23],[23,17,23,23],[41,4,41,14],[43,5,43,6],[43,7,43,10],[43,13,43,14],[1,1,2,3],[1,5,2,19]]}
[]
[null,null,null,null,null," CQG CFTC Traders in Financial Futures Notional COT Data",null,null,null,null,null,null,null,null,null,null,null,null,null,null,"Ribbon"]
[]
[null,{"$f":"'Sheet1 (4)'!P20","v":"Traders in Financial Futures COT as a Percentage of Total Open Interest, Weeks: 10/20/20 vs. 08/18/20"},null,null,null,null,null,null,null,null,null,null,null,null,null,null,null,"Notional Nominal Difference Between Longs and Shorts"]
[]
[]
[]
[]
[]
[]
[]
[]
[]
[]
[]
[]
[]
[]
[]
[]
[]
[]
[]
[null,null,null,null,null,null,null,null,null,null,null,null,null,null,null,null,null,"Difference Between Notional Longs and Shorts as a % of Notional OI"]
[]
[]
[]
[]
[]
[]
[]
[]
[]
[]
[]
[]
[]
[]
[]
[]
[]
[null,null,null,null,{"$f":"IF('Sheet1 (4)'!B3=1,'Sheet1 (2)'!B7,\"\")","v":""}]
[]
[null,null,"Symbol: ","EP","Date: ",{"$f":"Sheet1!J1","v":"2020-10-20"},null,"Lookback Comparison (Weeks): ",null,null,null,-10,"Date: ",{"$f":"'Sheet1 (4)'!N1","v":"2020-08-18"}]
[null,"  Copyright CQG, Inc.  © 2020",null,null,null,"Designed by Thom Hartle"]

{"sheet":"Sheet1","index":4,"n_rows":61,"n_cols":32,"rows_kept":61,"cut":false,"hidden":true,"merged":[]}
[null,"Symbol",{"$f":"Disaggregated!D44","v":"ZSE"},{"$f":"RTD(\"cqg.rtd\", ,\"ContractData\",C1, \"LongDescription\",, \"T\")","v":"Soybeans (Globex), Jan 21"},null,null,null,"Week",{"$f":"IF(I2=\"\",-1,0)","v":-1},{"$f":" IF(LEFT(RTD(\"cqg.rtd\",,\"StudyData\",K6, \"Bar\", \"\", \"Time\",\"W\",I1,,,,,\"T\"),3)=\"777\",\"\",RTD(\"cqg.rtd\",,\"StudyData\",K6, \"Bar\", \"\", \"Time\",\"W\",I1,,,,,\"T\")+1)","v":"2020-10-20"},"Week",{"$f":"Disaggregated!L44","v":-10},null,{"$f":" IF(LEFT( RTD(\"cqg.rtd\",,\"StudyData\",K6, \"Bar\", \"\", \"Time\",\"W\",L1,,,,,\"T\"),3)=\"777\",\"\",RTD(\"cqg.rtd\",,\"StudyData\",K6, \"Bar\", \"\", \"Time\",\"W\",L1,,,,,\"T\")+1)","v":"2020-08-18"}]
[null,null,null,null,null,null,null,null,{"$f":" RTD(\"cqg.rtd\",,\"StudyData\",K6, \"Bar\", \"\", \"Close\",\"W\",0,,,,,\"T\")","v":""},{"$f":"J1+1","v":"2020-10-21"},{"$f":" RTD(\"cqg.rtd\",,\"StudyData\", \"OI(\"&C1&\",OIType:=CommodityOi) when (LocalMonth(\"&$C$1&\")=\"&MONTH(J2)&\" and LocalDay(\"&$C$1&\")=\"&DAY(J2)&\" and LocalYear(\"&$C$1&\")=\"&YEAR(J2)&\")\", \"Bar\", \"\", \"Close\", \"D\", \"0\", \"all\", \"\", \"\",\"FALSE\",\"T\")","v":1049850},null,null,{"$f":"N1+1","v":"2020-08-19"},{"$f":"IF(P2=\"\",RTD(\"cqg.rtd\",,\"StudyData\",\"OI(\"&C1&\",OIType:=CommodityOi) when (LocalMonth(\"&$C$1&\")=\"&MONTH(N2)&\" and LocalDay(\"&$C$1&\")=\"&DAY(N2)+1&\" and LocalYear(\"&$C$1&\")=\"&YEAR(N2)&\")\",\"Bar\",\"\",\"Close\",\"ADC\",\"0\",\"all\",\"\",\"\",\"FALSE\",\"T\"),RTD(\"cqg.rtd\",,\"StudyData\",\"OI(\"&C1&\",OIType:=CommodityOi) when (LocalMonth(\"&$C$1&\")=\"&MONTH(N2)&\" and LocalDay(\"&$C$1&\")=\"&DAY(N2)&\" and LocalYear(\"&$C$1&\")=\"&YEAR(N2)&\")\",\"Bar\",\"\",\"Close\",\"ADC\",\"0\",\"all\",\"\",\"\",\"FALSE\",\"T\"))","v":844099},{"$f":" RTD(\"cqg.rtd\",,\"StudyData\", \"OI(\"&C1&\",OIType:=CommodityOi) when (LocalMonth(\"&$C$1&\")=\"&MONTH(N2)&\" and LocalDay(\"&$C$1&\")=\"&DAY(N1)+1&\" and LocalYear(\"&$C$1&\")=\"&YEAR(N2)&\")\", \"Bar\", \"\", \"Close\", \"ADC\", \"0\", \"all\", \"\", \"\",\"FALSE\",\"T\")","v":844099}]
[null,{"$f":"IF(LEFT(I2,3)=\"777\",1,0)","v":0},null,null,null,null,null,null,null,{"$f":"J1","v":"2020-10-20"},{"$f":" RTD(\"cqg.rtd\",,\"StudyData\", \"PriceToDollar(\"&C1&\",InputChoice=Close) when (LocalMonth(\"&$C$1&\")=\"&MONTH(J3)&\" and LocalDay(\"&$C$1&\")=\"&DAY(J3)&\" and LocalYear(\"&$C$1&\")=\"&YEAR(J3)&\")\", \"Bar\", \"\", \"Close\", \"D\", \"0\", \"all\", \"\", \"\",\"FALSE\",\"T\")","v":53187.5},null,null,{"$f":"N1","v":"2020-08-18"},{"$f":" RTD(\"cqg.rtd\",,\"StudyData\", \"PriceToDollar(\"&C1&\",InputChoice=Close) when (LocalMonth(\"&$C$1&\")=\"&MONTH(N3)&\" and LocalDay(\"&$C$1&\")=\"&DAY(N3)&\" and LocalYear(\"&$C$1&\")=\"&YEAR(N3)&\")\", \"Bar\", \"\", \"Close\", \"ADC\", \"0\", \"all\", \"\", \"\",\"FALSE\",\"T\")","v":45687.5},null,null,null,", &TEXT(AC6,\".0%\")"]
[]
[null,"Agriculture, Petroleum and Products, Natural Gas and Products, Electricity or Metals"]
[null,null,null,null,null,null,null,{"$f":"K3*N6","v":3237044437.5},null,null,{"$f":"\"X.US.\"&$C$1&L6","v":"X.US.ZSEOFSDSPR"},"OFSDSPR",null,{"$f":" RTD(\"cqg.rtd\",,\"StudyData\",K6, \"Bar\", \"\", \"Close\",\"W\",$I$1,,,,,\"T\")","v":60861},{"$f":"N6/$K$2","v":5.7971138734104873E-2},{"$f":"VLOOKUP(K6,Symbols!$A$1:$B$3103,2,FALSE)","v":"Soybeans Options and Futures Combined Swap Dealers Spreading"},{"$f":"P6&\", \"&TEXT(O6,\".0%\")","v":"Soybeans Options and Futures Combined Swap Dealers Spreading, 5.8%"},null,null,null,null,null,null,null,{"$f":"\"X.US.\"&$C$1&Z6","v":"X.US.ZSEOFSDSPR"},"OFSDSPR",null,{"$f":" RTD(\"cqg.rtd\",,\"StudyData\",Y6, \"Bar\", \"\", \"Close\",\"W\",$L$1,,,,,\"T\")","v":27698},{"$f":"AB6/$O$2","v":3.2813686546246355E-2},{"$f":"P6&\", \"&TEXT(AC6,\".0%\")","v":"Soybeans Options and Futures Combined Swap Dealers Spreading, 3.3%"}]
[null,"Incorrect Symbol. Please enter an Agriculture, Petroleum and Products, Natural Gas and Products, or Metals symbol.",null,null,null,null,null,null,null,null,{"$f":"\"X.US.\"&$C$1&L7","v":"X.US.ZSEOFSDSHT"},"OFSDSHT",null,{"$f":" RTD(\"cqg.rtd\",,\"StudyData\",K7, \"Bar\", \"\", \"Close\",\"W\",$I$1,,,,,\"T\")","v":40273},{"$f":"N7/$K$2","v":3.836071819783779E-2},{"$f":"VLOOKUP(K7,Symbols!$A$1:$B$3103,2,FALSE)","v":"Soybeans Options and Futures Combined Swap Dealers Short"},{"$f":"P7&\", \"&TEXT(O7,\".0%\")","v":"Soybeans Options and Futures Combined Swap Dealers Short, 3.8%"},null,null,null,null,null,null,null,{"$f":"\"X.US.\"&$C$1&Z7","v":"X.US.ZSEOFSDSHT"},"OFSDSHT",null,{"$f":" RTD(\"cqg.rtd\",,\"StudyData\",Y7, \"Bar\", \"\", \"Close\",\"W\",$L$1,,,,,\"T\")","v":19129},{"$f":"AB7/$O$2","v":2.2662033718793648E-2},{"$f":"P7&\", \"&TEXT(AC7,\".0%\")","v":"Soybeans Options and Futures Combined Swap Dealers Short, 2.3%"}]
[null,null,null,null,null,null,null,null,null,null,"X.US.ZSEOFSDLONG","OFSDLONG",null,{"$f":" RTD(\"cqg.rtd\",,\"StudyData\",K8, \"Bar\", \"\", \"Close\",\"W\",$I$1,,,,,\"T\")","v":162576},0.15485640805829404,{"$f":"VLOOKUP(K8,Symbols!$A$1:$B$3103,2,FALSE)","v":"Soybeans Options and Futures Combined Swap Dealers Long"},"Soybeans Options and Futures Combined Swap Dealers Long, 15.5%",null,null,null,null,null,null,null,"X.US.ZSEOFSDLONG","OFSDLONG",null,{"$f":" RTD(\"cqg.rtd\",,\"StudyData\",Y8, \"Bar\", \"\", \"Close\",\"W\",$L$1,,,,,\"T\")","v":153028},0.18129153096970854,"Soybeans Options and Futures Combined Swap Dealers Long, 18.1%"]
[null,null,null,null,null,null,null,null,null,null,"X.US.ZSEOFPMPUSHT","OFPMPUSHT",null,{"$f":" RTD(\"cqg.rtd\",,\"StudyData\",K9, \"Bar\", \"\", \"Close\",\"W\",$I$1,,,,,\"T\")","v":728305},0.69372291279706622,{"$f":"VLOOKUP(K9,Symbols!$A$1:$B$3103,2,FALSE)","v":"Soybeans Options and Futures Combined Producer/Merchant/Processor/User Short"},"Soybeans Options and Futures Combined Producer/Merchant/Processor/User Short, 69.4%",null,null,null,null,null,null,null,"X.US.ZSEOFPMPUSHT","OFPMPUSHT",null,{"$f":" RTD(\"cqg.rtd\",,\"StudyData\",Y9, \"Bar\", \"\", \"Close\",\"W\",$L$1,,,,,\"T\")","v":537241},0.63646681254213067,"Soybeans Options and Futures Combined Producer/Merchant/Processor/User Short, 63.6%"]
[null,null,null,null,{"$f":"I2","v":""},null,null,null,null,null,"X.US.ZSEOFPMPULONG","OFPMPULONG",null,{"$f":" RTD(\"cqg.rtd\",,\"StudyData\",K10, \"Bar\", \"\", \"Close\",\"W\",$I$1,,,,,\"T\")","v":355265},0.33839596132780875,{"$f":"VLOOKUP(K10,Symbols!$A$1:$B$3103,2,FALSE)","v":"Soybeans Options and Futures Combined Producer/Merchant/Processor/User Long"},"Soybeans Options and Futures Combined Producer/Merchant/Processor/User Long, 33.8%",null,null,null,null,null,null,null,"X.US.ZSEOFPMPULONG","OFPMPULONG",null,{"$f":" RTD(\"cqg.rtd\",,\"StudyData\",Y10, \"Bar\", \"\", \"Close\",\"W\",$L$1,,,,,\"T\")","v":279321},0.33091023683240944,"Soybeans Options and Futures Combined Producer/Merchant/Processor/User Long, 33.1%"]
[null,null,null,null,null,null,null,null,null,null,"X.US.ZSEOFORSPR","OFORSPR",null,{"$f":" RTD(\"cqg.rtd\",,\"StudyData\",K11, \"Bar\", \"\", \"Close\",\"W\",$I$1,,,,,\"T\")","v":245410},0.23375720341001097,{"$f":"VLOOKUP(K11,Symbols!$A$1:$B$3103,2,FALSE)","v":"Soybeans Options and Futures Combined Other Reportables Spreading"},"Soybeans Options and Futures Combined Other Reportables Spreading, 23.4%",null,null,null,null,null,null,null,"X.US.ZSEOFORSPR","OFORSPR",null,{"$f":" RTD(\"cqg.rtd\",,\"StudyData\",Y11, \"Bar\", \"\", \"Close\",\"W\",$L$1,,,,,\"T\")","v":145674},0.17257928276185613,"Soybeans Options and Futures Combined Other Reportables Spreading, 17.3%"]
[null,null,null,null,null,null,null,null,null,null,"X.US.ZSEOFORSHT","OFORSHT",null,{"$f":" RTD(\"cqg.rtd\",,\"StudyData\",K12, \"Bar\", \"\", \"Close\",\"W\",$I$1,,,,,\"T\")","v":40451},3.8530266228508837E-2,{"$f":"VLOOKUP(K12,Symbols!$A$1:$B$3103,2,FALSE)","v":"Soybeans Options and Futures Combined Other Reportables Short"},"Soybeans Options and Futures Combined Other Reportables Short, 3.9%",null,null,null,null,null,null,null,"X.US.ZSEOFORSHT","OFORSHT",null,{"$f":" RTD(\"cqg.rtd\",,\"StudyData\",Y12, \"Bar\", \"\", \"Close\",\"W\",$L$1,,,,,\"T\")","v":35601},4.2176332397029261E-2,"Soybeans Options and Futures Combined Other Reportables Short, 4.2%"]
[null,null,null,null,null,null,null,null,null,null,"X.US.ZSEOFORLONG","OFORLONG",null,{"$f":" RTD(\"cqg.rtd\",,\"StudyData\",K13, \"Bar\", \"\", \"Close\",\"W\",$I$1,,,,,\"T\")","v":67656},6.4443491927418203E-2,{"$f":"VLOOKUP(K13,Symbols!$A$1:$B$3103,2,FALSE)","v":"Soybeans Options and Futures Combined Other Reportables Long"},"Soybeans Options and Futures Combined Other Reportables Long, 6.4%",null,null,null,null,null,null,null,"X.US.ZSEOFORLONG","OFORLONG",null,{"$f":" RTD(\"cqg.rtd\",,\"StudyData\",Y13, \"Bar\", \"\", \"Close\",\"W\",$L$1,,,,,\"T\")","v":57753},6.8419699585001284E-2,"Soybeans Options and Futures Combined Other Reportables Long, 6.8%"]
[null,null,null,null,null,null,null,null,null,null,"X.US.ZSEOFNRSHT","OFNRSHT",null,{"$f":" RTD(\"cqg.rtd\",,\"StudyData\",K14, \"Bar\", \"\", \"Close\",\"W\",$I$1,,,,,\"T\")","v":88105},8.3921512597037673E-2,{"$f":"VLOOKUP(K14,Symbols!$A$1:$B$3103,2,FALSE)","v":"Soybeans Options and Futures Combined Nonreportable Short"},"Soybeans Options and Futures Combined Nonreportable Short, 8.4%",null,null,null,null,null,null,null,"X.US.ZSEOFNRSHT","OFNRSHT",null,{"$f":" RTD(\"cqg.rtd\",,\"StudyData\",Y14, \"Bar\", \"\", \"Close\",\"W\",$L$1,,,,,\"T\")","v":70341},8.3332642261156567E-2,"Soybeans Options and Futures Combined Nonreportable Short, 8.3%"]
[null,null,null,null,null,null,null,null,null,null,"X.US.ZSEOFNRLONG","OFNRLONG",null,{"$f":" RTD(\"cqg.rtd\",,\"StudyData\",K15, \"Bar\", \"\", \"Close\",\"W\",$I$1,,,,,\"T\")","v":79746},7.5959422774682095E-2,{"$f":"VLOOKUP(K15,Symbols!$A$1:$B$3103,2,FALSE)","v":"Soybeans Options and Futures Combined Nonreportable Long"},"Soybeans Options and Futures Combined Nonreportable Long, 7.6%",null,null,null,null,null,null,null,"X.US.ZSEOFNRLONG","OFNRLONG",null,{"$f":" RTD(\"cqg.rtd\",,\"StudyData\",Y15, \"Bar\", \"\", \"Close\",\"W\",$L$1,,,,,\"T\")","v":65152},7.7185259075061102E-2,"Soybeans Options and Futures Combined Nonreportable Long, 7.7%"]
[null,null,null,null,null,null,null,null,null,null,"X.US.ZSEOFMMSPR","OFMMSPR",null,{"$f":" RTD(\"cqg.rtd\",,\"StudyData\",K16, \"Bar\", \"\", \"Close\",\"W\",$I$1,,,,,\"T\")","v":119450},0.11377815878458827,{"$f":"VLOOKUP(K16,Symbols!$A$1:$B$3103,2,FALSE)","v":"Soybeans Options and Futures Combined Managed Money Spreading"},"Soybeans Options and Futures Combined Managed Money Spreading, 11.4%",null,null,null,null,null,null,null,"X.US.ZSEOFMMSPR","OFMMSPR",null,{"$f":" RTD(\"cqg.rtd\",,\"StudyData\",Y16, \"Bar\", \"\", \"Close\",\"W\",$L$1,,,,,\"T\")","v":121360},0.14377460463760766,"Soybeans Options and Futures Combined Managed Money Spreading, 14.4%"]
[null,null,null,null,null,null,null,null,null,null,"X.US.ZSEOFMMSHT","OFMMSHT",null,{"$f":" RTD(\"cqg.rtd\",,\"StudyData\",K17, \"Bar\", \"\", \"Close\",\"W\",$I$1,,,,,\"T\")","v":3509},3.3423822450826309E-3,{"$f":"VLOOKUP(K17,Symbols!$A$1:$B$3103,2,FALSE)","v":"Soybeans Options and Futures Combined Managed Money Short"},"Soybeans Options and Futures Combined Managed Money Short, .3%",null,null,null,null,null,null,null,"X.US.ZSEOFMMSHT","OFMMSHT",null,{"$f":" RTD(\"cqg.rtd\",,\"StudyData\",Y17, \"Bar\", \"\", \"Close\",\"W\",$L$1,,,,,\"T\")","v":26393},3.1267659362231207E-2,"Soybeans Options and Futures Combined Managed Money Short, 3.1%"]
[null,null,null,null,null,null,null,null,null,null,"X.US.ZSEOFMMLONG","OFMMLONG",null,{"$f":" RTD(\"cqg.rtd\",,\"StudyData\",K18, \"Bar\", \"\", \"Close\",\"W\",$I$1,,,,,\"T\")","v":235401},0.22422346049435635,{"$f":"VLOOKUP(K18,Symbols!$A$1:$B$3103,2,FALSE)","v":"Soybeans Options and Futures Combined Managed Money Long"},"Soybeans Options and Futures Combined Managed Money Long, 22.4%",null,null,null,null,null,null,null,"X.US.ZSEOFMMLONG","OFMMLONG",null,{"$f":" RTD(\"cqg.rtd\",,\"StudyData\",Y18, \"Bar\", \"\", \"Close\",\"W\",$L$1,,,,,\"T\")","v":133451},0.15809875381916103,"Soybeans Options and Futures Combined Managed Money Long, 15.8%"]
[]
[null,null,null,null,null,null,null,null,null,null,null,null,null,{"$f":"N10-N9","v":-373040},null,{"$f":"\"Disaggregated COT as a Percentage of Total Open Interest, Weeks: \"&TEXT(Q21,\"MM/DD/YY\")&\" vs. \"&TEXT(R21,\"MM/DD/YY\")","v":"Disaggregated COT as a Percentage of Total Open Interest, Weeks: 10/20/20 vs. 08/18/20"}]
[null,null,null,null,null,null,null,null,null,null,null,null,null,null,null,null,{"$f":"J1","v":"2020-10-20"},{"$f":"N1","v":"2020-08-18"},null,null,null,null,null,null,null,null,null,null,{"$f":"IFERROR(N6/$K$2,\"NA\")","v":5.7971138734104873E-2},{"$f":"P6&\", \"&TEXT(AC21,\".00%\")&\" \"&AE21&\" \"&TEXT(AF21,\".00%\")","v":"Soybeans Options and Futures Combined Swap Dealers Spreading, 5.80% ∆ 2.52%"},"∆",{"$f":"IFERROR(O6-AC6,\"NA\")","v":2.5157452187858517E-2}]
[null,null,null,null,null,null,null,null,null,null,null,null,null,null,null,null,null,null,null,null,null,null,null,null,null,null,null,null,{"$f":"IFERROR(N7/$K$2,\"NA\")","v":3.836071819783779E-2},{"$f":"P7&\", \"&TEXT(AC22,\".00%\")&\" \"&AE22&\" \"&TEXT(AF22,\".00%\")","v":"Soybeans Options and Futures Combined Swap Dealers Short, 3.84% ∆ 1.57%"},"∆",{"$f":"IFERROR(O7-AC7,\"NA\")","v":1.5698684479044142E-2}]
[null,null,null,null,null,null,null,null,null,null,null,null,null,null,null,null,null,null,null,null,null,null,null,null,null,null,null,null,0.15485640805829404,"Soybeans Options and Futures Combined Swap Dealers Long, 15.49% ∆ -2.64%","∆",-2.6435122911414505E-2]
[null,null,null,null,null,null,null,null,null,null,null,null,null,null,null,null,null,null,null,null,null,null,null,null,null,null,null,null,0.69372291279706622,"Soybeans Options and Futures Combined Producer/Merchant/Processor/User Short, 69.37% ∆ 5.73%","∆",5.7256100254935549E-2]
[null,null,null,null,null,null,null,null,null,null,null,null,null,null,null,null,null,null,null,null,null,null,null,null,null,null,null,null,0.33839596132780875,"Soybeans Options and Futures Combined Producer/Merchant/Processor/User Long, 33.84% ∆ .75%","∆",7.4857244953993041E-3]
[null,null,null,null,null,null,null,null,null,null,null,null,null,null,null,null,null,null,null,null,null,null,null,null,null,null,null,null,0.23375720341001097,"Soybeans Options and Futures Combined Other Reportables Spreading, 23.38% ∆ 6.12%","∆",6.1177920648154832E-2]
[null,null,null,null,null,null,null,null,null,null,null,null,null,null,null,null,null,null,null,null,null,null,null,null,null,null,null,null,3.8530266228508837E-2,"Soybeans Options and Futures Combined Other Reportables Short, 3.85% ∆ -.36%","∆",-3.6460661685204232E-3]
[null,null,null,null,null,null,null,null,null,null,null,null,null,null,null,null,null,null,null,null,null,null,null,null,null,null,null,null,6.4443491927418203E-2,"Soybeans Options and Futures Combined Other Reportables Long, 6.44% ∆ -.40%","∆",-3.9762076575830807E-3]
[null,null,null,null,null,null,null,null,null,null,null,null,null,null,null,null,null,null,null,null,null,null,null,null,null,null,null,null,8.3921512597037673E-2,"Soybeans Options and Futures Combined Nonreportable Short, 8.39% ∆ .06%","∆",5.8887033588110593E-4]
[null,null,null,null,null,null,null,null,null,null,null,null,null,null,null,null,null,null,null,null,null,null,null,null,null,null,null,null,7.5959422774682095E-2,"Soybeans Options and Futures Combined Nonreportable Long, 7.60% ∆ -.12%","∆",-1.2258363003790074E-3]
[null,null,null,null,null,null,null,null,null,null,null,null,null,null,null,null,null,null,null,null,null,null,null,null,null,null,null,null,0.11377815878458827,"Soybeans Options and Futures Combined Managed Money Spreading, 11.38% ∆ -3.00%","∆",-2.9996445853019388E-2]
[null,null,null,null,null,null,null,null,null,null,null,null,null,null,null,null,null,null,null,null,null,null,null,null,null,null,null,null,3.3423822450826309E-3,"Soybeans Options and Futures Combined Managed Money Short, .33% ∆ -2.79%","∆",-2.7925277117148574E-2]
[null,null,null,null,null,null,null,null,null,null,null,null,null,null,null,null,null,null,null,null,null,null,null,null,null,null,null,null,0.22422346049435635,"Soybeans Options and Futures Combined Managed Money Long, 22.42% ∆ 6.61%","∆",6.6124706675195322E-2]
[]
[]
[]
[]
[]
[]
[]
[]
[]
[]
[]
[]
[]
[]
[]
[]
[]
[]
[]
[]
[]
[]
[]
[]
[]
[null,null,null,null,null,null,null,null,null,null,null,null,null,"X.US.ZSEOFPMPUDIFF","Soybeans Options and Futures Combined Producer/Merchant/Processor/User Long/Short Diff",null,null,null,null,null,null,null,null,null,null,null,null,null,null,"Soybeans Options and Futures Combined"]
[null,null,null,null,null,null,null,null,null,null,null,null,null,null,null,null,null,null,null,null,null,null,null,null,null,null,null,null,null,"Producer/Merchant/Processor/User Long/Short Diff"]
[null,null,null,null,null,null,null,null,null,null,null,null,null,null,{"$f":" RTD(\"cqg.rtd\",,\"StudyData\",N59, \"Bar\", \"\", \"Close\",\"W\",-1,,,,,\"T\")","v":-373040},{"$f":" RTD(\"cqg.rtd\",,\"StudyData\",N59, \"Bar\", \"\", \"Close\",\"W\",-4,,,,,\"T\")","v":-351874},{"$f":"O61-P61","v":-21166},null,null,null,null,null,null,null,null,{"$f":"LEN(O59)","v":86}]

{"sheet":"Sheet2","index":5,"n_rows":27,"n_cols":19,"rows_kept":27,"cut":false,"hidden":true,"merged":[]}
[null,null,null,null,null,null,null,null,null,null,null,null,null,"Vlookup","Symbol","Volume","rank1","rank2"]
[null,null,null,null,null,null,null,null,null,null,null,null,null,{"$f":"R2","v":6},"A",100,{"$f":"RANK($P2,$P$2:P$7)","v":6},{"$f":"RANK($P2,$P$2:P$7)+COUNTIF($P$2:P2,P2)-1","v":6},{"$f":"RANK($P2,$P$2:P$7)+COUNTIF($P$2:P2,P2)-1","v":6}]
[null,null,null,null,null,null,null,null,null,null,null,null,null,{"$f":"R3","v":3},"B",103,{"$f":"RANK($P3,$P$2:P$7)","v":3},{"$f":"RANK($P3,$P$2:P$7)+COUNTIF($P$2:P3,P3)-1","v":3},{"$f":"RANK($P3,$P$2:P$7)+COUNTIF($P$2:P3,P3)-1","v":3}]
[null,null,null,null,null,null,null,null,null,null,null,null,null,5,"C",102,{"$f":"RANK($P4,$P$2:P$7)","v":5},{"$f":"RANK($P4,$P$2:P$7)+COUNTIF($P$2:P4,P4)-1","v":5},{"$f":"RANK($P4,$P$2:P$7)+COUNTIF($P$2:P4,P4)-1","v":5}]
[null,null,null,null,null,null,null,null,null,null,null,null,null,4,"D",103,{"$f":"RANK($P5,$P$2:P$7)","v":3},{"$f":"RANK($P5,$P$2:P$7)+COUNTIF($P$2:P5,P5)-1","v":4},{"$f":"RANK($P5,$P$2:P$7)+COUNTIF($P$2:P5,P5)-1","v":4}]
[null,null,null,null,null,null,null,null,null,null,null,null,null,{"$f":"R6","v":2},"E",104,{"$f":"RANK($P6,$P$2:P$7)","v":2},{"$f":"RANK($P6,$P$2:P$7)+COUNTIF($P$2:P6,P6)-1","v":2},{"$f":"RANK($P6,$P$2:P$7)+COUNTIF($P$2:P6,P6)-1","v":2}]
[null,null,null,null,null,null,null,null,null,null,null,null,null,1,"F",105,{"$f":"RANK($P7,$P$2:P$7)","v":1},{"$f":"RANK($P7,$P$2:P$7)+COUNTIF($P$2:P7,P7)-1","v":1},{"$f":"RANK($P7,$P$2:P$7)+COUNTIF($P$2:P7,P7)-1","v":1}]
[{"$f":"RANK($C8,$C$8:C$12)+COUNTIF($C$8:C8,C8)-1","v":2},{"$f":"\"X.US.\"&Sheet1!$C$1&\"OFSDDIFF\"","v":"X.US.ZSEOFSDDIFF"},{"$f":" RTD(\"cqg.rtd\",,\"StudyData\",B8, \"Bar\", \"\", \"Close\",\"W\",-1,,,,,\"T\")","v":122303},{"$f":"VLOOKUP(B8,Symbols!$A$1:$B$3103,2,FALSE)","v":"Soybeans Options and Futures Combined Swap Dealers Long/Short Diff"},null,null,null,null,null,null,null,null,null,{"$f":"VLOOKUP(O8,$A$8:$D$12,2,FALSE)","v":"X.US.ZSEOFMMDIFF"},1,{"$f":"VLOOKUP(O8,$A$8:$D$12,3,FALSE)","v":231892},{"$f":"VLOOKUP(O8,$A$8:$D$12,4,FALSE)","v":"Soybeans Options and Futures Combined Managed Money Long/Short Diff"}]
[{"$f":"RANK($C9,$C$8:C$12)+COUNTIF($C$8:C9,C9)-1","v":5},{"$f":"\"X.US.\"&Sheet1!$C$1&\"OFPMPUDIFF\"","v":"X.US.ZSEOFPMPUDIFF"},{"$f":" RTD(\"cqg.rtd\",,\"StudyData\",B9, \"Bar\", \"\", \"Close\",\"W\",-1,,,,,\"T\")","v":-373040},{"$f":"VLOOKUP(B9,Symbols!$A$1:$B$3103,2,FALSE)","v":"Soybeans Options and Futures Combined Producer/Merchant/Processor/User Long/Short Diff"},null,null,null,null,null,null,null,null,null,{"$f":"VLOOKUP(O9,$A$8:$D$12,2,FALSE)","v":"X.US.ZSEOFSDDIFF"},2,{"$f":"VLOOKUP(O9,$A$8:$D$12,3,FALSE)","v":122303},{"$f":"VLOOKUP(O9,$A$8:$D$12,4,FALSE)","v":"Soybeans Options and Futures Combined Swap Dealers Long/Short Diff"}]
[{"$f":"RANK($C10,$C$8:C$12)+COUNTIF($C$8:C10,C10)-1","v":3},{"$f":"\"X.US.\"&Sheet1!$C$1&\"OFORDIFF\"","v":"X.US.ZSEOFORDIFF"},{"$f":" RTD(\"cqg.rtd\",,\"StudyData\",B10, \"Bar\", \"\", \"Close\",\"W\",-1,,,,,\"T\")","v":27205},{"$f":"VLOOKUP(B10,Symbols!$A$1:$B$3103,2,FALSE)","v":"Soybeans Options and Futures Combined Other Reportables Long/Short Diff"},null,null,null,null,null,null,null,null,null,"X.US.ZSEOFORDIFF",3,27205,"Soybeans Options and Futures Combined Other Reportables Long/Short Diff"]
[{"$f":"RANK($C11,$C$8:C$12)+COUNTIF($C$8:C11,C11)-1","v":4},{"$f":"\"X.US.\"&Sheet1!$C$1&\"OFNRDIFF\"","v":"X.US.ZSEOFNRDIFF"},{"$f":" RTD(\"cqg.rtd\",,\"StudyData\",B11, \"Bar\", \"\", \"Close\",\"W\",-1,,,,,\"T\")","v":-8359},{"$f":"VLOOKUP(B11,Symbols!$A$1:$B$3103,2,FALSE)","v":"Soybeans Options and Futures Combined Nonreportable Long/Short Diff"},null,null,null,null,null,null,null,null,null,"X.US.ZSEOFNRDIFF",4,-8359,"Soybeans Options and Futures Combined Nonreportable Long/Short Diff"]
[{"$f":"RANK($C12,$C$8:C$12)+COUNTIF($C$8:C12,C12)-1","v":1},{"$f":"\"X.US.\"&Sheet1!$C$1&\"OFMMDIFF\"","v":"X.US.ZSEOFMMDIFF"},{"$f":" RTD(\"cqg.rtd\",,\"StudyData\",B12, \"Bar\", \"\", \"Close\",\"W\",-1,,,,,\"T\")","v":231892},{"$f":"VLOOKUP(B12,Symbols!$A$1:$B$3103,2,FALSE)","v":"Soybeans Options and Futures Combined Managed Money Long/Short Diff"},null,null,null,null,null,null,null,null,null,"X.US.ZSEOFPMPUDIFF",5,-373040,"Soybeans Options and Futures Combined Producer/Merchant/Processor/User Long/Short Diff"]
[]
[null,null,{"$f":"Sheet1!K2","v":1049850}]
[null,null,null,null,null,null,null,null,null,null,null,{"$f":"Sheet1!L1","v":-10},null,{"$f":" RTD(\"cqg.rtd\",,\"StudyData\",N8, \"Bar\", \"\", \"Close\",\"W\",$L$15,,,,,\"T\")","v":107058}]
[null,null,{"$f":" ABS(C8/$C$14)","v":0.11649568986045626},null,null,null,null,null,null,null,null,null,null,{"$f":" RTD(\"cqg.rtd\",,\"StudyData\",N9, \"Bar\", \"\", \"Close\",\"W\",$L$15,,,,,\"T\")","v":133899}]
[null,null,{"$f":" ABS(C9/$C$14)","v":0.35532695146925752},null,null,null,null,null,null,null,null,null,null,{"$f":" RTD(\"cqg.rtd\",,\"StudyData\",N10, \"Bar\", \"\", \"Close\",\"W\",$L$15,,,,,\"T\")","v":22152}]
[null,null,2.5913225698909369E-2,null,null,null,null,null,null,null,null,null,null,{"$f":" RTD(\"cqg.rtd\",,\"StudyData\",N11, \"Bar\", \"\", \"Close\",\"W\",$L$15,,,,,\"T\")","v":-5189}]
[null,null,7.9620898223555746E-3,null,null,null,null,null,null,null,null,null,null,{"$f":" RTD(\"cqg.rtd\",,\"StudyData\",N12, \"Bar\", \"\", \"Close\",\"W\",$L$15,,,,,\"T\")","v":-257920}]
[null,null,0.22088107824927369]
[null,null,null,null,null,null,null,null,null,null,null,null,null,{"$f":"Sheet1!O2","v":844099}]
[]
[null,null,null,null,null,null,null,null,null,null,null,null,null,{"$f":"ABS(N15/$N$21)","v":0.1268310944569298}]
[null,null,null,null,null,null,null,null,null,null,null,null,null,{"$f":"ABS(N16/$N$21)","v":0.15862949725091488}]
[null,null,null,null,null,null,null,null,null,null,null,null,null,2.6243367187972027E-2]
[null,null,null,null,null,null,null,null,null,null,null,null,null,6.14738318609547E-3]
[null,null,null,null,null,null,null,null,null,null,null,null,null,0.30555657570972128]

{"sheet":"Sheet1 (2)","index":6,"n_rows":61,"n_cols":32,"rows_kept":61,"cut":false,"hidden":true,"merged":[]}
[null,"Symbol",{"$f":"TradersFinancialFutures!D44","v":"TYA"},{"$f":"RTD(\"cqg.rtd\", ,\"ContractData\",C1, \"LongDescription\",, \"T\")","v":"10yr US Treasury Notes (Globex), Dec 20"},null,null,null,"Week",{"$f":"IF(I2=\"\",-1,0)","v":-1},{"$f":" IF(LEFT(RTD(\"cqg.rtd\",,\"StudyData\",K6, \"Bar\", \"\", \"Time\",\"W\",I1,,,,,\"T\"),3)=\"777\",\"\",RTD(\"cqg.rtd\",,\"StudyData\",K6, \"Bar\", \"\", \"Time\",\"W\",I1,,,,,\"T\")+1)","v":"2020-10-20"},"Week",{"$f":"TradersFinancialFutures!L44","v":-8},null,{"$f":" IF(LEFT( RTD(\"cqg.rtd\",,\"StudyData\",K6, \"Bar\", \"\", \"Time\",\"W\",L1,,,,,\"T\"),3)=\"777\",\"\",RTD(\"cqg.rtd\",,\"StudyData\",K6, \"Bar\", \"\", \"Time\",\"W\",L1,,,,,\"T\")+1)","v":"2020-09-01"}]
[null,null,null,null,null,null,null,null,{"$f":" RTD(\"cqg.rtd\",,\"StudyData\",K6, \"Bar\", \"\", \"Close\",\"W\",0,,,,,\"T\")","v":""},{"$f":"J1+1","v":"2020-10-21"},{"$f":" RTD(\"cqg.rtd\",,\"StudyData\", \"OI(\"&C1&\",OIType:=CommodityOi) when (LocalMonth(\"&$C$1&\")=\"&MONTH(J2)&\" and LocalDay(\"&$C$1&\")=\"&DAY(J2)&\" and LocalYear(\"&$C$1&\")=\"&YEAR(J2)&\")\", \"Bar\", \"\", \"Close\", \"D\", \"0\", \"all\", \"\", \"\",\"FALSE\",\"T\")","v":3183549},null,null,{"$f":"N1+1","v":"2020-09-02"},{"$f":"IF(P2=\"\",RTD(\"cqg.rtd\",,\"StudyData\",\"OI(\"&C1&\",OIType:=CommodityOi) when (LocalMonth(\"&$C$1&\")=\"&MONTH(N2)&\" and LocalDay(\"&$C$1&\")=\"&DAY(N2)+1&\" and LocalYear(\"&$C$1&\")=\"&YEAR(N2)&\")\",\"Bar\",\"\",\"Close\",\"D\",\"0\",\"all\",\"\",\"\",\"FALSE\",\"T\"),RTD(\"cqg.rtd\",,\"StudyData\",\"OI(\"&C1&\",OIType:=CommodityOi) when (LocalMonth(\"&$C$1&\")=\"&MONTH(N2)&\" and LocalDay(\"&$C$1&\")=\"&DAY(N2)&\" and LocalYear(\"&$C$1&\")=\"&YEAR(N2)&\")\",\"Bar\",\"\",\"Close\",\"D\",\"0\",\"all\",\"\",\"\",\"FALSE\",\"T\"))","v":3374018},{"$f":" RTD(\"cqg.rtd\",,\"StudyData\", \"OI(\"&C1&\",OIType:=CommodityOi) when (LocalMonth(\"&$C$1&\")=\"&MONTH(N2)&\" and LocalDay(\"&$C$1&\")=\"&DAY(N1)+1&\" and LocalYear(\"&$C$1&\")=\"&YEAR(N2)&\")\", \"Bar\", \"\", \"Close\", \"D\", \"0\", \"all\", \"\", \"\",\"FALSE\",\"T\")","v":3374018}]
[null,{"$f":"IF(LEFT(I2,3)=\"777\",1,0)","v":0},null,null,null,null,null,null,null,{"$f":"J1","v":"2020-10-20"},{"$f":" RTD(\"cqg.rtd\",,\"StudyData\", \"PriceToDollar(\"&C1&\",InputChoice:=Close) when (LocalMonth(\"&$C$1&\")=\"&MONTH(J3)&\" and LocalDay(\"&$C$1&\")=\"&DAY(J3)&\" and LocalYear(\"&$C$1&\")=\"&YEAR(J3)&\")\", \"Bar\", \"\", \"Close\", \"D\", \"0\", \"all\", \"\", \"\",\"FALSE\",\"T\")","v":138703.125},null,null,{"$f":"N1","v":"2020-09-01"},{"$f":"RTD(\"cqg.rtd\",,\"StudyData\",\"PriceToDollar(\"&C1&\",InputChoice:=Close) when (LocalMonth(\"&$C$1&\")=\"&N4&\" and LocalDay(\"&$C$1&\")=\"&O4&\" and LocalYear(\"&$C$1&\")=\"&P4&\")\",\"Bar\",\"\",\"Close\",\"ADC\",\"0\",\"all\",\"\",\"\",\"FALSE\",\"T\")","v":128421.875},null,null,null,", &TEXT(AC6,\".0%\")"]
[null,null,null,null,null,null,null,null,null,null,null,null,null,12,31,2019]
[null,"Agriculture, Petroleum and Products, Natural Gas and Products, Electricity or Metals"]
[null,null,null,null,null,null,null,null,null,null,{"$f":"\"X.US.\"&$C$1&L6","v":"X.US.TYAOFAMILONG"},"OFAMILONG",null,{"$f":" RTD(\"cqg.rtd\",,\"StudyData\",K6, \"Bar\", \"\", \"Close\",\"W\",$I$1,,,,,\"T\")","v":1379468},{"$f":"N6/$K$2","v":0.43331137670568287},{"$f":"VLOOKUP(K6,Symbols!$A$1:$B$3103,2,FALSE)","v":"US 10Y T-note Options and Futures Combined Asset Manager/Institutional Long"},{"$f":"P6&\", \"&TEXT(O6,\".0%\")","v":"US 10Y T-note Options and Futures Combined Asset Manager/Institutional Long, 43.3%"},null,null,null,null,null,null,null,{"$f":"\"X.US.\"&$C$1&Z6","v":"X.US.TYAOFAMILONG"},"OFAMILONG",null,{"$f":" RTD(\"cqg.rtd\",,\"StudyData\",Y6, \"Bar\", \"\", \"Close\",\"W\",$L$1,,,,,\"T\")","v":1337774},{"$f":"AB6/$O$2","v":0.39649284621480974},{"$f":"P6&\", \"&TEXT(AC6,\".0%\")","v":"US 10Y T-note Options and Futures Combined Asset Manager/Institutional Long, 39.6%"}]
[null,"Incorrect Symbol. Please enter a Financial Futures symbol.",null,null,null,null,null,null,null,null,{"$f":"\"X.US.\"&$C$1&L7","v":"X.US.TYAOFAMISHT"},"OFAMISHT",null,{"$f":" RTD(\"cqg.rtd\",,\"StudyData\",K7, \"Bar\", \"\", \"Close\",\"W\",$I$1,,,,,\"T\")","v":1196965},{"$f":"N7/$K$2","v":0.37598447518791134},{"$f":"VLOOKUP(K7,Symbols!$A$1:$B$3103,2,FALSE)","v":"US 10Y T-note Options and Futures Combined Asset Manager/Institutional Short"},{"$f":"P7&\", \"&TEXT(O7,\".0%\")","v":"US 10Y T-note Options and Futures Combined Asset Manager/Institutional Short, 37.6%"},null,null,null,null,null,null,null,{"$f":"\"X.US.\"&$C$1&Z7","v":"X.US.TYAOFAMISHT"},"OFAMISHT",null,{"$f":" RTD(\"cqg.rtd\",,\"StudyData\",Y7, \"Bar\", \"\", \"Close\",\"W\",$L$1,,,,,\"T\")","v":1143784},{"$f":"AB7/$O$2","v":0.33899759870872059},{"$f":"P7&\", \"&TEXT(AC7,\".0%\")","v":"US 10Y T-note Options and Futures Combined Asset Manager/Institutional Short, 33.9%"}]
[null,null,null,null,null,null,null,null,null,null,"X.US.TYAOFAMISPR","OFAMISPR",null,{"$f":" RTD(\"cqg.rtd\",,\"StudyData\",K8, \"Bar\", \"\", \"Close\",\"W\",$I$1,,,,,\"T\")","v":690639},0.21693996228737172,{"$f":"VLOOKUP(K8,Symbols!$A$1:$B$3103,2,FALSE)","v":"US 10Y T-note Options and Futures Combined Asset Manager/Institutional Spreading"},"US 10Y T-note Options and Futures Combined Asset Manager/Institutional Spreading, 21.7%",null,null,null,null,null,null,null,"X.US.TYAOFAMISPR","OFAMISPR",null,{"$f":" RTD(\"cqg.rtd\",,\"StudyData\",Y8, \"Bar\", \"\", \"Close\",\"W\",$L$1,,,,,\"T\")","v":667536},0.19784601030581342,"US 10Y T-note Options and Futures Combined Asset Manager/Institutional Spreading, 19.8%"]
[null,null,null,null,null,null,null,null,null,null,"X.US.TYAOFDILONG","OFDILONG",null,{"$f":" RTD(\"cqg.rtd\",,\"StudyData\",K9, \"Bar\", \"\", \"Close\",\"W\",$I$1,,,,,\"T\")","v":182965},5.7472022576062126E-2,{"$f":"VLOOKUP(K9,Symbols!$A$1:$B$3103,2,FALSE)","v":"US 10Y T-note Options and Futures Combined Dealer Intermediary Long"},"US 10Y T-note Options and Futures Combined Dealer Intermediary Long, 5.7%",null,null,null,null,null,null,null,"X.US.TYAOFDILONG","OFDILONG",null,{"$f":" RTD(\"cqg.rtd\",,\"StudyData\",Y9, \"Bar\", \"\", \"Close\",\"W\",$L$1,,,,,\"T\")","v":197188},5.8443078845459628E-2,"US 10Y T-note Options and Futures Combined Dealer Intermediary Long, 5.8%"]
[null,null,"OFAMILONG",null,{"$f":"I2","v":""},null,null,null,null,null,"X.US.TYAOFDISHT","OFDISHT",null,{"$f":" RTD(\"cqg.rtd\",,\"StudyData\",K10, \"Bar\", \"\", \"Close\",\"W\",$I$1,,,,,\"T\")","v":281871},8.8539865414353602E-2,{"$f":"VLOOKUP(K10,Symbols!$A$1:$B$3103,2,FALSE)","v":"US 10Y T-note Options and Futures Combined Dealer Intermediary Short"},"US 10Y T-note Options and Futures Combined Dealer Intermediary Short, 8.9%",null,null,null,null,null,null,null,"X.US.TYAOFDISHT","OFDISHT",null,{"$f":" RTD(\"cqg.rtd\",,\"StudyData\",Y10, \"Bar\", \"\", \"Close\",\"W\",$L$1,,,,,\"T\")","v":257725},7.6385188223655004E-2,"US 10Y T-note Options and Futures Combined Dealer Intermediary Short, 7.6%"]
[null,null,"OFAMISHT",null,null,null,null,null,null,null,"X.US.TYAOFDISPR","OFDISPR",null,{"$f":" RTD(\"cqg.rtd\",,\"StudyData\",K11, \"Bar\", \"\", \"Close\",\"W\",$I$1,,,,,\"T\")","v":185621},5.8306311603810716E-2,{"$f":"VLOOKUP(K11,Symbols!$A$1:$B$3103,2,FALSE)","v":"US 10Y T-note Options and Futures Combined Dealer Intermediary Spreading"},"US 10Y T-note Options and Futures Combined Dealer Intermediary Spreading, 5.8%",null,null,null,null,null,null,null,"X.US.TYAOFDISPR","OFDISPR",null,{"$f":" RTD(\"cqg.rtd\",,\"StudyData\",Y11, \"Bar\", \"\", \"Close\",\"W\",$L$1,,,,,\"T\")","v":125938},3.7325823395133045E-2,"US 10Y T-note Options and Futures Combined Dealer Intermediary Spreading, 3.7%"]
[null,null,"OFAMISPR",null,null,null,null,null,null,null,"X.US.TYAOFLFLONG","OFLFLONG",null,{"$f":" RTD(\"cqg.rtd\",,\"StudyData\",K12, \"Bar\", \"\", \"Close\",\"W\",$I$1,,,,,\"T\")","v":360972},0.11338666375168091,{"$f":"VLOOKUP(K12,Symbols!$A$1:$B$3103,2,FALSE)","v":"US 10Y T-note Options and Futures Combined Leveraged Funds Long"},"US 10Y T-note Options and Futures Combined Leveraged Funds Long, 11.3%",null,null,null,null,null,null,null,"X.US.TYAOFLFLONG","OFLFLONG",null,{"$f":" RTD(\"cqg.rtd\",,\"StudyData\",Y12, \"Bar\", \"\", \"Close\",\"W\",$L$1,,,,,\"T\")","v":435387},0.12904110173686092,"US 10Y T-note Options and Futures Combined Leveraged Funds Long, 12.9%"]
[null,null,"OFDILONG",null,null,null,null,null,null,null,"X.US.TYAOFLFSHT","OFLFSHT",null,{"$f":" RTD(\"cqg.rtd\",,\"StudyData\",K13, \"Bar\", \"\", \"Close\",\"W\",$I$1,,,,,\"T\")","v":587928},0.18467691246467385,{"$f":"VLOOKUP(K13,Symbols!$A$1:$B$3103,2,FALSE)","v":"US 10Y T-note Options and Futures Combined Leveraged Funds Short"},"US 10Y T-note Options and Futures Combined Leveraged Funds Short, 18.5%",null,null,null,null,null,null,null,"X.US.TYAOFLFSHT","OFLFSHT",null,{"$f":" RTD(\"cqg.rtd\",,\"StudyData\",Y13, \"Bar\", \"\", \"Close\",\"W\",$L$1,,,,,\"T\")","v":717449},0.21263935165728221,"US 10Y T-note Options and Futures Combined Leveraged Funds Short, 21.3%"]
[null,null,"OFDISHT",null,null,null,null,null,null,null,"X.US.TYAOFLFSPR","OFLFSPR",null,{"$f":" RTD(\"cqg.rtd\",,\"StudyData\",K14, \"Bar\", \"\", \"Close\",\"W\",$I$1,,,,,\"T\")","v":449343},0.14114530670016387,{"$f":"VLOOKUP(K14,Symbols!$A$1:$B$3103,2,FALSE)","v":"US 10Y T-note Options and Futures Combined Leveraged Funds Spreading"},"US 10Y T-note Options and Futures Combined Leveraged Funds Spreading, 14.1%",null,null,null,null,null,null,null,"X.US.TYAOFLFSPR","OFLFSPR",null,{"$f":" RTD(\"cqg.rtd\",,\"StudyData\",Y14, \"Bar\", \"\", \"Close\",\"W\",$L$1,,,,,\"T\")","v":379001},0.11232927625163826,"US 10Y T-note Options and Futures Combined Leveraged Funds Spreading, 11.2%"]
[null,null,"OFDISPR",null,null,null,null,null,null,null,"X.US.TYAOFNRLONG","OFNRLONG",null,{"$f":" RTD(\"cqg.rtd\",,\"StudyData\",K15, \"Bar\", \"\", \"Close\",\"W\",$I$1,,,,,\"T\")","v":402535},0.12644221904547409,{"$f":"VLOOKUP(K15,Symbols!$A$1:$B$3103,2,FALSE)","v":"US 10Y T-note Options and Futures Combined Nonreportable Long"},"US 10Y T-note Options and Futures Combined Nonreportable Long, 12.6%",null,null,null,null,null,null,null,"X.US.TYAOFNRLONG","OFNRLONG",null,{"$f":" RTD(\"cqg.rtd\",,\"StudyData\",Y15, \"Bar\", \"\", \"Close\",\"W\",$L$1,,,,,\"T\")","v":392927},0.11645669940112946,"US 10Y T-note Options and Futures Combined Nonreportable Long, 11.6%"]
[null,null,"OFLFLONG",null,null,null,null,null,null,null,"X.US.TYAOFNRSHT","OFNRSHT",null,{"$f":" RTD(\"cqg.rtd\",,\"StudyData\",K16, \"Bar\", \"\", \"Close\",\"W\",$I$1,,,,,\"T\")","v":379436},0.11918648024578858,{"$f":"VLOOKUP(K16,Symbols!$A$1:$B$3103,2,FALSE)","v":"US 10Y T-note Options and Futures Combined Nonreportable Short"},"US 10Y T-note Options and Futures Combined Nonreportable Short, 11.9%",null,null,null,null,null,null,null,"X.US.TYAOFNRSHT","OFNRSHT",null,{"$f":" RTD(\"cqg.rtd\",,\"StudyData\",Y16, \"Bar\", \"\", \"Close\",\"W\",$L$1,,,,,\"T\")","v":394714},0.11698633498695028,"US 10Y T-note Options and Futures Combined Nonreportable Short, 11.7%"]
[null,null,"OFLFSHT",null,null,null,null,null,null,null,"X.US.TYAOFORLONG","OFORLONG",null,{"$f":" RTD(\"cqg.rtd\",,\"StudyData\",K17, \"Bar\", \"\", \"Close\",\"W\",$I$1,,,,,\"T\")","v":217449},6.8303958883623284E-2,{"$f":"VLOOKUP(K17,Symbols!$A$1:$B$3103,2,FALSE)","v":"US 10Y T-note Options and Futures Combined Other Reportables Long"},"US 10Y T-note Options and Futures Combined Other Reportables Long, 6.8%",null,null,null,null,null,null,null,"X.US.TYAOFORLONG","OFORLONG",null,{"$f":" RTD(\"cqg.rtd\",,\"StudyData\",Y17, \"Bar\", \"\", \"Close\",\"W\",$L$1,,,,,\"T\")","v":237253},7.031764501552748E-2,"US 10Y T-note Options and Futures Combined Other Reportables Long, 7.0%"]
[null,null,"OFLFSPR",null,null,null,null,null,null,null,"X.US.TYAOFORSHT","OFORSHT",null,{"$f":" RTD(\"cqg.rtd\",,\"StudyData\",K18, \"Bar\", \"\", \"Close\",\"W\",$I$1,,,,,\"T\")","v":97190},3.0528821764640657E-2,{"$f":"VLOOKUP(K18,Symbols!$A$1:$B$3103,2,FALSE)","v":"US 10Y T-note Options and Futures Combined Other Reportables Short"},"US 10Y T-note Options and Futures Combined Other Reportables Short, 3.1%",null,null,null,null,null,null,null,"X.US.TYAOFORSHT","OFORSHT",null,{"$f":" RTD(\"cqg.rtd\",,\"StudyData\",Y18, \"Bar\", \"\", \"Close\",\"W\",$L$1,,,,,\"T\")","v":86858},2.5743194019711809E-2,"US 10Y T-note Options and Futures Combined Other Reportables Short, 2.6%"]
[null,null,"OFNRLONG",null,null,null,null,null,null,null,"X.US.TYAOFORSPR","OFORSPR",null,{"$f":" RTD(\"cqg.rtd\",,\"StudyData\",K19, \"Bar\", \"\", \"Close\",\"W\",$I$1,,,,,\"T\")","v":50894},1.5986560910480726E-2,{"$f":"VLOOKUP(K19,Symbols!$A$1:$B$3103,2,FALSE)","v":"US 10Y T-note Options and Futures Combined Other Reportables Spreading"},{"$f":"P19&\", \"&TEXT(O19,\".0%\")","v":"US 10Y T-note Options and Futures Combined Other Reportables Spreading, 1.6%"},null,null,null,null,null,null,null,{"$f":"\"X.US.\"&$C$1&Z19","v":"X.US.TYAOFORSPR"},"OFORSPR"]
[null,null,"OFNRSHT",null,null,null,null,null,null,null,null,null,null,{"$f":"N10-N9","v":98906},null,{"$f":"\"Traders in Financial Futures COT as a Percentage of Total Open Interest, Weeks: \"&TEXT(Q21,\"MM/DD/YY\")&\" vs. \"&TEXT(R21,\"MM/DD/YY\")","v":"Traders in Financial Futures COT as a Percentage of Total Open Interest, Weeks: 10/20/20 vs. 09/01/20"}]
[null,null,"OFORLONG",null,null,null,null,null,null,null,null,null,null,null,null,null,{"$f":"J1","v":"2020-10-20"},{"$f":"N1","v":"2020-09-01"},null,null,null,null,null,null,null,null,null,null,{"$f":"IFERROR(N6/$K$2,\"NA\")","v":0.43331137670568287},{"$f":"P6&\", \"&TEXT(AC21,\".00%\")&\" \"&AE21&\" \"&TEXT(AF21,\".00%\")","v":"US 10Y T-note Options and Futures Combined Asset Manager/Institutional Long, 43.33% ∆ 3.68%"},"∆",{"$f":"IFERROR(O6-AC6,\"NA\")","v":3.6818530490873136E-2}]
[null,null,"OFORSHT",null,null,null,null,null,null,null,null,null,null,null,null,null,null,null,null,null,null,null,null,null,null,null,null,null,{"$f":"IFERROR(N7/$K$2,\"NA\")","v":0.37598447518791134},{"$f":"P7&\", \"&TEXT(AC22,\".00%\")&\" \"&AE22&\" \"&TEXT(AF22,\".00%\")","v":"US 10Y T-note Options and Futures Combined Asset Manager/Institutional Short, 37.60% ∆ 3.70%"},"∆",{"$f":"IFERROR(O7-AC7,\"NA\")","v":3.6986876479190745E-2}]
[null,null,"OFORSPR",null,null,null,null,null,null,null,null,null,null,null,null,null,null,null,null,null,null,null,null,null,null,null,null,null,0.21693996228737172,"US 10Y T-note Options and Futures Combined Asset Manager/Institutional Spreading, 21.69% ∆ 1.91%","∆",1.9093951981558305E-2]
[null,null,null,null,null,null,null,null,null,null,null,null,null,null,null,null,null,null,null,null,null,null,null,null,null,null,null,null,5.7472022576062126E-2,"US 10Y T-note Options and Futures Combined Dealer Intermediary Long, 5.75% ∆ -.10%","∆",-9.7105626939750223E-4]
[null,null,null,null,null,null,null,null,null,null,null,null,null,null,null,null,null,null,null,null,null,null,null,null,null,null,null,null,8.8539865414353602E-2,"US 10Y T-note Options and Futures Combined Dealer Intermediary Short, 8.85% ∆ 1.22%","∆",1.2154677190698598E-2]
[null,null,null,null,null,null,null,null,null,null,null,null,null,null,null,null,null,null,null,null,null,null,null,null,null,null,null,null,5.8306311603810716E-2,"US 10Y T-note Options and Futures Combined Dealer Intermediary Spreading, 5.83% ∆ 2.10%","∆",2.0980488208677671E-2]
[null,null,null,null,null,null,null,null,null,null,null,null,null,null,null,null,null,null,null,null,null,null,null,null,null,null,null,null,0.11338666375168091,"US 10Y T-note Options and Futures Combined Leveraged Funds Long, 11.34% ∆ -1.57%","∆",-1.5654437985180014E-2]
[null,null,null,null,null,null,null,null,null,null,null,null,null,null,null,null,null,null,null,null,null,null,null,null,null,null,null,null,0.18467691246467385,"US 10Y T-note Options and Futures Combined Leveraged Funds Short, 18.47% ∆ -2.80%","∆",-2.7962439192608352E-2]
[null,null,null,null,null,null,null,null,null,null,null,null,null,null,null,null,null,null,null,null,null,null,null,null,null,null,null,null,0.14114530670016387,"US 10Y T-note Options and Futures Combined Leveraged Funds Spreading, 14.11% ∆ 2.88%","∆",2.8816030448525612E-2]
[null,null,null,null,null,null,null,null,null,null,null,null,null,null,null,null,null,null,null,null,null,null,null,null,null,null,null,null,0.12644221904547409,"US 10Y T-note Options and Futures Combined Nonreportable Long, 12.64% ∆ 1.00%","∆",9.9855196443446315E-3]
[null,null,null,null,null,null,null,null,null,null,null,null,null,null,null,null,null,null,null,null,null,null,null,null,null,null,null,null,0.11918648024578858,"US 10Y T-note Options and Futures Combined Nonreportable Short, 11.92% ∆ .22%","∆",2.2001452588382986E-3]
[null,null,null,null,null,null,null,null,null,null,null,null,null,null,null,null,null,null,null,null,null,null,null,null,null,null,null,null,6.8303958883623284E-2,"US 10Y T-note Options and Futures Combined Other Reportables Long, 6.83% ∆ -.20%","∆",-2.0136861319041965E-3]
[null,null,null,null,null,null,null,null,null,null,null,null,null,null,null,null,null,null,null,null,null,null,null,null,null,null,null,null,3.0528821764640657E-2,"US 10Y T-note Options and Futures Combined Other Reportables Short, 3.05% ∆ .48%","∆",4.7856277449288484E-3]
[]
[]
[]
[]
[]
[]
[]
[]
[]
[]
[]
[]
[]
[]
[]
[]
[]
[]
[]
[]
[]
[]
[]
[]
[]
[null,null,null,null,null,null,null,null,null,null,null,null,null,"X.US.ZSEOFPMPUDIFF","Soybeans Options and Futures Combined Producer/Merchant/Processor/User Long/Short Diff",null,null,null,null,null,null,null,null,null,null,null,null,null,null,"Soybeans Options and Futures Combined"]
[null,null,null,null,null,null,null,null,null,null,null,null,null,null,null,null,null,null,null,null,null,null,null,null,null,null,null,null,null,"Producer/Merchant/Processor/User Long/Short Diff"]
[null,null,null,null,null,null,null,null,null,null,null,null,null,null,{"$f":" RTD(\"cqg.rtd\",,\"StudyData\",N59, \"Bar\", \"\", \"Close\",\"W\",-1,,,,,\"T\")","v":-373040},{"$f":" RTD(\"cqg.rtd\",,\"StudyData\",N59, \"Bar\", \"\", \"Close\",\"W\",-4,,,,,\"T\")","v":-351874},{"$f":"O61-P61","v":-21166},null,null,null,null,null,null,null,null,{"$f":"LEN(O59)","v":86}]

{"sheet":"Sheet2 (2)","index":7,"n_rows":27,"n_cols":19,"rows_kept":27,"cut":false,"hidden":true,"merged":[]}
[null,null,null,null,null,null,null,null,null,null,null,null,null,"Vlookup","Symbol","Volume","rank1","rank2"]
[null,null,null,null,null,null,null,null,null,null,null,null,null,{"$f":"R2","v":6},"A",100,{"$f":"RANK($P2,$P$2:P$7)","v":6},{"$f":"RANK($P2,$P$2:P$7)+COUNTIF($P$2:P2,P2)-1","v":6},{"$f":"RANK($P2,$P$2:P$7)+COUNTIF($P$2:P2,P2)-1","v":6}]
[null,null,null,null,null,null,null,null,null,null,null,null,null,{"$f":"R3","v":3},"B",103,{"$f":"RANK($P3,$P$2:P$7)","v":3},{"$f":"RANK($P3,$P$2:P$7)+COUNTIF($P$2:P3,P3)-1","v":3},{"$f":"RANK($P3,$P$2:P$7)+COUNTIF($P$2:P3,P3)-1","v":3}]
[null,null,null,null,null,null,null,null,null,null,null,null,null,5,"C",102,{"$f":"RANK($P4,$P$2:P$7)","v":5},{"$f":"RANK($P4,$P$2:P$7)+COUNTIF($P$2:P4,P4)-1","v":5},{"$f":"RANK($P4,$P$2:P$7)+COUNTIF($P$2:P4,P4)-1","v":5}]
[null,null,null,null,null,null,null,null,null,null,null,null,null,4,"D",103,{"$f":"RANK($P5,$P$2:P$7)","v":3},{"$f":"RANK($P5,$P$2:P$7)+COUNTIF($P$2:P5,P5)-1","v":4},{"$f":"RANK($P5,$P$2:P$7)+COUNTIF($P$2:P5,P5)-1","v":4}]
[null,null,null,null,null,null,null,null,null,null,null,null,null,{"$f":"R6","v":2},"E",104,{"$f":"RANK($P6,$P$2:P$7)","v":2},{"$f":"RANK($P6,$P$2:P$7)+COUNTIF($P$2:P6,P6)-1","v":2},{"$f":"RANK($P6,$P$2:P$7)+COUNTIF($P$2:P6,P6)-1","v":2}]
[null,null,null,null,null,null,null,null,null,null,null,null,null,1,"F",105,{"$f":"RANK($P7,$P$2:P$7)","v":1},{"$f":"RANK($P7,$P$2:P$7)+COUNTIF($P$2:P7,P7)-1","v":1},{"$f":"RANK($P7,$P$2:P$7)+COUNTIF($P$2:P7,P7)-1","v":1}]
[{"$f":"RANK($C8,$C$8:C$12)+COUNTIF($C$8:C8,C8)-1","v":1},{"$f":"\"X.US.\"&'Sheet1 (2)'!$C$1&\"AMIDIFF\"","v":"X.US.TYAAMIDIFF"},{"$f":" RTD(\"cqg.rtd\",,\"StudyData\",B8, \"Bar\", \"\", \"Close\",\"W\",-1,,,,,\"T\")","v":201851},{"$f":"VLOOKUP(B8,Symbols!$A$1:$B$3103,2,FALSE)","v":"US 10Y T-note Asset Manager/Institutional Long/Short Diff"},null,null,null,null,null,null,null,null,null,{"$f":"VLOOKUP(O8,$A$8:$D$12,2,FALSE)","v":"X.US.TYAAMIDIFF"},1,{"$f":"VLOOKUP(O8,$A$8:$D$12,3,FALSE)","v":201851},{"$f":"VLOOKUP(O8,$A$8:$D$12,4,FALSE)","v":"US 10Y T-note Asset Manager/Institutional Long/Short Diff"}]
[{"$f":"RANK($C9,$C$8:C$12)+COUNTIF($C$8:C9,C9)-1","v":4},{"$f":"\"X.US.\"&'Sheet1 (2)'!$C$1&\"DIDIFF\"","v":"X.US.TYADIDIFF"},{"$f":" RTD(\"cqg.rtd\",,\"StudyData\",B9, \"Bar\", \"\", \"Close\",\"W\",-1,,,,,\"T\")","v":-81502},{"$f":"VLOOKUP(B9,Symbols!$A$1:$B$3103,2,FALSE)","v":"US 10Y T-note Dealer Intermediary Long/Short Diff"},null,null,null,null,null,null,null,null,null,{"$f":"VLOOKUP(O9,$A$8:$D$12,2,FALSE)","v":"X.US.TYAORDIFF"},2,{"$f":"VLOOKUP(O9,$A$8:$D$12,3,FALSE)","v":129951},{"$f":"VLOOKUP(O9,$A$8:$D$12,4,FALSE)","v":"US 10Y T-note Other Reportables Long/Short Diff"}]
[{"$f":"RANK($C10,$C$8:C$12)+COUNTIF($C$8:C10,C10)-1","v":5},{"$f":"\"X.US.\"&'Sheet1 (2)'!$C$1&\"LFDIFF\"","v":"X.US.TYALFDIFF"},{"$f":" RTD(\"cqg.rtd\",,\"StudyData\",B10, \"Bar\", \"\", \"Close\",\"W\",-1,,,,,\"T\")","v":-280310},{"$f":"VLOOKUP(B10,Symbols!$A$1:$B$3103,2,FALSE)","v":"US 10Y T-note Leveraged Funds Long/Short Diff"},null,null,null,null,null,null,null,null,null,"X.US.TYADNRDIFF",3,30010,"US 10Y T-note Nonreportable Long/Short Diff"]
[{"$f":"RANK($C11,$C$8:C$12)+COUNTIF($C$8:C11,C11)-1","v":3},{"$f":"\"X.US.\"&'Sheet1 (2)'!$C$1&\"DNRDIFF\"","v":"X.US.TYADNRDIFF"},{"$f":" RTD(\"cqg.rtd\",,\"StudyData\",B11, \"Bar\", \"\", \"Close\",\"W\",-1,,,,,\"T\")","v":30010},{"$f":"VLOOKUP(B11,Symbols!$A$1:$B$3103,2,FALSE)","v":"US 10Y T-note Nonreportable Long/Short Diff"},null,null,null,null,null,null,null,null,null,"X.US.TYADIDIFF",4,-81502,"US 10Y T-note Dealer Intermediary Long/Short Diff"]
[{"$f":"RANK($C12,$C$8:C$12)+COUNTIF($C$8:C12,C12)-1","v":2},{"$f":"\"X.US.\"&'Sheet1 (2)'!$C$1&\"ORDIFF\"","v":"X.US.TYAORDIFF"},{"$f":" RTD(\"cqg.rtd\",,\"StudyData\",B12, \"Bar\", \"\", \"Close\",\"W\",-1,,,,,\"T\")","v":129951},{"$f":"VLOOKUP(B12,Symbols!$A$1:$B$3103,2,FALSE)","v":"US 10Y T-note Other Reportables Long/Short Diff"},null,null,null,null,null,null,null,null,null,"X.US.TYALFDIFF",5,-280310,"US 10Y T-note Leveraged Funds Long/Short Diff"]
[]
[null,null,{"$f":"'Sheet1 (2)'!K2","v":3183549},null,null,null,"AMIDIFF"]
[null,null,null,null,null,null,"DIDIFF",null,null,null,null,{"$f":"'Sheet1 (2)'!L1","v":-8},null,{"$f":" RTD(\"cqg.rtd\",,\"StudyData\",N8, \"Bar\", \"\", \"Close\",\"W\",$L$15,,,,,\"T\")","v":215966}]
[null,null,{"$f":" ABS(C8/$C$14)","v":6.3404395534669006E-2},null,null,null,"LFDIFF",null,null,null,null,null,null,{"$f":" RTD(\"cqg.rtd\",,\"StudyData\",N9, \"Bar\", \"\", \"Close\",\"W\",$L$15,,,,,\"T\")","v":134418}]
[null,null,{"$f":" ABS(C9/$C$14)","v":2.5600988079655756E-2},null,null,null,"DNRDIFF",null,null,null,null,null,null,{"$f":" RTD(\"cqg.rtd\",,\"StudyData\",N10, \"Bar\", \"\", \"Close\",\"W\",$L$15,,,,,\"T\")","v":3397}]
[null,null,8.8049532141644432E-2,null,null,null,"ORDIFF",null,null,null,null,null,null,{"$f":" RTD(\"cqg.rtd\",,\"StudyData\",N11, \"Bar\", \"\", \"Close\",\"W\",$L$15,,,,,\"T\")","v":-45735}]
[null,null,9.4265864919936843E-3,null,null,null,null,null,null,null,null,null,null,{"$f":" RTD(\"cqg.rtd\",,\"StudyData\",N12, \"Bar\", \"\", \"Close\",\"W\",$L$15,,,,,\"T\")","v":-308046}]
[null,null,4.0819538194637496E-2]
[null,null,null,null,null,null,null,null,null,null,null,null,null,{"$f":"'Sheet1 (2)'!O2","v":3374018}]
[null,null,null,null,null,null,null,"X.US.EPAMIDIFF",null,"X.US.EPAMIDIFF"]
[null,null,null,null,null,null,null,"X.US.EPDNRDIFF",null,null,null,null,null,{"$f":"ABS(N15/$N$21)","v":6.4008550043301485E-2}]
[null,null,null,null,null,null,null,"X.US.EPLFDIFF",null,null,null,null,null,{"$f":"ABS(N16/$N$21)","v":3.9839147271887705E-2}]
[null,null,null,null,null,null,null,"X.US.EPDIDIFF",null,null,null,null,null,1.0068114633650443E-3]
[null,null,null,null,null,null,null,"X.US.EPORDIFF",null,null,null,null,null,1.3555055130114896E-2]
[null,null,null,null,null,null,null,null,null,null,null,null,null,9.1299453648439333E-2]

{"sheet":"Sheet1 (3)","index":8,"n_rows":61,"n_cols":32,"rows_kept":61,"cut":false,"hidden":true,"merged":[]}
[null,"Symbol",{"$f":"DisaggregatedNoNum!D44","v":"ZSE"},{"$f":"RTD(\"cqg.rtd\", ,\"ContractData\",C1, \"LongDescription\",, \"T\")","v":"Soybeans (Globex), Jan 21"},null,null,null,"Week",{"$f":"IF(I2=\"\",-1,0)","v":-1},{"$f":" IF(LEFT(RTD(\"cqg.rtd\",,\"StudyData\",K6, \"Bar\", \"\", \"Time\",\"W\",I1,,,,,\"T\"),3)=\"777\",\"\",RTD(\"cqg.rtd\",,\"StudyData\",K6, \"Bar\", \"\", \"Time\",\"W\",I1,,,,,\"T\")+1)","v":"2020-10-20"},"Week",{"$f":"DisaggregatedNoNum!L44","v":-10},null,{"$f":" IF(LEFT( RTD(\"cqg.rtd\",,\"StudyData\",K6, \"Bar\", \"\", \"Time\",\"W\",L1,,,,,\"T\"),3)=\"777\",\"\",RTD(\"cqg.rtd\",,\"StudyData\",K6, \"Bar\", \"\", \"Time\",\"W\",L1,,,,,\"T\")+1)","v":"2020-08-18"}]
[null,null,null,null,null,null,null,null,{"$f":" RTD(\"cqg.rtd\",,\"StudyData\",K6, \"Bar\", \"\", \"Close\",\"W\",0,,,,,\"T\")","v":""},{"$f":"J1+1","v":"2020-10-21"},{"$f":" RTD(\"cqg.rtd\",,\"StudyData\", \"OI(\"&C1&\",OIType:=CommodityOi) when (LocalMonth(\"&$C$1&\")=\"&MONTH(J2)&\" and LocalDay(\"&$C$1&\")=\"&DAY(J2)&\" and LocalYear(\"&$C$1&\")=\"&YEAR(J2)&\")\", \"Bar\", \"\", \"Close\", \"D\", \"0\", \"all\", \"\", \"\",\"FALSE\",\"T\")","v":1049850},null,null,{"$f":"N1+1","v":"2020-08-19"},{"$f":"IF(P2=\"\",RTD(\"cqg.rtd\",,\"StudyData\",\"OI(\"&C1&\",OIType:=CommodityOi) when (LocalMonth(\"&$C$1&\")=\"&MONTH(N2)&\" and LocalDay(\"&$C$1&\")=\"&DAY(N2)+1&\" and LocalYear(\"&$C$1&\")=\"&YEAR(N2)&\")\",\"Bar\",\"\",\"Close\",\"ADC\",\"0\",\"all\",\"\",\"\",\"FALSE\",\"T\"),RTD(\"cqg.rtd\",,\"StudyData\",\"OI(\"&C1&\",OIType:=CommodityOi) when (LocalMonth(\"&$C$1&\")=\"&MONTH(N2)&\" and LocalDay(\"&$C$1&\")=\"&DAY(N2)&\" and LocalYear(\"&$C$1&\")=\"&YEAR(N2)&\")\",\"Bar\",\"\",\"Close\",\"ADC\",\"0\",\"all\",\"\",\"\",\"FALSE\",\"T\"))","v":844099},{"$f":" RTD(\"cqg.rtd\",,\"StudyData\", \"OI(\"&C1&\",OIType:=CommodityOi) when (LocalMonth(\"&$C$1&\")=\"&MONTH(N2)&\" and LocalDay(\"&$C$1&\")=\"&DAY(N1)+1&\" and LocalYear(\"&$C$1&\")=\"&YEAR(N2)&\")\", \"Bar\", \"\", \"Close\", \"ADC\", \"0\", \"all\", \"\", \"\",\"FALSE\",\"T\")","v":844099}]
[null,{"$f":"IF(LEFT(I2,3)=\"777\",1,0)","v":0},null,null,null,null,null,null,null,{"$f":"J1","v":"2020-10-20"},{"$f":" RTD(\"cqg.rtd\",,\"StudyData\", \"PriceToDollar(\"&C1&\",InputChoice=Close) when (LocalMonth(\"&$C$1&\")=\"&MONTH(J3)&\" and LocalDay(\"&$C$1&\")=\"&DAY(J3)&\" and LocalYear(\"&$C$1&\")=\"&YEAR(J3)&\")\", \"Bar\", \"\", \"Close\", \"D\", \"0\", \"all\", \"\", \"\",\"FALSE\",\"T\")","v":53187.5},null,null,{"$f":"N1","v":"2020-08-18"},{"$f":" RTD(\"cqg.rtd\",,\"StudyData\", \"PriceToDollar(\"&C1&\",InputChoice=Close) when (LocalMonth(\"&$C$1&\")=\"&MONTH(N3)&\" and LocalDay(\"&$C$1&\")=\"&DAY(N3)&\" and LocalYear(\"&$C$1&\")=\"&YEAR(N3)&\")\", \"Bar\", \"\", \"Close\", \"ADC\", \"0\", \"all\", \"\", \"\",\"FALSE\",\"T\")","v":45687.5},null,null,null,", &TEXT(AC6,\".0%\")"]
[]
[null,"Agriculture, Petroleum and Products, Natural Gas and Products, Electricity or Metals"]
[null,null,null,null,null,null,null,{"$f":"K3*N6","v":3237044437.5},null,null,{"$f":"\"X.US.\"&$C$1&L6","v":"X.US.ZSEOFSDSPR"},"OFSDSPR",null,{"$f":" RTD(\"cqg.rtd\",,\"StudyData\",K6, \"Bar\", \"\", \"Close\",\"W\",$I$1,,,,,\"T\")","v":60861},{"$f":"N6/$K$2","v":5.7971138734104873E-2},{"$f":"VLOOKUP(K6,Symbols!$A$1:$B$3103,2,FALSE)","v":"Soybeans Options and Futures Combined Swap Dealers Spreading"},{"$f":"P6&\", \"&TEXT(O6,\".0%\")","v":"Soybeans Options and Futures Combined Swap Dealers Spreading, 5.8%"},null,null,null,null,null,null,null,{"$f":"\"X.US.\"&$C$1&Z6","v":"X.US.ZSEOFSDSPR"},"OFSDSPR",null,{"$f":" RTD(\"cqg.rtd\",,\"StudyData\",Y6, \"Bar\", \"\", \"Close\",\"W\",$L$1,,,,,\"T\")","v":27698},{"$f":"AB6/$O$2","v":3.2813686546246355E-2},{"$f":"P6&\", \"&TEXT(AC6,\".0%\")","v":"Soybeans Options and Futures Combined Swap Dealers Spreading, 3.3%"}]
[null,"Incorrect Symbol. Please enter an Agriculture, Petroleum and Products, Natural Gas and Products, or Metals symbol.",null,null,null,null,null,null,null,null,{"$f":"\"X.US.\"&$C$1&L7","v":"X.US.ZSEOFSDSHT"},"OFSDSHT",null,{"$f":" RTD(\"cqg.rtd\",,\"StudyData\",K7, \"Bar\", \"\", \"Close\",\"W\",$I$1,,,,,\"T\")","v":40273},{"$f":"N7/$K$2","v":3.836071819783779E-2},{"$f":"VLOOKUP(K7,Symbols!$A$1:$B$3103,2,FALSE)","v":"Soybeans Options and Futures Combined Swap Dealers Short"},{"$f":"P7&\", \"&TEXT(O7,\".0%\")","v":"Soybeans Options and Futures Combined Swap Dealers Short, 3.8%"},null,null,null,null,null,null,null,{"$f":"\"X.US.\"&$C$1&Z7","v":"X.US.ZSEOFSDSHT"},"OFSDSHT",null,{"$f":" RTD(\"cqg.rtd\",,\"StudyData\",Y7, \"Bar\", \"\", \"Close\",\"W\",$L$1,,,,,\"T\")","v":19129},{"$f":"AB7/$O$2","v":2.2662033718793648E-2},{"$f":"P7&\", \"&TEXT(AC7,\".0%\")","v":"Soybeans Options and Futures Combined Swap Dealers Short, 2.3%"}]
[null,null,null,null,null,null,null,null,null,null,"X.US.ZSEOFSDLONG","OFSDLONG",null,{"$f":" RTD(\"cqg.rtd\",,\"StudyData\",K8, \"Bar\", \"\", \"Close\",\"W\",$I$1,,,,,\"T\")","v":162576},0.15485640805829404,{"$f":"VLOOKUP(K8,Symbols!$A$1:$B$3103,2,FALSE)","v":"Soybeans Options and Futures Combined Swap Dealers Long"},"Soybeans Options and Futures Combined Swap Dealers Long, 15.5%",null,null,null,null,null,null,null,"X.US.ZSEOFSDLONG","OFSDLONG",null,{"$f":" RTD(\"cqg.rtd\",,\"StudyData\",Y8, \"Bar\", \"\", \"Close\",\"W\",$L$1,,,,,\"T\")","v":153028},0.18129153096970854,"Soybeans Options and Futures Combined Swap Dealers Long, 18.1%"]
[null,null,null,null,null,null,null,null,null,null,"X.US.ZSEOFPMPUSHT","OFPMPUSHT",null,{"$f":" RTD(\"cqg.rtd\",,\"StudyData\",K9, \"Bar\", \"\", \"Close\",\"W\",$I$1,,,,,\"T\")","v":728305},0.69372291279706622,{"$f":"VLOOKUP(K9,Symbols!$A$1:$B$3103,2,FALSE)","v":"Soybeans Options and Futures Combined Producer/Merchant/Processor/User Short"},"Soybeans Options and Futures Combined Producer/Merchant/Processor/User Short, 69.4%",null,null,null,null,null,null,null,"X.US.ZSEOFPMPUSHT","OFPMPUSHT",null,{"$f":" RTD(\"cqg.rtd\",,\"StudyData\",Y9, \"Bar\", \"\", \"Close\",\"W\",$L$1,,,,,\"T\")","v":537241},0.63646681254213067,"Soybeans Options and Futures Combined Producer/Merchant/Processor/User Short, 63.6%"]
[null,null,null,null,null,null,null,null,null,null,"X.US.ZSEOFPMPULONG","OFPMPULONG",null,{"$f":" RTD(\"cqg.rtd\",,\"StudyData\",K10, \"Bar\", \"\", \"Close\",\"W\",$I$1,,,,,\"T\")","v":355265},0.33839596132780875,{"$f":"VLOOKUP(K10,Symbols!$A$1:$B$3103,2,FALSE)","v":"Soybeans Options and Futures Combined Producer/Merchant/Processor/User Long"},"Soybeans Options and Futures Combined Producer/Merchant/Processor/User Long, 33.8%",null,null,null,null,null,null,null,"X.US.ZSEOFPMPULONG","OFPMPULONG",null,{"$f":" RTD(\"cqg.rtd\",,\"StudyData\",Y10, \"Bar\", \"\", \"Close\",\"W\",$L$1,,,,,\"T\")","v":279321},0.33091023683240944,"Soybeans Options and Futures Combined Producer/Merchant/Processor/User Long, 33.1%"]
[null,null,null,null,null,null,null,null,null,null,"X.US.ZSEOFORSPR","OFORSPR",null,{"$f":" RTD(\"cqg.rtd\",,\"StudyData\",K11, \"Bar\", \"\", \"Close\",\"W\",$I$1,,,,,\"T\")","v":245410},0.23375720341001097,{"$f":"VLOOKUP(K11,Symbols!$A$1:$B$3103,2,FALSE)","v":"Soybeans Options and Futures Combined Other Reportables Spreading"},"Soybeans Options and Futures Combined Other Reportables Spreading, 23.4%",null,null,null,null,null,null,null,"X.US.ZSEOFORSPR","OFORSPR",null,{"$f":" RTD(\"cqg.rtd\",,\"StudyData\",Y11, \"Bar\", \"\", \"Close\",\"W\",$L$1,,,,,\"T\")","v":145674},0.17257928276185613,"Soybeans Options and Futures Combined Other Reportables Spreading, 17.3%"]
[null,null,null,null,null,null,null,null,null,null,"X.US.ZSEOFORSHT","OFORSHT",null,{"$f":" RTD(\"cqg.rtd\",,\"StudyData\",K12, \"Bar\", \"\", \"Close\",\"W\",$I$1,,,,,\"T\")","v":40451},3.8530266228508837E-2,{"$f":"VLOOKUP(K12,Symbols!$A$1:$B$3103,2,FALSE)","v":"Soybeans Options and Futures Combined Other Reportables Short"},"Soybeans Options and Futures Combined Other Reportables Short, 3.9%",null,null,null,null,null,null,null,"X.US.ZSEOFORSHT","OFORSHT",null,{"$f":" RTD(\"cqg.rtd\",,\"StudyData\",Y12, \"Bar\", \"\", \"Close\",\"W\",$L$1,,,,,\"T\")","v":35601},4.2176332397029261E-2,"Soybeans Options and Futures Combined Other Reportables Short, 4.2%"]
[null,null,null,null,null,null,null,null,null,null,"X.US.ZSEOFORLONG","OFORLONG",null,{"$f":" RTD(\"cqg.rtd\",,\"StudyData\",K13, \"Bar\", \"\", \"Close\",\"W\",$I$1,,,,,\"T\")","v":67656},6.4443491927418203E-2,{"$f":"VLOOKUP(K13,Symbols!$A$1:$B$3103,2,FALSE)","v":"Soybeans Options and Futures Combined Other Reportables Long"},"Soybeans Options and Futures Combined Other Reportables Long, 6.4%",null,null,null,null,null,null,null,"X.US.ZSEOFORLONG","OFORLONG",null,{"$f":" RTD(\"cqg.rtd\",,\"StudyData\",Y13, \"Bar\", \"\", \"Close\",\"W\",$L$1,,,,,\"T\")","v":57753},6.8419699585001284E-2,"Soybeans Options and Futures Combined Other Reportables Long, 6.8%"]
[null,null,null,null,null,null,null,null,null,null,"X.US.ZSEOFNRSHT","OFNRSHT",null,{"$f":" RTD(\"cqg.rtd\",,\"StudyData\",K14, \"Bar\", \"\", \"Close\",\"W\",$I$1,,,,,\"T\")","v":88105},8.3921512597037673E-2,{"$f":"VLOOKUP(K14,Symbols!$A$1:$B$3103,2,FALSE)","v":"Soybeans Options and Futures Combined Nonreportable Short"},"Soybeans Options and Futures Combined Nonreportable Short, 8.4%",null,null,null,null,null,null,null,"X.US.ZSEOFNRSHT","OFNRSHT",null,{"$f":" RTD(\"cqg.rtd\",,\"StudyData\",Y14, \"Bar\", \"\", \"Close\",\"W\",$L$1,,,,,\"T\")","v":70341},8.3332642261156567E-2,"Soybeans Options and Futures Combined Nonreportable Short, 8.3%"]
[null,null,null,null,null,null,null,null,null,null,"X.US.ZSEOFNRLONG","OFNRLONG",null,{"$f":" RTD(\"cqg.rtd\",,\"StudyData\",K15, \"Bar\", \"\", \"Close\",\"W\",$I$1,,,,,\"T\")","v":79746},7.5959422774682095E-2,{"$f":"VLOOKUP(K15,Symbols!$A$1:$B$3103,2,FALSE)","v":"Soybeans Options and Futures Combined Nonreportable Long"},"Soybeans Options and Futures Combined Nonreportable Long, 7.6%",null,null,null,null,null,null,null,"X.US.ZSEOFNRLONG","OFNRLONG",null,{"$f":" RTD(\"cqg.rtd\",,\"StudyData\",Y15, \"Bar\", \"\", \"Close\",\"W\",$L$1,,,,,\"T\")","v":65152},7.7185259075061102E-2,"Soybeans Options and Futures Combined Nonreportable Long, 7.7%"]
[null,null,null,null,null,null,null,null,null,null,"X.US.ZSEOFMMSPR","OFMMSPR",null,{"$f":" RTD(\"cqg.rtd\",,\"StudyData\",K16, \"Bar\", \"\", \"Close\",\"W\",$I$1,,,,,\"T\")","v":119450},0.11377815878458827,{"$f":"VLOOKUP(K16,Symbols!$A$1:$B$3103,2,FALSE)","v":"Soybeans Options and Futures Combined Managed Money Spreading"},"Soybeans Options and Futures Combined Managed Money Spreading, 11.4%",null,null,null,null,null,null,null,"X.US.ZSEOFMMSPR","OFMMSPR",null,{"$f":" RTD(\"cqg.rtd\",,\"StudyData\",Y16, \"Bar\", \"\", \"Close\",\"W\",$L$1,,,,,\"T\")","v":121360},0.14377460463760766,"Soybeans Options and Futures Combined Managed Money Spreading, 14.4%"]
[null,null,null,null,null,null,null,null,null,null,"X.US.ZSEOFMMSHT","OFMMSHT",null,{"$f":" RTD(\"cqg.rtd\",,\"StudyData\",K17, \"Bar\", \"\", \"Close\",\"W\",$I$1,,,,,\"T\")","v":3509},3.3423822450826309E-3,{"$f":"VLOOKUP(K17,Symbols!$A$1:$B$3103,2,FALSE)","v":"Soybeans Options and Futures Combined Managed Money Short"},"Soybeans Options and Futures Combined Managed Money Short, .3%",null,null,null,null,null,null,null,"X.US.ZSEOFMMSHT","OFMMSHT",null,{"$f":" RTD(\"cqg.rtd\",,\"StudyData\",Y17, \"Bar\", \"\", \"Close\",\"W\",$L$1,,,,,\"T\")","v":26393},3.1267659362231207E-2,"Soybeans Options and Futures Combined Managed Money Short, 3.1%"]
[null,null,null,null,null,null,null,null,null,null,"X.US.ZSEOFMMLONG","OFMMLONG",null,{"$f":" RTD(\"cqg.rtd\",,\"StudyData\",K18, \"Bar\", \"\", \"Close\",\"W\",$I$1,,,,,\"T\")","v":235401},0.22422346049435635,{"$f":"VLOOKUP(K18,Symbols!$A$1:$B$3103,2,FALSE)","v":"Soybeans Options and Futures Combined Managed Money Long"},"Soybeans Options and Futures Combined Managed Money Long, 22.4%",null,null,null,null,null,null,null,"X.US.ZSEOFMMLONG","OFMMLONG",null,{"$f":" RTD(\"cqg.rtd\",,\"StudyData\",Y18, \"Bar\", \"\", \"Close\",\"W\",$L$1,,,,,\"T\")","v":133451},0.15809875381916103,"Soybeans Options and Futures Combined Managed Money Long, 15.8%"]
[]
[null,null,null,null,null,null,null,null,null,null,null,null,null,{"$f":"N10-N9","v":-373040},null,{"$f":"\"Disaggregated Notional COT, Weeks: \"&TEXT(Q21,\"MM/DD/YY\")&\" vs. \"&TEXT(R21,\"MM/DD/YY\")","v":"Disaggregated Notional COT, Weeks: 10/20/20 vs. 08/18/20"}]
[null,null,null,null,null,null,null,null,null,null,null,null,null,null,null,null,{"$f":"J1","v":"2020-10-20"},{"$f":"N1","v":"2020-08-18"},null,null,null,null,null,null,null,null,null,null,{"$f":"IFERROR(N6/$K$2,\"NA\")","v":5.7971138734104873E-2},{"$f":"P6&\", \"&TEXT(AC21,\".00%\")&\" \"&AE21&\" \"&TEXT(AF21,\".00%\")","v":"Soybeans Options and Futures Combined Swap Dealers Spreading, 5.80% ∆ 2.52%"},"∆",{"$f":"IFERROR(O6-AC6,\"NA\")","v":2.5157452187858517E-2}]
[null,null,null,null,null,null,null,null,null,null,null,null,null,null,null,null,null,null,null,null,null,null,null,null,null,null,null,null,{"$f":"IFERROR(N7/$K$2,\"NA\")","v":3.836071819783779E-2},{"$f":"P7&\", \"&TEXT(AC22,\".00%\")&\" \"&AE22&\" \"&TEXT(AF22,\".00%\")","v":"Soybeans Options and Futures Combined Swap Dealers Short, 3.84% ∆ 1.57%"},"∆",{"$f":"IFERROR(O7-AC7,\"NA\")","v":1.5698684479044142E-2}]
[null,null,null,null,null,null,null,null,null,null,null,null,null,null,null,null,null,null,null,null,null,null,null,null,null,null,null,null,0.15485640805829404,"Soybeans Options and Futures Combined Swap Dealers Long, 15.49% ∆ -2.64%","∆",-2.6435122911414505E-2]
[null,null,null,null,null,null,null,null,null,null,null,null,null,null,null,null,null,null,null,null,null,null,null,null,null,null,null,null,0.69372291279706622,"Soybeans Options and Futures Combined Producer/Merchant/Processor/User Short, 69.37% ∆ 5.73%","∆",5.7256100254935549E-2]
[null,{"$f":"K6","v":"X.US.ZSEOFSDSPR"},null,{"$f":" RTD(\"cqg.rtd\",,\"StudyData\",K6, \"Bar\", \"\", \"Close\",\"W\",$I$1,,,,,\"T\")","v":60861},null,{"$f":"D25*$K$3","v":3237044437.5},{"$f":"P6","v":"Soybeans Options and Futures Combined Swap Dealers Spreading"},null,null,null,null,null,null,{"$f":"Y6","v":"X.US.ZSEOFSDSPR"},{"$f":" RTD(\"cqg.rtd\",,\"StudyData\",Y6, \"Bar\", \"\", \"Close\",\"W\",$L$1,,,,,\"T\")","v":27698},{"$f":"$O$3*O25","v":1265452375},{"$f":"F25","v":3237044437.5},{"$f":"G25&\" \"&TEXT(Q25,\"$#,###\")&\" \"&X25&\" \"&TEXT(Y25,\"$#,###\")","v":"Soybeans Options and Futures Combined Swap Dealers Spreading $3,237,044,438 ∆ $1,971,592,063"},null,null,null,null,null,"∆",{"$f":"Q25-P25","v":1971592062.5},null,null,null,0.33839596132780875,"Soybeans Options and Futures Combined Producer/Merchant/Processor/User Long, 33.84% ∆ .75%","∆",7.4857244953993041E-3]
[null,{"$f":"K7","v":"X.US.ZSEOFSDSHT"},null,{"$f":" RTD(\"cqg.rtd\",,\"StudyData\",K7, \"Bar\", \"\", \"Close\",\"W\",$I$1,,,,,\"T\")","v":40273},null,{"$f":"D26*$K$3","v":2142020187.5},{"$f":"P7","v":"Soybeans Options and Futures Combined Swap Dealers Short"},null,null,null,null,null,null,{"$f":"Y7","v":"X.US.ZSEOFSDSHT"},{"$f":" RTD(\"cqg.rtd\",,\"StudyData\",Y7, \"Bar\", \"\", \"Close\",\"W\",$L$1,,,,,\"T\")","v":19129},{"$f":"$O$3*O26","v":873956187.5},{"$f":"F26","v":2142020187.5},{"$f":"G26&\" \"&TEXT(Q26,\"$#,###\")&\" \"&X26&\" \"&TEXT(Y26,\"$#,###\")","v":"Soybeans Options and Futures Combined Swap Dealers Short $2,142,020,188 ∆ $1,268,064,000"},null,null,null,null,null,"∆",{"$f":"Q26-P26","v":1268064000},null,null,null,0.23375720341001097,"Soybeans Options and Futures Combined Other Reportables Spreading, 23.38% ∆ 6.12%","∆",6.1177920648154832E-2]
[null,"X.US.ZSEOFSDLONG",null,{"$f":" RTD(\"cqg.rtd\",,\"StudyData\",K8, \"Bar\", \"\", \"Close\",\"W\",$I$1,,,,,\"T\")","v":162576},null,8647011000,"Soybeans Options and Futures Combined Swap Dealers Long",null,null,null,null,null,null,"X.US.ZSEOFSDLONG",{"$f":" RTD(\"cqg.rtd\",,\"StudyData\",Y8, \"Bar\", \"\", \"Close\",\"W\",$L$1,,,,,\"T\")","v":153028},6991466750,8647011000,"Soybeans Options and Futures Combined Swap Dealers Long $8,647,011,000 ∆ $1,655,544,250",null,null,null,null,null,"∆",1655544250,null,null,null,3.8530266228508837E-2,"Soybeans Options and Futures Combined Other Reportables Short, 3.85% ∆ -.36%","∆",-3.6460661685204232E-3]
[null,"X.US.ZSEOFPMPUSHT",null,{"$f":" RTD(\"cqg.rtd\",,\"StudyData\",K9, \"Bar\", \"\", \"Close\",\"W\",$I$1,,,,,\"T\")","v":728305},null,38736722187.5,"Soybeans Options and Futures Combined Producer/Merchant/Processor/User Short",null,null,null,null,null,null,"X.US.ZSEOFPMPUSHT",{"$f":" RTD(\"cqg.rtd\",,\"StudyData\",Y9, \"Bar\", \"\", \"Close\",\"W\",$L$1,,,,,\"T\")","v":537241},24545198187.5,38736722187.5,"Soybeans Options and Futures Combined Producer/Merchant/Processor/User Short $38,736,722,188 ∆ $14,191,524,000",null,null,null,null,null,"∆",14191524000,null,null,null,6.4443491927418203E-2,"Soybeans Options and Futures Combined Other Reportables Long, 6.44% ∆ -.40%","∆",-3.9762076575830807E-3]
[null,"X.US.ZSEOFPMPULONG",null,{"$f":" RTD(\"cqg.rtd\",,\"StudyData\",K10, \"Bar\", \"\", \"Close\",\"W\",$I$1,,,,,\"T\")","v":355265},null,18895657187.5,"Soybeans Options and Futures Combined Producer/Merchant/Processor/User Long",null,null,null,null,null,null,"X.US.ZSEOFPMPULONG",{"$f":" RTD(\"cqg.rtd\",,\"StudyData\",Y10, \"Bar\", \"\", \"Close\",\"W\",$L$1,,,,,\"T\")","v":279321},12761478187.5,18895657187.5,"Soybeans Options and Futures Combined Producer/Merchant/Processor/User Long $18,895,657,188 ∆ $6,134,179,000",null,null,null,null,null,"∆",6134179000,null,null,null,8.3921512597037673E-2,"Soybeans Options and Futures Combined Nonreportable Short, 8.39% ∆ .06%","∆",5.8887033588110593E-4]
[null,"X.US.ZSEOFORSPR",null,{"$f":" RTD(\"cqg.rtd\",,\"StudyData\",K11, \"Bar\", \"\", \"Close\",\"W\",$I$1,,,,,\"T\")","v":245410},null,13052744375,"Soybeans Options and Futures Combined Other Reportables Spreading",null,null,null,null,null,null,"X.US.ZSEOFORSPR",{"$f":" RTD(\"cqg.rtd\",,\"StudyData\",Y11, \"Bar\", \"\", \"Close\",\"W\",$L$1,,,,,\"T\")","v":145674},6655480875,13052744375,"Soybeans Options and Futures Combined Other Reportables Spreading $13,052,744,375 ∆ $6,397,263,500",null,null,null,null,null,"∆",6397263500,null,null,null,7.5959422774682095E-2,"Soybeans Options and Futures Combined Nonreportable Long, 7.60% ∆ -.12%","∆",-1.2258363003790074E-3]
[null,"X.US.ZSEOFORSHT",null,{"$f":" RTD(\"cqg.rtd\",,\"StudyData\",K12, \"Bar\", \"\", \"Close\",\"W\",$I$1,,,,,\"T\")","v":40451},null,2151487562.5,"Soybeans Options and Futures Combined Other Reportables Short",null,null,null,null,null,null,"X.US.ZSEOFORSHT",{"$f":" RTD(\"cqg.rtd\",,\"StudyData\",Y12, \"Bar\", \"\", \"Close\",\"W\",$L$1,,,,,\"T\")","v":35601},1626520687.5,2151487562.5,"Soybeans Options and Futures Combined Other Reportables Short $2,151,487,563 ∆ $524,966,875",null,null,null,null,null,"∆",524966875,null,null,null,0.11377815878458827,"Soybeans Options and Futures Combined Managed Money Spreading, 11.38% ∆ -3.00%","∆",-2.9996445853019388E-2]
[null,"X.US.ZSEOFORLONG",null,{"$f":" RTD(\"cqg.rtd\",,\"StudyData\",K13, \"Bar\", \"\", \"Close\",\"W\",$I$1,,,,,\"T\")","v":67656},null,3598453500,"Soybeans Options and Futures Combined Other Reportables Long",null,null,null,null,null,null,"X.US.ZSEOFORLONG",{"$f":" RTD(\"cqg.rtd\",,\"StudyData\",Y13, \"Bar\", \"\", \"Close\",\"W\",$L$1,,,,,\"T\")","v":57753},2638590187.5,3598453500,"Soybeans Options and Futures Combined Other Reportables Long $3,598,453,500 ∆ $959,863,313",null,null,null,null,null,"∆",959863312.5,null,null,null,3.3423822450826309E-3,"Soybeans Options and Futures Combined Managed Money Short, .33% ∆ -2.79%","∆",-2.7925277117148574E-2]
[null,"X.US.ZSEOFNRSHT",null,{"$f":" RTD(\"cqg.rtd\",,\"StudyData\",K14, \"Bar\", \"\", \"Close\",\"W\",$I$1,,,,,\"T\")","v":88105},null,4686084687.5,"Soybeans Options and Futures Combined Nonreportable Short",null,null,null,null,null,null,"X.US.ZSEOFNRSHT",{"$f":" RTD(\"cqg.rtd\",,\"StudyData\",Y14, \"Bar\", \"\", \"Close\",\"W\",$L$1,,,,,\"T\")","v":70341},3213704437.5,4686084687.5,"Soybeans Options and Futures Combined Nonreportable Short $4,686,084,688 ∆ $1,472,380,250",null,null,null,null,null,"∆",1472380250,null,null,null,0.22422346049435635,"Soybeans Options and Futures Combined Managed Money Long, 22.42% ∆ 6.61%","∆",6.6124706675195322E-2]
[null,"X.US.ZSEOFNRLONG",null,{"$f":" RTD(\"cqg.rtd\",,\"StudyData\",K15, \"Bar\", \"\", \"Close\",\"W\",$I$1,,,,,\"T\")","v":79746},null,4241490375,"Soybeans Options and Futures Combined Nonreportable Long",null,null,null,null,null,null,"X.US.ZSEOFNRLONG",{"$f":" RTD(\"cqg.rtd\",,\"StudyData\",Y15, \"Bar\", \"\", \"Close\",\"W\",$L$1,,,,,\"T\")","v":65152},2976632000,4241490375,"Soybeans Options and Futures Combined Nonreportable Long $4,241,490,375 ∆ $1,264,858,375",null,null,null,null,null,"∆",1264858375]
[null,"X.US.ZSEOFMMSPR",null,{"$f":" RTD(\"cqg.rtd\",,\"StudyData\",K16, \"Bar\", \"\", \"Close\",\"W\",$I$1,,,,,\"T\")","v":119450},null,6353246875,"Soybeans Options and Futures Combined Managed Money Spreading",null,null,null,null,null,null,"X.US.ZSEOFMMSPR",{"$f":" RTD(\"cqg.rtd\",,\"StudyData\",Y16, \"Bar\", \"\", \"Close\",\"W\",$L$1,,,,,\"T\")","v":121360},5544635000,6353246875,"Soybeans Options and Futures Combined Managed Money Spreading $6,353,246,875 ∆ $808,611,875",null,null,null,null,null,"∆",808611875]
[null,"X.US.ZSEOFMMSHT",null,{"$f":" RTD(\"cqg.rtd\",,\"StudyData\",K17, \"Bar\", \"\", \"Close\",\"W\",$I$1,,,,,\"T\")","v":3509},null,186634937.5,"Soybeans Options and Futures Combined Managed Money Short",null,null,null,null,null,null,"X.US.ZSEOFMMSHT",{"$f":" RTD(\"cqg.rtd\",,\"StudyData\",Y17, \"Bar\", \"\", \"Close\",\"W\",$L$1,,,,,\"T\")","v":26393},1205830187.5,186634937.5,"Soybeans Options and Futures Combined Managed Money Short $186,634,938 ∆ -$1,019,195,250",null,null,null,null,null,"∆",-1019195250]
[null,{"$f":"K18","v":"X.US.ZSEOFMMLONG"},null,{"$f":" RTD(\"cqg.rtd\",,\"StudyData\",K18, \"Bar\", \"\", \"Close\",\"W\",$I$1,,,,,\"T\")","v":235401},null,{"$f":"D37*$K$3","v":12520390687.5},"Soybeans Options and Futures Combined Managed Money Long",null,null,null,null,null,null,"X.US.ZSEOFMMLONG",{"$f":" RTD(\"cqg.rtd\",,\"StudyData\",Y18, \"Bar\", \"\", \"Close\",\"W\",$L$1,,,,,\"T\")","v":133451},6097042562.5,12520390687.5,"Soybeans Options and Futures Combined Managed Money Long $12,520,390,688 ∆ $6,423,348,125",null,null,null,null,null,"∆",6423348125]
[]
[]
[null,null,null,null,null,null,null,null,null,null,null,null,null,null,null,null,null,{"$f":"R25","v":"Soybeans Options and Futures Combined Swap Dealers Spreading $3,237,044,438 ∆ $1,971,592,063"}]
[]
[]
[]
[]
[]
[]
[]
[]
[]
[]
[]
[]
[]
[]
[]
[]
[]
[]
[null,null,null,null,null,null,null,null,null,null,null,null,null,null,null,null,null,null,null,null,null,null,null,null,null,null,null,null,null,"Soybeans Options and Futures Combined"]
[null,null,null,null,null,null,null,null,null,null,null,null,null,null,null,null,null,null,null,null,null,null,null,null,null,null,null,null,null,"Producer/Merchant/Processor/User Long/Short Diff"]
[null,null,null,null,null,null,null,null,null,null,null,null,null,null,null,null,null,null,null,null,null,null,null,null,null,{"$f":"LEN(O59)","v":0}]

{"sheet":"Sheet2 (3)","index":9,"n_rows":27,"n_cols":19,"rows_kept":27,"cut":false,"hidden":true,"merged":[]}
[null,null,null,null,null,null,null,null,null,null,null,null,null,"Vlookup","Symbol","Volume","rank1","rank2"]
[null,null,null,null,null,null,null,null,null,null,null,null,null,{"$f":"R2","v":6},"A",100,{"$f":"RANK($P2,$P$2:P$7)","v":6},{"$f":"RANK($P2,$P$2:P$7)+COUNTIF($P$2:P2,P2)-1","v":6},{"$f":"RANK($P2,$P$2:P$7)+COUNTIF($P$2:P2,P2)-1","v":6}]
[null,null,null,null,null,null,null,null,null,null,null,null,null,{"$f":"R3","v":3},"B",103,{"$f":"RANK($P3,$P$2:P$7)","v":3},{"$f":"RANK($P3,$P$2:P$7)+COUNTIF($P$2:P3,P3)-1","v":3},{"$f":"RANK($P3,$P$2:P$7)+COUNTIF($P$2:P3,P3)-1","v":3}]
[null,null,null,null,null,null,null,null,null,null,null,null,null,5,"C",102,{"$f":"RANK($P4,$P$2:P$7)","v":5},{"$f":"RANK($P4,$P$2:P$7)+COUNTIF($P$2:P4,P4)-1","v":5},{"$f":"RANK($P4,$P$2:P$7)+COUNTIF($P$2:P4,P4)-1","v":5}]
[null,null,null,null,null,null,null,null,null,null,null,null,null,4,"D",103,{"$f":"RANK($P5,$P$2:P$7)","v":3},{"$f":"RANK($P5,$P$2:P$7)+COUNTIF($P$2:P5,P5)-1","v":4},{"$f":"RANK($P5,$P$2:P$7)+COUNTIF($P$2:P5,P5)-1","v":4}]
[null,null,null,null,null,null,null,null,null,null,null,null,null,{"$f":"R6","v":2},"E",104,{"$f":"RANK($P6,$P$2:P$7)","v":2},{"$f":"RANK($P6,$P$2:P$7)+COUNTIF($P$2:P6,P6)-1","v":2},{"$f":"RANK($P6,$P$2:P$7)+COUNTIF($P$2:P6,P6)-1","v":2}]
[null,null,null,null,null,null,null,null,null,null,null,null,null,1,"F",105,{"$f":"RANK($P7,$P$2:P$7)","v":1},{"$f":"RANK($P7,$P$2:P$7)+COUNTIF($P$2:P7,P7)-1","v":1},{"$f":"RANK($P7,$P$2:P$7)+COUNTIF($P$2:P7,P7)-1","v":1}]
[{"$f":"RANK($C8,$C$8:C$12)+COUNTIF($C$8:C8,C8)-1","v":5},{"$f":"\"X.US.\"&'Sheet1 (3)'!$C$1&\"PMPUDIF\"","v":"X.US.ZSEPMPUDIF"},{"$f":" RTD(\"cqg.rtd\",,\"StudyData\",B8, \"Bar\", \"\", \"Close\",\"W\",-1,,,,,\"T\")","v":-399457},{"$f":"VLOOKUP(B8,Symbols!$A$1:$B$3103,2,FALSE)","v":"Soybeans Producer/Merchant/Processor/User Long/Short Diff"},null,null,null,null,null,null,{"$f":"'Sheet1 (3)'!K3","v":53187.5},null,null,{"$f":"VLOOKUP(O8,$A$8:$D$12,2,FALSE)","v":"X.US.ZSEMMDIFF"},1,{"$f":"VLOOKUP(O8,$A$8:$D$12,3,FALSE)*$K$8","v":12107974812.5},{"$f":"VLOOKUP(O8,$A$8:$D$12,4,FALSE)","v":"Soybeans Managed Money Long/Short Diff"}]
[{"$f":"RANK($C9,$C$8:C$12)+COUNTIF($C$8:C9,C9)-1","v":2},{"$f":"\"X.US.\"&'Sheet1 (3)'!$C$1&\"SDDIFF\"","v":"X.US.ZSESDDIFF"},{"$f":" RTD(\"cqg.rtd\",,\"StudyData\",B9, \"Bar\", \"\", \"Close\",\"W\",-1,,,,,\"T\")","v":148451},{"$f":"VLOOKUP(B9,Symbols!$A$1:$B$3103,2,FALSE)","v":"Soybeans Swap Dealers Long/Short Diff"},null,null,null,null,null,null,null,null,null,{"$f":"VLOOKUP(O9,$A$8:$D$12,2,FALSE)","v":"X.US.ZSESDDIFF"},2,{"$f":"VLOOKUP(O9,$A$8:$D$12,3,FALSE)*$K$8","v":7895737562.5},{"$f":"VLOOKUP(O9,$A$8:$D$12,4,FALSE)","v":"Soybeans Swap Dealers Long/Short Diff"}]
[{"$f":"RANK($C10,$C$8:C$12)+COUNTIF($C$8:C10,C10)-1","v":3},{"$f":"\"X.US.\"&'Sheet1 (3)'!$C$1&\"ORDIFF\"","v":"X.US.ZSEORDIFF"},{"$f":" RTD(\"cqg.rtd\",,\"StudyData\",B10, \"Bar\", \"\", \"Close\",\"W\",-1,,,,,\"T\")","v":32225},{"$f":"VLOOKUP(B10,Symbols!$A$1:$B$3103,2,FALSE)","v":"Soybeans Other Reportables Long/Short Diff"},null,null,null,null,null,null,null,null,null,"X.US.ZSEORDIFF",3,{"$f":"VLOOKUP(O10,$A$8:$D$12,3,FALSE)*$K$8","v":1713967187.5},"Soybeans Other Reportables Long/Short Diff"]
[{"$f":"RANK($C11,$C$8:C$12)+COUNTIF($C$8:C11,C11)-1","v":4},{"$f":"\"X.US.\"&'Sheet1 (3)'!$C$1&\"DNRDIFF\"","v":"X.US.ZSEDNRDIFF"},{"$f":" RTD(\"cqg.rtd\",,\"StudyData\",B11, \"Bar\", \"\", \"Close\",\"W\",-1,,,,,\"T\")","v":-8866},{"$f":"VLOOKUP(B11,Symbols!$A$1:$B$3103,2,FALSE)","v":"Soybeans Nonreportable Long/Short Diff"},null,null,null,null,null,null,null,null,null,"X.US.ZSEDNRDIFF",4,{"$f":"VLOOKUP(O11,$A$8:$D$12,3,FALSE)*$K$8","v":-471560375},"Soybeans Nonreportable Long/Short Diff"]
[{"$f":"RANK($C12,$C$8:C$12)+COUNTIF($C$8:C12,C12)-1","v":1},{"$f":"\"X.US.\"&'Sheet1 (3)'!$C$1&\"MMDIFF\"","v":"X.US.ZSEMMDIFF"},{"$f":" RTD(\"cqg.rtd\",,\"StudyData\",B12, \"Bar\", \"\", \"Close\",\"W\",-1,,,,,\"T\")","v":227647},{"$f":"VLOOKUP(B12,Symbols!$A$1:$B$3103,2,FALSE)","v":"Soybeans Managed Money Long/Short Diff"},null,null,null,null,null,null,null,null,null,"X.US.ZSEPMPUDIF",5,{"$f":"VLOOKUP(O12,$A$8:$D$12,3,FALSE)*$K$8","v":-21246119187.5},"Soybeans Producer/Merchant/Processor/User Long/Short Diff"]
[]
[null,null,{"$f":"'Sheet1 (3)'!K2","v":1049850},{"$f":"C14*K8","v":55838896875},null,null,"PMPUDIF"]
[null,null,null,null,null,null,"SDDIFF",null,null,null,null,{"$f":"'Sheet1 (3)'!L1","v":-10},null,{"$f":" RTD(\"cqg.rtd\",,\"StudyData\",N8, \"Bar\", \"\", \"Close\",\"W\",$L$15,,,,,\"T\")*$K$8","v":5658830875}]
[null,null,{"$f":" ABS(P8/$D$14)","v":0.21683764347287707},null,null,null,"ORDIFF",null,null,null,null,null,null,{"$f":" RTD(\"cqg.rtd\",,\"StudyData\",N9, \"Bar\", \"\", \"Close\",\"W\",$L$15,,,,,\"T\")*$K$8","v":7514968250}]
[null,null,{"$f":" ABS(P9/$D$14)","v":0.14140210506262799},null,null,null,"DNRDIFF",null,null,null,null,null,null,{"$f":" RTD(\"cqg.rtd\",,\"StudyData\",N10, \"Bar\", \"\", \"Close\",\"W\",$L$15,,,,,\"T\")*$K$8","v":1711892875}]
[null,null,3.0694861170643427E-2,null,null,null,"MMDIFF",null,null,null,null,null,null,{"$f":" RTD(\"cqg.rtd\",,\"StudyData\",N11, \"Bar\", \"\", \"Close\",\"W\",$L$15,,,,,\"T\")*$K$8","v":-242056312.5}]
[null,null,8.4450159546601896E-3,null,null,null,null,null,null,null,null,null,null,{"$f":" RTD(\"cqg.rtd\",,\"StudyData\",N12, \"Bar\", \"\", \"Close\",\"W\",$L$15,,,,,\"T\")*$K$8","v":-14643635687.5}]
[null,null,0.38048959375148833]
[null,null,null,null,null,null,null,null,null,null,null,null,null,{"$f":"'Sheet1 (3)'!O3*'Sheet1 (3)'!O2","v":38564773062.5}]
[]
[null,null,null,null,null,null,null,null,null,null,null,null,null,{"$f":"ABS(N15/$N$21)","v":0.14673574938011474}]
[null,null,null,null,null,null,null,null,null,null,null,null,null,{"$f":"ABS(N16/$N$21)","v":0.19486613438178066}]
[null,null,null,null,null,null,null,null,null,null,null,null,null,4.4390067386773438E-2]
[null,null,null,null,null,null,null,null,null,null,null,null,null,6.2766170595043155E-3]
[null,null,null,null,null,null,null,null,null,null,null,null,null,0.37971533408916452]

{"sheet":"Sheet1 (4)","index":10,"n_rows":61,"n_cols":32,"rows_kept":61,"cut":false,"hidden":true,"merged":[]}
[null,"Symbol",{"$f":"TradersFinancialFuturesNoNum!D44","v":"EP"},{"$f":"RTD(\"cqg.rtd\", ,\"ContractData\",C1, \"LongDescription\",, \"T\")","v":"E-Mini S&P 500, Dec 20"},null,null,null,"Week",{"$f":"IF(I2=\"\",-1,0)","v":-1},{"$f":" IF(LEFT(RTD(\"cqg.rtd\",,\"StudyData\",K6, \"Bar\", \"\", \"Time\",\"W\",I1,,,,,\"T\"),3)=\"777\",\"\",RTD(\"cqg.rtd\",,\"StudyData\",K6, \"Bar\", \"\", \"Time\",\"W\",I1,,,,,\"T\")+1)","v":"2020-10-20"},"Week",{"$f":"TradersFinancialFuturesNoNum!L44","v":-10},null,{"$f":" IF(LEFT( RTD(\"cqg.rtd\",,\"StudyData\",K6, \"Bar\", \"\", \"Time\",\"W\",L1,,,,,\"T\"),3)=\"777\",\"\",RTD(\"cqg.rtd\",,\"StudyData\",K6, \"Bar\", \"\", \"Time\",\"W\",L1,,,,,\"T\")+1)","v":"2020-08-18"}]
[null,null,null,null,null,null,null,null,{"$f":" RTD(\"cqg.rtd\",,\"StudyData\",K6, \"Bar\", \"\", \"Close\",\"W\",0,,,,,\"T\")","v":""},{"$f":"J1+1","v":"2020-10-21"},{"$f":" RTD(\"cqg.rtd\",,\"StudyData\", \"OI(\"&C1&\",OIType:=CommodityOi) when (LocalMonth(\"&$C$1&\")=\"&MONTH(J2)&\" and LocalDay(\"&$C$1&\")=\"&DAY(J2)&\" and LocalYear(\"&$C$1&\")=\"&YEAR(J2)&\")\", \"Bar\", \"\", \"Close\", \"D\", \"0\", \"all\", \"\", \"\",\"FALSE\",\"T\")","v":2438237},null,null,{"$f":"N1+1","v":"2020-08-19"},{"$f":"IF(P2=\"\",RTD(\"cqg.rtd\",,\"StudyData\",\"OI(\"&C1&\",OIType:=CommodityOi) when (LocalMonth(\"&$C$1&\")=\"&MONTH(N2)&\" and LocalDay(\"&$C$1&\")=\"&DAY(N2)+1&\" and LocalYear(\"&$C$1&\")=\"&YEAR(N2)&\")\",\"Bar\",\"\",\"Close\",\"ADC\",\"0\",\"all\",\"\",\"\",\"FALSE\",\"T\"),RTD(\"cqg.rtd\",,\"StudyData\",\"OI(\"&C1&\",OIType:=CommodityOi) when (LocalMonth(\"&$C$1&\")=\"&MONTH(N2)&\" and LocalDay(\"&$C$1&\")=\"&DAY(N2)&\" and LocalYear(\"&$C$1&\")=\"&YEAR(N2)&\")\",\"Bar\",\"\",\"Close\",\"ADC\",\"0\",\"all\",\"\",\"\",\"FALSE\",\"T\"))","v":2721218},{"$f":" RTD(\"cqg.rtd\",,\"StudyData\", \"OI(\"&C1&\",OIType:=CommodityOi) when (LocalMonth(\"&$C$1&\")=\"&MONTH(N2)&\" and LocalDay(\"&$C$1&\")=\"&DAY(N1)+1&\" and LocalYear(\"&$C$1&\")=\"&YEAR(N2)&\")\", \"Bar\", \"\", \"Close\", \"ADC\", \"0\", \"all\", \"\", \"\",\"FALSE\",\"T\")","v":2721218}]
[null,{"$f":"IF(LEFT(I2,3)=\"777\",1,0)","v":0},null,null,null,null,null,null,null,{"$f":"J1","v":"2020-10-20"},{"$f":" RTD(\"cqg.rtd\",,\"StudyData\", \"PriceToDollar(\"&C1&\",InputChoice=Close) when (LocalMonth(\"&$C$1&\")=\"&MONTH(J3)&\" and LocalDay(\"&$C$1&\")=\"&DAY(J3)&\" and LocalYear(\"&$C$1&\")=\"&YEAR(J3)&\")\", \"Bar\", \"\", \"Close\", \"D\", \"0\", \"all\", \"\", \"\",\"FALSE\",\"T\")","v":171612.5},null,null,{"$f":"N1","v":"2020-08-18"},{"$f":" RTD(\"cqg.rtd\",,\"StudyData\", \"PriceToDollar(\"&C1&\",InputChoice=Close) when (LocalMonth(\"&$C$1&\")=\"&MONTH(N3)&\" and LocalDay(\"&$C$1&\")=\"&DAY(N3)&\" and LocalYear(\"&$C$1&\")=\"&YEAR(N3)&\")\", \"Bar\", \"\", \"Close\", \"ADC\", \"0\", \"all\", \"\", \"\",\"FALSE\",\"T\")","v":169350},null,null,null,", &TEXT(AC6,\".0%\")"]
[]
[null,"Agriculture, Petroleum and Products, Natural Gas and Products, Electricity or Metals"]
[null,null,null,null,null,null,null,{"$f":"K3*N6","v":3.619515374373156E+16},null,null,{"$f":"\"X.US.\"&$C$1&L6","v":"X.US.EPOFAMILONG"},"OFAMILONG",null,{"$f":" RTD(\"cqg.rtd\",,\"StudyData\",K6, \"Bar\", \"\", \"Close\",\"W\",$I$1,,,,,\"T\")*$K$3","v":210912105725},{"$f":"N6/$K$2","v":86501.888751995808},{"$f":"VLOOKUP(K6,Symbols!$A$1:$B$3103,2,FALSE)","v":"E-mini SP500 Options and Futures Combined Asset Manager/Institutional Long"},{"$f":"P6&\", \"&TEXT(O6,\".0%\")","v":"E-mini SP500 Options and Futures Combined Asset Manager/Institutional Long, 8650188.9%"},null,null,null,null,null,null,null,{"$f":"\"X.US.\"&$C$1&Z6","v":"X.US.EPOFAMILONG"},"OFAMILONG",null,{"$f":" RTD(\"cqg.rtd\",,\"StudyData\",Y6, \"Bar\", \"\", \"Close\",\"W\",$L$1,,,,,\"T\")","v":1313841},{"$f":"AB6/$O$2","v":0.48281357833146776},{"$f":"P6&\", \"&TEXT(AC6,\".0%\")","v":"E-mini SP500 Options and Futures Combined Asset Manager/Institutional Long, 48.3%"}]
[null,"Incorrect Symbol. Please enter a Financial Futures symbol.",null,null,null,null,null,null,null,null,{"$f":"\"X.US.\"&$C$1&L7","v":"X.US.EPOFAMISHT"},"OFAMISHT",null,{"$f":" RTD(\"cqg.rtd\",,\"StudyData\",K7, \"Bar\", \"\", \"Close\",\"W\",$I$1,,,,,\"T\")*$K$3","v":101316244525},{"$f":"N7/$K$2","v":41553.074834398787},{"$f":"VLOOKUP(K7,Symbols!$A$1:$B$3103,2,FALSE)","v":"E-mini SP500 Options and Futures Combined Asset Manager/Institutional Short"},{"$f":"P7&\", \"&TEXT(O7,\".0%\")","v":"E-mini SP500 Options and Futures Combined Asset Manager/Institutional Short, 4155307.5%"},null,null,null,null,null,null,null,{"$f":"\"X.US.\"&$C$1&Z7","v":"X.US.EPOFAMISHT"},"OFAMISHT",null,{"$f":" RTD(\"cqg.rtd\",,\"StudyData\",Y7, \"Bar\", \"\", \"Close\",\"W\",$L$1,,,,,\"T\")","v":635524},{"$f":"AB7/$O$2","v":0.23354394980483004},{"$f":"P7&\", \"&TEXT(AC7,\".0%\")","v":"E-mini SP500 Options and Futures Combined Asset Manager/Institutional Short, 23.4%"}]
[null,null,null,null,null,null,null,null,null,null,"X.US.EPOFAMISPR","OFAMISPR",null,{"$f":" RTD(\"cqg.rtd\",,\"StudyData\",K8, \"Bar\", \"\", \"Close\",\"W\",$I$1,,,,,\"T\")*$K$3","v":48536991762.5},19906.593068065162,{"$f":"VLOOKUP(K8,Symbols!$A$1:$B$3103,2,FALSE)","v":"E-mini SP500 Options and Futures Combined Asset Manager/Institutional Spreading"},"E-mini SP500 Options and Futures Combined Asset Manager/Institutional Spreading, 1990659.3%",null,null,null,null,null,null,null,"X.US.EPOFAMISPR","OFAMISPR",null,{"$f":" RTD(\"cqg.rtd\",,\"StudyData\",Y8, \"Bar\", \"\", \"Close\",\"W\",$L$1,,,,,\"T\")","v":310924},0.11425912955154641,"E-mini SP500 Options and Futures Combined Asset Manager/Institutional Spreading, 11.4%"]
[null,null,null,null,null,null,null,null,null,null,"X.US.EPOFDILONG","OFDILONG",null,{"$f":" RTD(\"cqg.rtd\",,\"StudyData\",K9, \"Bar\", \"\", \"Close\",\"W\",$I$1,,,,,\"T\")*$K$3","v":48547288512.5},19910.816098886204,{"$f":"VLOOKUP(K9,Symbols!$A$1:$B$3103,2,FALSE)","v":"E-mini SP500 Options and Futures Combined Dealer Intermediary Long"},"E-mini SP500 Options and Futures Combined Dealer Intermediary Long, 1991081.6%",null,null,null,null,null,null,null,"X.US.EPOFDILONG","OFDILONG",null,{"$f":" RTD(\"cqg.rtd\",,\"StudyData\",Y9, \"Bar\", \"\", \"Close\",\"W\",$L$1,,,,,\"T\")","v":483685},0.17774577413496456,"E-mini SP500 Options and Futures Combined Dealer Intermediary Long, 17.8%"]
[null,null,"OFAMILONG",null,{"$f":"I2","v":""},null,null,null,null,null,"X.US.EPOFDISHT","OFDISHT",null,{"$f":" RTD(\"cqg.rtd\",,\"StudyData\",K10, \"Bar\", \"\", \"Close\",\"W\",$I$1,,,,,\"T\")*$K$3","v":86290712087.5},35390.617108796236,{"$f":"VLOOKUP(K10,Symbols!$A$1:$B$3103,2,FALSE)","v":"E-mini SP500 Options and Futures Combined Dealer Intermediary Short"},"E-mini SP500 Options and Futures Combined Dealer Intermediary Short, 3539061.7%",null,null,null,null,null,null,null,"X.US.EPOFDISHT","OFDISHT",null,{"$f":" RTD(\"cqg.rtd\",,\"StudyData\",Y10, \"Bar\", \"\", \"Close\",\"W\",$L$1,,,,,\"T\")","v":380670},0.13988956415840259,"E-mini SP500 Options and Futures Combined Dealer Intermediary Short, 14.0%"]
[null,null,"OFAMISHT",null,null,null,null,null,null,null,"X.US.EPOFDISPR","OFDISPR",null,{"$f":" RTD(\"cqg.rtd\",,\"StudyData\",K11, \"Bar\", \"\", \"Close\",\"W\",$I$1,,,,,\"T\")*$K$3","v":22591927562.5},9265.68154059675,{"$f":"VLOOKUP(K11,Symbols!$A$1:$B$3103,2,FALSE)","v":"E-mini SP500 Options and Futures Combined Dealer Intermediary Spreading"},"E-mini SP500 Options and Futures Combined Dealer Intermediary Spreading, 926568.2%",null,null,null,null,null,null,null,"X.US.EPOFDISPR","OFDISPR",null,{"$f":" RTD(\"cqg.rtd\",,\"StudyData\",Y11, \"Bar\", \"\", \"Close\",\"W\",$L$1,,,,,\"T\")","v":178848},6.572351057504397E-2,"E-mini SP500 Options and Futures Combined Dealer Intermediary Spreading, 6.6%"]
[null,null,"OFAMISPR",null,null,null,null,null,null,null,"X.US.EPOFLFLONG","OFLFLONG",null,{"$f":" RTD(\"cqg.rtd\",,\"StudyData\",K12, \"Bar\", \"\", \"Close\",\"W\",$I$1,,,,,\"T\")*$K$3","v":33484859387.5},13733.225846174921,{"$f":"VLOOKUP(K12,Symbols!$A$1:$B$3103,2,FALSE)","v":"E-mini SP500 Options and Futures Combined Leveraged Funds Long"},"E-mini SP500 Options and Futures Combined Leveraged Funds Long, 1373322.6%",null,null,null,null,null,null,null,"X.US.EPOFLFLONG","OFLFLONG",null,{"$f":" RTD(\"cqg.rtd\",,\"StudyData\",Y12, \"Bar\", \"\", \"Close\",\"W\",$L$1,,,,,\"T\")","v":217339},7.9868279571868192E-2,"E-mini SP500 Options and Futures Combined Leveraged Funds Long, 8.0%"]
[null,null,"OFDILONG",null,null,null,null,null,null,null,"X.US.EPOFLFSHT","OFLFSHT",null,{"$f":" RTD(\"cqg.rtd\",,\"StudyData\",K13, \"Bar\", \"\", \"Close\",\"W\",$I$1,,,,,\"T\")*$K$3","v":66598864162.5},27314.352198945384,{"$f":"VLOOKUP(K13,Symbols!$A$1:$B$3103,2,FALSE)","v":"E-mini SP500 Options and Futures Combined Leveraged Funds Short"},"E-mini SP500 Options and Futures Combined Leveraged Funds Short, 2731435.2%",null,null,null,null,null,null,null,"X.US.EPOFLFSHT","OFLFSHT",null,{"$f":" RTD(\"cqg.rtd\",,\"StudyData\",Y13, \"Bar\", \"\", \"Close\",\"W\",$L$1,,,,,\"T\")","v":555075},0.20398034997563591,"E-mini SP500 Options and Futures Combined Leveraged Funds Short, 20.4%"]
[null,null,"OFDISHT",null,null,null,null,null,null,null,"X.US.EPOFLFSPR","OFLFSPR",null,{"$f":" RTD(\"cqg.rtd\",,\"StudyData\",K14, \"Bar\", \"\", \"Close\",\"W\",$I$1,,,,,\"T\")*$K$3","v":82047764637.5},33650.4468751397,{"$f":"VLOOKUP(K14,Symbols!$A$1:$B$3103,2,FALSE)","v":"E-mini SP500 Options and Futures Combined Leveraged Funds Spreading"},"E-mini SP500 Options and Futures Combined Leveraged Funds Spreading, 3365044.7%",null,null,null,null,null,null,null,"X.US.EPOFLFSPR","OFLFSPR",null,{"$f":" RTD(\"cqg.rtd\",,\"StudyData\",Y14, \"Bar\", \"\", \"Close\",\"W\",$L$1,,,,,\"T\")","v":554829},0.20388994928006504,"E-mini SP500 Options and Futures Combined Leveraged Funds Spreading, 20.4%"]
[null,null,"OFDISPR",null,null,null,null,null,null,null,"X.US.EPOFNRLONG","OFNRLONG",null,{"$f":" RTD(\"cqg.rtd\",,\"StudyData\",K15, \"Bar\", \"\", \"Close\",\"W\",$I$1,,,,,\"T\")*$K$3","v":55163293612.5},22624.254169098411,{"$f":"VLOOKUP(K15,Symbols!$A$1:$B$3103,2,FALSE)","v":"E-mini SP500 Options and Futures Combined Nonreportable Long"},"E-mini SP500 Options and Futures Combined Nonreportable Long, 2262425.4%",null,null,null,null,null,null,null,"X.US.EPOFNRLONG","OFNRLONG",null,{"$f":" RTD(\"cqg.rtd\",,\"StudyData\",Y15, \"Bar\", \"\", \"Close\",\"W\",$L$1,,,,,\"T\")","v":302381},0.11111972653422107,"E-mini SP500 Options and Futures Combined Nonreportable Long, 11.1%"]
[null,null,"OFLFLONG",null,null,null,null,null,null,null,"X.US.EPOFNRSHT","OFNRSHT",null,{"$f":" RTD(\"cqg.rtd\",,\"StudyData\",K16, \"Bar\", \"\", \"Close\",\"W\",$I$1,,,,,\"T\")*$K$3","v":51627218050},21173.995001306273,{"$f":"VLOOKUP(K16,Symbols!$A$1:$B$3103,2,FALSE)","v":"E-mini SP500 Options and Futures Combined Nonreportable Short"},"E-mini SP500 Options and Futures Combined Nonreportable Short, 2117399.5%",null,null,null,null,null,null,null,"X.US.EPOFNRSHT","OFNRSHT",null,{"$f":" RTD(\"cqg.rtd\",,\"StudyData\",Y16, \"Bar\", \"\", \"Close\",\"W\",$L$1,,,,,\"T\")","v":407520},0.1497564693457121,"E-mini SP500 Options and Futures Combined Nonreportable Short, 15.0%"]
[null,null,"OFLFSHT",null,null,null,null,null,null,null,"X.US.EPOFORLONG","OFORLONG",null,{"$f":" RTD(\"cqg.rtd\",,\"StudyData\",K17, \"Bar\", \"\", \"Close\",\"W\",$I$1,,,,,\"T\")*$K$3","v":20502202150},8408.6174354666909,{"$f":"VLOOKUP(K17,Symbols!$A$1:$B$3103,2,FALSE)","v":"E-mini SP500 Options and Futures Combined Other Reportables Long"},"E-mini SP500 Options and Futures Combined Other Reportables Long, 840861.7%",null,null,null,null,null,null,null,"X.US.EPOFORLONG","OFORLONG",null,{"$f":" RTD(\"cqg.rtd\",,\"StudyData\",Y17, \"Bar\", \"\", \"Close\",\"W\",$L$1,,,,,\"T\")","v":94569},3.475245276196174E-2,"E-mini SP500 Options and Futures Combined Other Reportables Long, 3.5%"]
[null,null,"OFLFSPR",null,null,null,null,null,null,null,"X.US.EPOFORSHT","OFORSHT",null,{"$f":" RTD(\"cqg.rtd\",,\"StudyData\",K18, \"Bar\", \"\", \"Close\",\"W\",$I$1,,,,,\"T\")*$K$3","v":62776710562.5},25746.763158175352,{"$f":"VLOOKUP(K18,Symbols!$A$1:$B$3103,2,FALSE)","v":"E-mini SP500 Options and Futures Combined Other Reportables Short"},"E-mini SP500 Options and Futures Combined Other Reportables Short, 2574676.3%",null,null,null,null,null,null,null,"X.US.EPOFORSHT","OFORSHT",null,{"$f":" RTD(\"cqg.rtd\",,\"StudyData\",Y18, \"Bar\", \"\", \"Close\",\"W\",$L$1,,,,,\"T\")","v":433027},0.15912984553240497,"E-mini SP500 Options and Futures Combined Other Reportables Short, 15.9%"]
[null,null,"OFNRLONG",null,null,null,null,null,null,null,"X.US.EPOFORSPR","OFORSPR",null,{"$f":" RTD(\"cqg.rtd\",,\"StudyData\",K19, \"Bar\", \"\", \"Close\",\"W\",$I$1,,,,,\"T\")*$K$3","v":2926164737.5},1200.1149754925382,{"$f":"VLOOKUP(K19,Symbols!$A$1:$B$3103,2,FALSE)","v":"E-mini SP500 Options and Futures Combined Other Reportables Spreading"},"E-mini SP500 Options and Futures Combined Other Reportables Spreading, 120011.5%",null,null,null,null,null,null,null,"X.US.EPOFORSPR","OFORSPR"]
[null,null,"OFNRSHT",null,null,null,null,null,null,null,null,null,null,null,null,{"$f":"\"Traders in Financial Futures COT as a Percentage of Total Open Interest, Weeks: \"&TEXT(Q21,\"MM/DD/YY\")&\" vs. \"&TEXT(R21,\"MM/DD/YY\")","v":"Traders in Financial Futures COT as a Percentage of Total Open Interest, Weeks: 10/20/20 vs. 08/18/20"}]
[null,null,"OFORLONG",null,null,null,null,null,null,null,null,null,null,null,null,null,{"$f":"J1","v":"2020-10-20"},{"$f":"N1","v":"2020-08-18"},null,null,null,null,null,null,null,null,null,null,{"$f":"IFERROR(N6/$K$2,\"NA\")","v":86501.888751995808},{"$f":"P6&\", \"&TEXT(AC21,\".00%\")&\" \"&AE21&\" \"&TEXT(AF21,\".00%\")","v":"E-mini SP500 Options and Futures Combined Asset Manager/Institutional Long, 8650188.88% ∆ 8650140.59%"},"∆",{"$f":"IFERROR(O6-AC6,\"NA\")","v":86501.405938417476}]
[null,null,"OFORSHT",null,null,null,null,null,null,null,null,null,null,null,null,null,null,null,null,null,null,null,null,null,null,null,null,null,{"$f":"IFERROR(N7/$K$2,\"NA\")","v":41553.074834398787},{"$f":"P7&\", \"&TEXT(AC22,\".00%\")&\" \"&AE22&\" \"&TEXT(AF22,\".00%\")","v":"E-mini SP500 Options and Futures Combined Asset Manager/Institutional Short, 4155307.48% ∆ 4155284.13%"},"∆",{"$f":"IFERROR(O7-AC7,\"NA\")","v":41552.841290448981}]
[null,null,"OFORSPR",null,null,null,null,null,null,null,null,null,null,null,null,null,null,null,null,null,null,null,null,null,null,null,null,null,19906.593068065162,"E-mini SP500 Options and Futures Combined Asset Manager/Institutional Spreading, 1990659.31% ∆ 1990647.88%","∆",19906.478808935612]
[null,null,null,null,null,null,null,null,null,null,null,null,null,null,null,null,null,null,null,null,null,null,null,null,null,null,null,null,19910.816098886204,"E-mini SP500 Options and Futures Combined Dealer Intermediary Long, 1991081.61% ∆ 1991063.84%","∆",19910.63835311207]
[null,null,null,null,null,null,null,null,null,null,null,null,null,{"$f":"Y6","v":"X.US.EPOFAMILONG"},{"$f":" RTD(\"cqg.rtd\",,\"StudyData\",Y6, \"Bar\", \"\", \"Close\",\"W\",$L$1,,,,,\"T\")","v":1313841},{"$f":"$O$3*O25","v":222498973350},{"$f":"N6","v":210912105725},{"$f":"P6&\" \"&TEXT(Q25,\"$#,###\")&\" \"&X25&\" \"&TEXT(Y25,\"$#,###\")","v":"E-mini SP500 Options and Futures Combined Asset Manager/Institutional Long $210,912,105,725 ∆ -$11,586,867,625"},null,null,null,null,null,"∆",{"$f":"Q25-P25","v":-11586867625},null,null,null,35390.617108796236,"E-mini SP500 Options and Futures Combined Dealer Intermediary Short, 3539061.71% ∆ 3539047.72%","∆",35390.477219232074]
[null,null,null,null,null,null,null,null,null,null,null,null,null,{"$f":"Y7","v":"X.US.EPOFAMISHT"},{"$f":" RTD(\"cqg.rtd\",,\"StudyData\",Y7, \"Bar\", \"\", \"Close\",\"W\",$L$1,,,,,\"T\")","v":635524},{"$f":"$O$3*O26","v":107625989400},{"$f":"N7","v":101316244525},{"$f":"P7&\" \"&TEXT(Q26,\"$#,###\")&\" \"&X26&\" \"&TEXT(Y26,\"$#,###\")","v":"E-mini SP500 Options and Futures Combined Asset Manager/Institutional Short $101,316,244,525 ∆ -$6,309,744,875"},null,null,null,null,null,"∆",{"$f":"Q26-P26","v":-6309744875},null,null,null,9265.68154059675,"E-mini SP500 Options and Futures Combined Dealer Intermediary Spreading, 926568.15% ∆ 926561.58%","∆",9265.6158170861745]
[null,null,null,null,null,null,null,null,null,null,null,null,null,"X.US.EPOFAMISPR",{"$f":" RTD(\"cqg.rtd\",,\"StudyData\",Y8, \"Bar\", \"\", \"Close\",\"W\",$L$1,,,,,\"T\")","v":310924},52654979400,48536991762.5,"E-mini SP500 Options and Futures Combined Asset Manager/Institutional Spreading $48,536,991,763 ∆ -$4,117,987,638",null,null,null,null,null,"∆",-4117987637.5,null,null,null,13733.225846174921,"E-mini SP500 Options and Futures Combined Leveraged Funds Long, 1373322.58% ∆ 1373314.60%","∆",13733.145977895349]
[null,null,null,null,null,null,null,null,null,null,null,null,null,"X.US.EPOFDILONG",{"$f":" RTD(\"cqg.rtd\",,\"StudyData\",Y9, \"Bar\", \"\", \"Close\",\"W\",$L$1,,,,,\"T\")","v":483685},81912054750,48547288512.5,"E-mini SP500 Options and Futures Combined Dealer Intermediary Long $48,547,288,513 ∆ -$33,364,766,238",null,null,null,null,null,"∆",-33364766237.5,null,null,null,27314.352198945384,"E-mini SP500 Options and Futures Combined Leveraged Funds Short, 2731435.22% ∆ 2731414.82%","∆",27314.148218595408]
[null,null,null,null,null,null,null,null,null,null,null,null,null,"X.US.EPOFDISHT",{"$f":" RTD(\"cqg.rtd\",,\"StudyData\",Y10, \"Bar\", \"\", \"Close\",\"W\",$L$1,,,,,\"T\")","v":380670},64466464500,86290712087.5,"E-mini SP500 Options and Futures Combined Dealer Intermediary Short $86,290,712,088 ∆ $21,824,247,588",null,null,null,null,null,"∆",21824247587.5,null,null,null,33650.4468751397,"E-mini SP500 Options and Futures Combined Leveraged Funds Spreading, 3365044.69% ∆ 3365024.30%","∆",33650.242985190416]
[null,null,null,null,null,null,null,null,null,null,null,null,null,"X.US.EPOFDISPR",{"$f":" RTD(\"cqg.rtd\",,\"StudyData\",Y11, \"Bar\", \"\", \"Close\",\"W\",$L$1,,,,,\"T\")","v":178848},30287908800,22591927562.5,"E-mini SP500 Options and Futures Combined Dealer Intermediary Spreading $22,591,927,563 ∆ -$7,695,981,238",null,null,null,null,null,"∆",-7695981237.5,null,null,null,22624.254169098411,"E-mini SP500 Options and Futures Combined Nonreportable Long, 2262425.42% ∆ 2262414.30%","∆",22624.143049371876]
[null,null,null,null,null,null,null,null,null,null,null,null,null,"X.US.EPOFLFLONG",{"$f":" RTD(\"cqg.rtd\",,\"StudyData\",Y12, \"Bar\", \"\", \"Close\",\"W\",$L$1,,,,,\"T\")","v":217339},36806359650,33484859387.5,"E-mini SP500 Options and Futures Combined Leveraged Funds Long $33,484,859,388 ∆ -$3,321,500,263",null,null,null,null,null,"∆",-3321500262.5,null,null,null,21173.995001306273,"E-mini SP500 Options and Futures Combined Nonreportable Short, 2117399.50% ∆ 2117384.52%","∆",21173.845244836928]
[null,null,null,null,null,null,null,null,null,null,null,null,null,"X.US.EPOFLFSHT",{"$f":" RTD(\"cqg.rtd\",,\"StudyData\",Y13, \"Bar\", \"\", \"Close\",\"W\",$L$1,,,,,\"T\")","v":555075},94001951250,66598864162.5,"E-mini SP500 Options and Futures Combined Leveraged Funds Short $66,598,864,163 ∆ -$27,403,087,088",null,null,null,null,null,"∆",-27403087087.5,null,null,null,8408.6174354666909,"E-mini SP500 Options and Futures Combined Other Reportables Long, 840861.74% ∆ 840858.27%","∆",8408.5826830139285]
[null,null,null,null,null,null,null,null,null,null,null,null,null,"X.US.EPOFLFSPR",{"$f":" RTD(\"cqg.rtd\",,\"StudyData\",Y14, \"Bar\", \"\", \"Close\",\"W\",$L$1,,,,,\"T\")","v":554829},93960291150,82047764637.5,"E-mini SP500 Options and Futures Combined Leveraged Funds Spreading $82,047,764,638 ∆ -$11,912,526,513",null,null,null,null,null,"∆",-11912526512.5,null,null,null,25746.763158175352,"E-mini SP500 Options and Futures Combined Other Reportables Short, 2574676.32% ∆ 2574660.40%","∆",25746.604028329821]
[null,null,null,null,null,null,null,null,null,null,null,null,null,"X.US.EPOFNRLONG",{"$f":" RTD(\"cqg.rtd\",,\"StudyData\",Y15, \"Bar\", \"\", \"Close\",\"W\",$L$1,,,,,\"T\")","v":302381},51208222350,55163293612.5,"E-mini SP500 Options and Futures Combined Nonreportable Long $55,163,293,613 ∆ $3,955,071,263",null,null,null,null,null,"∆",3955071262.5]
[null,null,null,null,null,null,null,null,null,null,null,null,null,"X.US.EPOFNRSHT",{"$f":" RTD(\"cqg.rtd\",,\"StudyData\",Y16, \"Bar\", \"\", \"Close\",\"W\",$L$1,,,,,\"T\")","v":407520},69013512000,51627218050,"E-mini SP500 Options and Futures Combined Nonreportable Short $51,627,218,050 ∆ -$17,386,293,950",null,null,null,null,null,"∆",-17386293950]
[null,null,null,null,null,null,null,null,null,null,null,null,null,"X.US.EPOFORLONG",{"$f":" RTD(\"cqg.rtd\",,\"StudyData\",Y17, \"Bar\", \"\", \"Close\",\"W\",$L$1,,,,,\"T\")","v":94569},16015260150,20502202150,"E-mini SP500 Options and Futures Combined Other Reportables Long $20,502,202,150 ∆ $4,486,942,000",null,null,null,null,null,"∆",4486942000]
[null,null,null,null,null,null,null,null,null,null,null,null,null,"X.US.EPOFORSHT",{"$f":" RTD(\"cqg.rtd\",,\"StudyData\",Y18, \"Bar\", \"\", \"Close\",\"W\",$L$1,,,,,\"T\")","v":433027},73333122450,62776710562.5,"E-mini SP500 Options and Futures Combined Other Reportables Short $62,776,710,563 ∆ -$10,556,411,888",null,null,null,null,null,"∆",-10556411887.5]
[null,null,null,null,null,null,null,null,null,null,null,null,null,"X.US.EPOFORSPR",{"$f":" RTD(\"cqg.rtd\",,\"StudyData\",Y19, \"Bar\", \"\", \"Close\",\"W\",$L$1,,,,,\"T\")","v":18104},{"$f":"$O$3*O38","v":3065912400},2926164737.5,"E-mini SP500 Options and Futures Combined Other Reportables Spreading $2,926,164,738 ∆ -$139,747,663",null,null,null,null,null,"∆",{"$f":"Q38-P38","v":-139747662.5}]
[]
[]
[]
[]
[null,null,null,null,null,null,null,null,null,null,null,null,null,null,null,null,{"$f":"R38","v":"E-mini SP500 Options and Futures Combined Other Reportables Spreading $2,926,164,738 ∆ -$139,747,663"}]
[]
[]
[]
[]
[]
[]
[]
[]
[]
[]
[]
[]
[]
[]
[]
[null,null,null,null,null,null,null,null,null,null,null,null,null,"X.US.ZSEOFPMPUDIFF","Soybeans Options and Futures Combined Producer/Merchant/Processor/User Long/Short Diff",null,null,null,null,null,null,null,null,null,null,null,null,null,null,"Soybeans Options and Futures Combined"]
[null,null,null,null,null,null,null,null,null,null,null,null,null,null,null,null,null,null,null,null,null,null,null,null,null,null,null,null,null,"Producer/Merchant/Processor/User Long/Short Diff"]
[null,null,null,null,null,null,null,null,null,null,null,null,null,null,{"$f":" RTD(\"cqg.rtd\",,\"StudyData\",N59, \"Bar\", \"\", \"Close\",\"W\",-1,,,,,\"T\")","v":-373040},{"$f":" RTD(\"cqg.rtd\",,\"StudyData\",N59, \"Bar\", \"\", \"Close\",\"W\",-4,,,,,\"T\")","v":-351874},{"$f":"O61-P61","v":-21166},null,null,null,null,null,null,null,null,{"$f":"LEN(O59)","v":86}]

{"sheet":"Sheet2 (4)","index":11,"n_rows":27,"n_cols":19,"rows_kept":27,"cut":false,"hidden":true,"merged":[]}
[null,null,null,null,null,null,null,null,null,null,null,null,null,"Vlookup","Symbol","Volume","rank1","rank2"]
[null,null,null,null,null,null,null,null,null,null,null,null,null,{"$f":"R2","v":6},"A",100,{"$f":"RANK($P2,$P$2:P$7)","v":6},{"$f":"RANK($P2,$P$2:P$7)+COUNTIF($P$2:P2,P2)-1","v":6},{"$f":"RANK($P2,$P$2:P$7)+COUNTIF($P$2:P2,P2)-1","v":6}]
[null,null,null,null,null,null,null,null,null,null,null,null,null,{"$f":"R3","v":3},"B",103,{"$f":"RANK($P3,$P$2:P$7)","v":3},{"$f":"RANK($P3,$P$2:P$7)+COUNTIF($P$2:P3,P3)-1","v":3},{"$f":"RANK($P3,$P$2:P$7)+COUNTIF($P$2:P3,P3)-1","v":3}]
[null,null,null,null,null,null,null,null,null,null,null,null,null,5,"C",102,{"$f":"RANK($P4,$P$2:P$7)","v":5},{"$f":"RANK($P4,$P$2:P$7)+COUNTIF($P$2:P4,P4)-1","v":5},{"$f":"RANK($P4,$P$2:P$7)+COUNTIF($P$2:P4,P4)-1","v":5}]
[null,null,null,null,null,null,null,null,null,null,null,null,null,4,"D",103,{"$f":"RANK($P5,$P$2:P$7)","v":3},{"$f":"RANK($P5,$P$2:P$7)+COUNTIF($P$2:P5,P5)-1","v":4},{"$f":"RANK($P5,$P$2:P$7)+COUNTIF($P$2:P5,P5)-1","v":4}]
[null,null,null,null,null,null,null,null,null,null,null,null,null,{"$f":"R6","v":2},"E",104,{"$f":"RANK($P6,$P$2:P$7)","v":2},{"$f":"RANK($P6,$P$2:P$7)+COUNTIF($P$2:P6,P6)-1","v":2},{"$f":"RANK($P6,$P$2:P$7)+COUNTIF($P$2:P6,P6)-1","v":2}]
[null,null,null,null,null,null,null,null,null,null,null,null,null,1,"F",105,{"$f":"RANK($P7,$P$2:P$7)","v":1},{"$f":"RANK($P7,$P$2:P$7)+COUNTIF($P$2:P7,P7)-1","v":1},{"$f":"RANK($P7,$P$2:P$7)+COUNTIF($P$2:P7,P7)-1","v":1}]
[{"$f":"RANK($C8,$C$8:C$12)+COUNTIF($C$8:C8,C8)-1","v":1},{"$f":"\"X.US.\"&'Sheet1 (4)'!$C$1&\"AMIDIFF\"","v":"X.US.EPAMIDIFF"},{"$f":" RTD(\"cqg.rtd\",,\"StudyData\",B8, \"Bar\", \"\", \"Close\",\"W\",-1,,,,,\"T\")","v":632806},{"$f":"VLOOKUP(B8,Symbols!$A$1:$B$3103,2,FALSE)","v":"E-mini SP500 Asset Manager/Institutional Long/Short Diff"},null,null,null,null,null,null,null,null,null,{"$f":"VLOOKUP(O8,$A$8:$D$12,2,FALSE)","v":"X.US.EPAMIDIFF"},1,{"$f":"VLOOKUP(O8,$A$8:$D$12,3,FALSE)*$K$9","v":108597419675},{"$f":"VLOOKUP(O8,$A$8:$D$12,4,FALSE)","v":"E-mini SP500 Asset Manager/Institutional Long/Short Diff"}]
[{"$f":"RANK($C9,$C$8:C$12)+COUNTIF($C$8:C9,C9)-1","v":4},{"$f":"\"X.US.\"&'Sheet1 (4)'!$C$1&\"DIDIFF\"","v":"X.US.EPDIDIFF"},{"$f":" RTD(\"cqg.rtd\",,\"StudyData\",B9, \"Bar\", \"\", \"Close\",\"W\",-1,,,,,\"T\")","v":-219410},{"$f":"VLOOKUP(B9,Symbols!$A$1:$B$3103,2,FALSE)","v":"E-mini SP500 Dealer Intermediary Long/Short Diff"},null,null,null,null,null,null,{"$f":"'Sheet1 (4)'!K3","v":171612.5},null,null,{"$f":"VLOOKUP(O9,$A$8:$D$12,2,FALSE)","v":"X.US.EPDNRDIFF"},2,{"$f":"VLOOKUP(O9,$A$8:$D$12,3,FALSE)*$K$9","v":3946229437.5},{"$f":"VLOOKUP(O9,$A$8:$D$12,4,FALSE)","v":"E-mini SP500 Nonreportable Long/Short Diff"}]
[{"$f":"RANK($C10,$C$8:C$12)+COUNTIF($C$8:C10,C10)-1","v":3},{"$f":"\"X.US.\"&'Sheet1 (4)'!$C$1&\"LFDIFF\"","v":"X.US.EPLFDIFF"},{"$f":" RTD(\"cqg.rtd\",,\"StudyData\",B10, \"Bar\", \"\", \"Close\",\"W\",-1,,,,,\"T\")","v":-190619},{"$f":"VLOOKUP(B10,Symbols!$A$1:$B$3103,2,FALSE)","v":"E-mini SP500 Leveraged Funds Long/Short Diff"},null,null,null,null,null,null,null,null,null,"X.US.EPLFDIFF",3,-32712603137.5,"E-mini SP500 Leveraged Funds Long/Short Diff"]
[{"$f":"RANK($C11,$C$8:C$12)+COUNTIF($C$8:C11,C11)-1","v":2},{"$f":"\"X.US.\"&'Sheet1 (4)'!$C$1&\"DNRDIFF\"","v":"X.US.EPDNRDIFF"},{"$f":" RTD(\"cqg.rtd\",,\"StudyData\",B11, \"Bar\", \"\", \"Close\",\"W\",-1,,,,,\"T\")","v":22995},{"$f":"VLOOKUP(B11,Symbols!$A$1:$B$3103,2,FALSE)","v":"E-mini SP500 Nonreportable Long/Short Diff"},null,null,null,null,null,null,null,null,null,"X.US.EPDIDIFF",4,-37653498625,"E-mini SP500 Dealer Intermediary Long/Short Diff"]
[{"$f":"RANK($C12,$C$8:C$12)+COUNTIF($C$8:C12,C12)-1","v":5},{"$f":"\"X.US.\"&'Sheet1 (4)'!$C$1&\"ORDIFF\"","v":"X.US.EPORDIFF"},{"$f":" RTD(\"cqg.rtd\",,\"StudyData\",B12, \"Bar\", \"\", \"Close\",\"W\",-1,,,,,\"T\")","v":-245772},{"$f":"VLOOKUP(B12,Symbols!$A$1:$B$3103,2,FALSE)","v":"E-mini SP500 Other Reportables Long/Short Diff"},null,null,null,null,null,null,null,null,null,"X.US.EPORDIFF",5,-42177547350,"E-mini SP500 Other Reportables Long/Short Diff"]
[]
[null,null,{"$f":"'Sheet1 (4)'!K2","v":2438237},{"$f":"C14*K9","v":418431947162.5},null,null,"AMIDIFF"]
[null,null,null,null,null,null,"DIDIFF",null,null,null,null,{"$f":"'Sheet1 (4)'!L1","v":-10},null,{"$f":" RTD(\"cqg.rtd\",,\"StudyData\",N8, \"Bar\", \"\", \"Close\",\"W\",$L$15,,,,,\"T\")*$K$16","v":114994746600}]
[null,null,{"$f":" ABS(P8/$D$14)","v":0.25953424544045556},null,null,null,"LFDIFF",null,null,null,{"$f":"'Sheet1 (4)'!O3","v":169350},null,null,{"$f":" RTD(\"cqg.rtd\",,\"StudyData\",N9, \"Bar\", \"\", \"Close\",\"W\",$L$15,,,,,\"T\")*$K$16","v":-16624920150}]
[null,null,{"$f":" ABS(P9/$D$14)","v":9.4309946079892976E-3},null,null,null,"DNRDIFF",null,null,null,null,null,null,{"$f":" RTD(\"cqg.rtd\",,\"StudyData\",N10, \"Bar\", \"\", \"Close\",\"W\",$L$15,,,,,\"T\")*$K$16","v":-58586463150}]
[null,null,7.8179028535782208E-2,null,null,null,"ORDIFF",null,null,null,null,null,null,{"$f":" RTD(\"cqg.rtd\",,\"StudyData\",N11, \"Bar\", \"\", \"Close\",\"W\",$L$15,,,,,\"T\")*$K$16","v":17606811450}]
[null,null,8.9987150551812639E-2,null,null,null,null,null,null,null,null,null,null,{"$f":" RTD(\"cqg.rtd\",,\"StudyData\",N12, \"Bar\", \"\", \"Close\",\"W\",$L$15,,,,,\"T\")*$K$16","v":-57390174750}]
[null,null,0.10079906096084999]
[null,null,null,null,null,null,null,null,null,null,{"$f":"K16*N21","v":571389948300},null,null,{"$f":"'Sheet1 (2)'!O2","v":3374018}]
[]
[null,null,null,null,null,null,null,null,null,null,null,null,null,{"$f":"ABS(N15/$K$21)","v":0.20125440943112929}]
[null,null,null,null,null,null,null,null,null,null,null,null,null,{"$f":"ABS(N16/$K$21)","v":2.9095576846359446E-2}]
[null,null,null,null,null,null,null,null,null,null,null,null,null,0.10253324078294782]
[null,null,null,null,null,null,null,null,null,"X.US.EPAMIDIFF",null,null,null,3.0814002770583916E-2]
[null,null,null,null,null,null,null,null,null,null,null,null,null,0.10043959457240596]

{"sheet":"Symbols","index":12,"n_rows":3103,"n_cols":2,"rows_kept":3103,"cut":false,"hidden":true,"merged":[]}
["X.US.ZQEAMILONG","30 day Fed Funds Asset Manager/Institutional Long"]
["X.US.ZQEAMIDIFF","30 day Fed Funds Asset Manager/Institutional Long/Short Diff"]
["X.US.ZQEAMISHT","30 day Fed Funds Asset Manager/Institutional Short"]
["X.US.ZQEAMISPR","30 day Fed Funds Asset Manager/Institutional Spreading"]
["X.US.ZQEDILONG","30 day Fed Funds Dealer Intermediary Long"]
["X.US.ZQEDIDIFF","30 day Fed Funds Dealer Intermediary Long/Short Diff"]
["X.US.ZQEDISHT","30 day Fed Funds Dealer Intermediary Short"]
["X.US.ZQEDISPR","30 day Fed Funds Dealer Intermediary Spreading"]
["X.US.ZQELFLONG","30 day Fed Funds Leveraged Funds Long"]
["X.US.ZQELFDIFF","30 day Fed Funds Leveraged Funds Long/Short Diff"]
["X.US.ZQELFSHT","30 day Fed Funds Leveraged Funds Short"]
["X.US.ZQELFSPR","30 day Fed Funds Leveraged Funds Spreading"]
["X.US.ZQEDNRLONG","30 day Fed Funds Nonreportable Long"]
["X.US.ZQEDNRDIFF","30 day Fed Funds Nonreportable Long/Short Diff"]
["X.US.ZQEDNRSHT","30 day Fed Funds Nonreportable Short"]
["X.US.ZQEOFAMILONG","30 day Fed Funds Options and Futures Combined Asset Manager/Institutional Long"]
["X.US.ZQEOFAMIDIFF","30 day Fed Funds Options and Futures Combined Asset Manager/Institutional Long/Short Diff"]
["X.US.ZQEOFAMISHT","30 day Fed Funds Options and Futures Combined Asset Manager/Institutional Short"]
["X.US.ZQEOFAMISPR","30 day Fed Funds Options and Futures Combined Asset Manager/Institutional Spreading"]
["X.US.ZQEOFDILONG","30 day Fed Funds Options and Futures Combined Dealer Intermediary Long"]
["X.US.ZQEOFDIDIFF","30 day Fed Funds Options and Futures Combined Dealer Intermediary Long/Short Diff"]
["X.US.ZQEOFDISHT","30 day Fed Funds Options and Futures Combined Dealer Intermediary Short"]
["X.US.ZQEOFDISPR","30 day Fed Funds Options and Futures Combined Dealer Intermediary Spreading"]
["X.US.ZQEOFLFLONG","30 day Fed Funds Options and Futures Combined Leveraged Funds Long"]
["X.US.ZQEOFLFDIFF","30 day Fed Funds Options and Futures Combined Leveraged Funds Long/Short Diff"]
["X.US.ZQEOFLFSHT","30 day Fed Funds Options and Futures Combined Leveraged Funds Short"]
["X.US.ZQEOFLFSPR","30 day Fed Funds Options and Futures Combined Leveraged Funds Spreading"]
["X.US.ZQEOFNRLONG","30 day Fed Funds Options and Futures Combined Nonreportable Long"]
["X.US.ZQEOFNRDIFF","30 day Fed Funds Options and Futures Combined Nonreportable Long/Short Diff"]
["X.US.ZQEOFNRSHT","30 day Fed Funds Options and Futures Combined Nonreportable Short"]
["X.US.ZQEOFORLONG","30 day Fed Funds Options and Futures Combined Other Reportables Long"]
["X.US.ZQEOFORDIFF","30 day Fed Funds Options and Futures Combined Other Reportables Long/Short Diff"]
["X.US.ZQEOFORSHT","30 day Fed Funds Options and Futures Combined Other Reportables Short"]
["X.US.ZQEOFORSPR","30 day Fed Funds Options and Futures Combined Other Reportables Spreading"]
["X.US.ZQEORLONG","30 day Fed Funds Other Reportables Long"]
["X.US.ZQEORDIFF","30 day Fed Funds Other Reportables Long/Short Diff"]
["X.US.ZQEORSHT","30 day Fed Funds Other Reportables Short"]
["X.US.ZQEORSPR","30 day Fed Funds Other Reportables Spreading"]
["X.US.DA6AMILONG","AU Dollar Asset Manager/Institutional Long"]
["X.US.DA6AMIDIFF","AU Dollar Asset Manager/Institutional Long/Short Diff"]
["X.US.DA6AMISHT","AU Dollar Asset Manager/Institutional Short"]
["X.US.DA6AMISPR","AU Dollar Asset Manager/Institutional Spreading"]
["X.US.DA6DILONG","AU Dollar Dealer Intermediary Long"]
["X.US.DA6DIDIFF","AU Dollar Dealer Intermediary Long/Short Diff"]
["X.US.DA6DISHT","AU Dollar Dealer Intermediary Short"]
["X.US.DA6DISPR","AU Dollar Dealer Intermediary Spreading"]
["X.US.DA6LFLONG","AU Dollar Leveraged Funds Long"]
["X.US.DA6LFDIFF","AU Dollar Leveraged Funds Long/Short Diff"]
["X.US.DA6LFSHT","AU Dollar Leveraged Funds Short"]
["X.US.DA6LFSPR","AU Dollar Leveraged Funds Spreading"]
["X.US.DA6DNRLONG","AU Dollar Nonreportable Long"]
["X.US.DA6DNRDIFF","AU Dollar Nonreportable Long/Short Diff"]
["X.US.DA6DNRSHT","AU Dollar Nonreportable Short"]
["X.US.DA6OFAMILONG","AU Dollar Options and Futures Combined Asset Manager/Institutional Long"]
["X.US.DA6OFAMIDIFF","AU Dollar Options and Futures Combined Asset Manager/Institutional Long/Short Diff"]
["X.US.DA6OFAMISHT","AU Dollar Options and Futures Combined Asset Manager/Institutional Short"]
["X.US.DA6OFAMISPR","AU Dollar Options and Futures Combined Asset Manager/Institutional Spreading"]
["X.US.DA6OFDILONG","AU Dollar Options and Futures Combined Dealer Intermediary Long"]
["X.US.DA6OFDIDIFF","AU Dollar Options and Futures Combined Dealer Intermediary Long/Short Diff"]
["X.US.DA6OFDISHT","AU Dollar Options and Futures Combined Dealer Intermediary Short"]
["X.US.DA6OFDISPR","AU Dollar Options and Futures Combined Dealer Intermediary Spreading"]
["X.US.DA6OFLFLONG","AU Dollar Options and Futures Combined Leveraged Funds Long"]
["X.US.DA6OFLFDIFF","AU Dollar Options and Futures Combined Leveraged Funds Long/Short Diff"]
["X.US.DA6OFLFSHT","AU Dollar Options and Futures Combined Leveraged Funds Short"]
["X.US.DA6OFLFSPR","AU Dollar Options and Futures Combined Leveraged Funds Spreading"]
["X.US.DA6OFNRLONG","AU Dollar Options and Futures Combined Nonreportable Long"]
["X.US.DA6OFNRDIFF","AU Dollar Options and Futures Combined Nonreportable Long/Short Diff"]
["X.US.DA6OFNRSHT","AU Dollar Options and Futures Combined Nonreportable Short"]
["X.US.DA6OFORLONG","AU Dollar Options and Futures Combined Other Reportables Long"]
["X.US.DA6OFORDIFF","AU Dollar Options and Futures Combined Other Reportables Long/Short Diff"]
["X.US.DA6OFORSHT","AU Dollar Options and Futures Combined Other Reportables Short"]
["X.US.DA6OFORSPR","AU Dollar Options and Futures Combined Other Reportables Spreading"]
["X.US.DA6ORLONG","AU Dollar Other Reportables Long"]
["X.US.DA6ORDIFF","AU Dollar Other Reportables Long/Short Diff"]
["X.US.DA6ORSHT","AU Dollar Other Reportables Short"]
["X.US.DA6ORSPR","AU Dollar Other Reportables Spreading"]
["X.US.ERAMILONG","BBG Commod Index Asset Manager/Institutional Long"]
["X.US.ERAMIDIFF","BBG Commod Index Asset Manager/Institutional Long/Short Diff"]
["X.US.ERAMISHT","BBG Commod Index Asset Manager/Institutional Short"]
["X.US.ERAMISPR","BBG Commod Index Asset Manager/Institutional Spreading"]
["X.US.ERDILONG","BBG Commod Index Dealer Intermediary Long"]
["X.US.ERDIDIFF","BBG Commod Index Dealer Intermediary Long/Short Diff"]
["X.US.ERDISHT","BBG Commod Index Dealer Intermediary Short"]
["X.US.ERDISPR","BBG Commod Index Dealer Intermediary Spreading"]
["X.US.ERLFLONG","BBG Commod Index Leveraged Funds Long"]
["X.US.ERLFDIFF","BBG Commod Index Leveraged Funds Long/Short Diff"]
["X.US.ERLFSHT","BBG Commod Index Leveraged Funds Short"]
["X.US.ERLFSPR","BBG Commod Index Leveraged Funds Spreading"]
["X.US.ERDNRLONG","BBG Commod Index Nonreportable Long"]
["X.US.ERDNRDIFF","BBG Commod Index Nonreportable Long/Short Diff"]
["X.US.ERDNRSHT","BBG Commod Index Nonreportable Short"]
["X.US.EROFAMILONG","BBG Commod Index Options and Futures Combined Asset Manager/Institutional Long"]
["X.US.EROFAMIDIFF","BBG Commod Index Options and Futures Combined Asset Manager/Institutional Long/Short Diff"]
["X.US.EROFAMISHT","BBG Commod Index Options and Futures Combined Asset Manager/Institutional Short"]
["X.US.EROFAMISPR","BBG Commod Index Options and Futures Combined Asset Manager/Institutional Spreading"]
["X.US.EROFDILONG","BBG Commod Index Options and Futures Combined Dealer Intermediary Long"]
["X.US.EROFDIDIFF","BBG Commod Index Options and Futures Combined Dealer Intermediary Long/Short Diff"]
["X.US.EROFDISHT","BBG Commod Index Options and Futures Combined Dealer Intermediary Short"]
["X.US.EROFDISPR","BBG Commod Index Options and Futures Combined Dealer Intermediary Spreading"]
["X.US.EROFLFLONG","BBG Commod Index Options and Futures Combined Leveraged Funds Long"]
["X.US.EROFLFDIFF","BBG Commod Index Options and Futures Combined Leveraged Funds Long/Short Diff"]
["X.US.EROFLFSHT","BBG Commod Index Options and Futures Combined Leveraged Funds Short"]
["X.US.EROFLFSPR","BBG Commod Index Options and Futures Combined Leveraged Funds Spreading"]
["X.US.EROFNRLONG","BBG Commod Index Options and Futures Combined Nonreportable Long"]
["X.US.EROFNRDIFF","BBG Commod Index Options and Futures Combined Nonreportable Long/Short Diff"]
["X.US.EROFNRSHT","BBG Commod Index Options and Futures Combined Nonreportable Short"]
["X.US.EROFORLONG","BBG Commod Index Options and Futures Combined Other Reportables Long"]
["X.US.EROFORDIFF","BBG Commod Index Options and Futures Combined Other Reportables Long/Short Diff"]
["X.US.EROFORSHT","BBG Commod Index Options and Futures Combined Other Reportables Short"]
["X.US.EROFORSPR","BBG Commod Index Options and Futures Combined Other Reportables Spreading"]
["X.US.ERORLONG","BBG Commod Index Other Reportables Long"]
["X.US.ERORDIFF","BBG Commod Index Other Reportables Long/Short Diff"]
["X.US.ERORSHT","BBG Commod Index Other Reportables Short"]
["X.US.ERORSPR","BBG Commod Index Other Reportables Spreading"]
["X.US.BTCAMILONG","Bitcoin Asset Manager/Institutional Long"]
["X.US.BTCAMIDIFF","Bitcoin Asset Manager/Institutional Long/Short Diff"]
["X.US.BTCAMISHT","Bitcoin Asset Manager/Institutional Short"]
["X.US.BTCAMISPR","Bitcoin Asset Manager/Institutional Spreading"]
["X.US.BTCDILONG","Bitcoin Dealer Intermediary Long"]
["X.US.BTCDIDIFF","Bitcoin Dealer Intermediary Long/Short Diff"]
["X.US.BTCDISHT","Bitcoin Dealer Intermediary Short"]
["X.US.BTCDISPR","Bitcoin Dealer Intermediary Spreading"]
["X.US.BTCLFLONG","Bitcoin Leveraged Funds Long"]
["X.US.BTCLFDIFF","Bitcoin Leveraged Funds Long/Short Diff"]
["X.US.BTCLFSHT","Bitcoin Leveraged Funds Short"]
["X.US.BTCLFSPR","Bitcoin Leveraged Funds Spreading"]
["X.US.BTCDNRLONG","Bitcoin Nonreportable Long"]
["X.US.BTCDNRDIFF","Bitcoin Nonreportable Long/Short Diff"]
["X.US.BTCDNRSHT","Bitcoin Nonreportable Short"]
["X.US.BTCOFAMILONG","Bitcoin Options and Futures Combined Asset Manager/Institutional Long"]
["X.US.BTCOFAMIDIFF","Bitcoin Options and Futures Combined Asset Manager/Institutional Long/Short Diff"]
["X.US.BTCOFAMISHT","Bitcoin Options and Futures Combined Asset Manager/Institutional Short"]
["X.US.BTCOFAMISPR","Bitcoin Options and Futures Combined Asset Manager/Institutional Spreading"]
["X.US.BTCOFDILONG","Bitcoin Options and Futures Combined Dealer Intermediary Long"]
["X.US.BTCOFDIDIFF","Bitcoin Options and Futures Combined Dealer Intermediary Long/Short Diff"]
["X.US.BTCOFDISHT","Bitcoin Options and Futures Combined Dealer Intermediary Short"]
["X.US.BTCOFDISPR","Bitcoin Options and Futures Combined Dealer Intermediary Spreading"]
["X.US.BTCOFLFLONG","Bitcoin Options and Futures Combined Leveraged Funds Long"]
["X.US.BTCOFLFDIFF","Bitcoin Options and Futures Combined Leveraged Funds Long/Short Diff"]
["X.US.BTCOFLFSHT","Bitcoin Options and Futures Combined Leveraged Funds Short"]
["X.US.BTCOFLFSPR","Bitcoin Options and Futures Combined Leveraged Funds Spreading"]
["X.US.BTCOFNRLONG","Bitcoin Options and Futures Combined Nonreportable Long"]
["X.US.BTCOFNRDIFF","Bitcoin Options and Futures Combined Nonreportable Long/Short Diff"]
["X.US.BTCOFNRSHT","Bitcoin Options and Futures Combined Nonreportable Short"]
["X.US.BTCOFORLONG","Bitcoin Options and Futures Combined Other Reportables Long"]
["X.US.BTCOFORDIFF","Bitcoin Options and Futures Combined Other Reportables Long/Short Diff"]
["X.US.BTCOFORSHT","Bitcoin Options and Futures Combined Other Reportables Short"]
["X.US.BTCOFORSPR","Bitcoin Options and Futures Combined Other Reportables Spreading"]
["X.US.BTCORLONG","Bitcoin Other Reportables Long"]
["X.US.BTCORDIFF","Bitcoin Other Reportables Long/Short Diff"]
["X.US.BTCORSHT","Bitcoin Other Reportables Short"]
["X.US.BTCORSPR","Bitcoin Other Reportables Spreading"]
["X.US.BR6AMILONG","Brazil Real Asset Manager/Institutional Long"]
["X.US.BR6AMIDIFF","Brazil Real Asset Manager/Institutional Long/Short Diff"]
["X.US.BR6AMISHT","Brazil Real Asset Manager/Institutional Short"]
["X.US.BR6AMISPR","Brazil Real Asset Manager/Institutional Spreading"]
["X.US.BR6DILONG","Brazil Real Dealer Intermediary Long"]
["X.US.BR6DIDIFF","Brazil Real Dealer Intermediary Long/Short Diff"]
["X.US.BR6DISHT","Brazil Real Dealer Intermediary Short"]
["X.US.BR6DISPR","Brazil Real Dealer Intermediary Spreading"]
["X.US.BR6LFLONG","Brazil Real Leveraged Funds Long"]
["X.US.BR6LFDIFF","Brazil Real Leveraged Funds Long/Short Diff"]
["X.US.BR6LFSHT","Brazil Real Leveraged Funds Short"]
["X.US.BR6LFSPR","Brazil Real Leveraged Funds Spreading"]
["X.US.BR6DNRLONG","Brazil Real Nonreportable Long"]
["X.US.BR6DNRDIFF","Brazil Real Nonreportable Long/Short Diff"]
["X.US.BR6DNRSHT","Brazil Real Nonreportable Short"]
["X.US.BR6OFAMILONG","Brazil Real Options and Futures Combined Asset Manager/Institutional Long"]
["X.US.BR6OFAMIDIFF","Brazil Real Options and Futures Combined Asset Manager/Institutional Long/Short Diff"]
["X.US.BR6OFAMISHT","Brazil Real Options and Futures Combined Asset Manager/Institutional Short"]
["X.US.BR6OFAMISPR","Brazil Real Options and Futures Combined Asset Manager/Institutional Spreading"]
["X.US.BR6OFDILONG","Brazil Real Options and Futures Combined Dealer Intermediary Long"]
["X.US.BR6OFDIDIFF","Brazil Real Options and Futures Combined Dealer Intermediary Long/Short Diff"]
["X.US.BR6OFDISHT","Brazil Real Options and Futures Combined Dealer Intermediary Short"]
["X.US.BR6OFDISPR","Brazil Real Options and Futures Combined Dealer Intermediary Spreading"]
["X.US.BR6OFLFLONG","Brazil Real Options and Futures Combined Leveraged Funds Long"]
["X.US.BR6OFLFDIFF","Brazil Real Options and Futures Combined Leveraged Funds Long/Short Diff"]
["X.US.BR6OFLFSHT","Brazil Real Options and Futures Combined Leveraged Funds Short"]
["X.US.BR6OFLFSPR","Brazil Real Options and Futures Combined Leveraged Funds Spreading"]
["X.US.BR6OFNRLONG","Brazil Real Options and Futures Combined Nonreportable Long"]
["X.US.BR6OFNRDIFF","Brazil Real Options and Futures Combined Nonreportable Long/Short Diff"]
["X.US.BR6OFNRSHT","Brazil Real Options and Futures Combined Nonreportable Short"]
["X.US.BR6OFORLONG","Brazil Real Options and Futures Combined Other Reportables Long"]
["X.US.BR6OFORDIFF","Brazil Real Options and Futures Combined Other Reportables Long/Short Diff"]
["X.US.BR6OFORSHT","Brazil Real Options and Futures Combined Other Reportables Short"]
["X.US.BR6OFORSPR","Brazil Real Options and Futures Combined Other Reportables Spreading"]
["X.US.BR6ORLONG","Brazil Real Other Reportables Long"]
["X.US.BR6ORDIFF","Brazil Real Other Reportables Long/Short Diff"]
["X.US.BR6ORSHT","Brazil Real Other Reportables Short"]
["X.US.BR6ORSPR","Brazil Real Other Reportables Spreading"]
["X.US.BP6AMILONG","British Pound Asset Manager/Institutional Long"]
["X.US.BP6AMIDIFF","British Pound Asset Manager/Institutional Long/Short Diff"]
["X.US.BP6AMISHT","British Pound Asset Manager/Institutional Short"]
["X.US.BP6AMISPR","British Pound Asset Manager/Institutional Spreading"]
["X.US.BP6DILONG","British Pound Dealer Intermediary Long"]
["X.US.BP6DIDIFF","British Pound Dealer Intermediary Long/Short Diff"]
["X.US.BP6DISHT","British Pound Dealer Intermediary Short"]
["X.US.BP6DISPR","British Pound Dealer Intermediary Spreading"]
["X.US.BP6LFLONG","British Pound Leveraged Funds Long"]
["X.US.BP6LFDIFF","British Pound Leveraged Funds Long/Short Diff"]
["X.US.BP6LFSHT","British Pound Leveraged Funds Short"]
["X.US.BP6LFSPR","British Pound Leveraged Funds Spreading"]
["X.US.BP6DNRLONG","British Pound Nonreportable Long"]
["X.US.BP6DNRDIFF","British Pound Nonreportable Long/Short Diff"]
["X.US.BP6DNRSHT","British Pound Nonreportable Short"]
["X.US.BP6OFAMILONG","British Pound Options and Futures Combined Asset Manager/Institutional Long"]
["X.US.BP6OFAMIDIFF","British Pound Options and Futures Combined Asset Manager/Institutional Long/Short Diff"]
["X.US.BP6OFAMISHT","British Pound Options and Futures Combined Asset Manager/Institutional Short"]
["X.US.BP6OFAMISPR","British Pound Options and Futures Combined Asset Manager/Institutional Spreading"]
["X.US.BP6OFDILONG","British Pound Options and Futures Combined Dealer Intermediary Long"]
["X.US.BP6OFDIDIFF","British Pound Options and Futures Combined Dealer Intermediary Long/Short Diff"]
["X.US.BP6OFDISHT","British Pound Options and Futures Combined Dealer Intermediary Short"]
["X.US.BP6OFDISPR","British Pound Options and Futures Combined Dealer Intermediary Spreading"]
["X.US.BP6OFLFLONG","British Pound Options and Futures Combined Leveraged Funds Long"]
["X.US.BP6OFLFDIFF","British Pound Options and Futures Combined Leveraged Funds Long/Short Diff"]
["X.US.BP6OFLFSHT","British Pound Options and Futures Combined Leveraged Funds Short"]
["X.US.BP6OFLFSPR","British Pound Options and Futures Combined Leveraged Funds Spreading"]
["X.US.BP6OFNRLONG","British Pound Options and Futures Combined Nonreportable Long"]
["X.US.BP6OFNRDIFF","British Pound Options and Futures Combined Nonreportable Long/Short Diff"]
["X.US.BP6OFNRSHT","British Pound Options and Futures Combined Nonreportable Short"]
["X.US.BP6OFORLONG","British Pound Options and Futures Combined Other Reportables Long"]
["X.US.BP6OFORDIFF","British Pound Options and Futures Combined Other Reportables Long/Short Diff"]
["X.US.BP6OFORSHT","British Pound Options and Futures Combined Other Reportables Short"]
["X.US.BP6OFORSPR","British Pound Options and Futures Combined Other Reportables Spreading"]
["X.US.BP6ORLONG","British Pound Other Reportables Long"]
["X.US.BP6ORDIFF","British Pound Other Reportables Long/Short Diff"]
["X.US.BP6ORSHT","British Pound Other Reportables Short"]
["X.US.BP6ORSPR","British Pound Other Reportables Spreading"]
["X.US.CCBMMLONG","Butter Managed Money Long"]
["X.US.CCBMMDIFF","Butter Managed Money Long/Short Diff"]
["X.US.CCBMMSHT","Butter Managed Money Short"]
["X.US.CCBMMSPR","Butter Managed Money Spreading"]
["X.US.CCBDNRLONG","Butter Nonreportable Long"]
["X.US.CCBDNRDIFF","Butter Nonreportable Long/Short Diff"]
["X.US.CCBDNRSHT","Butter Nonreportable Short"]
["X.US.CCBOFMMLONG","Butter Options and Futures Combined Managed Money Long"]
["X.US.CCBOFMMDIFF","Butter Options and Futures Combined Managed Money Long/Short Diff"]
["X.US.CCBOFMMSHT","Butter Options and Futures Combined Managed Money Short"]
["X.US.CCBOFMMSPR","Butter Options and Futures Combined Managed Money Spreading"]
["X.US.CCBOFNRLONG","Butter Options and Futures Combined Nonreportable Long"]
["X.US.CCBOFNRDIFF","Butter Options and Futures Combined Nonreportable Long/Short Diff"]
["X.US.CCBOFNRSHT","Butter Options and Futures Combined Nonreportable Short"]
["X.US.CCBOFORLONG","Butter Options and Futures Combined Other Reportables Long"]
["X.US.CCBOFORDIFF","Butter Options and Futures Combined Other Reportables Long/Short Diff"]
["X.US.CCBOFORSHT","Butter Options and Futures Combined Other Reportables Short"]
["X.US.CCBOFORSPR","Butter Options and Futures Combined Other Reportables Spreading"]
["X.US.CCBOFPMPULONG","Butter Options and Futures Combined Producer/Merchant/Processor/User Long"]
["X.US.CCBOFPMPUDIFF","Butter Options and Futures Combined Producer/Merchant/Processor/User Long/Short Diff"]
["X.US.CCBOFPMPUSHT","Butter Options and Futures Combined Producer/Merchant/Processor/User Short"]
["X.US.CCBOFSDLONG","Butter Options and Futures Combined Swap Dealers Long"]
["X.US.CCBOFSDDIFF","Butter Options and Futures Combined Swap Dealers Long/Short Diff"]
["X.US.CCBOFSDSHT","Butter Options and Futures Combined Swap Dealers Short"]
["X.US.CCBOFSDSPR","Butter Options and Futures Combined Swap Dealers Spreading"]
["X.US.CCBORLONG","Butter Other Reportables Long"]
["X.US.CCBORDIFF","Butter Other Reportables Long/Short Diff"]
["X.US.CCBORSHT","Butter Other Reportables Short"]
["X.US.CCBORSPR","Butter Other Reportables Spreading"]
["X.US.CCBPMPULNG","Butter Producer/Merchant/Processor/User Long"]
["X.US.CCBPMPUDIF","Butter Producer/Merchant/Processor/User Long/Short Diff"]
["X.US.CCBPMPUSHT","Butter Producer/Merchant/Processor/User Short"]
["X.US.CCBSDLONG","Butter Swap Dealers Long"]
["X.US.CCBSDDIFF","Butter Swap Dealers Long/Short Diff"]
["X.US.CCBSDSHT","Butter Swap Dealers Short"]
["X.US.CCBSDSPR","Butter Swap Dealers Spreading"]
["X.US.BZMMLONG","BZ Fin (Last Day) Managed Money Long"]
["X.US.BZMMDIFF","BZ Fin (Last Day) Managed Money Long/Short Diff"]
["X.US.BZMMSHT","BZ Fin (Last Day) Managed Money Short"]
["X.US.BZMMSPR","BZ Fin (Last Day) Managed Money Spreading"]
["X.US.BZDNRLONG","BZ Fin (Last Day) Nonreportable Long"]
["X.US.BZNRDLONG","BZ Fin (Last Day) Nonreportable Long"]
["X.US.BZDNRDIFF","BZ Fin (Last Day) Nonreportable Long/Short Diff"]
["X.US.BZNRDDIFF","BZ Fin (Last Day) Nonreportable Long/Short Diff"]
["X.US.BZDNRSHT","BZ Fin (Last Day) Nonreportable Short"]
["X.US.BZNRDSHT","BZ Fin (Last Day) Nonreportable Short"]
["X.US.BZOFMMLONG","BZ Fin (Last Day) Options and Futures Combined Managed Money Long"]
["X.US.BZOFMMDIFF","BZ Fin (Last Day) Options and Futures Combined Managed Money Long/Short Diff"]
["X.US.BZOFMMSHT","BZ Fin (Last Day) Options and Futures Combined Managed Money Short"]
["X.US.BZOFMMSPR","BZ Fin (Last Day) Options and Futures Combined Managed Money Spreading"]
["X.US.BZOFNRLONG","BZ Fin (Last Day) Options and Futures Combined Nonreportable Long"]
["X.US.BZOFNRDIFF","BZ Fin (Last Day) Options and Futures Combined Nonreportable Long/Short Diff"]
["X.US.BZOFNRSHT","BZ Fin (Last Day) Options and Futures Combined Nonreportable Short"]
["X.US.BZOFORLONG","BZ Fin (Last Day) Options and Futures Combined Other Reportables Long"]
["X.US.BZOFORDIFF","BZ Fin (Last Day) Options and Futures Combined Other Reportables Long/Short Diff"]
["X.US.BZOFORSHT","BZ Fin (Last Day) Options and Futures Combined Other Reportables Short"]
["X.US.BZOFORSPR","BZ Fin (Last Day) Options and Futures Combined Other Reportables Spreading"]
["X.US.BZOFPMPULONG","BZ Fin (Last Day) Options and Futures Combined Producer/Merchant/Processor/User Long"]
["X.US.BZOFPMPUDIFF","BZ Fin (Last Day) Options and Futures Combined Producer/Merchant/Processor/User Long/Short Diff"]
["X.US.BZOFPMPUSHT","BZ Fin (Last Day) Options and Futures Combined Producer/Merchant/Processor/User Short"]
["X.US.BZOFSDLONG","BZ Fin (Last Day) Options and Futures Combined Swap Dealers Long"]
["X.US.BZOFSDDIFF","BZ Fin (Last Day) Options and Futures Combined Swap Dealers Long/Short Diff"]
["X.US.BZOFSDSHT","BZ Fin (Last Day) Options and Futures Combined Swap Dealers Short"]
["X.US.BZOFSDSPR","BZ Fin (Last Day) Options and Futures Combined Swap Dealers Spreading"]
["X.US.BZORLONG","BZ Fin (Last Day) Other Reportables Long"]
["X.US.BZORDIFF","BZ Fin (Last Day) Other Reportables Long/Short Diff"]
["X.US.BZORSHT","BZ Fin (Last Day) Other Reportables Short"]
["X.US.BZORSPR","BZ Fin (Last Day) Other Reportables Spreading"]
["X.US.BZPMPULONG","BZ Fin (Last Day) Producer/Merchant/Processor/User Long"]
["X.US.BZPMPUDIFF","BZ Fin (Last Day) Producer/Merchant/Processor/User Long/Short Diff"]
["X.US.BZPMPUSHT","BZ Fin (Last Day) Producer/Merchant/Processor/User Short"]
["X.US.BZSDLONG","BZ Fin (Last Day) Swap Dealers Long"]
["X.US.BZSDDIFF","BZ Fin (Last Day) Swap Dealers Long/Short Diff"]
["X.US.BZSDSHT","BZ Fin (Last Day) Swap Dealers Short"]
["X.US.BZSDSPR","BZ Fin (Last Day) Swap Dealers Spreading"]
["X.US.CA6AMILONG","Canadian Dollar Asset Manager/Institutional Long"]
["X.US.CA6AMIDIFF","Canadian Dollar Asset Manager/Institutional Long/Short Diff"]
["X.US.CA6AMISHT","Canadian Dollar Asset Manager/Institutional Short"]
["X.US.CA6AMISPR","Canadian Dollar Asset Manager/Institutional Spreading"]
["X.US.CA6DILONG","Canadian Dollar Dealer Intermediary Long"]
["X.US.CA6DIDIFF","Canadian Dollar Dealer Intermediary Long/Short Diff"]
["X.US.CA6DISHT","Canadian Dollar Dealer Intermediary Short"]
["X.US.CA6DISPR","Canadian Dollar Dealer Intermediary Spreading"]
["X.US.CA6LFLONG","Canadian Dollar Leveraged Funds Long"]
["X.US.CA6LFDIFF","Canadian Dollar Leveraged Funds Long/Short Diff"]
["X.US.CA6LFSHT","Canadian Dollar Leveraged Funds Short"]
["X.US.CA6LFSPR","Canadian Dollar Leveraged Funds Spreading"]
["X.US.CA6DNRLONG","Canadian Dollar Nonreportable Long"]
["X.US.CA6DNRDIFF","Canadian Dollar Nonreportable Long/Short Diff"]
["X.US.CA6DNRSHT","Canadian Dollar Nonreportable Short"]
["X.US.CA6OFAMILONG","Canadian Dollar Options and Futures Combined Asset Manager/Institutional Long"]
["X.US.CA6OFAMIDIFF","Canadian Dollar Options and Futures Combined Asset Manager/Institutional Long/Short Diff"]
["X.US.CA6OFAMISHT","Canadian Dollar Options and Futures Combined Asset Manager/Institutional Short"]
["X.US.CA6OFAMISPR","Canadian Dollar Options and Futures Combined Asset Manager/Institutional Spreading"]
["X.US.CA6OFDILONG","Canadian Dollar Options and Futures Combined Dealer Intermediary Long"]
["X.US.CA6OFDIDIFF","Canadian Dollar Options and Futures Combined Dealer Intermediary Long/Short Diff"]
["X.US.CA6OFDISHT","Canadian Dollar Options and Futures Combined Dealer Intermediary Short"]
["X.US.CA6OFDISPR","Canadian Dollar Options and Futures Combined Dealer Intermediary Spreading"]
["X.US.CA6OFLFLONG","Canadian Dollar Options and Futures Combined Leveraged Funds Long"]
["X.US.CA6OFLFDIFF","Canadian Dollar Options and Futures Combined Leveraged Funds Long/Short Diff"]
["X.US.CA6OFLFSHT","Canadian Dollar Options and Futures Combined Leveraged Funds Short"]
["X.US.CA6OFLFSPR","Canadian Dollar Options and Futures Combined Leveraged Funds Spreading"]
["X.US.CA6OFNRLONG","Canadian Dollar Options and Futures Combined Nonreportable Long"]
["X.US.CA6OFNRDIFF","Canadian Dollar Options and Futures Combined Nonreportable Long/Short Diff"]
["X.US.CA6OFNRSHT","Canadian Dollar Options and Futures Combined Nonreportable Short"]
["X.US.CA6OFORLONG","Canadian Dollar Options and Futures Combined Other Reportables Long"]
["X.US.CA6OFORDIFF","Canadian Dollar Options and Futures Combined Other Reportables Long/Short Diff"]
["X.US.CA6OFORSHT","Canadian Dollar Options and Futures Combined Other Reportables Short"]
["X.US.CA6OFORSPR","Canadian Dollar Options and Futures Combined Other Reportables Spreading"]
["X.US.CA6ORLONG","Canadian Dollar Other Reportables Long"]
["X.US.CA6ORDIFF","Canadian Dollar Other Reportables Long/Short Diff"]
["X.US.CA6ORSHT","Canadian Dollar Other Reportables Short"]
["X.US.CA6ORSPR","Canadian Dollar Other Reportables Spreading"]
["X.US.WRMMLONG","Canola Managed Money Long"]
["X.US.WRMMDIFF","Canola Managed Money Long/Short Diff"]
["X.US.WRMMSHT","Canola Managed Money Short"]
["X.US.WRMMSPR","Canola Managed Money Spreading"]
["X.US.WRDNRLONG","Canola Nonreportable Long"]
["X.US.WRDNRDIFF","Canola Nonreportable Long/Short Diff"]
["X.US.WRDNRSHT","Canola Nonreportable Short"]
["X.US.WROFMMLONG","Canola Options and Futures Combined Managed Money Long"]
["X.US.WROFMMDIFF","Canola Options and Futures Combined Managed Money Long/Short Diff"]
["X.US.WROFMMSHT","Canola Options and Futures Combined Managed Money Short"]
["X.US.WROFMMSPR","Canola Options and Futures Combined Managed Money Spreading"]
["X.US.WROFNRLONG","Canola Options and Futures Combined Nonreportable Long"]
["X.US.WROFNRDIFF","Canola Options and Futures Combined Nonreportable Long/Short Diff"]
["X.US.WROFNRSHT","Canola Options and Futures Combined Nonreportable Short"]
["X.US.WROFORLONG","Canola Options and Futures Combined Other Reportables Long"]
["X.US.WROFORDIFF","Canola Options and Futures Combined Other Reportables Long/Short Diff"]
["X.US.WROFORSHT","Canola Options and Futures Combined Other Reportables Short"]
["X.US.WROFORSPR","Canola Options and Futures Combined Other Reportables Spreading"]
["X.US.WROFPMPULONG","Canola Options and Futures Combined Producer/Merchant/Processor/User Long"]
["X.US.WROFPMPUDIFF","Canola Options and Futures Combined Producer/Merchant/Processor/User Long/Short Diff"]
["X.US.WROFPMPUSHT","Canola Options and Futures Combined Producer/Merchant/Processor/User Short"]
["X.US.WROFSDLONG","Canola Options and Futures Combined Swap Dealers Long"]
["X.US.WROFSDDIFF","Canola Options and Futures Combined Swap Dealers Long/Short Diff"]
["X.US.WROFSDSHT","Canola Options and Futures Combined Swap Dealers Short"]
["X.US.WROFSDSPR","Canola Options and Futures Combined Swap Dealers Spreading"]
["X.US.WRORLONG","Canola Other Reportables Long"]
["X.US.WRORDIFF","Canola Other Reportables Long/Short Diff"]
["X.US.WRORSHT","Canola Other Reportables Short"]
["X.US.WRORSPR","Canola Other Reportables Spreading"]
["X.US.WRPMPULONG","Canola Producer/Merchant/Processor/User Long"]
["X.US.WRPMPUDIFF","Canola Producer/Merchant/Processor/User Long/Short Diff"]
["X.US.WRPMPUSHT","Canola Producer/Merchant/Processor/User Short"]
["X.US.WRSDLONG","Canola Swap Dealers Long"]
["X.US.WRSDDIFF","Canola Swap Dealers Long/Short Diff"]
["X.US.WRSDSHT","Canola Swap Dealers Short"]
["X.US.WRSDSPR","Canola Swap Dealers Spreading"]
["X.US.CSCMMLONG","Cheese Managed Money Long"]
["X.US.CSCMMDIFF","Cheese Managed Money Long/Short Diff"]
["X.US.CSCMMSHT","Cheese Managed Money Short"]
["X.US.CSCMMSPR","Cheese Managed Money Spreading"]
["X.US.CSCDNRLONG","Cheese Nonreportable Long"]
["X.US.CSCDNRDIFF","Cheese Nonreportable Long/Short Diff"]
["X.US.CSCDNRSHT","Cheese Nonreportable Short"]
["X.US.CSCOFMMLONG","Cheese Options and Futures Combined Managed Money Long"]
["X.US.CSCOFMMDIFF","Cheese Options and Futures Combined Managed Money Long/Short Diff"]
["X.US.CSCOFMMSHT","Cheese Options and Futures Combined Managed Money Short"]
["X.US.CSCOFMMSPR","Cheese Options and Futures Combined Managed Money Spreading"]
["X.US.CSCOFNRLONG","Cheese Options and Futures Combined Nonreportable Long"]
["X.US.CSCOFNRDIFF","Cheese Options and Futures Combined Nonreportable Long/Short Diff"]
["X.US.CSCOFNRSHT","Cheese Options and Futures Combined Nonreportable Short"]
["X.US.CSCOFORLONG","Cheese Options and Futures Combined Other Reportables Long"]
["X.US.CSCOFORDIFF","Cheese Options and Futures Combined Other Reportables Long/Short Diff"]
["X.US.CSCOFORSHT","Cheese Options and Futures Combined Other Reportables Short"]
["X.US.CSCOFORSPR","Cheese Options and Futures Combined Other Reportables Spreading"]
["X.US.CSCOFPMPULONG","Cheese Options and Futures Combined Producer/Merchant/Processor/User Long"]
["X.US.CSCOFPMPUDIFF","Cheese Options and Futures Combined Producer/Merchant/Processor/User Long/Short Diff"]
["X.US.CSCOFPMPUSHT","Cheese Options and Futures Combined Producer/Merchant/Processor/User Short"]
["X.US.CSCOFSDLONG","Cheese Options and Futures Combined Swap Dealers Long"]
["X.US.CSCOFSDDIFF","Cheese Options and Futures Combined Swap Dealers Long/Short Diff"]
["X.US.CSCOFSDSHT","Cheese Options and Futures Combined Swap Dealers Short"]
["X.US.CSCOFSDSPR","Cheese Options and Futures Combined Swap Dealers Spreading"]
["X.US.CSCORLONG","Cheese Other Reportables Long"]
["X.US.CSCORDIFF","Cheese Other Reportables Long/Short Diff"]
["X.US.CSCORSHT","Cheese Other Reportables Short"]
["X.US.CSCORSPR","Cheese Other Reportables Spreading"]
["X.US.CSCPMPULNG","Cheese Producer/Merchant/Processor/User Long"]
["X.US.CSCPMPUDIF","Cheese Producer/Merchant/Processor/User Long/Short Diff"]
["X.US.CSCPMPUSHT","Cheese Producer/Merchant/Processor/User Short"]
["X.US.CSCSDLONG","Cheese Swap Dealers Long"]
["X.US.CSCSDDIFF","Cheese Swap Dealers Long/Short Diff"]
["X.US.CSCSDSHT","Cheese Swap Dealers Short"]
["X.US.CSCSDSPR","Cheese Swap Dealers Spreading"]
["X.US.MTFMMLONG","Coal (API2) Managed Money Long"]
["X.US.MTFMMDIFF","Coal (API2) Managed Money Long/Short Diff"]
["X.US.MTFMMSHT","Coal (API2) Managed Money Short"]
["X.US.MTFMMSPR","Coal (API2) Managed Money Spreading"]
["X.US.MTFDNRLONG","Coal (API2) Nonreportable Long"]
["X.US.MTFNRDLONG","Coal (API2) Nonreportable Long"]
["X.US.MTFDNRDIFF","Coal (API2) Nonreportable Long/Short Diff"]
["X.US.MTFNRDDIFF","Coal (API2) Nonreportable Long/Short Diff"]
["X.US.MTFDNRSHT","Coal (API2) Nonreportable Short"]
["X.US.MTFNRDSHT","Coal (API2) Nonreportable Short"]
["X.US.MTFOFMMLONG","Coal (API2) Options and Futures Combined Managed Money Long"]
["X.US.MTFOFMMDIFF","Coal (API2) Options and Futures Combined Managed Money Long/Short Diff"]
["X.US.MTFOFMMSHT","Coal (API2) Options and Futures Combined Managed Money Short"]
["X.US.MTFOFMMSPR","Coal (API2) Options and Futures Combined Managed Money Spreading"]
["X.US.MTFOFNRLONG","Coal (API2) Options and Futures Combined Nonreportable Long"]
["X.US.MTFOFNRDIFF","Coal (API2) Options and Futures Combined Nonreportable Long/Short Diff"]
["X.US.MTFOFNRSHT","Coal (API2) Options and Futures Combined Nonreportable Short"]
["X.US.MTFOFORLONG","Coal (API2) Options and Futures Combined Other Reportables Long"]
["X.US.MTFOFORDIFF","Coal (API2) Options and Futures Combined Other Reportables Long/Short Diff"]
["X.US.MTFOFORSHT","Coal (API2) Options and Futures Combined Other Reportables Short"]
["X.US.MTFOFORSPR","Coal (API2) Options and Futures Combined Other Reportables Spreading"]
["X.US.MTFOFPMPULONG","Coal (API2) Options and Futures Combined Producer/Merchant/Processor/User Long"]
["X.US.MTFOFPMPUDIFF","Coal (API2) Options and Futures Combined Producer/Merchant/Processor/User Long/Short Diff"]
["X.US.MTFOFPMPUSHT","Coal (API2) Options and Futures Combined Producer/Merchant/Processor/User Short"]
["X.US.MTFOFSDLONG","Coal (API2) Options and Futures Combined Swap Dealers Long"]
["X.US.MTFOFSDDIFF","Coal (API2) Options and Futures Combined Swap Dealers Long/Short Diff"]
["X.US.MTFOFSDSHT","Coal (API2) Options and Futures Combined Swap Dealers Short"]
["X.US.MTFOFSDSPR","Coal (API2) Options and Futures Combined Swap Dealers Spreading"]
["X.US.MTFORLONG","Coal (API2) Other Reportables Long"]
["X.US.MTFORDIFF","Coal (API2) Other Reportables Long/Short Diff"]
["X.US.MTFORSHT","Coal (API2) Other Reportables Short"]
["X.US.MTFORSPR","Coal (API2) Other Reportables Spreading"]
["X.US.MTFPMPULNG","Coal (API2) Producer/Merchant/Processor/User Long"]
["X.US.MTFPMPUDIF","Coal (API2) Producer/Merchant/Processor/User Long/Short Diff"]
["X.US.MTFPMPUSHT","Coal (API2) Producer/Merchant/Processor/User Short"]
["X.US.MTFSDLONG","Coal (API2) Swap Dealers Long"]
["X.US.MTFSDDIFF","Coal (API2) Swap Dealers Long/Short Diff"]
["X.US.MTFSDSHT","Coal (API2) Swap Dealers Short"]
["X.US.MTFSDSPR","Coal (API2) Swap Dealers Spreading"]
["X.US.CCEMMLONG","Cocoa Managed Money Long"]
["X.US.CCEMMDIFF","Cocoa Managed Money Long/Short Diff"]
["X.US.CCEMMSHT","Cocoa Managed Money Short"]
["X.US.CCEMMSPR","Cocoa Managed Money Spreading"]
["X.US.CCEDNRLONG","Cocoa Nonreportable Long"]
["X.US.CCEDNRDIFF","Cocoa Nonreportable Long/Short Diff"]
["X.US.CCEDNRSHT","Cocoa Nonreportable Short"]
["X.US.CCEOFMMLONG","Cocoa Options and Futures Combined Managed Money Long"]
["X.US.CCEOFMMDIFF","Cocoa Options and Futures Combined Managed Money Long/Short Diff"]
["X.US.CCEOFMMSHT","Cocoa Options and Futures Combined Managed Money Short"]
["X.US.CCEOFMMSPR","Cocoa Options and Futures Combined Managed Money Spreading"]
["X.US.CCEOFNRLONG","Cocoa Options and Futures Combined Nonreportable Long"]
["X.US.CCEOFNRDIFF","Cocoa Options and Futures Combined Nonreportable Long/Short Diff"]
["X.US.CCEOFNRSHT","Cocoa Options and Futures Combined Nonreportable Short"]
["X.US.CCEOFORLONG","Cocoa Options and Futures Combined Other Reportables Long"]
["X.US.CCEOFORDIFF","Cocoa Options and Futures Combined Other Reportables Long/Short Diff"]
["X.US.CCEOFORSHT","Cocoa Options and Futures Combined Other Reportables Short"]
["X.US.CCEOFORSPR","Cocoa Options and Futures Combined Other Reportables Spreading"]
["X.US.CCEOFPMPULONG","Cocoa Options and Futures Combined Producer/Merchant/Processor/User Long"]
["X.US.CCEOFPMPUDIFF","Cocoa Options and Futures Combined Producer/Merchant/Processor/User Long/Short Diff"]
["X.US.CCEOFPMPUSHT","Cocoa Options and Futures Combined Producer/Merchant/Processor/User Short"]
["X.US.CCEOFSDLONG","Cocoa Options and Futures Combined Swap Dealers Long"]
["X.US.CCEOFSDDIFF","Cocoa Options and Futures Combined Swap Dealers Long/Short Diff"]
["X.US.CCEOFSDSHT","Cocoa Options and Futures Combined Swap Dealers Short"]
["X.US.CCEOFSDSPR","Cocoa Options and Futures Combined Swap Dealers Spreading"]
["X.US.CCEORLONG","Cocoa Other Reportables Long"]
["X.US.CCEORDIFF","Cocoa Other Reportables Long/Short Diff"]
["X.US.CCEORSHT","Cocoa Other Reportables Short"]
["X.US.CCEORSPR","Cocoa Other Reportables Spreading"]
["X.US.CCEPMPULNG","Cocoa Producer/Merchant/Processor/User Long"]
["X.US.CCEPMPUDIF","Cocoa Producer/Merchant/Processor/User Long/Short Diff"]
["X.US.CCEPMPUSHT","Cocoa Producer/Merchant/Processor/User Short"]
["X.US.CCESDLONG","Cocoa Swap Dealers Long"]
["X.US.CCESDDIFF","Cocoa Swap Dealers Long/Short Diff"]
["X.US.CCESDSHT","Cocoa Swap Dealers Short"]
["X.US.CCESDSPR","Cocoa Swap Dealers Spreading"]
["X.US.KCEMMLONG","Coffee Managed Money Long"]
["X.US.KCEMMDIFF","Coffee Managed Money Long/Short Diff"]
["X.US.KCEMMSHT","Coffee Managed Money Short"]
["X.US.KCEMMSPR","Coffee Managed Money Spreading"]
["X.US.KCEDNRLONG","Coffee Nonreportable Long"]
["X.US.KCEDNRDIFF","Coffee Nonreportable Long/Short Diff"]
["X.US.KCEDNRSHT","Coffee Nonreportable Short"]
["X.US.KCEOFMMLONG","Coffee Options and Futures Combined Managed Money Long"]
["X.US.KCEOFMMDIFF","Coffee Options and Futures Combined Managed Money Long/Short Diff"]
["X.US.KCEOFMMSHT","Coffee Options and Futures Combined Managed Money Short"]
["X.US.KCEOFMMSPR","Coffee Options and Futures Combined Managed Money Spreading"]
["X.US.KCEOFNRLONG","Coffee Options and Futures Combined Nonreportable Long"]
["X.US.KCEOFNRDIFF","Coffee Options and Futures Combined Nonreportable Long/Short Diff"]
["X.US.KCEOFNRSHT","Coffee Options and Futures Combined Nonreportable Short"]
["X.US.KCEOFORLONG","Coffee Options and Futures Combined Other Reportables Long"]
["X.US.KCEOFORDIFF","Coffee Options and Futures Combined Other Reportables Long/Short Diff"]
["X.US.KCEOFORSHT","Coffee Options and Futures Combined Other Reportables Short"]
["X.US.KCEOFORSPR","Coffee Options and Futures Combined Other Reportables Spreading"]
["X.US.KCEOFPMPULONG","Coffee Options and Futures Combined Producer/Merchant/Processor/User Long"]
["X.US.KCEOFPMPUDIFF","Coffee Options and Futures Combined Producer/Merchant/Processor/User Long/Short Diff"]
["X.US.KCEOFPMPUSHT","Coffee Options and Futures Combined Producer/Merchant/Processor/User Short"]
["X.US.KCEOFSDLONG","Coffee Options and Futures Combined Swap Dealers Long"]
["X.US.KCEOFSDDIFF","Coffee Options and Futures Combined Swap Dealers Long/Short Diff"]
["X.US.KCEOFSDSHT","Coffee Options and Futures Combined Swap Dealers Short"]
["X.US.KCEOFSDSPR","Coffee Options and Futures Combined Swap Dealers Spreading"]
["X.US.KCEORLONG","Coffee Other Reportables Long"]
["X.US.KCEORDIFF","Coffee Other Reportables Long/Short Diff"]
["X.US.KCEORSHT","Coffee Other Reportables Short"]
["X.US.KCEORSPR","Coffee Other Reportables Spreading"]
["X.US.KCEPMPULNG","Coffee Producer/Merchant/Processor/User Long"]
["X.US.KCEPMPUDIF","Coffee Producer/Merchant/Processor/User Long/Short Diff"]
["X.US.KCEPMPUSHT","Coffee Producer/Merchant/Processor/User Short"]
["X.US.KCESDLONG","Coffee Swap Dealers Long"]
["X.US.KCESDDIFF","Coffee Swap Dealers Long/Short Diff"]
["X.US.KCESDSHT","Coffee Swap Dealers Short"]
["X.US.KCESDSPR","Coffee Swap Dealers Spreading"]
["X.US.A8KMMLONG","Conway Propane (OPIS) Managed Money Long"]
["X.US.A8KMMDIFF","Conway Propane (OPIS) Managed Money Long/Short Diff"]
["X.US.A8KMMSHT","Conway Propane (OPIS) Managed Money Short"]
["X.US.A8KMMSPR","Conway Propane (OPIS) Managed Money Spreading"]
["X.US.A8KDNRLONG","Conway Propane (OPIS) Nonreportable Long"]
["X.US.A8KNRDLONG","Conway Propane (OPIS) Nonreportable Long"]
["X.US.A8KDNRDIFF","Conway Propane (OPIS) Nonreportable Long/Short Diff"]
["X.US.A8KNRDDIFF","Conway Propane (OPIS) Nonreportable Long/Short Diff"]
["X.US.A8KDNRSHT","Conway Propane (OPIS) Nonreportable Short"]
["X.US.A8KNRDSHT","Conway Propane (OPIS) Nonreportable Short"]
["X.US.A8KOFMMLONG","Conway Propane (OPIS) Options and Futures Combined Managed Money Long"]
["X.US.A8KOFMMDIFF","Conway Propane (OPIS) Options and Futures Combined Managed Money Long/Short Diff"]
["X.US.A8KOFMMSHT","Conway Propane (OPIS) Options and Futures Combined Managed Money Short"]
["X.US.A8KOFMMSPR","Conway Propane (OPIS) Options and Futures Combined Managed Money Spreading"]
["X.US.A8KOFNRLONG","Conway Propane (OPIS) Options and Futures Combined Nonreportable Long"]
["X.US.A8KOFNRDIFF","Conway Propane (OPIS) Options and Futures Combined Nonreportable Long/Short Diff"]
["X.US.A8KOFNRSHT","Conway Propane (OPIS) Options and Futures Combined Nonreportable Short"]
["X.US.A8KOFORLONG","Conway Propane (OPIS) Options and Futures Combined Other Reportables Long"]
["X.US.A8KOFORDIFF","Conway Propane (OPIS) Options and Futures Combined Other Reportables Long/Short Diff"]
["X.US.A8KOFORSHT","Conway Propane (OPIS) Options and Futures Combined Other Reportables Short"]
["X.US.A8KOFORSPR","Conway Propane (OPIS) Options and Futures Combined Other Reportables Spreading"]
["X.US.A8KOFPMPULONG","Conway Propane (OPIS) Options and Futures Combined Producer/Merchant/Processor/User Long"]
["X.US.A8KOFPMPUDIFF","Conway Propane (OPIS) Options and Futures Combined Producer/Merchant/Processor/User Long/Short Diff"]
["X.US.A8KOFPMPUSHT","Conway Propane (OPIS) Options and Futures Combined Producer/Merchant/Processor/User Short"]
["X.US.A8KOFSDLONG","Conway Propane (OPIS) Options and Futures Combined Swap Dealers Long"]
["X.US.A8KOFSDDIFF","Conway Propane (OPIS) Options and Futures Combined Swap Dealers Long/Short Diff"]
["X.US.A8KOFSDSHT","Conway Propane (OPIS) Options and Futures Combined Swap Dealers Short"]
["X.US.A8KOFSDSPR","Conway Propane (OPIS) Options and Futures Combined Swap Dealers Spreading"]
["X.US.A8KORLONG","Conway Propane (OPIS) Other Reportables Long"]
["X.US.A8KORDIFF","Conway Propane (OPIS) Other Reportables Long/Short Diff"]
["X.US.A8KORSHT","Conway Propane (OPIS) Other Reportables Short"]
["X.US.A8KORSPR","Conway Propane (OPIS) Other Reportables Spreading"]
["X.US.A8KPMPULNG","Conway Propane (OPIS) Producer/Merchant/Processor/User Long"]
["X.US.A8KPMPUDIF","Conway Propane (OPIS) Producer/Merchant/Processor/User Long/Short Diff"]
["X.US.A8KPMPUSHT","Conway Propane (OPIS) Producer/Merchant/Processor/User Short"]
["X.US.A8KSDLONG","Conway Propane (OPIS) Swap Dealers Long"]
["X.US.A8KSDDIFF","Conway Propane (OPIS) Swap Dealers Long/Short Diff"]
["X.US.A8KSDSHT","Conway Propane (OPIS) Swap Dealers Short"]
["X.US.A8KSDSPR","Conway Propane (OPIS) Swap Dealers Spreading"]
["X.US.CPEMMLONG","Copper Managed Money Long"]
["X.US.CPEMMDIFF","Copper Managed Money Long/Short Diff"]
["X.US.CPEMMSHT","Copper Managed Money Short"]
["X.US.CPEMMSPR","Copper Managed Money Spreading"]
["X.US.CPEDNRLONG","Copper Nonreportable Long"]
["X.US.CPEDNRDIFF","Copper Nonreportable Long/Short Diff"]
["X.US.CPEDNRSHT","Copper Nonreportable Short"]
["X.US.CPEOFMMLONG","Copper Options and Futures Combined Managed Money Long"]
["X.US.CPEOFMMDIFF","Copper Options and Futures Combined Managed Money Long/Short Diff"]
["X.US.CPEOFMMSHT","Copper Options and Futures Combined Managed Money Short"]
["X.US.CPEOFMMSPR","Copper Options and Futures Combined Managed Money Spreading"]
["X.US.CPEOFNRLONG","Copper Options and Futures Combined Nonreportable Long"]
["X.US.CPEOFNRDIFF","Copper Options and Futures Combined Nonreportable Long/Short Diff"]
["X.US.CPEOFNRSHT","Copper Options and Futures Combined Nonreportable Short"]
["X.US.CPEOFORLONG","Copper Options and Futures Combined Other Reportables Long"]
["X.US.CPEOFORDIFF","Copper Options and Futures Combined Other Reportables Long/Short Diff"]
["X.US.CPEOFORSHT","Copper Options and Futures Combined Other Reportables Short"]
["X.US.CPEOFORSPR","Copper Options and Futures Combined Other Reportables Spreading"]
["X.US.CPEOFPMPULONG","Copper Options and Futures Combined Producer/Merchant/Processor/User Long"]
["X.US.CPEOFPMPUDIFF","Copper Options and Futures Combined Producer/Merchant/Processor/User Long/Short Diff"]
["X.US.CPEOFPMPUSHT","Copper Options and Futures Combined Producer/Merchant/Processor/User Short"]
["X.US.CPEOFSDLONG","Copper Options and Futures Combined Swap Dealers Long"]
["X.US.CPEOFSDDIFF","Copper Options and Futures Combined Swap Dealers Long/Short Diff"]
["X.US.CPEOFSDSHT","Copper Options and Futures Combined Swap Dealers Short"]
["X.US.CPEOFSDSPR","Copper Options and Futures Combined Swap Dealers Spreading"]
["X.US.CPEORLONG","Copper Other Reportables Long"]
["X.US.CPEORDIFF","Copper Other Reportables Long/Short Diff"]
["X.US.CPEORSHT","Copper Other Reportables Short"]
["X.US.CPEORSPR","Copper Other Reportables Spreading"]
["X.US.CPEPMPULNG","Copper Producer/Merchant/Processor/User Long"]
["X.US.CPEPMPUDIF","Copper Producer/Merchant/Processor/User Long/Short Diff"]
["X.US.CPEPMPUSHT","Copper Producer/Merchant/Processor/User Short"]
["X.US.CPESDLONG","Copper Swap Dealers Long"]
["X.US.CPESDDIFF","Copper Swap Dealers Long/Short Diff"]
["X.US.CPESDSHT","Copper Swap Dealers Short"]
["X.US.CPESDSPR","Copper Swap Dealers Spreading"]
["X.US.ZCEMMLONG","Corn Managed Money Long"]
["X.US.ZCEMMDIFF","Corn Managed Money Long/Short Diff"]
["X.US.ZCEMMSHT","Corn Managed Money Short"]
["X.US.ZCEMMSPR","Corn Managed Money Spreading"]
["X.US.ZCEDNRLONG","Corn Nonreportable Long"]
["X.US.ZCEDNRDIFF","Corn Nonreportable Long/Short Diff"]
["X.US.ZCEDNRSHT","Corn Nonreportable Short"]
["X.US.ZCEOFMMLONG","Corn Options and Futures Combined Managed Money Long"]
["X.US.ZCEOFMMDIFF","Corn Options and Futures Combined Managed Money Long/Short Diff"]
["X.US.ZCEOFMMSHT","Corn Options and Futures Combined Managed Money Short"]
["X.US.ZCEOFMMSPR","Corn Options and Futures Combined Managed Money Spreading"]
["X.US.ZCEOFNRLONG","Corn Options and Futures Combined Nonreportable Long"]
["X.US.ZCEOFNRDIFF","Corn Options and Futures Combined Nonreportable Long/Short Diff"]
["X.US.ZCEOFNRSHT","Corn Options and Futures Combined Nonreportable Short"]
["X.US.ZCEOFORLONG","Corn Options and Futures Combined Other Reportables Long"]
["X.US.ZCEOFORDIFF","Corn Options and Futures Combined Other Reportables Long/Short Diff"]
["X.US.ZCEOFORSHT","Corn Options and Futures Combined Other Reportables Short"]
["X.US.ZCEOFORSPR","Corn Options and Futures Combined Other Reportables Spreading"]
["X.US.ZCEOFPMPULONG","Corn Options and Futures Combined Producer/Merchant/Processor/User Long"]
["X.US.ZCEOFPMPUDIFF","Corn Options and Futures Combined Producer/Merchant/Processor/User Long/Short Diff"]
["X.US.ZCEOFPMPUSHT","Corn Options and Futures Combined Producer/Merchant/Processor/User Short"]
["X.US.ZCEOFSDLONG","Corn Options and Futures Combined Swap Dealers Long"]
["X.US.ZCEOFSDDIFF","Corn Options and Futures Combined Swap Dealers Long/Short Diff"]
["X.US.ZCEOFSDSHT","Corn Options and Futures Combined Swap Dealers Short"]
["X.US.ZCEOFSDSPR","Corn Options and Futures Combined Swap Dealers Spreading"]
["X.US.ZCEORLONG","Corn Other Reportables Long"]
["X.US.ZCEORDIFF","Corn Other Reportables Long/Short Diff"]
["X.US.ZCEORSHT","Corn Other Reportables Short"]
["X.US.ZCEORSPR","Corn Other Reportables Spreading"]
["X.US.ZCEPMPULNG","Corn Producer/Merchant/Processor/User Long"]
["X.US.ZCEPMPUDIF","Corn Producer/Merchant/Processor/User Long/Short Diff"]
["X.US.ZCEPMPUSHT","Corn Producer/Merchant/Processor/User Short"]
["X.US.ZCESDLONG","Corn Swap Dealers Long"]
["X.US.ZCESDDIFF","Corn Swap Dealers Long/Short Diff"]
["X.US.ZCESDSHT","Corn Swap Dealers Short"]
["X.US.ZCESDSPR","Corn Swap Dealers Spreading"]
["X.US.CTEMMLONG","Cotton Managed Money Long"]
["X.US.CTEMMDIFF","Cotton Managed Money Long/Short Diff"]
["X.US.CTEMMSHT","Cotton Managed Money Short"]
["X.US.CTEMMSPR","Cotton Managed Money Spreading"]
["X.US.CTEDNRLONG","Cotton Nonreportable Long"]
["X.US.CTEDNRDIFF","Cotton Nonreportable Long/Short Diff"]
["X.US.CTEDNRSHT","Cotton Nonreportable Short"]
["X.US.CTEOFMMLONG","Cotton Options and Futures Combined Managed Money Long"]
["X.US.CTEOFMMDIFF","Cotton Options and Futures Combined Managed Money Long/Short Diff"]
["X.US.CTEOFMMSHT","Cotton Options and Futures Combined Managed Money Short"]
["X.US.CTEOFMMSPR","Cotton Options and Futures Combined Managed Money Spreading"]
["X.US.CTEOFNRLONG","Cotton Options and Futures Combined Nonreportable Long"]
["X.US.CTEOFNRDIFF","Cotton Options and Futures Combined Nonreportable Long/Short Diff"]
["X.US.CTEOFNRSHT","Cotton Options and Futures Combined Nonreportable Short"]
["X.US.CTEOFORLONG","Cotton Options and Futures Combined Other Reportables Long"]
["X.US.CTEOFORDIFF","Cotton Options and Futures Combined Other Reportables Long/Short Diff"]
["X.US.CTEOFORSHT","Cotton Options and Futures Combined Other Reportables Short"]
["X.US.CTEOFORSPR","Cotton Options and Futures Combined Other Reportables Spreading"]
["X.US.CTEOFPMPULONG","Cotton Options and Futures Combined Producer/Merchant/Processor/User Long"]
["X.US.CTEOFPMPUDIFF","Cotton Options and Futures Combined Producer/Merchant/Processor/User Long/Short Diff"]
["X.US.CTEOFPMPUSHT","Cotton Options and Futures Combined Producer/Merchant/Processor/User Short"]
["X.US.CTEOFSDLONG","Cotton Options and Futures Combined Swap Dealers Long"]
["X.US.CTEOFSDDIFF","Cotton Options and Futures Combined Swap Dealers Long/Short Diff"]
["X.US.CTEOFSDSHT","Cotton Options and Futures Combined Swap Dealers Short"]
["X.US.CTEOFSDSPR","Cotton Options and Futures Combined Swap Dealers Spreading"]
["X.US.CTEORLONG","Cotton Other Reportables Long"]
["X.US.CTEORDIFF","Cotton Other Reportables Long/Short Diff"]
["X.US.CTEORSHT","Cotton Other Reportables Short"]
["X.US.CTEORSPR","Cotton Other Reportables Spreading"]
["X.US.CTEPMPULNG","Cotton Producer/Merchant/Processor/User Long"]
["X.US.CTEPMPUDIF","Cotton Producer/Merchant/Processor/User Long/Short Diff"]
["X.US.CTEPMPUSHT","Cotton Producer/Merchant/Processor/User Short"]
["X.US.CTESDLONG","Cotton Swap Dealers Long"]
["X.US.CTESDDIFF","Cotton Swap Dealers Long/Short Diff"]
["X.US.CTESDSHT","Cotton Swap Dealers Short"]
["X.US.CTESDSPR","Cotton Swap Dealers Spreading"]
["X.US.CLEMMLONG","Crude Light Managed Money Long"]
["X.US.CLEMMDIFF","Crude Light Managed Money Long/Short Diff"]
["X.US.CLEMMSHT","Crude Light Managed Money Short"]
["X.US.CLEMMSPR","Crude Light Managed Money Spreading"]
["X.US.CLEDNRLONG","Crude Light Nonreportable Long"]
["X.US.CLEDNRDIFF","Crude Light Nonreportable Long/Short Diff"]
["X.US.CLEDNRSHT","Crude Light Nonreportable Short"]
["X.US.CLEOFMMLONG","Crude Light Options and Futures Combined Managed Money Long"]
["X.US.CLEOFMMDIFF","Crude Light Options and Futures Combined Managed Money Long/Short Diff"]
["X.US.CLEOFMMSHT","Crude Light Options and Futures Combined Managed Money Short"]
["X.US.CLEOFMMSPR","Crude Light Options and Futures Combined Managed Money Spreading"]
["X.US.CLEOFNRLONG","Crude Light Options and Futures Combined Nonreportable Long"]
["X.US.CLEOFNRDIFF","Crude Light Options and Futures Combined Nonreportable Long/Short Diff"]
["X.US.CLEOFNRSHT","Crude Light Options and Futures Combined Nonreportable Short"]
["X.US.CLEOFORLONG","Crude Light Options and Futures Combined Other Reportables Long"]
["X.US.CLEOFORDIFF","Crude Light Options and Futures Combined Other Reportables Long/Short Diff"]
["X.US.CLEOFORSHT","Crude Light Options and Futures Combined Other Reportables Short"]
["X.US.CLEOFORSPR","Crude Light Options and Futures Combined Other Reportables Spreading"]
["X.US.CLEOFPMPULONG","Crude Light Options and Futures Combined Producer/Merchant/Processor/User Long"]
["X.US.CLEOFPMPUDIFF","Crude Light Options and Futures Combined Producer/Merchant/Processor/User Long/Short Diff"]
["X.US.CLEOFPMPUSHT","Crude Light Options and Futures Combined Producer/Merchant/Processor/User Short"]
["X.US.CLEOFSDLONG","Crude Light Options and Futures Combined Swap Dealers Long"]
["X.US.CLEOFSDDIFF","Crude Light Options and Futures Combined Swap Dealers Long/Short Diff"]
["X.US.CLEOFSDSHT","Crude Light Options and Futures Combined Swap Dealers Short"]
["X.US.CLEOFSDSPR","Crude Light Options and Futures Combined Swap Dealers Spreading"]
["X.US.CLEORLONG","Crude Light Other Reportables Long"]
["X.US.CLEORDIFF","Crude Light Other Reportables Long/Short Diff"]
["X.US.CLEORSHT","Crude Light Other Reportables Short"]
["X.US.CLEORSPR","Crude Light Other Reportables Spreading"]
["X.US.CLEPMPULNG","Crude Light Producer/Merchant/Processor/User Long"]
["X.US.CLEPMPUDIF","Crude Light Producer/Merchant/Processor/User Long/Short Diff"]
["X.US.CLEPMPUSHT","Crude Light Producer/Merchant/Processor/User Short"]
["X.US.CLESDLONG","Crude Light Swap Dealers Long"]
["X.US.CLESDDIFF","Crude Light Swap Dealers Long/Short Diff"]
["X.US.CLESDSHT","Crude Light Swap Dealers Short"]
["X.US.CLESDSPR","Crude Light Swap Dealers Spreading"]
["X.US.DXEAMILONG","Dollar Index Asset Manager/Institutional Long"]
["X.US.DXEAMIDIFF","Dollar Index Asset Manager/Institutional Long/Short Diff"]
["X.US.DXEAMISHT","Dollar Index Asset Manager/Institutional Short"]
["X.US.DXEAMISPR","Dollar Index Asset Manager/Institutional Spreading"]
["X.US.DXEDILONG","Dollar Index Dealer Intermediary Long"]
["X.US.DXEDIDIFF","Dollar Index Dealer Intermediary Long/Short Diff"]
["X.US.DXEDISHT","Dollar Index Dealer Intermediary Short"]
["X.US.DXEDISPR","Dollar Index Dealer Intermediary Spreading"]
["X.US.DXELFLONG","Dollar Index Leveraged Funds Long"]
["X.US.DXELFDIFF","Dollar Index Leveraged Funds Long/Short Diff"]
["X.US.DXELFSHT","Dollar Index Leveraged Funds Short"]
["X.US.DXELFSPR","Dollar Index Leveraged Funds Spreading"]
["X.US.DXEDNRLONG","Dollar Index Nonreportable Long"]
["X.US.DXEDNRDIFF","Dollar Index Nonreportable Long/Short Diff"]
["X.US.DXEDNRSHT","Dollar Index Nonreportable Short"]
["X.US.DXEOFAMILONG","Dollar Index Options and Futures Combined Asset Manager/Institutional Long"]
["X.US.DXEOFAMIDIFF","Dollar Index Options and Futures Combined Asset Manager/Institutional Long/Short Diff"]
["X.US.DXEOFAMISHT","Dollar Index Options and Futures Combined Asset Manager/Institutional Short"]
["X.US.DXEOFAMISPR","Dollar Index Options and Futures Combined Asset Manager/Institutional Spreading"]
["X.US.DXEOFDILONG","Dollar Index Options and Futures Combined Dealer Intermediary Long"]
["X.US.DXEOFDIDIFF","Dollar Index Options and Futures Combined Dealer Intermediary Long/Short Diff"]
["X.US.DXEOFDISHT","Dollar Index Options and Futures Combined Dealer Intermediary Short"]
["X.US.DXEOFDISPR","Dollar Index Options and Futures Combined Dealer Intermediary Spreading"]
["X.US.DXEOFLFLONG","Dollar Index Options and Futures Combined Leveraged Funds Long"]
["X.US.DXEOFLFDIFF","Dollar Index Options and Futures Combined Leveraged Funds Long/Short Diff"]
["X.US.DXEOFLFSHT","Dollar Index Options and Futures Combined Leveraged Funds Short"]
["X.US.DXEOFLFSPR","Dollar Index Options and Futures Combined Leveraged Funds Spreading"]
["X.US.DXEOFNRLONG","Dollar Index Options and Futures Combined Nonreportable Long"]
["X.US.DXEOFNRDIFF","Dollar Index Options and Futures Combined Nonreportable Long/Short Diff"]
["X.US.DXEOFNRSHT","Dollar Index Options and Futures Combined Nonreportable Short"]
["X.US.DXEOFORLONG","Dollar Index Options and Futures Combined Other Reportables Long"]
["X.US.DXEOFORDIFF","Dollar Index Options and Futures Combined Other Reportables Long/Short Diff"]
["X.US.DXEOFORSHT","Dollar Index Options and Futures Combined Other Reportables Short"]
["X.US.DXEOFORSPR","Dollar Index Options and Futures Combined Other Reportables Spreading"]
["X.US.DXEORLONG","Dollar Index Other Reportables Long"]
["X.US.DXEORDIFF","Dollar Index Other Reportables Long/Short Diff"]
["X.US.DXEORSHT","Dollar Index Other Reportables Short"]
["X.US.DXEORSPR","Dollar Index Other Reportables Spreading"]
["X.US.GDYMMLONG","Dry Whey Managed Money Long"]
["X.US.GDYMMDIFF","Dry Whey Managed Money Long/Short Diff"]
["X.US.GDYMMSHT","Dry Whey Managed Money Short"]
["X.US.GDYMMSPR","Dry Whey Managed Money Spreading"]
["X.US.GDYDNRLONG","Dry Whey Nonreportable Long"]
["X.US.GDYDNRDIFF","Dry Whey Nonreportable Long/Short Diff"]
["X.US.GDYDNRSHT","Dry Whey Nonreportable Short"]
["X.US.GDYOFMMLONG","Dry Whey Options and Futures Combined Managed Money Long"]
["X.US.GDYOFMMDIFF","Dry Whey Options and Futures Combined Managed Money Long/Short Diff"]
["X.US.GDYOFMMSHT","Dry Whey Options and Futures Combined Managed Money Short"]
["X.US.GDYOFMMSPR","Dry Whey Options and Futures Combined Managed Money Spreading"]
["X.US.GDYOFNRLONG","Dry Whey Options and Futures Combined Nonreportable Long"]
["X.US.GDYOFNRDIFF","Dry Whey Options and Futures Combined Nonreportable Long/Short Diff"]
["X.US.GDYOFNRSHT","Dry Whey Options and Futures Combined Nonreportable Short"]
["X.US.GDYOFORLONG","Dry Whey Options and Futures Combined Other Reportables Long"]
["X.US.GDYOFORDIFF","Dry Whey Options and Futures Combined Other Reportables Long/Short Diff"]
["X.US.GDYOFORSHT","Dry Whey Options and Futures Combined Other Reportables Short"]
["X.US.GDYOFORSPR","Dry Whey Options and Futures Combined Other Reportables Spreading"]
["X.US.GDYOFPMPULONG","Dry Whey Options and Futures Combined Producer/Merchant/Processor/User Long"]
["X.US.GDYOFPMPUDIFF","Dry Whey Options and Futures Combined Producer/Merchant/Processor/User Long/Short Diff"]
["X.US.GDYOFPMPUSHT","Dry Whey Options and Futures Combined Producer/Merchant/Processor/User Short"]
["X.US.GDYOFSDLONG","Dry Whey Options and Futures Combined Swap Dealers Long"]
["X.US.GDYOFSDDIFF","Dry Whey Options and Futures Combined Swap Dealers Long/Short Diff"]
["X.US.GDYOFSDSHT","Dry Whey Options and Futures Combined Swap Dealers Short"]
["X.US.GDYOFSDSPR","Dry Whey Options and Futures Combined Swap Dealers Spreading"]
["X.US.GDYORLONG","Dry Whey Other Reportables Long"]
["X.US.GDYORDIFF","Dry Whey Other Reportables Long/Short Diff"]
["X.US.GDYORSHT","Dry Whey Other Reportables Short"]
["X.US.GDYORSPR","Dry Whey Other Reportables Spreading"]
["X.US.GDYPMPULNG","Dry Whey Producer/Merchant/Processor/User Long"]
["X.US.GDYPMPUDIF","Dry Whey Producer/Merchant/Processor/User Long/Short Diff"]
["X.US.GDYPMPUSHT","Dry Whey Producer/Merchant/Processor/User Short"]
["X.US.GDYSDLONG","Dry Whey Swap Dealers Long"]
["X.US.GDYSDDIFF","Dry Whey Swap Dealers Long/Short Diff"]
["X.US.GDYSDSHT","Dry Whey Swap Dealers Short"]
["X.US.GDYSDSPR","Dry Whey Swap Dealers Spreading"]
["X.US.YMAMILONG","E-mini Dow Asset Manager/Institutional Long"]
["X.US.YMAMIDIFF","E-mini Dow Asset Manager/Institutional Long/Short Diff"]
["X.US.YMAMISHT","E-mini Dow Asset Manager/Institutional Short"]
["X.US.YMAMISPR","E-mini Dow Asset Manager/Institutional Spreading"]
["X.US.YMDILONG","E-mini Dow Dealer Intermediary Long"]
["X.US.YMDIDIFF","E-mini Dow Dealer Intermediary Long/Short Diff"]
["X.US.YMDISHT","E-mini Dow Dealer Intermediary Short"]
["X.US.YMDISPR","E-mini Dow Dealer Intermediary Spreading"]
["X.US.YMLFLONG","E-mini Dow Leveraged Funds Long"]
["X.US.YMLFDIFF","E-mini Dow Leveraged Funds Long/Short Diff"]
["X.US.YMLFSHT","E-mini Dow Leveraged Funds Short"]
["X.US.YMLFSPR","E-mini Dow Leveraged Funds Spreading"]
["X.US.YMDNRLONG","E-mini Dow Nonreportable Long"]
["X.US.YMDNRDIFF","E-mini Dow Nonreportable Long/Short Diff"]
["X.US.YMDNRSHT","E-mini Dow Nonreportable Short"]
["X.US.YMOFAMILONG","E-mini Dow Options and Futures Combined Asset Manager/Institutional Long"]
["X.US.YMOFAMIDIFF","E-mini Dow Options and Futures Combined Asset Manager/Institutional Long/Short Diff"]
["X.US.YMOFAMISHT","E-mini Dow Options and Futures Combined Asset Manager/Institutional Short"]
["X.US.YMOFAMISPR","E-mini Dow Options and Futures Combined Asset Manager/Institutional Spreading"]
["X.US.YMOFDILONG","E-mini Dow Options and Futures Combined Dealer Intermediary Long"]
["X.US.YMOFDIDIFF","E-mini Dow Options and Futures Combined Dealer Intermediary Long/Short Diff"]
["X.US.YMOFDISHT","E-mini Dow Options and Futures Combined Dealer Intermediary Short"]
["X.US.YMOFDISPR","E-mini Dow Options and Futures Combined Dealer Intermediary Spreading"]
["X.US.YMOFLFLONG","E-mini Dow Options and Futures Combined Leveraged Funds Long"]
["X.US.YMOFLFDIFF","E-mini Dow Options and Futures Combined Leveraged Funds Long/Short Diff"]
["X.US.YMOFLFSHT","E-mini Dow Options and Futures Combined Leveraged Funds Short"]
["X.US.YMOFLFSPR","E-mini Dow Options and Futures Combined Leveraged Funds Spreading"]
["X.US.YMOFNRLONG","E-mini Dow Options and Futures Combined Nonreportable Long"]
["X.US.YMOFNRDIFF","E-mini Dow Options and Futures Combined Nonreportable Long/Short Diff"]
["X.US.YMOFNRSHT","E-mini Dow Options and Futures Combined Nonreportable Short"]
["X.US.YMOFORLONG","E-mini Dow Options and Futures Combined Other Reportables Long"]
["X.US.YMOFORDIFF","E-mini Dow Options and Futures Combined Other Reportables Long/Short Diff"]
["X.US.YMOFORSHT","E-mini Dow Options and Futures Combined Other Reportables Short"]
["X.US.YMOFORSPR","E-mini Dow Options and Futures Combined Other Reportables Spreading"]
["X.US.YMORLONG","E-mini Dow Other Reportables Long"]
["X.US.YMORDIFF","E-mini Dow Other Reportables Long/Short Diff"]
["X.US.YMORSHT","E-mini Dow Other Reportables Short"]
["X.US.YMORSPR","E-mini Dow Other Reportables Spreading"]
["X.US.EMDAMILONG","E-mini Midcap 400 Asset Manager/Institutional Long"]
["X.US.EMDAMIDIFF","E-mini Midcap 400 Asset Manager/Institutional Long/Short Diff"]
["X.US.EMDAMISHT","E-mini Midcap 400 Asset Manager/Institutional Short"]
["X.US.EMDAMISPR","E-mini Midcap 400 Asset Manager/Institutional Spreading"]
["X.US.EMDDILONG","E-mini Midcap 400 Dealer Intermediary Long"]
["X.US.EMDDIDIFF","E-mini Midcap 400 Dealer Intermediary Long/Short Diff"]
["X.US.EMDDISHT","E-mini Midcap 400 Dealer Intermediary Short"]
["X.US.EMDDISPR","E-mini Midcap 400 Dealer Intermediary Spreading"]
["X.US.EMDLFLONG","E-mini Midcap 400 Leveraged Funds Long"]
["X.US.EMDLFDIFF","E-mini Midcap 400 Leveraged Funds Long/Short Diff"]
["X.US.EMDLFSHT","E-mini Midcap 400 Leveraged Funds Short"]
["X.US.EMDLFSPR","E-mini Midcap 400 Leveraged Funds Spreading"]
["X.US.EMDDNRLONG","E-mini Midcap 400 Nonreportable Long"]
["X.US.EMDDNRDIFF","E-mini Midcap 400 Nonreportable Long/Short Diff"]
["X.US.EMDDNRSHT","E-mini Midcap 400 Nonreportable Short"]
["X.US.EMDOFAMILONG","E-mini Midcap 400 Options and Futures Combined Asset Manager/Institutional Long"]
["X.US.EMDOFAMIDIFF","E-mini Midcap 400 Options and Futures Combined Asset Manager/Institutional Long/Short Diff"]
["X.US.EMDOFAMISHT","E-mini Midcap 400 Options and Futures Combined Asset Manager/Institutional Short"]
["X.US.EMDOFAMISPR","E-mini Midcap 400 Options and Futures Combined Asset Manager/Institutional Spreading"]
["X.US.EMDOFDILONG","E-mini Midcap 400 Options and Futures Combined Dealer Intermediary Long"]
["X.US.EMDOFDIDIFF","E-mini Midcap 400 Options and Futures Combined Dealer Intermediary Long/Short Diff"]
["X.US.EMDOFDISHT","E-mini Midcap 400 Options and Futures Combined Dealer Intermediary Short"]
["X.US.EMDOFDISPR","E-mini Midcap 400 Options and Futures Combined Dealer Intermediary Spreading"]
["X.US.EMDOFLFLONG","E-mini Midcap 400 Options and Futures Combined Leveraged Funds Long"]
["X.US.EMDOFLFDIFF","E-mini Midcap 400 Options and Futures Combined Leveraged Funds Long/Short Diff"]
["X.US.EMDOFLFSHT","E-mini Midcap 400 Options and Futures Combined Leveraged Funds Short"]
["X.US.EMDOFLFSPR","E-mini Midcap 400 Options and Futures Combined Leveraged Funds Spreading"]
["X.US.EMDOFNRLONG","E-mini Midcap 400 Options and Futures Combined Nonreportable Long"]
["X.US.EMDOFNRDIFF","E-mini Midcap 400 Options and Futures Combined Nonreportable Long/Short Diff"]
["X.US.EMDOFNRSHT","E-mini Midcap 400 Options and Futures Combined Nonreportable Short"]
["X.US.EMDOFORLONG","E-mini Midcap 400 Options and Futures Combined Other Reportables Long"]
["X.US.EMDOFORDIFF","E-mini Midcap 400 Options and Futures Combined Other Reportables Long/Short Diff"]
["X.US.EMDOFORSHT","E-mini Midcap 400 Options and Futures Combined Other Reportables Short"]
["X.US.EMDOFORSPR","E-mini Midcap 400 Options and Futures Combined Other Reportables Spreading"]
["X.US.EMDORLONG","E-mini Midcap 400 Other Reportables Long"]
["X.US.EMDORDIFF","E-mini Midcap 400 Other Reportables Long/Short Diff"]
["X.US.EMDORSHT","E-mini Midcap 400 Other Reportables Short"]
["X.US.EMDORSPR","E-mini Midcap 400 Other Reportables Spreading"]
["X.US.ENQAMILONG","E-mini Nasdaq100 Asset Manager/Institutional Long"]
["X.US.ENQAMIDIFF","E-mini Nasdaq100 Asset Manager/Institutional Long/Short Diff"]
["X.US.ENQAMISHT","E-mini Nasdaq100 Asset Manager/Institutional Short"]
["X.US.ENQAMISPR","E-mini Nasdaq100 Asset Manager/Institutional Spreading"]
["X.US.ENQDILONG","E-mini Nasdaq100 Dealer Intermediary Long"]
["X.US.ENQDIDIFF","E-mini Nasdaq100 Dealer Intermediary Long/Short Diff"]
["X.US.ENQDISHT","E-mini Nasdaq100 Dealer Intermediary Short"]
["X.US.ENQDISPR","E-mini Nasdaq100 Dealer Intermediary Spreading"]
["X.US.ENQLFLONG","E-mini Nasdaq100 Leveraged Funds Long"]
["X.US.ENQLFDIFF","E-mini Nasdaq100 Leveraged Funds Long/Short Diff"]
["X.US.ENQLFSHT","E-mini Nasdaq100 Leveraged Funds Short"]
["X.US.ENQLFSPR","E-mini Nasdaq100 Leveraged Funds Spreading"]
["X.US.ENQDNRLONG","E-mini Nasdaq100 Nonreportable Long"]
["X.US.ENQDNRDIFF","E-mini Nasdaq100 Nonreportable Long/Short Diff"]
["X.US.ENQDNRSHT","E-mini Nasdaq100 Nonreportable Short"]
["X.US.ENQOFAMILONG","E-mini Nasdaq100 Options and Futures Combined Asset Manager/Institutional Long"]
["X.US.ENQOFAMIDIFF","E-mini Nasdaq100 Options and Futures Combined Asset Manager/Institutional Long/Short Diff"]
["X.US.ENQOFAMISHT","E-mini Nasdaq100 Options and Futures Combined Asset Manager/Institutional Short"]
["X.US.ENQOFAMISPR","E-mini Nasdaq100 Options and Futures Combined Asset Manager/Institutional Spreading"]
["X.US.ENQOFDILONG","E-mini Nasdaq100 Options and Futures Combined Dealer Intermediary Long"]
["X.US.ENQOFDIDIFF","E-mini Nasdaq100 Options and Futures Combined Dealer Intermediary Long/Short Diff"]
["X.US.ENQOFDISHT","E-mini Nasdaq100 Options and Futures Combined Dealer Intermediary Short"]
["X.US.ENQOFDISPR","E-mini Nasdaq100 Options and Futures Combined Dealer Intermediary Spreading"]
["X.US.ENQOFLFLONG","E-mini Nasdaq100 Options and Futures Combined Leveraged Funds Long"]
["X.US.ENQOFLFDIFF","E-mini Nasdaq100 Options and Futures Combined Leveraged Funds Long/Short Diff"]
["X.US.ENQOFLFSHT","E-mini Nasdaq100 Options and Futures Combined Leveraged Funds Short"]
["X.US.ENQOFLFSPR","E-mini Nasdaq100 Options and Futures Combined Leveraged Funds Spreading"]
["X.US.ENQOFNRLONG","E-mini Nasdaq100 Options and Futures Combined Nonreportable Long"]
["X.US.ENQOFNRDIFF","E-mini Nasdaq100 Options and Futures Combined Nonreportable Long/Short Diff"]
["X.US.ENQOFNRSHT","E-mini Nasdaq100 Options and Futures Combined Nonreportable Short"]
["X.US.ENQOFORLONG","E-mini Nasdaq100 Options and Futures Combined Other Reportables Long"]
["X.US.ENQOFORDIFF","E-mini Nasdaq100 Options and Futures Combined Other Reportables Long/Short Diff"]
["X.US.ENQOFORSHT","E-mini Nasdaq100 Options and Futures Combined Other Reportables Short"]
["X.US.ENQOFORSPR","E-mini Nasdaq100 Options and Futures Combined Other Reportables Spreading"]
["X.US.ENQORLONG","E-mini Nasdaq100 Other Reportables Long"]
["X.US.ENQORDIFF","E-mini Nasdaq100 Other Reportables Long/Short Diff"]
["X.US.ENQORSHT","E-mini Nasdaq100 Other Reportables Short"]
["X.US.ENQORSPR","E-mini Nasdaq100 Other Reportables Spreading"]
["X.US.RTYAMILONG","E-mini Russel 2000 Asset Manager/Institutional Long"]
["X.US.RTYAMIDIFF","E-mini Russel 2000 Asset Manager/Institutional Long/Short Diff"]
["X.US.RTYAMISHT","E-mini Russel 2000 Asset Manager/Institutional Short"]
["X.US.RTYAMISPR","E-mini Russel 2000 Asset Manager/Institutional Spreading"]
["X.US.RTYDILONG","E-mini Russel 2000 Dealer Intermediary Long"]
["X.US.RTYDIDIFF","E-mini Russel 2000 Dealer Intermediary Long/Short Diff"]
["X.US.RTYDISHT","E-mini Russel 2000 Dealer Intermediary Short"]
["X.US.RTYDISPR","E-mini Russel 2000 Dealer Intermediary Spreading"]
["X.US.RTYLFLONG","E-mini Russel 2000 Leveraged Funds Long"]
["X.US.RTYLFDIFF","E-mini Russel 2000 Leveraged Funds Long/Short Diff"]
["X.US.RTYLFSHT","E-mini Russel 2000 Leveraged Funds Short"]
["X.US.RTYLFSPR","E-mini Russel 2000 Leveraged Funds Spreading"]
["X.US.RTYDNRLONG","E-mini Russel 2000 Nonreportable Long"]
["X.US.RTYDNRDIFF","E-mini Russel 2000 Nonreportable Long/Short Diff"]
["X.US.RTYDNRSHT","E-mini Russel 2000 Nonreportable Short"]
["X.US.RTYOFAMILONG","E-mini Russel 2000 Options and Futures Combined Asset Manager/Institutional Long"]
["X.US.RTYOFAMIDIFF","E-mini Russel 2000 Options and Futures Combined Asset Manager/Institutional Long/Short Diff"]
["X.US.RTYOFAMISHT","E-mini Russel 2000 Options and Futures Combined Asset Manager/Institutional Short"]
["X.US.RTYOFAMISPR","E-mini Russel 2000 Options and Futures Combined Asset Manager/Institutional Spreading"]
["X.US.RTYOFDILONG","E-mini Russel 2000 Options and Futures Combined Dealer Intermediary Long"]
["X.US.RTYOFDIDIFF","E-mini Russel 2000 Options and Futures Combined Dealer Intermediary Long/Short Diff"]
["X.US.RTYOFDISHT","E-mini Russel 2000 Options and Futures Combined Dealer Intermediary Short"]
["X.US.RTYOFDISPR","E-mini Russel 2000 Options and Futures Combined Dealer Intermediary Spreading"]
["X.US.RTYOFLFLONG","E-mini Russel 2000 Options and Futures Combined Leveraged Funds Long"]
["X.US.RTYOFLFDIFF","E-mini Russel 2000 Options and Futures Combined Leveraged Funds Long/Short Diff"]
["X.US.RTYOFLFSHT","E-mini Russel 2000 Options and Futures Combined Leveraged Funds Short"]
["X.US.RTYOFLFSPR","E-mini Russel 2000 Options and Futures Combined Leveraged Funds Spreading"]
["X.US.RTYOFNRLONG","E-mini Russel 2000 Options and Futures Combined Nonreportable Long"]
["X.US.RTYOFNRDIFF","E-mini Russel 2000 Options and Futures Combined Nonreportable Long/Short Diff"]
["X.US.RTYOFNRSHT","E-mini Russel 2000 Options and Futures Combined Nonreportable Short"]
["X.US.RTYOFORLONG","E-mini Russel 2000 Options and Futures Combined Other Reportables Long"]
["X.US.RTYOFORDIFF","E-mini Russel 2000 Options and Futures Combined Other Reportables Long/Short Diff"]
["X.US.RTYOFORSHT","E-mini Russel 2000 Options and Futures Combined Other Reportables Short"]
["X.US.RTYOFORSPR","E-mini Russel 2000 Options and Futures Combined Other Reportables Spreading"]
["X.US.RTYORLONG","E-mini Russel 2000 Other Reportables Long"]
["X.US.RTYORDIFF","E-mini Russel 2000 Other Reportables Long/Short Diff"]
["X.US.RTYORSHT","E-mini Russel 2000 Other Reportables Short"]
["X.US.RTYORSPR","E-mini Russel 2000 Other Reportables Spreading"]
["X.US.EPAMILONG","E-mini SP500 Asset Manager/Institutional Long"]
["X.US.EPAMIDIFF","E-mini SP500 Asset Manager/Institutional Long/Short Diff"]
["X.US.EPAMISHT","E-mini SP500 Asset Manager/Institutional Short"]
["X.US.EPAMISPR","E-mini SP500 Asset Manager/Institutional Spreading"]
["X.US.EPDILONG","E-mini SP500 Dealer Intermediary Long"]
["X.US.EPDIDIFF","E-mini SP500 Dealer Intermediary Long/Short Diff"]
["X.US.EPDISHT","E-mini SP500 Dealer Intermediary Short"]
["X.US.EPDISPR","E-mini SP500 Dealer Intermediary Spreading"]
["X.US.EPLFLONG","E-mini SP500 Leveraged Funds Long"]
["X.US.EPLFDIFF","E-mini SP500 Leveraged Funds Long/Short Diff"]
["X.US.EPLFSHT","E-mini SP500 Leveraged Funds Short"]
["X.US.EPLFSPR","E-mini SP500 Leveraged Funds Spreading"]
["X.US.EPDNRLONG","E-mini SP500 Nonreportable Long"]
["X.US.EPDNRDIFF","E-mini SP500 Nonreportable Long/Short Diff"]
["X.US.EPDNRSHT","E-mini SP500 Nonreportable Short"]
["X.US.EPOFAMILONG","E-mini SP500 Options and Futures Combined Asset Manager/Institutional Long"]
["X.US.EPOFAMIDIFF","E-mini SP500 Options and Futures Combined Asset Manager/Institutional Long/Short Diff"]
["X.US.EPOFAMISHT","E-mini SP500 Options and Futures Combined Asset Manager/Institutional Short"]
["X.US.EPOFAMISPR","E-mini SP500 Options and Futures Combined Asset Manager/Institutional Spreading"]
["X.US.EPOFDILONG","E-mini SP500 Options and Futures Combined Dealer Intermediary Long"]
["X.US.EPOFDIDIFF","E-mini SP500 Options and Futures Combined Dealer Intermediary Long/Short Diff"]
["X.US.EPOFDISHT","E-mini SP500 Options and Futures Combined Dealer Intermediary Short"]
["X.US.EPOFDISPR","E-mini SP500 Options and Futures Combined Dealer Intermediary Spreading"]
["X.US.EPOFLFLONG","E-mini SP500 Options and Futures Combined Leveraged Funds Long"]
["X.US.EPOFLFDIFF","E-mini SP500 Options and Futures Combined Leveraged Funds Long/Short Diff"]
["X.US.EPOFLFSHT","E-mini SP500 Options and Futures Combined Leveraged Funds Short"]
["X.US.EPOFLFSPR","E-mini SP500 Options and Futures Combined Leveraged Funds Spreading"]
["X.US.EPOFNRLONG","E-mini SP500 Options and Futures Combined Nonreportable Long"]
["X.US.EPOFNRDIFF","E-mini SP500 Options and Futures Combined Nonreportable Long/Short Diff"]
["X.US.EPOFNRSHT","E-mini SP500 Options and Futures Combined Nonreportable Short"]
["X.US.EPOFORLONG","E-mini SP500 Options and Futures Combined Other Reportables Long"]
["X.US.EPOFORDIFF","E-mini SP500 Options and Futures Combined Other Reportables Long/Short Diff"]
["X.US.EPOFORSHT","E-mini SP500 Options and Futures Combined Other Reportables Short"]
["X.US.EPOFORSPR","E-mini SP500 Options and Futures Combined Other Reportables Spreading"]
["X.US.EPORLONG","E-mini SP500 Other Reportables Long"]
["X.US.EPORDIFF","E-mini SP500 Other Reportables Long/Short Diff"]
["X.US.EPORSHT","E-mini SP500 Other Reportables Short"]
["X.US.EPORSPR","E-mini SP500 Other Reportables Spreading"]
["X.US.XAEAMILONG","E-mini SP Energy Asset Manager/Institutional Long"]
["X.US.XAEAMIDIFF","E-mini SP Energy Asset Manager/Institutional Long/Short Diff"]
["X.US.XAEAMISHT","E-mini SP Energy Asset Manager/Institutional Short"]
["X.US.XAEAMISPR","E-mini SP Energy Asset Manager/Institutional Spreading"]
["X.US.XAEDILONG","E-mini SP Energy Dealer Intermediary Long"]
["X.US.XAEDIDIFF","E-mini SP Energy Dealer Intermediary Long/Short Diff"]
["X.US.XAEDISHT","E-mini SP Energy Dealer Intermediary Short"]
["X.US.XAEDISPR","E-mini SP Energy Dealer Intermediary Spreading"]
["X.US.XAELFLONG","E-mini SP Energy Leveraged Funds Long"]
["X.US.XAELFDIFF","E-mini SP Energy Leveraged Funds Long/Short Diff"]
["X.US.XAELFSHT","E-mini SP Energy Leveraged Funds Short"]
["X.US.XAELFSPR","E-mini SP Energy Leveraged Funds Spreading"]
["X.US.XAEDNRLONG","E-mini SP Energy Nonreportable Long"]
["X.US.XAEDNRDIFF","E-mini SP Energy Nonreportable Long/Short Diff"]
["X.US.XAEDNRSHT","E-mini SP Energy Nonreportable Short"]
["X.US.XAEOFAMILONG","E-mini SP Energy Options and Futures Combined Asset Manager/Institutional Long"]
["X.US.XAEOFAMIDIFF","E-mini SP Energy Options and Futures Combined Asset Manager/Institutional Long/Short Diff"]
["X.US.XAEOFAMISHT","E-mini SP Energy Options and Futures Combined Asset Manager/Institutional Short"]
["X.US.XAEOFAMISPR","E-mini SP Energy Options and Futures Combined Asset Manager/Institutional Spreading"]
["X.US.XAEOFDILONG","E-mini SP Energy Options and Futures Combined Dealer Intermediary Long"]
["X.US.XAEOFDIDIFF","E-mini SP Energy Options and Futures Combined Dealer Intermediary Long/Short Diff"]
["X.US.XAEOFDISHT","E-mini SP Energy Options and Futures Combined Dealer Intermediary Short"]
["X.US.XAEOFDISPR","E-mini SP Energy Options and Futures Combined Dealer Intermediary Spreading"]
["X.US.XAEOFLFLONG","E-mini SP Energy Options and Futures Combined Leveraged Funds Long"]
["X.US.XAEOFLFDIFF","E-mini SP Energy Options and Futures Combined Leveraged Funds Long/Short Diff"]
["X.US.XAEOFLFSHT","E-mini SP Energy Options and Futures Combined Leveraged Funds Short"]
["X.US.XAEOFLFSPR","E-mini SP Energy Options and Futures Combined Leveraged Funds Spreading"]
["X.US.XAEOFNRLONG","E-mini SP Energy Options and Futures Combined Nonreportable Long"]
["X.US.XAEOFNRDIFF","E-mini SP Energy Options and Futures Combined Nonreportable Long/Short Diff"]
["X.US.XAEOFNRSHT","E-mini SP Energy Options and Futures Combined Nonreportable Short"]
["X.US.XAEOFORLONG","E-mini SP Energy Options and Futures Combined Other Reportables Long"]
["X.US.XAEOFORDIFF","E-mini SP Energy Options and Futures Combined Other Reportables Long/Short Diff"]
["X.US.XAEOFORSHT","E-mini SP Energy Options and Futures Combined Other Reportables Short"]
["X.US.XAEOFORSPR","E-mini SP Energy Options and Futures Combined Other Reportables Spreading"]
["X.US.XAEORLONG","E-mini SP Energy Other Reportables Long"]
["X.US.XAEORDIFF","E-mini SP Energy Other Reportables Long/Short Diff"]
["X.US.XAEORSHT","E-mini SP Energy Other Reportables Short"]
["X.US.XAEORSPR","E-mini SP Energy Other Reportables Spreading"]
["X.US.XAFAMILONG","E-mini SP Financial Asset Manager/Institutional Long"]
["X.US.XAFAMIDIFF","E-mini SP Financial Asset Manager/Institutional Long/Short Diff"]
["X.US.XAFAMISHT","E-mini SP Financial Asset Manager/Institutional Short"]
["X.US.XAFAMISPR","E-mini SP Financial Asset Manager/Institutional Spreading"]
["X.US.XAFDILONG","E-mini SP Financial Dealer Intermediary Long"]
["X.US.XAFDIDIFF","E-mini SP Financial Dealer Intermediary Long/Short Diff"]
["X.US.XAFDISHT","E-mini SP Financial Dealer Intermediary Short"]
["X.US.XAFDISPR","E-mini SP Financial Dealer Intermediary Spreading"]
["X.US.XAFLFLONG","E-mini SP Financial Leveraged Funds Long"]
["X.US.XAFLFDIFF","E-mini SP Financial Leveraged Funds Long/Short Diff"]
["X.US.XAFLFSHT","E-mini SP Financial Leveraged Funds Short"]
["X.US.XAFLFSPR","E-mini SP Financial Leveraged Funds Spreading"]
["X.US.XAFDNRLONG","E-mini SP Financial Nonreportable Long"]
["X.US.XAFDNRDIFF","E-mini SP Financial Nonreportable Long/Short Diff"]
["X.US.XAFDNRSHT","E-mini SP Financial Nonreportable Short"]
["X.US.XAFOFAMILONG","E-mini SP Financial Options and Futures Combined Asset Manager/Institutional Long"]
["X.US.XAFOFAMIDIFF","E-mini SP Financial Options and Futures Combined Asset Manager/Institutional Long/Short Diff"]
["X.US.XAFOFAMISHT","E-mini SP Financial Options and Futures Combined Asset Manager/Institutional Short"]
["X.US.XAFOFAMISPR","E-mini SP Financial Options and Futures Combined Asset Manager/Institutional Spreading"]
["X.US.XAFOFDILONG","E-mini SP Financial Options and Futures Combined Dealer Intermediary Long"]
["X.US.XAFOFDIDIFF","E-mini SP Financial Options and Futures Combined Dealer Intermediary Long/Short Diff"]
["X.US.XAFOFDISHT","E-mini SP Financial Options and Futures Combined Dealer Intermediary Short"]
["X.US.XAFOFDISPR","E-mini SP Financial Options and Futures Combined Dealer Intermediary Spreading"]
["X.US.XAFOFLFLONG","E-mini SP Financial Options and Futures Combined Leveraged Funds Long"]
["X.US.XAFOFLFDIFF","E-mini SP Financial Options and Futures Combined Leveraged Funds Long/Short Diff"]
["X.US.XAFOFLFSHT","E-mini SP Financial Options and Futures Combined Leveraged Funds Short"]
["X.US.XAFOFLFSPR","E-mini SP Financial Options and Futures Combined Leveraged Funds Spreading"]
["X.US.XAFOFNRLONG","E-mini SP Financial Options and Futures Combined Nonreportable Long"]
["X.US.XAFOFNRDIFF","E-mini SP Financial Options and Futures Combined Nonreportable Long/Short Diff"]
["X.US.XAFOFNRSHT","E-mini SP Financial Options and Futures Combined Nonreportable Short"]
["X.US.XAFOFORLONG","E-mini SP Financial Options and Futures Combined Other Reportables Long"]
["X.US.XAFOFORDIFF","E-mini SP Financial Options and Futures Combined Other Reportables Long/Short Diff"]
["X.US.XAFOFORSHT","E-mini SP Financial Options and Futures Combined Other Reportables Short"]
["X.US.XAFOFORSPR","E-mini SP Financial Options and Futures Combined Other Reportables Spreading"]
["X.US.XAFORLONG","E-mini SP Financial Other Reportables Long"]
["X.US.XAFORDIFF","E-mini SP Financial Other Reportables Long/Short Diff"]
["X.US.XAFORSHT","E-mini SP Financial Other Reportables Short"]
["X.US.XAFORSPR","E-mini SP Financial Other Reportables Spreading"]
["X.US.XAKAMILONG","E-mini SP Tech Asset Manager/Institutional Long"]
["X.US.XAKAMIDIFF","E-mini SP Tech Asset Manager/Institutional Long/Short Diff"]
["X.US.XAKAMISHT","E-mini SP Tech Asset Manager/Institutional Short"]
["X.US.XAKAMISPR","E-mini SP Tech Asset Manager/Institutional Spreading"]
["X.US.XAKDILONG","E-mini SP Tech Dealer Intermediary Long"]
["X.US.XAKDIDIFF","E-mini SP Tech Dealer Intermediary Long/Short Diff"]
["X.US.XAKDISHT","E-mini SP Tech Dealer Intermediary Short"]
["X.US.XAKDISPR","E-mini SP Tech Dealer Intermediary Spreading"]
["X.US.XAKLFLONG","E-mini SP Tech Leveraged Funds Long"]
["X.US.XAKLFDIFF","E-mini SP Tech Leveraged Funds Long/Short Diff"]
["X.US.XAKLFSHT","E-mini SP Tech Leveraged Funds Short"]
["X.US.XAKLFSPR","E-mini SP Tech Leveraged Funds Spreading"]
["X.US.XAKDNRLONG","E-mini SP Tech Nonreportable Long"]
["X.US.XAKDNRDIFF","E-mini SP Tech Nonreportable Long/Short Diff"]
["X.US.XAKDNRSHT","E-mini SP Tech Nonreportable Short"]
["X.US.XAKOFAMILONG","E-mini SP Tech Options and Futures Combined Asset Manager/Institutional Long"]
["X.US.XAKOFAMIDIFF","E-mini SP Tech Options and Futures Combined Asset Manager/Institutional Long/Short Diff"]
["X.US.XAKOFAMISHT","E-mini SP Tech Options and Futures Combined Asset Manager/Institutional Short"]
["X.US.XAKOFAMISPR","E-mini SP Tech Options and Futures Combined Asset Manager/Institutional Spreading"]
["X.US.XAKOFDILONG","E-mini SP Tech Options and Futures Combined Dealer Intermediary Long"]
["X.US.XAKOFDIDIFF","E-mini SP Tech Options and Futures Combined Dealer Intermediary Long/Short Diff"]
["X.US.XAKOFDISHT","E-mini SP Tech Options and Futures Combined Dealer Intermediary Short"]
["X.US.XAKOFDISPR","E-mini SP Tech Options and Futures Combined Dealer Intermediary Spreading"]
["X.US.XAKOFLFLONG","E-mini SP Tech Options and Futures Combined Leveraged Funds Long"]
["X.US.XAKOFLFDIFF","E-mini SP Tech Options and Futures Combined Leveraged Funds Long/Short Diff"]
["X.US.XAKOFLFSHT","E-mini SP Tech Options and Futures Combined Leveraged Funds Short"]
["X.US.XAKOFLFSPR","E-mini SP Tech Options and Futures Combined Leveraged Funds Spreading"]
["X.US.XAKOFNRLONG","E-mini SP Tech Options and Futures Combined Nonreportable Long"]
["X.US.XAKOFNRDIFF","E-mini SP Tech Options and Futures Combined Nonreportable Long/Short Diff"]
["X.US.XAKOFNRSHT","E-mini SP Tech Options and Futures Combined Nonreportable Short"]
["X.US.XAKOFORLONG","E-mini SP Tech Options and Futures Combined Other Reportables Long"]
["X.US.XAKOFORDIFF","E-mini SP Tech Options and Futures Combined Other Reportables Long/Short Diff"]
["X.US.XAKOFORSHT","E-mini SP Tech Options and Futures Combined Other Reportables Short"]
["X.US.XAKOFORSPR","E-mini SP Tech Options and Futures Combined Other Reportables Spreading"]
["X.US.XAKORLONG","E-mini SP Tech Other Reportables Long"]
["X.US.XAKORDIFF","E-mini SP Tech Other Reportables Long/Short Diff"]
["X.US.XAKORSHT","E-mini SP Tech Other Reportables Short"]
["X.US.XAKORSPR","E-mini SP Tech Other Reportables Spreading"]
["X.US.XAUAMILONG","E-mini SP Utility Asset Manager/Institutional Long"]
["X.US.XAUAMIDIFF","E-mini SP Utility Asset Manager/Institutional Long/Short Diff"]
["X.US.XAUAMISHT","E-mini SP Utility Asset Manager/Institutional Short"]
["X.US.XAUAMISPR","E-mini SP Utility Asset Manager/Institutional Spreading"]
["X.US.XAUDILONG","E-mini SP Utility Dealer Intermediary Long"]
["X.US.XAUDIDIFF","E-mini SP Utility Dealer Intermediary Long/Short Diff"]
["X.US.XAUDISHT","E-mini SP Utility Dealer Intermediary Short"]
["X.US.XAUDISPR","E-mini SP Utility Dealer Intermediary Spreading"]
["X.US.XAULFLONG","E-mini SP Utility Leveraged Funds Long"]
["X.US.XAULFDIFF","E-mini SP Utility Leveraged Funds Long/Short Diff"]
["X.US.XAULFSHT","E-mini SP Utility Leveraged Funds Short"]
["X.US.XAULFSPR","E-mini SP Utility Leveraged Funds Spreading"]
["X.US.XAUDNRLONG","E-mini SP Utility Nonreportable Long"]
["X.US.XAUDNRDIFF","E-mini SP Utility Nonreportable Long/Short Diff"]
["X.US.XAUDNRSHT","E-mini SP Utility Nonreportable Short"]
["X.US.XAUOFAMILONG","E-mini SP Utility Options and Futures Combined Asset Manager/Institutional Long"]
["X.US.XAUOFAMIDIFF","E-mini SP Utility Options and Futures Combined Asset Manager/Institutional Long/Short Diff"]
["X.US.XAUOFAMISHT","E-mini SP Utility Options and Futures Combined Asset Manager/Institutional Short"]
["X.US.XAUOFAMISPR","E-mini SP Utility Options and Futures Combined Asset Manager/Institutional Spreading"]
["X.US.XAUOFDILONG","E-mini SP Utility Options and Futures Combined Dealer Intermediary Long"]
["X.US.XAUOFDIDIFF","E-mini SP Utility Options and Futures Combined Dealer Intermediary Long/Short Diff"]
["X.US.XAUOFDISHT","E-mini SP Utility Options and Futures Combined Dealer Intermediary Short"]
["X.US.XAUOFDISPR","E-mini SP Utility Options and Futures Combined Dealer Intermediary Spreading"]
["X.US.XAUOFLFLONG","E-mini SP Utility Options and Futures Combined Leveraged Funds Long"]
["X.US.XAUOFLFDIFF","E-mini SP Utility Options and Futures Combined Leveraged Funds Long/Short Diff"]
["X.US.XAUOFLFSHT","E-mini SP Utility Options and Futures Combined Leveraged Funds Short"]
["X.US.XAUOFLFSPR","E-mini SP Utility Options and Futures Combined Leveraged Funds Spreading"]
["X.US.XAUOFNRLONG","E-mini SP Utility Options and Futures Combined Nonreportable Long"]
["X.US.XAUOFNRDIFF","E-mini SP Utility Options and Futures Combined Nonreportable Long/Short Diff"]
["X.US.XAUOFNRSHT","E-mini SP Utility Options and Futures Combined Nonreportable Short"]
["X.US.XAUOFORLONG","E-mini SP Utility Options and Futures Combined Other Reportables Long"]
["X.US.XAUOFORDIFF","E-mini SP Utility Options and Futures Combined Other Reportables Long/Short Diff"]
["X.US.XAUOFORSHT","E-mini SP Utility Options and Futures Combined Other Reportables Short"]
["X.US.XAUOFORSPR","E-mini SP Utility Options and Futures Combined Other Reportables Spreading"]
["X.US.XAUORLONG","E-mini SP Utility Other Reportables Long"]
["X.US.XAUORDIFF","E-mini SP Utility Other Reportables Long/Short Diff"]
["X.US.XAUORSHT","E-mini SP Utility Other Reportables Short"]
["X.US.XAUORSPR","E-mini SP Utility Other Reportables Spreading"]
["X.US.EU6AMILONG","Euro FX Asset Manager/Institutional Long"]
["X.US.EU6AMIDIFF","Euro FX Asset Manager/Institutional Long/Short Diff"]
["X.US.EU6AMISHT","Euro FX Asset Manager/Institutional Short"]
["X.US.EU6AMISPR","Euro FX Asset Manager/Institutional Spreading"]
["X.US.EU6DILONG","Euro FX Dealer Intermediary Long"]
["X.US.EU6DIDIFF","Euro FX Dealer Intermediary Long/Short Diff"]
["X.US.EU6DISHT","Euro FX Dealer Intermediary Short"]
["X.US.EU6DISPR","Euro FX Dealer Intermediary Spreading"]
["X.US.EU6LFLONG","Euro FX Leveraged Funds Long"]
["X.US.EU6LFDIFF","Euro FX Leveraged Funds Long/Short Diff"]
["X.US.EU6LFSHT","Euro FX Leveraged Funds Short"]
["X.US.EU6LFSPR","Euro FX Leveraged Funds Spreading"]
["X.US.EU6DNRLONG","Euro FX Nonreportable Long"]
["X.US.EU6DNRDIFF","Euro FX Nonreportable Long/Short Diff"]
["X.US.EU6DNRSHT","Euro FX Nonreportable Short"]
["X.US.EU6OFAMILONG","Euro FX Options and Futures Combined Asset Manager/Institutional Long"]
["X.US.EU6OFAMIDIFF","Euro FX Options and Futures Combined Asset Manager/Institutional Long/Short Diff"]
["X.US.EU6OFAMISHT","Euro FX Options and Futures Combined Asset Manager/Institutional Short"]
["X.US.EU6OFAMISPR","Euro FX Options and Futures Combined Asset Manager/Institutional Spreading"]
["X.US.EU6OFDILONG","Euro FX Options and Futures Combined Dealer Intermediary Long"]
["X.US.EU6OFDIDIFF","Euro FX Options and Futures Combined Dealer Intermediary Long/Short Diff"]
["X.US.EU6OFDISHT","Euro FX Options and Futures Combined Dealer Intermediary Short"]
["X.US.EU6OFDISPR","Euro FX Options and Futures Combined Dealer Intermediary Spreading"]
["X.US.EU6OFLFLONG","Euro FX Options and Futures Combined Leveraged Funds Long"]
["X.US.EU6OFLFDIFF","Euro FX Options and Futures Combined Leveraged Funds Long/Short Diff"]
["X.US.EU6OFLFSHT","Euro FX Options and Futures Combined Leveraged Funds Short"]
["X.US.EU6OFLFSPR","Euro FX Options and Futures Combined Leveraged Funds Spreading"]
["X.US.EU6OFNRLONG","Euro FX Options and Futures Combined Nonreportable Long"]
["X.US.EU6OFNRDIFF","Euro FX Options and Futures Combined Nonreportable Long/Short Diff"]
["X.US.EU6OFNRSHT","Euro FX Options and Futures Combined Nonreportable Short"]
["X.US.EU6OFORLONG","Euro FX Options and Futures Combined Other Reportables Long"]
["X.US.EU6OFORDIFF","Euro FX Options and Futures Combined Other Reportables Long/Short Diff"]
["X.US.EU6OFORSHT","Euro FX Options and Futures Combined Other Reportables Short"]
["X.US.EU6OFORSPR","Euro FX Options and Futures Combined Other Reportables Spreading"]
["X.US.EU6ORLONG","Euro FX Other Reportables Long"]
["X.US.EU6ORDIFF","Euro FX Other Reportables Long/Short Diff"]
["X.US.EU6ORSHT","Euro FX Other Reportables Short"]
["X.US.EU6ORSPR","Euro FX Other Reportables Spreading"]
["X.US.T7KMMLONG","Euro-bob Oxy Managed Money Long"]
["X.US.T7KMMDIFF","Euro-bob Oxy Managed Money Long/Short Diff"]
["X.US.T7KMMSHT","Euro-bob Oxy Managed Money Short"]
["X.US.T7KMMSPR","Euro-bob Oxy Managed Money Spreading"]
["X.US.T7KDNRLONG","Euro-bob Oxy Nonreportable Long"]
["X.US.T7KNRDLONG","Euro-bob Oxy Nonreportable Long"]
["X.US.T7KDNRDIFF","Euro-bob Oxy Nonreportable Long/Short Diff"]
["X.US.T7KNRDDIFF","Euro-bob Oxy Nonreportable Long/Short Diff"]
["X.US.T7KDNRSHT","Euro-bob Oxy Nonreportable Short"]
["X.US.T7KNRDSHT","Euro-bob Oxy Nonreportable Short"]
["X.US.T7KOFMMLONG","Euro-bob Oxy Options and Futures Combined Managed Money Long"]
["X.US.T7KOFMMDIFF","Euro-bob Oxy Options and Futures Combined Managed Money Long/Short Diff"]
["X.US.T7KOFMMSHT","Euro-bob Oxy Options and Futures Combined Managed Money Short"]
["X.US.T7KOFMMSPR","Euro-bob Oxy Options and Futures Combined Managed Money Spreading"]
["X.US.T7KOFNRLONG","Euro-bob Oxy Options and Futures Combined Nonreportable Long"]
["X.US.T7KOFNRDIFF","Euro-bob Oxy Options and Futures Combined Nonreportable Long/Short Diff"]
["X.US.T7KOFNRSHT","Euro-bob Oxy Options and Futures Combined Nonreportable Short"]
["X.US.T7KOFORLONG","Euro-bob Oxy Options and Futures Combined Other Reportables Long"]
["X.US.T7KOFORDIFF","Euro-bob Oxy Options and Futures Combined Other Reportables Long/Short Diff"]
["X.US.T7KOFORSHT","Euro-bob Oxy Options and Futures Combined Other Reportables Short"]
["X.US.T7KOFORSPR","Euro-bob Oxy Options and Futures Combined Other Reportables Spreading"]
["X.US.T7KOFPMPULONG","Euro-bob Oxy Options and Futures Combined Producer/Merchant/Processor/User Long"]
["X.US.T7KOFPMPUDIFF","Euro-bob Oxy Options and Futures Combined Producer/Merchant/Processor/User Long/Short Diff"]
["X.US.T7KOFPMPUSHT","Euro-bob Oxy Options and Futures Combined Producer/Merchant/Processor/User Short"]
["X.US.T7KOFSDLONG","Euro-bob Oxy Options and Futures Combined Swap Dealers Long"]
["X.US.T7KOFSDDIFF","Euro-bob Oxy Options and Futures Combined Swap Dealers Long/Short Diff"]
["X.US.T7KOFSDSHT","Euro-bob Oxy Options and Futures Combined Swap Dealers Short"]
["X.US.T7KOFSDSPR","Euro-bob Oxy Options and Futures Combined Swap Dealers Spreading"]
["X.US.T7KORLONG","Euro-bob Oxy Other Reportables Long"]
["X.US.T7KORDIFF","Euro-bob Oxy Other Reportables Long/Short Diff"]
["X.US.T7KORSHT","Euro-bob Oxy Other Reportables Short"]
["X.US.T7KORSPR","Euro-bob Oxy Other Reportables Spreading"]
["X.US.T7KPMPULNG","Euro-bob Oxy Producer/Merchant/Processor/User Long"]
["X.US.T7KPMPUDIF","Euro-bob Oxy Producer/Merchant/Processor/User Long/Short Diff"]
["X.US.T7KPMPUSHT","Euro-bob Oxy Producer/Merchant/Processor/User Short"]
["X.US.T7KSDLONG","Euro-bob Oxy Swap Dealers Long"]
["X.US.T7KSDDIFF","Euro-bob Oxy Swap Dealers Long/Short Diff"]
["X.US.T7KSDSHT","Euro-bob Oxy Swap Dealers Short"]
["X.US.T7KSDSPR","Euro-bob Oxy Swap Dealers Spreading"]
["X.US.EDAAMILONG","Eurodollar Asset Manager/Institutional Long"]
["X.US.EDAAMIDIFF","Eurodollar Asset Manager/Institutional Long/Short Diff"]
["X.US.EDAAMISHT","Eurodollar Asset Manager/Institutional Short"]
["X.US.EDAAMISPR","Eurodollar Asset Manager/Institutional Spreading"]
["X.US.EDADILONG","Eurodollar Dealer Intermediary Long"]
["X.US.EDADIDIFF","Eurodollar Dealer Intermediary Long/Short Diff"]
["X.US.EDADISHT","Eurodollar Dealer Intermediary Short"]
["X.US.EDADISPR","Eurodollar Dealer Intermediary Spreading"]
["X.US.EDALFLONG","Eurodollar Leveraged Funds Long"]
["X.US.EDALFDIFF","Eurodollar Leveraged Funds Long/Short Diff"]
["X.US.EDALFSHT","Eurodollar Leveraged Funds Short"]
["X.US.EDALFSPR","Eurodollar Leveraged Funds Spreading"]
["X.US.EDADNRLONG","Eurodollar Nonreportable Long"]
["X.US.EDADNRDIFF","Eurodollar Nonreportable Long/Short Diff"]
["X.US.EDADNRSHT","Eurodollar Nonreportable Short"]
["X.US.EDAOFAMILONG","Eurodollar Options and Futures Combined Asset Manager/Institutional Long"]
["X.US.EDAOFAMIDIFF","Eurodollar Options and Futures Combined Asset Manager/Institutional Long/Short Diff"]
["X.US.EDAOFAMISHT","Eurodollar Options and Futures Combined Asset Manager/Institutional Short"]
["X.US.EDAOFAMISPR","Eurodollar Options and Futures Combined Asset Manager/Institutional Spreading"]
["X.US.EDAOFDILONG","Eurodollar Options and Futures Combined Dealer Intermediary Long"]
["X.US.EDAOFDIDIFF","Eurodollar Options and Futures Combined Dealer Intermediary Long/Short Diff"]
["X.US.EDAOFDISHT","Eurodollar Options and Futures Combined Dealer Intermediary Short"]
["X.US.EDAOFDISPR","Eurodollar Options and Futures Combined Dealer Intermediary Spreading"]
["X.US.EDAOFLFLONG","Eurodollar Options and Futures Combined Leveraged Funds Long"]
["X.US.EDAOFLFDIFF","Eurodollar Options and Futures Combined Leveraged Funds Long/Short Diff"]
["X.US.EDAOFLFSHT","Eurodollar Options and Futures Combined Leveraged Funds Short"]
["X.US.EDAOFLFSPR","Eurodollar Options and Futures Combined Leveraged Funds Spreading"]
["X.US.EDAOFNRLONG","Eurodollar Options and Futures Combined Nonreportable Long"]
["X.US.EDAOFNRDIFF","Eurodollar Options and Futures Combined Nonreportable Long/Short Diff"]
["X.US.EDAOFNRSHT","Eurodollar Options and Futures Combined Nonreportable Short"]
["X.US.EDAOFORLONG","Eurodollar Options and Futures Combined Other Reportables Long"]
["X.US.EDAOFORDIFF","Eurodollar Options and Futures Combined Other Reportables Long/Short Diff"]
["X.US.EDAOFORSHT","Eurodollar Options and Futures Combined Other Reportables Short"]
["X.US.EDAOFORSPR","Eurodollar Options and Futures Combined Other Reportables Spreading"]
["X.US.EDAORLONG","Eurodollar Other Reportables Long"]
["X.US.EDAORDIFF","Eurodollar Other Reportables Long/Short Diff"]
["X.US.EDAORSHT","Eurodollar Other Reportables Short"]
["X.US.EDAORSPR","Eurodollar Other Reportables Spreading"]
["X.US.EBAMILONG","Euro-Pound Asset Manager/Institutional Long"]
["X.US.EBAMIDIFF","Euro-Pound Asset Manager/Institutional Long/Short Diff"]
["X.US.EBAMISHT","Euro-Pound Asset Manager/Institutional Short"]
["X.US.EBAMISPR","Euro-Pound Asset Manager/Institutional Spreading"]
["X.US.EBDILONG","Euro-Pound Dealer Intermediary Long"]
["X.US.EBDIDIFF","Euro-Pound Dealer Intermediary Long/Short Diff"]
["X.US.EBDISHT","Euro-Pound Dealer Intermediary Short"]
["X.US.EBDISPR","Euro-Pound Dealer Intermediary Spreading"]
["X.US.EBLFLONG","Euro-Pound Leveraged Funds Long"]
["X.US.EBLFDIFF","Euro-Pound Leveraged Funds Long/Short Diff"]
["X.US.EBLFSHT","Euro-Pound Leveraged Funds Short"]
["X.US.EBLFSPR","Euro-Pound Leveraged Funds Spreading"]
["X.US.EBDNRLONG","Euro-Pound Nonreportable Long"]
["X.US.EBDNRDIFF","Euro-Pound Nonreportable Long/Short Diff"]
["X.US.EBDNRSHT","Euro-Pound Nonreportable Short"]
["X.US.EBOFAMILONG","Euro-Pound Options and Futures Combined Asset Manager/Institutional Long"]
["X.US.EBOFAMIDIFF","Euro-Pound Options and Futures Combined Asset Manager/Institutional Long/Short Diff"]
["X.US.EBOFAMISHT","Euro-Pound Options and Futures Combined Asset Manager/Institutional Short"]
["X.US.EBOFAMISPR","Euro-Pound Options and Futures Combined Asset Manager/Institutional Spreading"]
["X.US.EBOFDILONG","Euro-Pound Options and Futures Combined Dealer Intermediary Long"]
["X.US.EBOFDIDIFF","Euro-Pound Options and Futures Combined Dealer Intermediary Long/Short Diff"]
["X.US.EBOFDISHT","Euro-Pound Options and Futures Combined Dealer Intermediary Short"]
["X.US.EBOFDISPR","Euro-Pound Options and Futures Combined Dealer Intermediary Spreading"]
["X.US.EBOFLFLONG","Euro-Pound Options and Futures Combined Leveraged Funds Long"]
["X.US.EBOFLFDIFF","Euro-Pound Options and Futures Combined Leveraged Funds Long/Short Diff"]
["X.US.EBOFLFSHT","Euro-Pound Options and Futures Combined Leveraged Funds Short"]
["X.US.EBOFLFSPR","Euro-Pound Options and Futures Combined Leveraged Funds Spreading"]
["X.US.EBOFNRLONG","Euro-Pound Options and Futures Combined Nonreportable Long"]
["X.US.EBOFNRDIFF","Euro-Pound Options and Futures Combined Nonreportable Long/Short Diff"]
["X.US.EBOFNRSHT","Euro-Pound Options and Futures Combined Nonreportable Short"]
["X.US.EBOFORLONG","Euro-Pound Options and Futures Combined Other Reportables Long"]
["X.US.EBOFORDIFF","Euro-Pound Options and Futures Combined Other Reportables Long/Short Diff"]
["X.US.EBOFORSHT","Euro-Pound Options and Futures Combined Other Reportables Short"]
["X.US.EBOFORSPR","Euro-Pound Options and Futures Combined Other Reportables Spreading"]
["X.US.EBORLONG","Euro-Pound Other Reportables Long"]
["X.US.EBORDIFF","Euro-Pound Other Reportables Long/Short Diff"]
["X.US.EBORSHT","Euro-Pound Other Reportables Short"]
["X.US.EBORSPR","Euro-Pound Other Reportables Spreading"]
["X.US.YRAMILONG","Euro-Yen Asset Manager/Institutional Long"]
["X.US.YRAMIDIFF","Euro-Yen Asset Manager/Institutional Long/Short Diff"]
["X.US.YRAMISHT","Euro-Yen Asset Manager/Institutional Short"]
["X.US.YRAMISPR","Euro-Yen Asset Manager/Institutional Spreading"]
["X.US.YRDILONG","Euro-Yen Dealer Intermediary Long"]
["X.US.YRDIDIFF","Euro-Yen Dealer Intermediary Long/Short Diff"]
["X.US.YRDISHT","Euro-Yen Dealer Intermediary Short"]
["X.US.YRDISPR","Euro-Yen Dealer Intermediary Spreading"]
["X.US.YRLFLONG","Euro-Yen Leveraged Funds Long"]
["X.US.YRLFDIFF","Euro-Yen Leveraged Funds Long/Short Diff"]
["X.US.YRLFSHT","Euro-Yen Leveraged Funds Short"]
["X.US.YRLFSPR","Euro-Yen Leveraged Funds Spreading"]
["X.US.YRDNRLONG","Euro-Yen Nonreportable Long"]
["X.US.YRDNRDIFF","Euro-Yen Nonreportable Long/Short Diff"]
["X.US.YRDNRSHT","Euro-Yen Nonreportable Short"]
["X.US.YROFAMILONG","Euro-Yen Options and Futures Combined Asset Manager/Institutional Long"]
["X.US.YROFAMIDIFF","Euro-Yen Options and Futures Combined Asset Manager/Institutional Long/Short Diff"]
["X.US.YROFAMISHT","Euro-Yen Options and Futures Combined Asset Manager/Institutional Short"]
["X.US.YROFAMISPR","Euro-Yen Options and Futures Combined Asset Manager/Institutional Spreading"]
["X.US.YROFDILONG","Euro-Yen Options and Futures Combined Dealer Intermediary Long"]
["X.US.YROFDIDIFF","Euro-Yen Options and Futures Combined Dealer Intermediary Long/Short Diff"]
["X.US.YROFDISHT","Euro-Yen Options and Futures Combined Dealer Intermediary Short"]
["X.US.YROFDISPR","Euro-Yen Options and Futures Combined Dealer Intermediary Spreading"]
["X.US.YROFLFLONG","Euro-Yen Options and Futures Combined Leveraged Funds Long"]
["X.US.YROFLFDIFF","Euro-Yen Options and Futures Combined Leveraged Funds Long/Short Diff"]
["X.US.YROFLFSHT","Euro-Yen Options and Futures Combined Leveraged Funds Short"]
["X.US.YROFLFSPR","Euro-Yen Options and Futures Combined Leveraged Funds Spreading"]
["X.US.YROFNRLONG","Euro-Yen Options and Futures Combined Nonreportable Long"]
["X.US.YROFNRDIFF","Euro-Yen Options and Futures Combined Nonreportable Long/Short Diff"]
["X.US.YROFNRSHT","Euro-Yen Options and Futures Combined Nonreportable Short"]
["X.US.YROFORLONG","Euro-Yen Options and Futures Combined Other Reportables Long"]
["X.US.YROFORDIFF","Euro-Yen Options and Futures Combined Other Reportables Long/Short Diff"]
["X.US.YROFORSHT","Euro-Yen Options and Futures Combined Other Reportables Short"]
["X.US.YROFORSPR","Euro-Yen Options and Futures Combined Other Reportables Spreading"]
["X.US.YRORLONG","Euro-Yen Other Reportables Long"]
["X.US.YRORDIFF","Euro-Yen Other Reportables Long/Short Diff"]
["X.US.YRORSHT","Euro-Yen Other Reportables Short"]
["X.US.YRORSPR","Euro-Yen Other Reportables Spreading"]
["X.US.GFMMLONG","Feeder Cattle Managed Money Long"]
["X.US.GFMMDIFF","Feeder Cattle Managed Money Long/Short Diff"]
["X.US.GFMMSHT","Feeder Cattle Managed Money Short"]
["X.US.GFMMSPR","Feeder Cattle Managed Money Spreading"]
["X.US.GFDNRLONG","Feeder Cattle Nonreportable Long"]
["X.US.GFDNRDIFF","Feeder Cattle Nonreportable Long/Short Diff"]
["X.US.GFDNRSHT","Feeder Cattle Nonreportable Short"]
["X.US.GFOFMMLONG","Feeder Cattle Options and Futures Combined Managed Money Long"]
["X.US.GFOFMMDIFF","Feeder Cattle Options and Futures Combined Managed Money Long/Short Diff"]
["X.US.GFOFMMSHT","Feeder Cattle Options and Futures Combined Managed Money Short"]
["X.US.GFOFMMSPR","Feeder Cattle Options and Futures Combined Managed Money Spreading"]
["X.US.GFOFNRLONG","Feeder Cattle Options and Futures Combined Nonreportable Long"]
["X.US.GFOFNRDIFF","Feeder Cattle Options and Futures Combined Nonreportable Long/Short Diff"]
["X.US.GFOFNRSHT","Feeder Cattle Options and Futures Combined Nonreportable Short"]
["X.US.GFOFORLONG","Feeder Cattle Options and Futures Combined Other Reportables Long"]
["X.US.GFOFORDIFF","Feeder Cattle Options and Futures Combined Other Reportables Long/Short Diff"]
["X.US.GFOFORSHT","Feeder Cattle Options and Futures Combined Other Reportables Short"]
["X.US.GFOFORSPR","Feeder Cattle Options and Futures Combined Other Reportables Spreading"]
["X.US.GFOFPMPULONG","Feeder Cattle Options and Futures Combined Producer/Merchant/Processor/User Long"]
["X.US.GFOFPMPUDIFF","Feeder Cattle Options and Futures Combined Producer/Merchant/Processor/User Long/Short Diff"]
["X.US.GFOFPMPUSHT","Feeder Cattle Options and Futures Combined Producer/Merchant/Processor/User Short"]
["X.US.GFOFSDLONG","Feeder Cattle Options and Futures Combined Swap Dealers Long"]
["X.US.GFOFSDDIFF","Feeder Cattle Options and Futures Combined Swap Dealers Long/Short Diff"]
["X.US.GFOFSDSHT","Feeder Cattle Options and Futures Combined Swap Dealers Short"]
["X.US.GFOFSDSPR","Feeder Cattle Options and Futures Combined Swap Dealers Spreading"]
["X.US.GFORLONG","Feeder Cattle Other Reportables Long"]
["X.US.GFORDIFF","Feeder Cattle Other Reportables Long/Short Diff"]
["X.US.GFORSHT","Feeder Cattle Other Reportables Short"]
["X.US.GFORSPR","Feeder Cattle Other Reportables Spreading"]
["X.US.GFPMPULONG","Feeder Cattle Producer/Merchant/Processor/User Long"]
["X.US.GFPMPUDIFF","Feeder Cattle Producer/Merchant/Processor/User Long/Short Diff"]
["X.US.GFPMPUSHT","Feeder Cattle Producer/Merchant/Processor/User Short"]
["X.US.GFSDLONG","Feeder Cattle Swap Dealers Long"]
["X.US.GFSDDIFF","Feeder Cattle Swap Dealers Long/Short Diff"]
["X.US.GFSDSHT","Feeder Cattle Swap Dealers Short"]
["X.US.GFSDSPR","Feeder Cattle Swap Dealers Spreading"]
["X.US.NLTMMLONG","GC ULSD Up-Down Managed Money Long"]
["X.US.NLTMMDIFF","GC ULSD Up-Down Managed Money Long/Short Diff"]
["X.US.NLTMMSHT","GC ULSD Up-Down Managed Money Short"]
["X.US.NLTMMSPR","GC ULSD Up-Down Managed Money Spreading"]
["X.US.NLTDNRLONG","GC ULSD Up-Down Nonreportable Long"]
["X.US.NLTNRDLONG","GC ULSD Up-Down Nonreportable Long"]
["X.US.NLTDNRDIFF","GC ULSD Up-Down Nonreportable Long/Short Diff"]
["X.US.NLTNRDDIFF","GC ULSD Up-Down Nonreportable Long/Short Diff"]
["X.US.NLTDNRSHT","GC ULSD Up-Down Nonreportable Short"]
["X.US.NLTNRDSHT","GC ULSD Up-Down Nonreportable Short"]
["X.US.NLTOFMMLONG","GC ULSD Up-Down Options and Futures Combined Managed Money Long"]
["X.US.NLTOFMMDIFF","GC ULSD Up-Down Options and Futures Combined Managed Money Long/Short Diff"]
["X.US.NLTOFMMSHT","GC ULSD Up-Down Options and Futures Combined Managed Money Short"]
["X.US.NLTOFMMSPR","GC ULSD Up-Down Options and Futures Combined Managed Money Spreading"]
["X.US.NLTOFNRLONG","GC ULSD Up-Down Options and Futures Combined Nonreportable Long"]
["X.US.NLTOFNRDIFF","GC ULSD Up-Down Options and Futures Combined Nonreportable Long/Short Diff"]
["X.US.NLTOFNRSHT","GC ULSD Up-Down Options and Futures Combined Nonreportable Short"]
["X.US.NLTOFORLONG","GC ULSD Up-Down Options and Futures Combined Other Reportables Long"]
["X.US.NLTOFORDIFF","GC ULSD Up-Down Options and Futures Combined Other Reportables Long/Short Diff"]
["X.US.NLTOFORSHT","GC ULSD Up-Down Options and Futures Combined Other Reportables Short"]
["X.US.NLTOFORSPR","GC ULSD Up-Down Options and Futures Combined Other Reportables Spreading"]
["X.US.NLTOFPMPULONG","GC ULSD Up-Down Options and Futures Combined Producer/Merchant/Processor/User Long"]
["X.US.NLTOFPMPUDIFF","GC ULSD Up-Down Options and Futures Combined Producer/Merchant/Processor/User Long/Short Diff"]
["X.US.NLTOFPMPUSHT","GC ULSD Up-Down Options and Futures Combined Producer/Merchant/Processor/User Short"]
["X.US.NLTOFSDLONG","GC ULSD Up-Down Options and Futures Combined Swap Dealers Long"]
["X.US.NLTOFSDDIFF","GC ULSD Up-Down Options and Futures Combined Swap Dealers Long/Short Diff"]
["X.US.NLTOFSDSHT","GC ULSD Up-Down Options and Futures Combined Swap Dealers Short"]
["X.US.NLTOFSDSPR","GC ULSD Up-Down Options and Futures Combined Swap Dealers Spreading"]
["X.US.NLTORLONG","GC ULSD Up-Down Other Reportables Long"]
["X.US.NLTORDIFF","GC ULSD Up-Down Other Reportables Long/Short Diff"]
["X.US.NLTORSHT","GC ULSD Up-Down Other Reportables Short"]
["X.US.NLTORSPR","GC ULSD Up-Down Other Reportables Spreading"]
["X.US.NLTPMPULNG","GC ULSD Up-Down Producer/Merchant/Processor/User Long"]
["X.US.NLTPMPUDIF","GC ULSD Up-Down Producer/Merchant/Processor/User Long/Short Diff"]
["X.US.NLTPMPUSHT","GC ULSD Up-Down Producer/Merchant/Processor/User Short"]
["X.US.NLTSDLONG","GC ULSD Up-Down Swap Dealers Long"]
["X.US.NLTSDDIFF","GC ULSD Up-Down Swap Dealers Long/Short Diff"]
["X.US.NLTSDSHT","GC ULSD Up-Down Swap Dealers Short"]
["X.US.NLTSDSPR","GC ULSD Up-Down Swap Dealers Spreading"]
["X.US.GCEMMLONG","Gold Managed Money Long"]
["X.US.GCEMMDIFF","Gold Managed Money Long/Short Diff"]
["X.US.GCEMMSHT","Gold Managed Money Short"]
["X.US.GCEMMSPR","Gold Managed Money Spreading"]
["X.US.GCEDNRLONG","Gold Nonreportable Long"]
["X.US.GCEDNRDIFF","Gold Nonreportable Long/Short Diff"]
["X.US.GCEDNRSHT","Gold Nonreportable Short"]
["X.US.GCEOFMMLONG","Gold Options and Futures Combined Managed Money Long"]
["X.US.GCEOFMMDIFF","Gold Options and Futures Combined Managed Money Long/Short Diff"]
["X.US.GCEOFMMSHT","Gold Options and Futures Combined Managed Money Short"]
["X.US.GCEOFMMSPR","Gold Options and Futures Combined Managed Money Spreading"]
["X.US.GCEOFNRLONG","Gold Options and Futures Combined Nonreportable Long"]
["X.US.GCEOFNRDIFF","Gold Options and Futures Combined Nonreportable Long/Short Diff"]
["X.US.GCEOFNRSHT","Gold Options and Futures Combined Nonreportable Short"]
["X.US.GCEOFORLONG","Gold Options and Futures Combined Other Reportables Long"]
["X.US.GCEOFORDIFF","Gold Options and Futures Combined Other Reportables Long/Short Diff"]
["X.US.GCEOFORSHT","Gold Options and Futures Combined Other Reportables Short"]
["X.US.GCEOFORSPR","Gold Options and Futures Combined Other Reportables Spreading"]
["X.US.GCEOFPMPULONG","Gold Options and Futures Combined Producer/Merchant/Processor/User Long"]
["X.US.GCEOFPMPUDIFF","Gold Options and Futures Combined Producer/Merchant/Processor/User Long/Short Diff"]
["X.US.GCEOFPMPUSHT","Gold Options and Futures Combined Producer/Merchant/Processor/User Short"]
["X.US.GCEOFSDLONG","Gold Options and Futures Combined Swap Dealers Long"]
["X.US.GCEOFSDDIFF","Gold Options and Futures Combined Swap Dealers Long/Short Diff"]
["X.US.GCEOFSDSHT","Gold Options and Futures Combined Swap Dealers Short"]
["X.US.GCEOFSDSPR","Gold Options and Futures Combined Swap Dealers Spreading"]
["X.US.GCEORLONG","Gold Other Reportables Long"]
["X.US.GCEORDIFF","Gold Other Reportables Long/Short Diff"]
["X.US.GCEORSHT","Gold Other Reportables Short"]
["X.US.GCEORSPR","Gold Other Reportables Spreading"]
["X.US.GCEPMPULNG","Gold Producer/Merchant/Processor/User Long"]
["X.US.GCEPMPUDIF","Gold Producer/Merchant/Processor/User Long/Short Diff"]
["X.US.GCEPMPUSHT","Gold Producer/Merchant/Processor/User Short"]
["X.US.GCESDLONG","Gold Swap Dealers Long"]
["X.US.GCESDDIFF","Gold Swap Dealers Long/Short Diff"]
["X.US.GCESDSHT","Gold Swap Dealers Short"]
["X.US.GCESDSPR","Gold Swap Dealers Spreading"]
["X.US.MEMMLONG","Gulf Jet Swap Managed Money Long"]
["X.US.MEMMDIFF","Gulf Jet Swap Managed Money Long/Short Diff"]
["X.US.MEMMSHT","Gulf Jet Swap Managed Money Short"]
["X.US.MEMMSPR","Gulf Jet Swap Managed Money Spreading"]
["X.US.MEDNRLONG","Gulf Jet Swap Nonreportable Long"]
["X.US.MENRDLONG","Gulf Jet Swap Nonreportable Long"]
["X.US.MEDNRDIFF","Gulf Jet Swap Nonreportable Long/Short Diff"]
["X.US.MENRDDIFF","Gulf Jet Swap Nonreportable Long/Short Diff"]
["X.US.MEDNRSHT","Gulf Jet Swap Nonreportable Short"]
["X.US.MENRDSHT","Gulf Jet Swap Nonreportable Short"]
["X.US.MEOFMMLONG","Gulf Jet Swap Options and Futures Combined Managed Money Long"]
["X.US.MEOFMMDIFF","Gulf Jet Swap Options and Futures Combined Managed Money Long/Short Diff"]
["X.US.MEOFMMSHT","Gulf Jet Swap Options and Futures Combined Managed Money Short"]
["X.US.MEOFMMSPR","Gulf Jet Swap Options and Futures Combined Managed Money Spreading"]
["X.US.MEOFNRLONG","Gulf Jet Swap Options and Futures Combined Nonreportable Long"]
["X.US.MEOFNRDIFF","Gulf Jet Swap Options and Futures Combined Nonreportable Long/Short Diff"]
["X.US.MEOFNRSHT","Gulf Jet Swap Options and Futures Combined Nonreportable Short"]
["X.US.MEOFORLONG","Gulf Jet Swap Options and Futures Combined Other Reportables Long"]
["X.US.MEOFORDIFF","Gulf Jet Swap Options and Futures Combined Other Reportables Long/Short Diff"]
["X.US.MEOFORSHT","Gulf Jet Swap Options and Futures Combined Other Reportables Short"]
["X.US.MEOFORSPR","Gulf Jet Swap Options and Futures Combined Other Reportables Spreading"]
["X.US.MEOFPMPULONG","Gulf Jet Swap Options and Futures Combined Producer/Merchant/Processor/User Long"]
["X.US.MEOFPMPUDIFF","Gulf Jet Swap Options and Futures Combined Producer/Merchant/Processor/User Long/Short Diff"]
["X.US.MEOFPMPUSHT","Gulf Jet Swap Options and Futures Combined Producer/Merchant/Processor/User Short"]
["X.US.MEOFSDLONG","Gulf Jet Swap Options and Futures Combined Swap Dealers Long"]
["X.US.MEOFSDDIFF","Gulf Jet Swap Options and Futures Combined Swap Dealers Long/Short Diff"]
["X.US.MEOFSDSHT","Gulf Jet Swap Options and Futures Combined Swap Dealers Short"]
["X.US.MEOFSDSPR","Gulf Jet Swap Options and Futures Combined Swap Dealers Spreading"]
["X.US.MEORLONG","Gulf Jet Swap Other Reportables Long"]
["X.US.MEORDIFF","Gulf Jet Swap Other Reportables Long/Short Diff"]
["X.US.MEORSHT","Gulf Jet Swap Other Reportables Short"]
["X.US.MEORSPR","Gulf Jet Swap Other Reportables Spreading"]
["X.US.MEPMPULONG","Gulf Jet Swap Producer/Merchant/Processor/User Long"]
["X.US.MEPMPUDIFF","Gulf Jet Swap Producer/Merchant/Processor/User Long/Short Diff"]
["X.US.MEPMPUSHT","Gulf Jet Swap Producer/Merchant/Processor/User Short"]
["X.US.MESDLONG","Gulf Jet Swap Swap Dealers Long"]
["X.US.MESDDIFF","Gulf Jet Swap Swap Dealers Long/Short Diff"]
["X.US.MESDSHT","Gulf Jet Swap Swap Dealers Short"]
["X.US.MESDSPR","Gulf Jet Swap Swap Dealers Spreading"]
["X.US.GCUMMLONG","Gulf No.6 Managed Money Long"]
["X.US.GCUMMDIFF","Gulf No.6 Managed Money Long/Short Diff"]
["X.US.GCUMMSHT","Gulf No.6 Managed Money Short"]
["X.US.GCUMMSPR","Gulf No.6 Managed Money Spreading"]
["X.US.GCUDNRLONG","Gulf No.6 Nonreportable Long"]
["X.US.GCUNRDLONG","Gulf No.6 Nonreportable Long"]
["X.US.GCUDNRDIFF","Gulf No.6 Nonreportable Long/Short Diff"]
["X.US.GCUNRDDIFF","Gulf No.6 Nonreportable Long/Short Diff"]
["X.US.GCUDNRSHT","Gulf No.6 Nonreportable Short"]
["X.US.GCUNRDSHT","Gulf No.6 Nonreportable Short"]
["X.US.GCUOFMMLONG","Gulf No.6 Options and Futures Combined Managed Money Long"]
["X.US.GCUOFMMDIFF","Gulf No.6 Options and Futures Combined Managed Money Long/Short Diff"]
["X.US.GCUOFMMSHT","Gulf No.6 Options and Futures Combined Managed Money Short"]
["X.US.GCUOFMMSPR","Gulf No.6 Options and Futures Combined Managed Money Spreading"]
["X.US.GCUOFNRLONG","Gulf No.6 Options and Futures Combined Nonreportable Long"]
["X.US.GCUOFNRDIFF","Gulf No.6 Options and Futures Combined Nonreportable Long/Short Diff"]
["X.US.GCUOFNRSHT","Gulf No.6 Options and Futures Combined Nonreportable Short"]
["X.US.GCUOFORLONG","Gulf No.6 Options and Futures Combined Other Reportables Long"]
["X.US.GCUOFORDIFF","Gulf No.6 Options and Futures Combined Other Reportables Long/Short Diff"]
["X.US.GCUOFORSHT","Gulf No.6 Options and Futures Combined Other Reportables Short"]
["X.US.GCUOFORSPR","Gulf No.6 Options and Futures Combined Other Reportables Spreading"]
["X.US.GCUOFPMPULONG","Gulf No.6 Options and Futures Combined Producer/Merchant/Processor/User Long"]
["X.US.GCUOFPMPUDIFF","Gulf No.6 Options and Futures Combined Producer/Merchant/Processor/User Long/Short Diff"]
["X.US.GCUOFPMPUSHT","Gulf No.6 Options and Futures Combined Producer/Merchant/Processor/User Short"]
["X.US.GCUOFSDLONG","Gulf No.6 Options and Futures Combined Swap Dealers Long"]
["X.US.GCUOFSDDIFF","Gulf No.6 Options and Futures Combined Swap Dealers Long/Short Diff"]
["X.US.GCUOFSDSHT","Gulf No.6 Options and Futures Combined Swap Dealers Short"]
["X.US.GCUOFSDSPR","Gulf No.6 Options and Futures Combined Swap Dealers Spreading"]
["X.US.GCUORLONG","Gulf No.6 Other Reportables Long"]
["X.US.GCUORDIFF","Gulf No.6 Other Reportables Long/Short Diff"]
["X.US.GCUORSHT","Gulf No.6 Other Reportables Short"]
["X.US.GCUORSPR","Gulf No.6 Other Reportables Spreading"]
["X.US.GCUPMPULNG","Gulf No.6 Producer/Merchant/Processor/User Long"]
["X.US.GCUPMPUDIF","Gulf No.6 Producer/Merchant/Processor/User Long/Short Diff"]
["X.US.GCUPMPUSHT","Gulf No.6 Producer/Merchant/Processor/User Short"]
["X.US.GCUSDLONG","Gulf No.6 Swap Dealers Long"]
["X.US.GCUSDDIFF","Gulf No.6 Swap Dealers Long/Short Diff"]
["X.US.GCUSDSHT","Gulf No.6 Swap Dealers Short"]
["X.US.GCUSDSPR","Gulf No.6 Swap Dealers Spreading"]
["X.US.MWEMMLONG","HR Spring Wheat Managed Money Long"]
["X.US.MWEMMDIFF","HR Spring Wheat Managed Money Long/Short Diff"]
["X.US.MWEMMSHT","HR Spring Wheat Managed Money Short"]
["X.US.MWEMMSPR","HR Spring Wheat Managed Money Spreading"]
["X.US.MWEDNRLONG","HR Spring Wheat Nonreportable Long"]
["X.US.MWEDNRDIFF","HR Spring Wheat Nonreportable Long/Short Diff"]
["X.US.MWEDNRSHT","HR Spring Wheat Nonreportable Short"]
["X.US.MWEOFMMLONG","HR Spring Wheat Options and Futures Combined Managed Money Long"]
["X.US.MWEOFMMDIFF","HR Spring Wheat Options and Futures Combined Managed Money Long/Short Diff"]
["X.US.MWEOFMMSHT","HR Spring Wheat Options and Futures Combined Managed Money Short"]
["X.US.MWEOFMMSPR","HR Spring Wheat Options and Futures Combined Managed Money Spreading"]
["X.US.MWEOFNRLONG","HR Spring Wheat Options and Futures Combined Nonreportable Long"]
["X.US.MWEOFNRDIFF","HR Spring Wheat Options and Futures Combined Nonreportable Long/Short Diff"]
["X.US.MWEOFNRSHT","HR Spring Wheat Options and Futures Combined Nonreportable Short"]
["X.US.MWEOFORLONG","HR Spring Wheat Options and Futures Combined Other Reportables Long"]
["X.US.MWEOFORDIFF","HR Spring Wheat Options and Futures Combined Other Reportables Long/Short Diff"]
["X.US.MWEOFORSHT","HR Spring Wheat Options and Futures Combined Other Reportables Short"]
["X.US.MWEOFORSPR","HR Spring Wheat Options and Futures Combined Other Reportables Spreading"]
["X.US.MWEOFPMPULONG","HR Spring Wheat Options and Futures Combined Producer/Merchant/Processor/User Long"]
["X.US.MWEOFPMPUDIFF","HR Spring Wheat Options and Futures Combined Producer/Merchant/Processor/User Long/Short Diff"]
["X.US.MWEOFPMPUSHT","HR Spring Wheat Options and Futures Combined Producer/Merchant/Processor/User Short"]
["X.US.MWEOFSDLONG","HR Spring Wheat Options and Futures Combined Swap Dealers Long"]
["X.US.MWEOFSDDIFF","HR Spring Wheat Options and Futures Combined Swap Dealers Long/Short Diff"]
["X.US.MWEOFSDSHT","HR Spring Wheat Options and Futures Combined Swap Dealers Short"]
["X.US.MWEOFSDSPR","HR Spring Wheat Options and Futures Combined Swap Dealers Spreading"]
["X.US.MWEORLONG","HR Spring Wheat Other Reportables Long"]
["X.US.MWEORDIFF","HR Spring Wheat Other Reportables Long/Short Diff"]
["X.US.MWEORSHT","HR Spring Wheat Other Reportables Short"]
["X.US.MWEORSPR","HR Spring Wheat Other Reportables Spreading"]
["X.US.MWEPMPULNG","HR Spring Wheat Producer/Merchant/Processor/User Long"]
["X.US.MWEPMPUDIF","HR Spring Wheat Producer/Merchant/Processor/User Long/Short Diff"]
["X.US.MWEPMPUSHT","HR Spring Wheat Producer/Merchant/Processor/User Short"]
["X.US.MWESDLONG","HR Spring Wheat Swap Dealers Long"]
["X.US.MWESDDIFF","HR Spring Wheat Swap Dealers Long/Short Diff"]
["X.US.MWESDSHT","HR Spring Wheat Swap Dealers Short"]
["X.US.MWESDSPR","HR Spring Wheat Swap Dealers Spreading"]
["X.US.HRCMMLONG","HRC Steel Managed Money Long"]
["X.US.HRCMMDIFF","HRC Steel Managed Money Long/Short Diff"]
["X.US.HRCMMSHT","HRC Steel Managed Money Short"]
["X.US.HRCMMSPR","HRC Steel Managed Money Spreading"]
["X.US.HRCDNRLONG","HRC Steel Nonreportable Long"]
["X.US.HRCDNRDIFF","HRC Steel Nonreportable Long/Short Diff"]
["X.US.HRCDNRSHT","HRC Steel Nonreportable Short"]
["X.US.HRCOFMMLONG","HRC Steel Options and Futures Combined Managed Money Long"]
["X.US.HRCOFMMDIFF","HRC Steel Options and Futures Combined Managed Money Long/Short Diff"]
["X.US.HRCOFMMSHT","HRC Steel Options and Futures Combined Managed Money Short"]
["X.US.HRCOFMMSPR","HRC Steel Options and Futures Combined Managed Money Spreading"]
["X.US.HRCOFNRLONG","HRC Steel Options and Futures Combined Nonreportable Long"]
["X.US.HRCOFNRDIFF","HRC Steel Options and Futures Combined Nonreportable Long/Short Diff"]
["X.US.HRCOFNRSHT","HRC Steel Options and Futures Combined Nonreportable Short"]
["X.US.HRCOFORLONG","HRC Steel Options and Futures Combined Other Reportables Long"]
["X.US.HRCOFORDIFF","HRC Steel Options and Futures Combined Other Reportables Long/Short Diff"]
["X.US.HRCOFORSHT","HRC Steel Options and Futures Combined Other Reportables Short"]
["X.US.HRCOFORSPR","HRC Steel Options and Futures Combined Other Reportables Spreading"]
["X.US.HRCOFPMPULONG","HRC Steel Options and Futures Combined Producer/Merchant/Processor/User Long"]
["X.US.HRCOFPMPUDIFF","HRC Steel Options and Futures Combined Producer/Merchant/Processor/User Long/Short Diff"]
["X.US.HRCOFPMPUSHT","HRC Steel Options and Futures Combined Producer/Merchant/Processor/User Short"]
["X.US.HRCOFSDLONG","HRC Steel Options and Futures Combined Swap Dealers Long"]
["X.US.HRCOFSDDIFF","HRC Steel Options and Futures Combined Swap Dealers Long/Short Diff"]
["X.US.HRCOFSDSHT","HRC Steel Options and Futures Combined Swap Dealers Short"]
["X.US.HRCOFSDSPR","HRC Steel Options and Futures Combined Swap Dealers Spreading"]
["X.US.HRCORLONG","HRC Steel Other Reportables Long"]
["X.US.HRCORDIFF","HRC Steel Other Reportables Long/Short Diff"]
["X.US.HRCORSHT","HRC Steel Other Reportables Short"]
["X.US.HRCORSPR","HRC Steel Other Reportables Spreading"]
["X.US.HRCPMPULNG","HRC Steel Producer/Merchant/Processor/User Long"]
["X.US.HRCPMPUDIF","HRC Steel Producer/Merchant/Processor/User Long/Short Diff"]
["X.US.HRCPMPUSHT","HRC Steel Producer/Merchant/Processor/User Short"]
["X.US.HRCSDLONG","HRC Steel Swap Dealers Long"]
["X.US.HRCSDDIFF","HRC Steel Swap Dealers Long/Short Diff"]
["X.US.HRCSDSHT","HRC Steel Swap Dealers Short"]
["X.US.HRCSDSPR","HRC Steel Swap Dealers Spreading"]
["X.US.JY6AMILONG","Japanese Yen Asset Manager/Institutional Long"]
["X.US.JY6AMIDIFF","Japanese Yen Asset Manager/Institutional Long/Short Diff"]
["X.US.JY6AMISHT","Japanese Yen Asset Manager/Institutional Short"]
["X.US.JY6AMISPR","Japanese Yen Asset Manager/Institutional Spreading"]
["X.US.JY6DILONG","Japanese Yen Dealer Intermediary Long"]
["X.US.JY6DIDIFF","Japanese Yen Dealer Intermediary Long/Short Diff"]
["X.US.JY6DISHT","Japanese Yen Dealer Intermediary Short"]
["X.US.JY6DISPR","Japanese Yen Dealer Intermediary Spreading"]
["X.US.JY6LFLONG","Japanese Yen Leveraged Funds Long"]
["X.US.JY6LFDIFF","Japanese Yen Leveraged Funds Long/Short Diff"]
["X.US.JY6LFSHT","Japanese Yen Leveraged Funds Short"]
["X.US.JY6LFSPR","Japanese Yen Leveraged Funds Spreading"]
["X.US.JY6DNRLONG","Japanese Yen Nonreportable Long"]
["X.US.JY6DNRDIFF","Japanese Yen Nonreportable Long/Short Diff"]
["X.US.JY6DNRSHT","Japanese Yen Nonreportable Short"]
["X.US.JY6OFAMILONG","Japanese Yen Options and Futures Combined Asset Manager/Institutional Long"]
["X.US.JY6OFAMIDIFF","Japanese Yen Options and Futures Combined Asset Manager/Institutional Long/Short Diff"]
["X.US.JY6OFAMISHT","Japanese Yen Options and Futures Combined Asset Manager/Institutional Short"]
["X.US.JY6OFAMISPR","Japanese Yen Options and Futures Combined Asset Manager/Institutional Spreading"]
["X.US.JY6OFDILONG","Japanese Yen Options and Futures Combined Dealer Intermediary Long"]
["X.US.JY6OFDIDIFF","Japanese Yen Options and Futures Combined Dealer Intermediary Long/Short Diff"]
["X.US.JY6OFDISHT","Japanese Yen Options and Futures Combined Dealer Intermediary Short"]
["X.US.JY6OFDISPR","Japanese Yen Options and Futures Combined Dealer Intermediary Spreading"]
["X.US.JY6OFLFLONG","Japanese Yen Options and Futures Combined Leveraged Funds Long"]
["X.US.JY6OFLFDIFF","Japanese Yen Options and Futures Combined Leveraged Funds Long/Short Diff"]
["X.US.JY6OFLFSHT","Japanese Yen Options and Futures Combined Leveraged Funds Short"]
["X.US.JY6OFLFSPR","Japanese Yen Options and Futures Combined Leveraged Funds Spreading"]
["X.US.JY6OFNRLONG","Japanese Yen Options and Futures Combined Nonreportable Long"]
["X.US.JY6OFNRDIFF","Japanese Yen Options and Futures Combined Nonreportable Long/Short Diff"]
["X.US.JY6OFNRSHT","Japanese Yen Options and Futures Combined Nonreportable Short"]
["X.US.JY6OFORLONG","Japanese Yen Options and Futures Combined Other Reportables Long"]
["X.US.JY6OFORDIFF","Japanese Yen Options and Futures Combined Other Reportables Long/Short Diff"]
["X.US.JY6OFORSHT","Japanese Yen Options and Futures Combined Other Reportables Short"]
["X.US.JY6OFORSPR","Japanese Yen Options and Futures Combined Other Reportables Spreading"]
["X.US.JY6ORLONG","Japanese Yen Other Reportables Long"]
["X.US.JY6ORDIFF","Japanese Yen Other Reportables Long/Short Diff"]
["X.US.JY6ORSHT","Japanese Yen Other Reportables Short"]
["X.US.JY6ORSPR","Japanese Yen Other Reportables Spreading"]
["X.US.KWEMMLONG","KC Wheat Managed Money Long"]
["X.US.KWEMMDIFF","KC Wheat Managed Money Long/Short Diff"]
["X.US.KWEMMSHT","KC Wheat Managed Money Short"]
["X.US.KWEMMSPR","KC Wheat Managed Money Spreading"]
["X.US.KWEDNRLONG","KC Wheat Nonreportable Long"]
["X.US.KWEDNRDIFF","KC Wheat Nonreportable Long/Short Diff"]
["X.US.KWEDNRSHT","KC Wheat Nonreportable Short"]
["X.US.KWEOFMMLONG","KC Wheat Options and Futures Combined Managed Money Long"]
["X.US.KWEOFMMDIFF","KC Wheat Options and Futures Combined Managed Money Long/Short Diff"]
["X.US.KWEOFMMSHT","KC Wheat Options and Futures Combined Managed Money Short"]
["X.US.KWEOFMMSPR","KC Wheat Options and Futures Combined Managed Money Spreading"]
["X.US.KWEOFNRLONG","KC Wheat Options and Futures Combined Nonreportable Long"]
["X.US.KWEOFNRDIFF","KC Wheat Options and Futures Combined Nonreportable Long/Short Diff"]
["X.US.KWEOFNRSHT","KC Wheat Options and Futures Combined Nonreportable Short"]
["X.US.KWEOFORLONG","KC Wheat Options and Futures Combined Other Reportables Long"]
["X.US.KWEOFORDIFF","KC Wheat Options and Futures Combined Other Reportables Long/Short Diff"]
["X.US.KWEOFORSHT","KC Wheat Options and Futures Combined Other Reportables Short"]
["X.US.KWEOFORSPR","KC Wheat Options and Futures Combined Other Reportables Spreading"]
["X.US.KWEOFPMPULONG","KC Wheat Options and Futures Combined Producer/Merchant/Processor/User Long"]
["X.US.KWEOFPMPUDIFF","KC Wheat Options and Futures Combined Producer/Merchant/Processor/User Long/Short Diff"]
["X.US.KWEOFPMPUSHT","KC Wheat Options and Futures Combined Producer/Merchant/Processor/User Short"]
["X.US.KWEOFSDLONG","KC Wheat Options and Futures Combined Swap Dealers Long"]
["X.US.KWEOFSDDIFF","KC Wheat Options and Futures Combined Swap Dealers Long/Short Diff"]
["X.US.KWEOFSDSHT","KC Wheat Options and Futures Combined Swap Dealers Short"]
["X.US.KWEOFSDSPR","KC Wheat Options and Futures Combined Swap Dealers Spreading"]
["X.US.KWEORLONG","KC Wheat Other Reportables Long"]
["X.US.KWEORDIFF","KC Wheat Other Reportables Long/Short Diff"]
["X.US.KWEORSHT","KC Wheat Other Reportables Short"]
["X.US.KWEORSPR","KC Wheat Other Reportables Spreading"]
["X.US.KWEPMPULNG","KC Wheat Producer/Merchant/Processor/User Long"]
["X.US.KWEPMPUDIF","KC Wheat Producer/Merchant/Processor/User Long/Short Diff"]
["X.US.KWEPMPUSHT","KC Wheat Producer/Merchant/Processor/User Short"]
["X.US.KWESDLONG","KC Wheat Swap Dealers Long"]
["X.US.KWESDDIFF","KC Wheat Swap Dealers Long/Short Diff"]
["X.US.KWESDSHT","KC Wheat Swap Dealers Short"]
["X.US.KWESDSPR","KC Wheat Swap Dealers Spreading"]
["X.US.HEMMLONG","Lean Hogs Managed Money Long"]
["X.US.HEMMDIFF","Lean Hogs Managed Money Long/Short Diff"]
["X.US.HEMMSHT","Lean Hogs Managed Money Short"]
["X.US.HEMMSPR","Lean Hogs Managed Money Spreading"]
["X.US.HEDNRLONG","Lean Hogs Nonreportable Long"]
["X.US.HEDNRDIFF","Lean Hogs Nonreportable Long/Short Diff"]
["X.US.HEDNRSHT","Lean Hogs Nonreportable Short"]
["X.US.HEOFMMLONG","Lean Hogs Options and Futures Combined Managed Money Long"]
["X.US.HEOFMMDIFF","Lean Hogs Options and Futures Combined Managed Money Long/Short Diff"]
["X.US.HEOFMMSHT","Lean Hogs Options and Futures Combined Managed Money Short"]
["X.US.HEOFMMSPR","Lean Hogs Options and Futures Combined Managed Money Spreading"]
["X.US.HEOFNRLONG","Lean Hogs Options and Futures Combined Nonreportable Long"]
["X.US.HEOFNRDIFF","Lean Hogs Options and Futures Combined Nonreportable Long/Short Diff"]
["X.US.HEOFNRSHT","Lean Hogs Options and Futures Combined Nonreportable Short"]
["X.US.HEOFORLONG","Lean Hogs Options and Futures Combined Other Reportables Long"]
["X.US.HEOFORDIFF","Lean Hogs Options and Futures Combined Other Reportables Long/Short Diff"]
["X.US.HEOFORSHT","Lean Hogs Options and Futures Combined Other Reportables Short"]
["X.US.HEOFORSPR","Lean Hogs Options and Futures Combined Other Reportables Spreading"]
["X.US.HEOFPMPULONG","Lean Hogs Options and Futures Combined Producer/Merchant/Processor/User Long"]
["X.US.HEOFPMPUDIFF","Lean Hogs Options and Futures Combined Producer/Merchant/Processor/User Long/Short Diff"]
["X.US.HEOFPMPUSHT","Lean Hogs Options and Futures Combined Producer/Merchant/Processor/User Short"]
["X.US.HEOFSDLONG","Lean Hogs Options and Futures Combined Swap Dealers Long"]
["X.US.HEOFSDDIFF","Lean Hogs Options and Futures Combined Swap Dealers Long/Short Diff"]
["X.US.HEOFSDSHT","Lean Hogs Options and Futures Combined Swap Dealers Short"]
["X.US.HEOFSDSPR","Lean Hogs Options and Futures Combined Swap Dealers Spreading"]
["X.US.HEORLONG","Lean Hogs Other Reportables Long"]
["X.US.HEORDIFF","Lean Hogs Other Reportables Long/Short Diff"]
["X.US.HEORSHT","Lean Hogs Other Reportables Short"]
["X.US.HEORSPR","Lean Hogs Other Reportables Spreading"]
["X.US.HEPMPULONG","Lean Hogs Producer/Merchant/Processor/User Long"]
["X.US.HEPMPUDIFF","Lean Hogs Producer/Merchant/Processor/User Long/Short Diff"]
["X.US.HEPMPUSHT","Lean Hogs Producer/Merchant/Processor/User Short"]
["X.US.HESDLONG","Lean Hogs Swap Dealers Long"]
["X.US.HESDDIFF","Lean Hogs Swap Dealers Long/Short Diff"]
["X.US.HESDSHT","Lean Hogs Swap Dealers Short"]
["X.US.HESDSPR","Lean Hogs Swap Dealers Spreading"]
["X.US.GLEMMLONG","Live Cattle Managed Money Long"]
["X.US.GLEMMDIFF","Live Cattle Managed Money Long/Short Diff"]
["X.US.GLEMMSHT","Live Cattle Managed Money Short"]
["X.US.GLEMMSPR","Live Cattle Managed Money Spreading"]
["X.US.GLEDNRLONG","Live Cattle Nonreportable Long"]
["X.US.GLEDNRDIFF","Live Cattle Nonreportable Long/Short Diff"]
["X.US.GLEDNRSHT","Live Cattle Nonreportable Short"]
["X.US.GLEOFMMLONG","Live Cattle Options and Futures Combined Managed Money Long"]
["X.US.GLEOFMMDIFF","Live Cattle Options and Futures Combined Managed Money Long/Short Diff"]
["X.US.GLEOFMMSHT","Live Cattle Options and Futures Combined Managed Money Short"]
["X.US.GLEOFMMSPR","Live Cattle Options and Futures Combined Managed Money Spreading"]
["X.US.GLEOFNRLONG","Live Cattle Options and Futures Combined Nonreportable Long"]
["X.US.GLEOFNRDIFF","Live Cattle Options and Futures Combined Nonreportable Long/Short Diff"]
["X.US.GLEOFNRSHT","Live Cattle Options and Futures Combined Nonreportable Short"]
["X.US.GLEOFORLONG","Live Cattle Options and Futures Combined Other Reportables Long"]
["X.US.GLEOFORDIFF","Live Cattle Options and Futures Combined Other Reportables Long/Short Diff"]
["X.US.GLEOFORSHT","Live Cattle Options and Futures Combined Other Reportables Short"]
["X.US.GLEOFORSPR","Live Cattle Options and Futures Combined Other Reportables Spreading"]
["X.US.GLEOFPMPULONG","Live Cattle Options and Futures Combined Producer/Merchant/Processor/User Long"]
["X.US.GLEOFPMPUDIFF","Live Cattle Options and Futures Combined Producer/Merchant/Processor/User Long/Short Diff"]
["X.US.GLEOFPMPUSHT","Live Cattle Options and Futures Combined Producer/Merchant/Processor/User Short"]
["X.US.GLEOFSDLONG","Live Cattle Options and Futures Combined Swap Dealers Long"]
["X.US.GLEOFSDDIFF","Live Cattle Options and Futures Combined Swap Dealers Long/Short Diff"]
["X.US.GLEOFSDSHT","Live Cattle Options and Futures Combined Swap Dealers Short"]
["X.US.GLEOFSDSPR","Live Cattle Options and Futures Combined Swap Dealers Spreading"]
["X.US.GLEORLONG","Live Cattle Other Reportables Long"]
["X.US.GLEORDIFF","Live Cattle Other Reportables Long/Short Diff"]
["X.US.GLEORSHT","Live Cattle Other Reportables Short"]
["X.US.GLEORSPR","Live Cattle Other Reportables Spreading"]
["X.US.GLEPMPULNG","Live Cattle Producer/Merchant/Processor/User Long"]
["X.US.GLEPMPUDIF","Live Cattle Producer/Merchant/Processor/User Long/Short Diff"]
["X.US.GLEPMPUSHT","Live Cattle Producer/Merchant/Processor/User Short"]
["X.US.GLESDLONG","Live Cattle Swap Dealers Long"]
["X.US.GLESDDIFF","Live Cattle Swap Dealers Long/Short Diff"]
["X.US.GLESDSHT","Live Cattle Swap Dealers Short"]
["X.US.GLESDSPR","Live Cattle Swap Dealers Spreading"]
["X.US.LBSMMLONG","Lumber Managed Money Long"]
["X.US.LBSMMDIFF","Lumber Managed Money Long/Short Diff"]
["X.US.LBSMMSHT","Lumber Managed Money Short"]
["X.US.LBSMMSPR","Lumber Managed Money Spreading"]
["X.US.LBSDNRLONG","Lumber Nonreportable Long"]
["X.US.LBSDNRDIFF","Lumber Nonreportable Long/Short Diff"]
["X.US.LBSDNRSHT","Lumber Nonreportable Short"]
["X.US.LBSOFMMLONG","Lumber Options and Futures Combined Managed Money Long"]
["X.US.LBSOFMMDIFF","Lumber Options and Futures Combined Managed Money Long/Short Diff"]
["X.US.LBSOFMMSHT","Lumber Options and Futures Combined Managed Money Short"]
["X.US.LBSOFMMSPR","Lumber Options and Futures Combined Managed Money Spreading"]
["X.US.LBSOFNRLONG","Lumber Options and Futures Combined Nonreportable Long"]
["X.US.LBSOFNRDIFF","Lumber Options and Futures Combined Nonreportable Long/Short Diff"]
["X.US.LBSOFNRSHT","Lumber Options and Futures Combined Nonreportable Short"]
["X.US.LBSOFORLONG","Lumber Options and Futures Combined Other Reportables Long"]
["X.US.LBSOFORDIFF","Lumber Options and Futures Combined Other Reportables Long/Short Diff"]
["X.US.LBSOFORSHT","Lumber Options and Futures Combined Other Reportables Short"]
["X.US.LBSOFORSPR","Lumber Options and Futures Combined Other Reportables Spreading"]
["X.US.LBSOFPMPULONG","Lumber Options and Futures Combined Producer/Merchant/Processor/User Long"]
["X.US.LBSOFPMPUDIFF","Lumber Options and Futures Combined Producer/Merchant/Processor/User Long/Short Diff"]
["X.US.LBSOFPMPUSHT","Lumber Options and Futures Combined Producer/Merchant/Processor/User Short"]
["X.US.LBSOFSDLONG","Lumber Options and Futures Combined Swap Dealers Long"]
["X.US.LBSOFSDDIFF","Lumber Options and Futures Combined Swap Dealers Long/Short Diff"]
["X.US.LBSOFSDSHT","Lumber Options and Futures Combined Swap Dealers Short"]
["X.US.LBSOFSDSPR","Lumber Options and Futures Combined Swap Dealers Spreading"]
["X.US.LBSORLONG","Lumber Other Reportables Long"]
["X.US.LBSORDIFF","Lumber Other Reportables Long/Short Diff"]
["X.US.LBSORSHT","Lumber Other Reportables Short"]
["X.US.LBSORSPR","Lumber Other Reportables Spreading"]
["X.US.LBSPMPULNG","Lumber Producer/Merchant/Processor/User Long"]
["X.US.LBSPMPUDIF","Lumber Producer/Merchant/Processor/User Long/Short Diff"]
["X.US.LBSPMPUSHT","Lumber Producer/Merchant/Processor/User Short"]
["X.US.LBSSDLONG","Lumber Swap Dealers Long"]
["X.US.LBSSDDIFF","Lumber Swap Dealers Long/Short Diff"]
["X.US.LBSSDSHT","Lumber Swap Dealers Short"]
["X.US.LBSSDSPR","Lumber Swap Dealers Spreading"]
["X.US.MX6AMILONG","Mexicn Peso Asset Manager/Institutional Long"]
["X.US.MX6AMIDIFF","Mexicn Peso Asset Manager/Institutional Long/Short Diff"]
["X.US.MX6AMISHT","Mexicn Peso Asset Manager/Institutional Short"]
["X.US.MX6AMISPR","Mexicn Peso Asset Manager/Institutional Spreading"]
["X.US.MX6DILONG","Mexicn Peso Dealer Intermediary Long"]
["X.US.MX6DIDIFF","Mexicn Peso Dealer Intermediary Long/Short Diff"]
["X.US.MX6DISHT","Mexicn Peso Dealer Intermediary Short"]
["X.US.MX6DISPR","Mexicn Peso Dealer Intermediary Spreading"]
["X.US.MX6LFLONG","Mexicn Peso Leveraged Funds Long"]
["X.US.MX6LFDIFF","Mexicn Peso Leveraged Funds Long/Short Diff"]
["X.US.MX6LFSHT","Mexicn Peso Leveraged Funds Short"]
["X.US.MX6LFSPR","Mexicn Peso Leveraged Funds Spreading"]
["X.US.MX6DNRLONG","Mexicn Peso Nonreportable Long"]
["X.US.MX6DNRDIFF","Mexicn Peso Nonreportable Long/Short Diff"]
["X.US.MX6DNRSHT","Mexicn Peso Nonreportable Short"]
["X.US.MX6OFAMILONG","Mexicn Peso Options and Futures Combined Asset Manager/Institutional Long"]
["X.US.MX6OFAMIDIFF","Mexicn Peso Options and Futures Combined Asset Manager/Institutional Long/Short Diff"]
["X.US.MX6OFAMISHT","Mexicn Peso Options and Futures Combined Asset Manager/Institutional Short"]
["X.US.MX6OFAMISPR","Mexicn Peso Options and Futures Combined Asset Manager/Institutional Spreading"]
["X.US.MX6OFDILONG","Mexicn Peso Options and Futures Combined Dealer Intermediary Long"]
["X.US.MX6OFDIDIFF","Mexicn Peso Options and Futures Combined Dealer Intermediary Long/Short Diff"]
["X.US.MX6OFDISHT","Mexicn Peso Options and Futures Combined Dealer Intermediary Short"]
["X.US.MX6OFDISPR","Mexicn Peso Options and Futures Combined Dealer Intermediary Spreading"]
["X.US.MX6OFLFLONG","Mexicn Peso Options and Futures Combined Leveraged Funds Long"]
["X.US.MX6OFLFDIFF","Mexicn Peso Options and Futures Combined Leveraged Funds Long/Short Diff"]
["X.US.MX6OFLFSHT","Mexicn Peso Options and Futures Combined Leveraged Funds Short"]
["X.US.MX6OFLFSPR","Mexicn Peso Options and Futures Combined Leveraged Funds Spreading"]
["X.US.MX6OFNRLONG","Mexicn Peso Options and Futures Combined Nonreportable Long"]
["X.US.MX6OFNRDIFF","Mexicn Peso Options and Futures Combined Nonreportable Long/Short Diff"]
["X.US.MX6OFNRSHT","Mexicn Peso Options and Futures Combined Nonreportable Short"]
["X.US.MX6OFORLONG","Mexicn Peso Options and Futures Combined Other Reportables Long"]
["X.US.MX6OFORDIFF","Mexicn Peso Options and Futures Combined Other Reportables Long/Short Diff"]
["X.US.MX6OFORSHT","Mexicn Peso Options and Futures Combined Other Reportables Short"]
["X.US.MX6OFORSPR","Mexicn Peso Options and Futures Combined Other Reportables Spreading"]
["X.US.MX6ORLONG","Mexicn Peso Other Reportables Long"]
["X.US.MX6ORDIFF","Mexicn Peso Other Reportables Long/Short Diff"]
["X.US.MX6ORSHT","Mexicn Peso Other Reportables Short"]
["X.US.MX6ORSPR","Mexicn Peso Other Reportables Spreading"]
["X.US.GDCMMLONG","Milk Class III Managed Money Long"]
["X.US.GDCMMDIFF","Milk Class III Managed Money Long/Short Diff"]
["X.US.GDCMMSHT","Milk Class III Managed Money Short"]
["X.US.GDCMMSPR","Milk Class III Managed Money Spreading"]
["X.US.GDCDNRLONG","Milk Class III Nonreportable Long"]
["X.US.GDCDNRDIFF","Milk Class III Nonreportable Long/Short Diff"]
["X.US.GDCDNRSHT","Milk Class III Nonreportable Short"]
["X.US.GDCOFMMLONG","Milk Class III Options and Futures Combined Managed Money Long"]
["X.US.GDCOFMMDIFF","Milk Class III Options and Futures Combined Managed Money Long/Short Diff"]
["X.US.GDCOFMMSHT","Milk Class III Options and Futures Combined Managed Money Short"]
["X.US.GDCOFMMSPR","Milk Class III Options and Futures Combined Managed Money Spreading"]
["X.US.GDCOFNRLONG","Milk Class III Options and Futures Combined Nonreportable Long"]
["X.US.GDCOFNRDIFF","Milk Class III Options and Futures Combined Nonreportable Long/Short Diff"]
["X.US.GDCOFNRSHT","Milk Class III Options and Futures Combined Nonreportable Short"]
["X.US.GDCOFORLONG","Milk Class III Options and Futures Combined Other Reportables Long"]
["X.US.GDCOFORDIFF","Milk Class III Options and Futures Combined Other Reportables Long/Short Diff"]
["X.US.GDCOFORSHT","Milk Class III Options and Futures Combined Other Reportables Short"]
["X.US.GDCOFORSPR","Milk Class III Options and Futures Combined Other Reportables Spreading"]
["X.US.GDCOFPMPULONG","Milk Class III Options and Futures Combined Producer/Merchant/Processor/User Long"]
["X.US.GDCOFPMPUDIFF","Milk Class III Options and Futures Combined Producer/Merchant/Processor/User Long/Short Diff"]
["X.US.GDCOFPMPUSHT","Milk Class III Options and Futures Combined Producer/Merchant/Processor/User Short"]
["X.US.GDCOFSDLONG","Milk Class III Options and Futures Combined Swap Dealers Long"]
["X.US.GDCOFSDDIFF","Milk Class III Options and Futures Combined Swap Dealers Long/Short Diff"]
["X.US.GDCOFSDSHT","Milk Class III Options and Futures Combined Swap Dealers Short"]
["X.US.GDCOFSDSPR","Milk Class III Options and Futures Combined Swap Dealers Spreading"]
["X.US.GDCORLONG","Milk Class III Other Reportables Long"]
["X.US.GDCORDIFF","Milk Class III Other Reportables Long/Short Diff"]
["X.US.GDCORSHT","Milk Class III Other Reportables Short"]
["X.US.GDCORSPR","Milk Class III Other Reportables Spreading"]
["X.US.GDCPMPULNG","Milk Class III Producer/Merchant/Processor/User Long"]
["X.US.GDCPMPUDIF","Milk Class III Producer/Merchant/Processor/User Long/Short Diff"]
["X.US.GDCPMPUSHT","Milk Class III Producer/Merchant/Processor/User Short"]
["X.US.GDCSDLONG","Milk Class III Swap Dealers Long"]
["X.US.GDCSDDIFF","Milk Class III Swap Dealers Long/Short Diff"]
["X.US.GDCSDSHT","Milk Class III Swap Dealers Short"]
["X.US.GDCSDSPR","Milk Class III Swap Dealers Spreading"]
["X.US.MFSAMILONG","MSCI EAFE Index Asset Manager/Institutional Long"]
["X.US.MFSAMIDIFF","MSCI EAFE Index Asset Manager/Institutional Long/Short Diff"]
["X.US.MFSAMISHT","MSCI EAFE Index Asset Manager/Institutional Short"]
["X.US.MFSAMISPR","MSCI EAFE Index Asset Manager/Institutional Spreading"]
["X.US.MFSDILONG","MSCI EAFE Index Dealer Intermediary Long"]
["X.US.MFSDIDIFF","MSCI EAFE Index Dealer Intermediary Long/Short Diff"]
["X.US.MFSDISHT","MSCI EAFE Index Dealer Intermediary Short"]
["X.US.MFSDISPR","MSCI EAFE Index Dealer Intermediary Spreading"]
["X.US.MFSLFLONG","MSCI EAFE Index Leveraged Funds Long"]
["X.US.MFSLFDIFF","MSCI EAFE Index Leveraged Funds Long/Short Diff"]
["X.US.MFSLFSHT","MSCI EAFE Index Leveraged Funds Short"]
["X.US.MFSLFSPR","MSCI EAFE Index Leveraged Funds Spreading"]
["X.US.MFSDNRLONG","MSCI EAFE Index Nonreportable Long"]
["X.US.MFSDNRDIFF","MSCI EAFE Index Nonreportable Long/Short Diff"]
["X.US.MFSDNRSHT","MSCI EAFE Index Nonreportable Short"]
["X.US.MFSOFAMILONG","MSCI EAFE Index Options and Futures Combined Asset Manager/Institutional Long"]
["X.US.MFSOFAMIDIFF","MSCI EAFE Index Options and Futures Combined Asset Manager/Institutional Long/Short Diff"]
["X.US.MFSOFAMISHT","MSCI EAFE Index Options and Futures Combined Asset Manager/Institutional Short"]
["X.US.MFSOFAMISPR","MSCI EAFE Index Options and Futures Combined Asset Manager/Institutional Spreading"]
["X.US.MFSOFDILONG","MSCI EAFE Index Options and Futures Combined Dealer Intermediary Long"]
["X.US.MFSOFDIDIFF","MSCI EAFE Index Options and Futures Combined Dealer Intermediary Long/Short Diff"]
["X.US.MFSOFDISHT","MSCI EAFE Index Options and Futures Combined Dealer Intermediary Short"]
["X.US.MFSOFDISPR","MSCI EAFE Index Options and Futures Combined Dealer Intermediary Spreading"]
["X.US.MFSOFLFLONG","MSCI EAFE Index Options and Futures Combined Leveraged Funds Long"]
["X.US.MFSOFLFDIFF","MSCI EAFE Index Options and Futures Combined Leveraged Funds Long/Short Diff"]
["X.US.MFSOFLFSHT","MSCI EAFE Index Options and Futures Combined Leveraged Funds Short"]
["X.US.MFSOFLFSPR","MSCI EAFE Index Options and Futures Combined Leveraged Funds Spreading"]
["X.US.MFSOFNRLONG","MSCI EAFE Index Options and Futures Combined Nonreportable Long"]
["X.US.MFSOFNRDIFF","MSCI EAFE Index Options and Futures Combined Nonreportable Long/Short Diff"]
["X.US.MFSOFNRSHT","MSCI EAFE Index Options and Futures Combined Nonreportable Short"]
["X.US.MFSOFORLONG","MSCI EAFE Index Options and Futures Combined Other Reportables Long"]
["X.US.MFSOFORDIFF","MSCI EAFE Index Options and Futures Combined Other Reportables Long/Short Diff"]
["X.US.MFSOFORSHT","MSCI EAFE Index Options and Futures Combined Other Reportables Short"]
["X.US.MFSOFORSPR","MSCI EAFE Index Options and Futures Combined Other Reportables Spreading"]
["X.US.MFSORLONG","MSCI EAFE Index Other Reportables Long"]
["X.US.MFSORDIFF","MSCI EAFE Index Other Reportables Long/Short Diff"]
["X.US.MFSORSHT","MSCI EAFE Index Other Reportables Short"]
["X.US.MFSORSPR","MSCI EAFE Index Other Reportables Spreading"]
["X.US.MMEAMILONG","MSCI ME Index Asset Manager/Institutional Long"]
["X.US.MMEAMIDIFF","MSCI ME Index Asset Manager/Institutional Long/Short Diff"]
["X.US.MMEAMISHT","MSCI ME Index Asset Manager/Institutional Short"]
["X.US.MMEAMISPR","MSCI ME Index Asset Manager/Institutional Spreading"]
["X.US.MMEDILONG","MSCI ME Index Dealer Intermediary Long"]
["X.US.MMEDIDIFF","MSCI ME Index Dealer Intermediary Long/Short Diff"]
["X.US.MMEDISHT","MSCI ME Index Dealer Intermediary Short"]
["X.US.MMEDISPR","MSCI ME Index Dealer Intermediary Spreading"]
["X.US.MMELFLONG","MSCI ME Index Leveraged Funds Long"]
["X.US.MMELFDIFF","MSCI ME Index Leveraged Funds Long/Short Diff"]
["X.US.MMELFSHT","MSCI ME Index Leveraged Funds Short"]
["X.US.MMELFSPR","MSCI ME Index Leveraged Funds Spreading"]
["X.US.MMEDNRLONG","MSCI ME Index Nonreportable Long"]
["X.US.MMEDNRDIFF","MSCI ME Index Nonreportable Long/Short Diff"]
["X.US.MMEDNRSHT","MSCI ME Index Nonreportable Short"]
["X.US.MMEOFAMILONG","MSCI ME Index Options and Futures Combined Asset Manager/Institutional Long"]
["X.US.MMEOFAMIDIFF","MSCI ME Index Options and Futures Combined Asset Manager/Institutional Long/Short Diff"]
["X.US.MMEOFAMISHT","MSCI ME Index Options and Futures Combined Asset Manager/Institutional Short"]
["X.US.MMEOFAMISPR","MSCI ME Index Options and Futures Combined Asset Manager/Institutional Spreading"]
["X.US.MMEOFDILONG","MSCI ME Index Options and Futures Combined Dealer Intermediary Long"]
["X.US.MMEOFDIDIFF","MSCI ME Index Options and Futures Combined Dealer Intermediary Long/Short Diff"]
["X.US.MMEOFDISHT","MSCI ME Index Options and Futures Combined Dealer Intermediary Short"]
["X.US.MMEOFDISPR","MSCI ME Index Options and Futures Combined Dealer Intermediary Spreading"]
["X.US.MMEOFLFLONG","MSCI ME Index Options and Futures Combined Leveraged Funds Long"]
["X.US.MMEOFLFDIFF","MSCI ME Index Options and Futures Combined Leveraged Funds Long/Short Diff"]
["X.US.MMEOFLFSHT","MSCI ME Index Options and Futures Combined Leveraged Funds Short"]
["X.US.MMEOFLFSPR","MSCI ME Index Options and Futures Combined Leveraged Funds Spreading"]
["X.US.MMEOFNRLONG","MSCI ME Index Options and Futures Combined Nonreportable Long"]
["X.US.MMEOFNRDIFF","MSCI ME Index Options and Futures Combined Nonreportable Long/Short Diff"]
["X.US.MMEOFNRSHT","MSCI ME Index Options and Futures Combined Nonreportable Short"]
["X.US.MMEOFORLONG","MSCI ME Index Options and Futures Combined Other Reportables Long"]
["X.US.MMEOFORDIFF","MSCI ME Index Options and Futures Combined Other Reportables Long/Short Diff"]
["X.US.MMEOFORSHT","MSCI ME Index Options and Futures Combined Other Reportables Short"]
["X.US.MMEOFORSPR","MSCI ME Index Options and Futures Combined Other Reportables Spreading"]
["X.US.MMEORLONG","MSCI ME Index Other Reportables Long"]
["X.US.MMEORDIFF","MSCI ME Index Other Reportables Long/Short Diff"]
["X.US.MMEORSHT","MSCI ME Index Other Reportables Short"]
["X.US.MMEORSPR","MSCI ME Index Other Reportables Spreading"]
["X.US.ENEMMLONG","Naphtha Crack Managed Money Long"]
["X.US.ENEMMDIFF","Naphtha Crack Managed Money Long/Short Diff"]
["X.US.ENEMMSHT","Naphtha Crack Managed Money Short"]
["X.US.ENEMMSPR","Naphtha Crack Managed Money Spreading"]
["X.US.ENEDNRLONG","Naphtha Crack Nonreportable Long"]
["X.US.ENENRDLONG","Naphtha Crack Nonreportable Long"]
["X.US.ENEDNRDIFF","Naphtha Crack Nonreportable Long/Short Diff"]
["X.US.ENENRDDIFF","Naphtha Crack Nonreportable Long/Short Diff"]
["X.US.ENEDNRSHT","Naphtha Crack Nonreportable Short"]
["X.US.ENENRDSHT","Naphtha Crack Nonreportable Short"]
["X.US.ENEOFMMLONG","Naphtha Crack Options and Futures Combined Managed Money Long"]
["X.US.ENEOFMMDIFF","Naphtha Crack Options and Futures Combined Managed Money Long/Short Diff"]
["X.US.ENEOFMMSHT","Naphtha Crack Options and Futures Combined Managed Money Short"]
["X.US.ENEOFMMSPR","Naphtha Crack Options and Futures Combined Managed Money Spreading"]
["X.US.ENEOFNRLONG","Naphtha Crack Options and Futures Combined Nonreportable Long"]
["X.US.ENEOFNRDIFF","Naphtha Crack Options and Futures Combined Nonreportable Long/Short Diff"]
["X.US.ENEOFNRSHT","Naphtha Crack Options and Futures Combined Nonreportable Short"]
["X.US.ENEOFORLONG","Naphtha Crack Options and Futures Combined Other Reportables Long"]
["X.US.ENEOFORDIFF","Naphtha Crack Options and Futures Combined Other Reportables Long/Short Diff"]
["X.US.ENEOFORSHT","Naphtha Crack Options and Futures Combined Other Reportables Short"]
["X.US.ENEOFORSPR","Naphtha Crack Options and Futures Combined Other Reportables Spreading"]
["X.US.ENEOFPMPULONG","Naphtha Crack Options and Futures Combined Producer/Merchant/Processor/User Long"]
["X.US.ENEOFPMPUDIFF","Naphtha Crack Options and Futures Combined Producer/Merchant/Processor/User Long/Short Diff"]
["X.US.ENEOFPMPUSHT","Naphtha Crack Options and Futures Combined Producer/Merchant/Processor/User Short"]
["X.US.ENEOFSDLONG","Naphtha Crack Options and Futures Combined Swap Dealers Long"]
["X.US.ENEOFSDDIFF","Naphtha Crack Options and Futures Combined Swap Dealers Long/Short Diff"]
["X.US.ENEOFSDSHT","Naphtha Crack Options and Futures Combined Swap Dealers Short"]
["X.US.ENEOFSDSPR","Naphtha Crack Options and Futures Combined Swap Dealers Spreading"]
["X.US.ENEORLONG","Naphtha Crack Other Reportables Long"]
["X.US.ENEORDIFF","Naphtha Crack Other Reportables Long/Short Diff"]
["X.US.ENEORSHT","Naphtha Crack Other Reportables Short"]
["X.US.ENEORSPR","Naphtha Crack Other Reportables Spreading"]
["X.US.ENEPMPULNG","Naphtha Crack Producer/Merchant/Processor/User Long"]
["X.US.ENEPMPUDIF","Naphtha Crack Producer/Merchant/Processor/User Long/Short Diff"]
["X.US.ENEPMPUSHT","Naphtha Crack Producer/Merchant/Processor/User Short"]
["X.US.ENESDLONG","Naphtha Crack Swap Dealers Long"]
["X.US.ENESDDIFF","Naphtha Crack Swap Dealers Long/Short Diff"]
["X.US.ENESDSHT","Naphtha Crack Swap Dealers Short"]
["X.US.ENESDSPR","Naphtha Crack Swap Dealers Spreading"]
["X.US.NGEMMLONG","Nat Gas Managed Money Long"]
["X.US.NGEMMDIFF","Nat Gas Managed Money Long/Short Diff"]
["X.US.NGEMMSHT","Nat Gas Managed Money Short"]
["X.US.NGEMMSPR","Nat Gas Managed Money Spreading"]
["X.US.NGEDNRLONG","Nat Gas Nonreportable Long"]
["X.US.NGENRDLONG","Nat Gas Nonreportable Long"]
["X.US.NGEDNRDIFF","Nat Gas Nonreportable Long/Short Diff"]
["X.US.NGENRDDIFF","Nat Gas Nonreportable Long/Short Diff"]
["X.US.NGEDNRSHT","Nat Gas Nonreportable Short"]
["X.US.NGENRDSHT","Nat Gas Nonreportable Short"]
["X.US.NGEOFMMLONG","Nat Gas Options and Futures Combined Managed Money Long"]
["X.US.NGEOFMMDIFF","Nat Gas Options and Futures Combined Managed Money Long/Short Diff"]
["X.US.NGEOFMMSHT","Nat Gas Options and Futures Combined Managed Money Short"]
["X.US.NGEOFMMSPR","Nat Gas Options and Futures Combined Managed Money Spreading"]
["X.US.NGEOFNRLONG","Nat Gas Options and Futures Combined Nonreportable Long"]
["X.US.NGEOFNRDIFF","Nat Gas Options and Futures Combined Nonreportable Long/Short Diff"]
["X.US.NGEOFNRSHT","Nat Gas Options and Futures Combined Nonreportable Short"]
["X.US.NGEOFORLONG","Nat Gas Options and Futures Combined Other Reportables Long"]
["X.US.NGEOFORDIFF","Nat Gas Options and Futures Combined Other Reportables Long/Short Diff"]
["X.US.NGEOFORSHT","Nat Gas Options and Futures Combined Other Reportables Short"]
["X.US.NGEOFORSPR","Nat Gas Options and Futures Combined Other Reportables Spreading"]
["X.US.NGEOFPMPULONG","Nat Gas Options and Futures Combined Producer/Merchant/Processor/User Long"]
["X.US.NGEOFPMPUDIFF","Nat Gas Options and Futures Combined Producer/Merchant/Processor/User Long/Short Diff"]
["X.US.NGEOFPMPUSHT","Nat Gas Options and Futures Combined Producer/Merchant/Processor/User Short"]
["X.US.NGEOFSDLONG","Nat Gas Options and Futures Combined Swap Dealers Long"]
["X.US.NGEOFSDDIFF","Nat Gas Options and Futures Combined Swap Dealers Long/Short Diff"]
["X.US.NGEOFSDSHT","Nat Gas Options and Futures Combined Swap Dealers Short"]
["X.US.NGEOFSDSPR","Nat Gas Options and Futures Combined Swap Dealers Spreading"]
["X.US.NGEORLONG","Nat Gas Other Reportables Long"]
["X.US.NGEORDIFF","Nat Gas Other Reportables Long/Short Diff"]
["X.US.NGEORSHT","Nat Gas Other Reportables Short"]
["X.US.NGEORSPR","Nat Gas Other Reportables Spreading"]
["X.US.NGEPMPULNG","Nat Gas Producer/Merchant/Processor/User Long"]
["X.US.NGEPMPUDIF","Nat Gas Producer/Merchant/Processor/User Long/Short Diff"]
["X.US.NGEPMPUSHT","Nat Gas Producer/Merchant/Processor/User Short"]
["X.US.NGESDLONG","Nat Gas Swap Dealers Long"]
["X.US.NGESDDIFF","Nat Gas Swap Dealers Long/Short Diff"]
["X.US.NGESDSHT","Nat Gas Swap Dealers Short"]
["X.US.NGESDSPR","Nat Gas Swap Dealers Spreading"]
["X.US.NKDAMILONG","Nikkey 225 Asset Manager/Institutional Long"]
["X.US.NKDAMIDIFF","Nikkey 225 Asset Manager/Institutional Long/Short Diff"]
["X.US.NKDAMISHT","Nikkey 225 Asset Manager/Institutional Short"]
["X.US.NKDAMISPR","Nikkey 225 Asset Manager/Institutional Spreading"]
["X.US.NKDDILONG","Nikkey 225 Dealer Intermediary Long"]
["X.US.NKDDIDIFF","Nikkey 225 Dealer Intermediary Long/Short Diff"]
["X.US.NKDDISHT","Nikkey 225 Dealer Intermediary Short"]
["X.US.NKDDISPR","Nikkey 225 Dealer Intermediary Spreading"]
["X.US.NKDLFLONG","Nikkey 225 Leveraged Funds Long"]
["X.US.NKDLFDIFF","Nikkey 225 Leveraged Funds Long/Short Diff"]
["X.US.NKDLFSHT","Nikkey 225 Leveraged Funds Short"]
["X.US.NKDLFSPR","Nikkey 225 Leveraged Funds Spreading"]
["X.US.NKDDNRLONG","Nikkey 225 Nonreportable Long"]
["X.US.NKDDNRDIFF","Nikkey 225 Nonreportable Long/Short Diff"]
["X.US.NKDDNRSHT","Nikkey 225 Nonreportable Short"]
["X.US.NKDOFAMILONG","Nikkey 225 Options and Futures Combined Asset Manager/Institutional Long"]
["X.US.NKDOFAMIDIFF","Nikkey 225 Options and Futures Combined Asset Manager/Institutional Long/Short Diff"]
["X.US.NKDOFAMISHT","Nikkey 225 Options and Futures Combined Asset Manager/Institutional Short"]
["X.US.NKDOFAMISPR","Nikkey 225 Options and Futures Combined Asset Manager/Institutional Spreading"]
["X.US.NKDOFDILONG","Nikkey 225 Options and Futures Combined Dealer Intermediary Long"]
["X.US.NKDOFDIDIFF","Nikkey 225 Options and Futures Combined Dealer Intermediary Long/Short Diff"]
["X.US.NKDOFDISHT","Nikkey 225 Options and Futures Combined Dealer Intermediary Short"]
["X.US.NKDOFDISPR","Nikkey 225 Options and Futures Combined Dealer Intermediary Spreading"]
["X.US.NKDOFLFLONG","Nikkey 225 Options and Futures Combined Leveraged Funds Long"]
["X.US.NKDOFLFDIFF","Nikkey 225 Options and Futures Combined Leveraged Funds Long/Short Diff"]
["X.US.NKDOFLFSHT","Nikkey 225 Options and Futures Combined Leveraged Funds Short"]
["X.US.NKDOFLFSPR","Nikkey 225 Options and Futures Combined Leveraged Funds Spreading"]
["X.US.NKDOFNRLONG","Nikkey 225 Options and Futures Combined Nonreportable Long"]
["X.US.NKDOFNRDIFF","Nikkey 225 Options and Futures Combined Nonreportable Long/Short Diff"]
["X.US.NKDOFNRSHT","Nikkey 225 Options and Futures Combined Nonreportable Short"]
["X.US.NKDOFORLONG","Nikkey 225 Options and Futures Combined Other Reportables Long"]
["X.US.NKDOFORDIFF","Nikkey 225 Options and Futures Combined Other Reportables Long/Short Diff"]
["X.US.NKDOFORSHT","Nikkey 225 Options and Futures Combined Other Reportables Short"]
["X.US.NKDOFORSPR","Nikkey 225 Options and Futures Combined Other Reportables Spreading"]
["X.US.NKDORLONG","Nikkey 225 Other Reportables Long"]
["X.US.NKDORDIFF","Nikkey 225 Other Reportables Long/Short Diff"]
["X.US.NKDORSHT","Nikkey 225 Other Reportables Short"]
["X.US.NKDORSPR","Nikkey 225 Other Reportables Spreading"]
["X.US.NIYAMILONG","Nikkey Yen Asset Manager/Institutional Long"]
["X.US.NIYAMIDIFF","Nikkey Yen Asset Manager/Institutional Long/Short Diff"]
["X.US.NIYAMISHT","Nikkey Yen Asset Manager/Institutional Short"]
["X.US.NIYAMISPR","Nikkey Yen Asset Manager/Institutional Spreading"]
["X.US.NIYDILONG","Nikkey Yen Dealer Intermediary Long"]
["X.US.NIYDIDIFF","Nikkey Yen Dealer Intermediary Long/Short Diff"]
["X.US.NIYDISHT","Nikkey Yen Dealer Intermediary Short"]
["X.US.NIYDISPR","Nikkey Yen Dealer Intermediary Spreading"]
["X.US.NIYLFLONG","Nikkey Yen Leveraged Funds Long"]
["X.US.NIYLFDIFF","Nikkey Yen Leveraged Funds Long/Short Diff"]
["X.US.NIYLFSHT","Nikkey Yen Leveraged Funds Short"]
["X.US.NIYLFSPR","Nikkey Yen Leveraged Funds Spreading"]
["X.US.NIYDNRLONG","Nikkey Yen Nonreportable Long"]
["X.US.NIYDNRDIFF","Nikkey Yen Nonreportable Long/Short Diff"]
["X.US.NIYDNRSHT","Nikkey Yen Nonreportable Short"]
["X.US.NIYOFAMILONG","Nikkey Yen Options and Futures Combined Asset Manager/Institutional Long"]
["X.US.NIYOFAMIDIFF","Nikkey Yen Options and Futures Combined Asset Manager/Institutional Long/Short Diff"]
["X.US.NIYOFAMISHT","Nikkey Yen Options and Futures Combined Asset Manager/Institutional Short"]
["X.US.NIYOFAMISPR","Nikkey Yen Options and Futures Combined Asset Manager/Institutional Spreading"]
["X.US.NIYOFDILONG","Nikkey Yen Options and Futures Combined Dealer Intermediary Long"]
["X.US.NIYOFDIDIFF","Nikkey Yen Options and Futures Combined Dealer Intermediary Long/Short Diff"]
["X.US.NIYOFDISHT","Nikkey Yen Options and Futures Combined Dealer Intermediary Short"]
["X.US.NIYOFDISPR","Nikkey Yen Options and Futures Combined Dealer Intermediary Spreading"]
["X.US.NIYOFLFLONG","Nikkey Yen Options and Futures Combined Leveraged Funds Long"]
["X.US.NIYOFLFDIFF","Nikkey Yen Options and Futures Combined Leveraged Funds Long/Short Diff"]
["X.US.NIYOFLFSHT","Nikkey Yen Options and Futures Combined Leveraged Funds Short"]
["X.US.NIYOFLFSPR","Nikkey Yen Options and Futures Combined Leveraged Funds Spreading"]
["X.US.NIYOFNRLONG","Nikkey Yen Options and Futures Combined Nonreportable Long"]
["X.US.NIYOFNRDIFF","Nikkey Yen Options and Futures Combined Nonreportable Long/Short Diff"]
["X.US.NIYOFNRSHT","Nikkey Yen Options and Futures Combined Nonreportable Short"]
["X.US.NIYOFORLONG","Nikkey Yen Options and Futures Combined Other Reportables Long"]
["X.US.NIYOFORDIFF","Nikkey Yen Options and Futures Combined Other Reportables Long/Short Diff"]
["X.US.NIYOFORSHT","Nikkey Yen Options and Futures Combined Other Reportables Short"]
["X.US.NIYOFORSPR","Nikkey Yen Options and Futures Combined Other Reportables Spreading"]
["X.US.NIYORLONG","Nikkey Yen Other Reportables Long"]
["X.US.NIYORDIFF","Nikkey Yen Other Reportables Long/Short Diff"]
["X.US.NIYORSHT","Nikkey Yen Other Reportables Short"]
["X.US.NIYORSPR","Nikkey Yen Other Reportables Spreading"]
["X.US.GNFMMLONG","Non Fat Dry Milk Managed Money Long"]
["X.US.GNFMMDIFF","Non Fat Dry Milk Managed Money Long/Short Diff"]
["X.US.GNFMMSHT","Non Fat Dry Milk Managed Money Short"]
["X.US.GNFMMSPR","Non Fat Dry Milk Managed Money Spreading"]
["X.US.GBFDNRLONG","Non Fat Dry Milk Nonreportable Long"]
["X.US.GBFDNRDIFF","Non Fat Dry Milk Nonreportable Long/Short Diff"]
["X.US.GBFDNRSHT","Non Fat Dry Milk Nonreportable Short"]
["X.US.GNFOFMMLONG","Non Fat Dry Milk Options and Futures Combined Managed Money Long"]
["X.US.GNFOFMMDIFF","Non Fat Dry Milk Options and Futures Combined Managed Money Long/Short Diff"]
["X.US.GNFOFMMSHT","Non Fat Dry Milk Options and Futures Combined Managed Money Short"]
["X.US.GNFOFMMSPR","Non Fat Dry Milk Options and Futures Combined Managed Money Spreading"]
["X.US.GNFOFNRLONG","Non Fat Dry Milk Options and Futures Combined Nonreportable Long"]
["X.US.GNFOFNRDIFF","Non Fat Dry Milk Options and Futures Combined Nonreportable Long/Short Diff"]
["X.US.GNFOFNRSHT","Non Fat Dry Milk Options and Futures Combined Nonreportable Short"]
["X.US.GNFOFORLONG","Non Fat Dry Milk Options and Futures Combined Other Reportables Long"]
["X.US.GNFOFORDIFF","Non Fat Dry Milk Options and Futures Combined Other Reportables Long/Short Diff"]
["X.US.GNFOFORSHT","Non Fat Dry Milk Options and Futures Combined Other Reportables Short"]
["X.US.GNFOFORSPR","Non Fat Dry Milk Options and Futures Combined Other Reportables Spreading"]
["X.US.GNFOFPMPULONG","Non Fat Dry Milk Options and Futures Combined Producer/Merchant/Processor/User Long"]
["X.US.GNFOFPMPUDIFF","Non Fat Dry Milk Options and Futures Combined Producer/Merchant/Processor/User Long/Short Diff"]
["X.US.GNFOFPMPUSHT","Non Fat Dry Milk Options and Futures Combined Producer/Merchant/Processor/User Short"]
["X.US.GNFOFSDLONG","Non Fat Dry Milk Options and Futures Combined Swap Dealers Long"]
["X.US.GNFOFSDDIFF","Non Fat Dry Milk Options and Futures Combined Swap Dealers Long/Short Diff"]
["X.US.GNFOFSDSHT","Non Fat Dry Milk Options and Futures Combined Swap Dealers Short"]
["X.US.GNFOFSDSPR","Non Fat Dry Milk Options and Futures Combined Swap Dealers Spreading"]
["X.US.GNFORLONG","Non Fat Dry Milk Other Reportables Long"]
["X.US.GNFORDIFF","Non Fat Dry Milk Other Reportables Long/Short Diff"]
["X.US.GNFORSHT","Non Fat Dry Milk Other Reportables Short"]
["X.US.GNFORSPR","Non Fat Dry Milk Other Reportables Spreading"]
["X.US.GNFPMPULNG","Non Fat Dry Milk Producer/Merchant/Processor/User Long"]
["X.US.GNFPMPUDIF","Non Fat Dry Milk Producer/Merchant/Processor/User Long/Short Diff"]
["X.US.GNFPMPUSHT","Non Fat Dry Milk Producer/Merchant/Processor/User Short"]
["X.US.GNFSDLONG","Non Fat Dry Milk Swap Dealers Long"]
["X.US.GNFSDDIFF","Non Fat Dry Milk Swap Dealers Long/Short Diff"]
["X.US.GNFSDSHT","Non Fat Dry Milk Swap Dealers Short"]
["X.US.GNFSDSPR","Non Fat Dry Milk Swap Dealers Spreading"]
["X.US.HOEMMLONG","NY Harbor ULSD Managed Money Long"]
["X.US.HOEMMDIFF","NY Harbor ULSD Managed Money Long/Short Diff"]
["X.US.HOEMMSHT","NY Harbor ULSD Managed Money Short"]
["X.US.HOEMMSPR","NY Harbor ULSD Managed Money Spreading"]
["X.US.HOEDNRLONG","NY Harbor ULSD Nonreportable Long"]
["X.US.HOENRDLONG","NY Harbor ULSD Nonreportable Long"]
["X.US.HOEDNRDIFF","NY Harbor ULSD Nonreportable Long/Short Diff"]
["X.US.HOENRDDIFF","NY Harbor ULSD Nonreportable Long/Short Diff"]
["X.US.HOEDNRSHT","NY Harbor ULSD Nonreportable Short"]
["X.US.HOENRDSHT","NY Harbor ULSD Nonreportable Short"]
["X.US.HOEOFMMLONG","NY Harbor ULSD Options and Futures Combined Managed Money Long"]
["X.US.HOEOFMMDIFF","NY Harbor ULSD Options and Futures Combined Managed Money Long/Short Diff"]
["X.US.HOEOFMMSHT","NY Harbor ULSD Options and Futures Combined Managed Money Short"]
["X.US.HOEOFMMSPR","NY Harbor ULSD Options and Futures Combined Managed Money Spreading"]
["X.US.HOEOFNRLONG","NY Harbor ULSD Options and Futures Combined Nonreportable Long"]
["X.US.HOEOFNRDIFF","NY Harbor ULSD Options and Futures Combined Nonreportable Long/Short Diff"]
["X.US.HOEOFNRSHT","NY Harbor ULSD Options and Futures Combined Nonreportable Short"]
["X.US.HOEOFORLONG","NY Harbor ULSD Options and Futures Combined Other Reportables Long"]
["X.US.HOEOFORDIFF","NY Harbor ULSD Options and Futures Combined Other Reportables Long/Short Diff"]
["X.US.HOEOFORSHT","NY Harbor ULSD Options and Futures Combined Other Reportables Short"]
["X.US.HOEOFORSPR","NY Harbor ULSD Options and Futures Combined Other Reportables Spreading"]
["X.US.HOEOFPMPULONG","NY Harbor ULSD Options and Futures Combined Producer/Merchant/Processor/User Long"]
["X.US.HOEOFPMPUDIFF","NY Harbor ULSD Options and Futures Combined Producer/Merchant/Processor/User Long/Short Diff"]
["X.US.HOEOFPMPUSHT","NY Harbor ULSD Options and Futures Combined Producer/Merchant/Processor/User Short"]
["X.US.HOEOFSDLONG","NY Harbor ULSD Options and Futures Combined Swap Dealers Long"]
["X.US.HOEOFSDDIFF","NY Harbor ULSD Options and Futures Combined Swap Dealers Long/Short Diff"]
["X.US.HOEOFSDSHT","NY Harbor ULSD Options and Futures Combined Swap Dealers Short"]
["X.US.HOEOFSDSPR","NY Harbor ULSD Options and Futures Combined Swap Dealers Spreading"]
["X.US.HOEORLONG","NY Harbor ULSD Other Reportables Long"]
["X.US.HOEORDIFF","NY Harbor ULSD Other Reportables Long/Short Diff"]
["X.US.HOEORSHT","NY Harbor ULSD Other Reportables Short"]
["X.US.HOEORSPR","NY Harbor ULSD Other Reportables Spreading"]
["X.US.HOEPMPULNG","NY Harbor ULSD Producer/Merchant/Processor/User Long"]
["X.US.HOEPMPUDIF","NY Harbor ULSD Producer/Merchant/Processor/User Long/Short Diff"]
["X.US.HOEPMPUSHT","NY Harbor ULSD Producer/Merchant/Processor/User Short"]
["X.US.HOESDLONG","NY Harbor ULSD Swap Dealers Long"]
["X.US.HOESDDIFF","NY Harbor ULSD Swap Dealers Long/Short Diff"]
["X.US.HOESDSHT","NY Harbor ULSD Swap Dealers Short"]
["X.US.HOESDSPR","NY Harbor ULSD Swap Dealers Spreading"]
["X.US.NE6AMILONG","NZ Dollar Asset Manager/Institutional Long"]
["X.US.NE6AMIDIFF","NZ Dollar Asset Manager/Institutional Long/Short Diff"]
["X.US.NE6AMISHT","NZ Dollar Asset Manager/Institutional Short"]
["X.US.NE6AMISPR","NZ Dollar Asset Manager/Institutional Spreading"]
["X.US.NE6DILONG","NZ Dollar Dealer Intermediary Long"]
["X.US.NE6DIDIFF","NZ Dollar Dealer Intermediary Long/Short Diff"]
["X.US.NE6DISHT","NZ Dollar Dealer Intermediary Short"]
["X.US.NE6DISPR","NZ Dollar Dealer Intermediary Spreading"]
["X.US.NE6LFLONG","NZ Dollar Leveraged Funds Long"]
["X.US.NE6LFDIFF","NZ Dollar Leveraged Funds Long/Short Diff"]
["X.US.NE6LFSHT","NZ Dollar Leveraged Funds Short"]
["X.US.NE6LFSPR","NZ Dollar Leveraged Funds Spreading"]
["X.US.NE6DNRLONG","NZ Dollar Nonreportable Long"]
["X.US.NE6DNRDIFF","NZ Dollar Nonreportable Long/Short Diff"]
["X.US.NE6DNRSHT","NZ Dollar Nonreportable Short"]
["X.US.NE6OFAMILONG","NZ Dollar Options and Futures Combined Asset Manager/Institutional Long"]
["X.US.NE6OFAMIDIFF","NZ Dollar Options and Futures Combined Asset Manager/Institutional Long/Short Diff"]
["X.US.NE6OFAMISHT","NZ Dollar Options and Futures Combined Asset Manager/Institutional Short"]
["X.US.NE6OFAMISPR","NZ Dollar Options and Futures Combined Asset Manager/Institutional Spreading"]
["X.US.NE6OFDILONG","NZ Dollar Options and Futures Combined Dealer Intermediary Long"]
["X.US.NE6OFDIDIFF","NZ Dollar Options and Futures Combined Dealer Intermediary Long/Short Diff"]
["X.US.NE6OFDISHT","NZ Dollar Options and Futures Combined Dealer Intermediary Short"]
["X.US.NE6OFDISPR","NZ Dollar Options and Futures Combined Dealer Intermediary Spreading"]
["X.US.NE6OFLFLONG","NZ Dollar Options and Futures Combined Leveraged Funds Long"]
["X.US.NE6OFLFDIFF","NZ Dollar Options and Futures Combined Leveraged Funds Long/Short Diff"]
["X.US.NE6OFLFSHT","NZ Dollar Options and Futures Combined Leveraged Funds Short"]
["X.US.NE6OFLFSPR","NZ Dollar Options and Futures Combined Leveraged Funds Spreading"]
["X.US.NE6OFNRLONG","NZ Dollar Options and Futures Combined Nonreportable Long"]
["X.US.NE6OFNRDIFF","NZ Dollar Options and Futures Combined Nonreportable Long/Short Diff"]
["X.US.NE6OFNRSHT","NZ Dollar Options and Futures Combined Nonreportable Short"]
["X.US.NE6OFORLONG","NZ Dollar Options and Futures Combined Other Reportables Long"]
["X.US.NE6OFORDIFF","NZ Dollar Options and Futures Combined Other Reportables Long/Short Diff"]
["X.US.NE6OFORSHT","NZ Dollar Options and Futures Combined Other Reportables Short"]
["X.US.NE6OFORSPR","NZ Dollar Options and Futures Combined Other Reportables Spreading"]
["X.US.NE6ORLONG","NZ Dollar Other Reportables Long"]
["X.US.NE6ORDIFF","NZ Dollar Other Reportables Long/Short Diff"]
["X.US.NE6ORSHT","NZ Dollar Other Reportables Short"]
["X.US.NE6ORSPR","NZ Dollar Other Reportables Spreading"]
["X.US.ZOEMMLONG","Oats Managed Money Long"]
["X.US.ZOEMMDIFF","Oats Managed Money Long/Short Diff"]
["X.US.ZOEMMSHT","Oats Managed Money Short"]
["X.US.ZOEMMSPR","Oats Managed Money Spreading"]
["X.US.ZOEDNRLONG","Oats Nonreportable Long"]
["X.US.ZOEDNRDIFF","Oats Nonreportable Long/Short Diff"]
["X.US.ZOEDNRSHT","Oats Nonreportable Short"]
["X.US.ZOEOFMMLONG","Oats Options and Futures Combined Managed Money Long"]
["X.US.ZOEOFMMDIFF","Oats Options and Futures Combined Managed Money Long/Short Diff"]
["X.US.ZOEOFMMSHT","Oats Options and Futures Combined Managed Money Short"]
["X.US.ZOEOFMMSPR","Oats Options and Futures Combined Managed Money Spreading"]
["X.US.ZOEOFNRLONG","Oats Options and Futures Combined Nonreportable Long"]
["X.US.ZOEOFNRDIFF","Oats Options and Futures Combined Nonreportable Long/Short Diff"]
["X.US.ZOEOFNRSHT","Oats Options and Futures Combined Nonreportable Short"]
["X.US.ZOEOFORLONG","Oats Options and Futures Combined Other Reportables Long"]
["X.US.ZOEOFORDIFF","Oats Options and Futures Combined Other Reportables Long/Short Diff"]
["X.US.ZOEOFORSHT","Oats Options and Futures Combined Other Reportables Short"]
["X.US.ZOEOFORSPR","Oats Options and Futures Combined Other Reportables Spreading"]
["X.US.ZOEOFPMPULONG","Oats Options and Futures Combined Producer/Merchant/Processor/User Long"]
["X.US.ZOEOFPMPUDIFF","Oats Options and Futures Combined Producer/Merchant/Processor/User Long/Short Diff"]
["X.US.ZOEOFPMPUSHT","Oats Options and Futures Combined Producer/Merchant/Processor/User Short"]
["X.US.ZOEOFSDLONG","Oats Options and Futures Combined Swap Dealers Long"]
["X.US.ZOEOFSDDIFF","Oats Options and Futures Combined Swap Dealers Long/Short Diff"]
["X.US.ZOEOFSDSHT","Oats Options and Futures Combined Swap Dealers Short"]
["X.US.ZOEOFSDSPR","Oats Options and Futures Combined Swap Dealers Spreading"]
["X.US.ZOEORLONG","Oats Other Reportables Long"]
["X.US.ZOEORDIFF","Oats Other Reportables Long/Short Diff"]
["X.US.ZOEORSHT","Oats Other Reportables Short"]
["X.US.ZOEORSPR","Oats Other Reportables Spreading"]
["X.US.ZOEPMPULNG","Oats Producer/Merchant/Processor/User Long"]
["X.US.ZOEPMPUDIF","Oats Producer/Merchant/Processor/User Long/Short Diff"]
["X.US.ZOEPMPUSHT","Oats Producer/Merchant/Processor/User Short"]
["X.US.ZOESDLONG","Oats Swap Dealers Long"]
["X.US.ZOESDDIFF","Oats Swap Dealers Long/Short Diff"]
["X.US.ZOESDSHT","Oats Swap Dealers Short"]
["X.US.ZOESDSPR","Oats Swap Dealers Spreading"]
["X.US.OJEMMLONG","Orange Juice Managed Money Long"]
["X.US.OJEMMDIFF","Orange Juice Managed Money Long/Short Diff"]
["X.US.OJEMMSHT","Orange Juice Managed Money Short"]
["X.US.OJEMMSPR","Orange Juice Managed Money Spreading"]
["X.US.OJEDNRLONG","Orange Juice Nonreportable Long"]
["X.US.OJEDNRDIFF","Orange Juice Nonreportable Long/Short Diff"]
["X.US.OJEDNRSHT","Orange Juice Nonreportable Short"]
["X.US.OJEOFMMLONG","Orange Juice Options and Futures Combined Managed Money Long"]
["X.US.OJEOFMMDIFF","Orange Juice Options and Futures Combined Managed Money Long/Short Diff"]
["X.US.OJEOFMMSHT","Orange Juice Options and Futures Combined Managed Money Short"]
["X.US.OJEOFMMSPR","Orange Juice Options and Futures Combined Managed Money Spreading"]
["X.US.OJEOFNRLONG","Orange Juice Options and Futures Combined Nonreportable Long"]
["X.US.OJEOFNRDIFF","Orange Juice Options and Futures Combined Nonreportable Long/Short Diff"]
["X.US.OJEOFNRSHT","Orange Juice Options and Futures Combined Nonreportable Short"]
["X.US.OJEOFORLONG","Orange Juice Options and Futures Combined Other Reportables Long"]
["X.US.OJEOFORDIFF","Orange Juice Options and Futures Combined Other Reportables Long/Short Diff"]
["X.US.OJEOFORSHT","Orange Juice Options and Futures Combined Other Reportables Short"]
["X.US.OJEOFORSPR","Orange Juice Options and Futures Combined Other Reportables Spreading"]
["X.US.OJEOFPMPULONG","Orange Juice Options and Futures Combined Producer/Merchant/Processor/User Long"]
["X.US.OJEOFPMPUDIFF","Orange Juice Options and Futures Combined Producer/Merchant/Processor/User Long/Short Diff"]
["X.US.OJEOFPMPUSHT","Orange Juice Options and Futures Combined Producer/Merchant/Processor/User Short"]
["X.US.OJEOFSDLONG","Orange Juice Options and Futures Combined Swap Dealers Long"]
["X.US.OJEOFSDDIFF","Orange Juice Options and Futures Combined Swap Dealers Long/Short Diff"]
["X.US.OJEOFSDSHT","Orange Juice Options and Futures Combined Swap Dealers Short"]
["X.US.OJEOFSDSPR","Orange Juice Options and Futures Combined Swap Dealers Spreading"]
["X.US.OJEORLONG","Orange Juice Other Reportables Long"]
["X.US.OJEORDIFF","Orange Juice Other Reportables Long/Short Diff"]
["X.US.OJEORSHT","Orange Juice Other Reportables Short"]
["X.US.OJEORSPR","Orange Juice Other Reportables Spreading"]
["X.US.OJEPMPULNG","Orange Juice Producer/Merchant/Processor/User Long"]
["X.US.OJEPMPUDIF","Orange Juice Producer/Merchant/Processor/User Long/Short Diff"]
["X.US.OJEPMPUSHT","Orange Juice Producer/Merchant/Processor/User Short"]
["X.US.OJESDLONG","Orange Juice Swap Dealers Long"]
["X.US.OJESDDIFF","Orange Juice Swap Dealers Long/Short Diff"]
["X.US.OJESDSHT","Orange Juice Swap Dealers Short"]
["X.US.OJESDSPR","Orange Juice Swap Dealers Spreading"]
["X.US.PAEMMLONG","Palladium Managed Money Long"]
["X.US.PAEMMDIFF","Palladium Managed Money Long/Short Diff"]
["X.US.PAEMMSHT","Palladium Managed Money Short"]
["X.US.PAEMMSPR","Palladium Managed Money Spreading"]
["X.US.PAEDNRLONG","Palladium Nonreportable Long"]
["X.US.PAEDNRDIFF","Palladium Nonreportable Long/Short Diff"]
["X.US.PAEDNRSHT","Palladium Nonreportable Short"]
["X.US.PAEOFMMLONG","Palladium Options and Futures Combined Managed Money Long"]
["X.US.PAEOFMMDIFF","Palladium Options and Futures Combined Managed Money Long/Short Diff"]
["X.US.PAEOFMMSHT","Palladium Options and Futures Combined Managed Money Short"]
["X.US.PAEOFMMSPR","Palladium Options and Futures Combined Managed Money Spreading"]
["X.US.PAEOFNRLONG","Palladium Options and Futures Combined Nonreportable Long"]
["X.US.PAEOFNRDIFF","Palladium Options and Futures Combined Nonreportable Long/Short Diff"]
["X.US.PAEOFNRSHT","Palladium Options and Futures Combined Nonreportable Short"]
["X.US.PAEOFORLONG","Palladium Options and Futures Combined Other Reportables Long"]
["X.US.PAEOFORDIFF","Palladium Options and Futures Combined Other Reportables Long/Short Diff"]
["X.US.PAEOFORSHT","Palladium Options and Futures Combined Other Reportables Short"]
["X.US.PAEOFORSPR","Palladium Options and Futures Combined Other Reportables Spreading"]
["X.US.PAEOFPMPULONG","Palladium Options and Futures Combined Producer/Merchant/Processor/User Long"]
["X.US.PAEOFPMPUDIFF","Palladium Options and Futures Combined Producer/Merchant/Processor/User Long/Short Diff"]
["X.US.PAEOFPMPUSHT","Palladium Options and Futures Combined Producer/Merchant/Processor/User Short"]
["X.US.PAEOFSDLONG","Palladium Options and Futures Combined Swap Dealers Long"]
["X.US.PAEOFSDDIFF","Palladium Options and Futures Combined Swap Dealers Long/Short Diff"]
["X.US.PAEOFSDSHT","Palladium Options and Futures Combined Swap Dealers Short"]
["X.US.PAEOFSDSPR","Palladium Options and Futures Combined Swap Dealers Spreading"]
["X.US.PAEORLONG","Palladium Other Reportables Long"]
["X.US.PAEORDIFF","Palladium Other Reportables Long/Short Diff"]
["X.US.PAEORSHT","Palladium Other Reportables Short"]
["X.US.PAEORSPR","Palladium Other Reportables Spreading"]
["X.US.PAEPMPULNG","Palladium Producer/Merchant/Processor/User Long"]
["X.US.PAEPMPUDIF","Palladium Producer/Merchant/Processor/User Long/Short Diff"]
["X.US.PAEPMPUSHT","Palladium Producer/Merchant/Processor/User Short"]
["X.US.PAESDLONG","Palladium Swap Dealers Long"]
["X.US.PAESDDIFF","Palladium Swap Dealers Long/Short Diff"]
["X.US.PAESDSHT","Palladium Swap Dealers Short"]
["X.US.PAESDSPR","Palladium Swap Dealers Spreading"]
["X.US.PLEMMLONG","Platinum Managed Money Long"]
["X.US.PLEMMDIFF","Platinum Managed Money Long/Short Diff"]
["X.US.PLEMMSHT","Platinum Managed Money Short"]
["X.US.PLEMMSPR","Platinum Managed Money Spreading"]
["X.US.PLEDNRLONG","Platinum Nonreportable Long"]
["X.US.PLEDNRDIFF","Platinum Nonreportable Long/Short Diff"]
["X.US.PLEDNRSHT","Platinum Nonreportable Short"]
["X.US.PLEOFMMLONG","Platinum Options and Futures Combined Managed Money Long"]
["X.US.PLEOFMMDIFF","Platinum Options and Futures Combined Managed Money Long/Short Diff"]
["X.US.PLEOFMMSHT","Platinum Options and Futures Combined Managed Money Short"]
["X.US.PLEOFMMSPR","Platinum Options and Futures Combined Managed Money Spreading"]
["X.US.PLEOFNRLONG","Platinum Options and Futures Combined Nonreportable Long"]
["X.US.PLEOFNRDIFF","Platinum Options and Futures Combined Nonreportable Long/Short Diff"]
["X.US.PLEOFNRSHT","Platinum Options and Futures Combined Nonreportable Short"]
["X.US.PLEOFORLONG","Platinum Options and Futures Combined Other Reportables Long"]
["X.US.PLEOFORDIFF","Platinum Options and Futures Combined Other Reportables Long/Short Diff"]
["X.US.PLEOFORSHT","Platinum Options and Futures Combined Other Reportables Short"]
["X.US.PLEOFORSPR","Platinum Options and Futures Combined Other Reportables Spreading"]
["X.US.PLEOFPMPULONG","Platinum Options and Futures Combined Producer/Merchant/Processor/User Long"]
["X.US.PLEOFPMPUDIFF","Platinum Options and Futures Combined Producer/Merchant/Processor/User Long/Short Diff"]
["X.US.PLEOFPMPUSHT","Platinum Options and Futures Combined Producer/Merchant/Processor/User Short"]
["X.US.PLEOFSDLONG","Platinum Options and Futures Combined Swap Dealers Long"]
["X.US.PLEOFSDDIFF","Platinum Options and Futures Combined Swap Dealers Long/Short Diff"]
["X.US.PLEOFSDSHT","Platinum Options and Futures Combined Swap Dealers Short"]
["X.US.PLEOFSDSPR","Platinum Options and Futures Combined Swap Dealers Spreading"]
["X.US.PLEORLONG","Platinum Other Reportables Long"]
["X.US.PLEORDIFF","Platinum Other Reportables Long/Short Diff"]
["X.US.PLEORSHT","Platinum Other Reportables Short"]
["X.US.PLEORSPR","Platinum Other Reportables Spreading"]
["X.US.PLEPMPULNG","Platinum Producer/Merchant/Processor/User Long"]
["X.US.PLEPMPUDIF","Platinum Producer/Merchant/Processor/User Long/Short Diff"]
["X.US.PLEPMPUSHT","Platinum Producer/Merchant/Processor/User Short"]
["X.US.PLESDLONG","Platinum Swap Dealers Long"]
["X.US.PLESDDIFF","Platinum Swap Dealers Long/Short Diff"]
["X.US.PLESDSHT","Platinum Swap Dealers Short"]
["X.US.PLESDSPR","Platinum Swap Dealers Spreading"]
["X.US.RBEMMLONG","RBOB Gasoline Managed Money Long"]
["X.US.RBEMMDIFF","RBOB Gasoline Managed Money Long/Short Diff"]
["X.US.RBEMMSHT","RBOB Gasoline Managed Money Short"]
["X.US.RBEMMSPR","RBOB Gasoline Managed Money Spreading"]
["X.US.RBEDNRLONG","RBOB Gasoline Nonreportable Long"]
["X.US.RBENRDLONG","RBOB Gasoline Nonreportable Long"]
["X.US.RBEDNRDIFF","RBOB Gasoline Nonreportable Long/Short Diff"]
["X.US.RBENRDDIFF","RBOB Gasoline Nonreportable Long/Short Diff"]
["X.US.RBEDNRSHT","RBOB Gasoline Nonreportable Short"]
["X.US.RBENRDSHT","RBOB Gasoline Nonreportable Short"]
["X.US.RBEOFMMLONG","RBOB Gasoline Options and Futures Combined Managed Money Long"]
["X.US.RBEOFMMDIFF","RBOB Gasoline Options and Futures Combined Managed Money Long/Short Diff"]
["X.US.RBEOFMMSHT","RBOB Gasoline Options and Futures Combined Managed Money Short"]
["X.US.RBEOFMMSPR","RBOB Gasoline Options and Futures Combined Managed Money Spreading"]
["X.US.RBEOFNRLONG","RBOB Gasoline Options and Futures Combined Nonreportable Long"]
["X.US.RBEOFNRDIFF","RBOB Gasoline Options and Futures Combined Nonreportable Long/Short Diff"]
["X.US.RBEOFNRSHT","RBOB Gasoline Options and Futures Combined Nonreportable Short"]
["X.US.RBEOFORLONG","RBOB Gasoline Options and Futures Combined Other Reportables Long"]
["X.US.RBEOFORDIFF","RBOB Gasoline Options and Futures Combined Other Reportables Long/Short Diff"]
["X.US.RBEOFORSHT","RBOB Gasoline Options and Futures Combined Other Reportables Short"]
["X.US.RBEOFORSPR","RBOB Gasoline Options and Futures Combined Other Reportables Spreading"]
["X.US.RBEOFPMPULONG","RBOB Gasoline Options and Futures Combined Producer/Merchant/Processor/User Long"]
["X.US.RBEOFPMPUDIFF","RBOB Gasoline Options and Futures Combined Producer/Merchant/Processor/User Long/Short Diff"]
["X.US.RBEOFPMPUSHT","RBOB Gasoline Options and Futures Combined Producer/Merchant/Processor/User Short"]
["X.US.RBEOFSDLONG","RBOB Gasoline Options and Futures Combined Swap Dealers Long"]
["X.US.RBEOFSDDIFF","RBOB Gasoline Options and Futures Combined Swap Dealers Long/Short Diff"]
["X.US.RBEOFSDSHT","RBOB Gasoline Options and Futures Combined Swap Dealers Short"]
["X.US.RBEOFSDSPR","RBOB Gasoline Options and Futures Combined Swap Dealers Spreading"]
["X.US.RBEORLONG","RBOB Gasoline Other Reportables Long"]
["X.US.RBEORDIFF","RBOB Gasoline Other Reportables Long/Short Diff"]
["X.US.RBEORSHT","RBOB Gasoline Other Reportables Short"]
["X.US.RBEORSPR","RBOB Gasoline Other Reportables Spreading"]
["X.US.RBEPMPULNG","RBOB Gasoline Producer/Merchant/Processor/User Long"]
["X.US.RBEPMPUDIF","RBOB Gasoline Producer/Merchant/Processor/User Long/Short Diff"]
["X.US.RBEPMPUSHT","RBOB Gasoline Producer/Merchant/Processor/User Short"]
["X.US.RBESDLONG","RBOB Gasoline Swap Dealers Long"]
["X.US.RBESDDIFF","RBOB Gasoline Swap Dealers Long/Short Diff"]
["X.US.RBESDSHT","RBOB Gasoline Swap Dealers Short"]
["X.US.RBESDSPR","RBOB Gasoline Swap Dealers Spreading"]
["X.US.ZREMMLONG","Rough Rice Managed Money Long"]
["X.US.ZREMMDIFF","Rough Rice Managed Money Long/Short Diff"]
["X.US.ZREMMSHT","Rough Rice Managed Money Short"]
["X.US.ZREMMSPR","Rough Rice Managed Money Spreading"]
["X.US.ZREDNRLONG","Rough Rice Nonreportable Long"]
["X.US.ZREDNRDIFF","Rough Rice Nonreportable Long/Short Diff"]
["X.US.ZREDNRSHT","Rough Rice Nonreportable Short"]
["X.US.ZREOFMMLONG","Rough Rice Options and Futures Combined Managed Money Long"]
["X.US.ZREOFMMDIFF","Rough Rice Options and Futures Combined Managed Money Long/Short Diff"]
["X.US.ZREOFMMSHT","Rough Rice Options and Futures Combined Managed Money Short"]
["X.US.ZREOFMMSPR","Rough Rice Options and Futures Combined Managed Money Spreading"]
["X.US.ZREOFNRLONG","Rough Rice Options and Futures Combined Nonreportable Long"]
["X.US.ZREOFNRDIFF","Rough Rice Options and Futures Combined Nonreportable Long/Short Diff"]
["X.US.ZREOFNRSHT","Rough Rice Options and Futures Combined Nonreportable Short"]
["X.US.ZREOFORLONG","Rough Rice Options and Futures Combined Other Reportables Long"]
["X.US.ZREOFORDIFF","Rough Rice Options and Futures Combined Other Reportables Long/Short Diff"]
["X.US.ZREOFORSHT","Rough Rice Options and Futures Combined Other Reportables Short"]
["X.US.ZREOFORSPR","Rough Rice Options and Futures Combined Other Reportables Spreading"]
["X.US.ZREOFPMPULONG","Rough Rice Options and Futures Combined Producer/Merchant/Processor/User Long"]
["X.US.ZREOFPMPUDIFF","Rough Rice Options and Futures Combined Producer/Merchant/Processor/User Long/Short Diff"]
["X.US.ZREOFPMPUSHT","Rough Rice Options and Futures Combined Producer/Merchant/Processor/User Short"]
["X.US.ZREOFSDLONG","Rough Rice Options and Futures Combined Swap Dealers Long"]
["X.US.ZREOFSDDIFF","Rough Rice Options and Futures Combined Swap Dealers Long/Short Diff"]
["X.US.ZREOFSDSHT","Rough Rice Options and Futures Combined Swap Dealers Short"]
["X.US.ZREOFSDSPR","Rough Rice Options and Futures Combined Swap Dealers Spreading"]
["X.US.ZREORLONG","Rough Rice Other Reportables Long"]
["X.US.ZREORDIFF","Rough Rice Other Reportables Long/Short Diff"]
["X.US.ZREORSHT","Rough Rice Other Reportables Short"]
["X.US.ZREORSPR","Rough Rice Other Reportables Spreading"]
["X.US.ZREPMPULNG","Rough Rice Producer/Merchant/Processor/User Long"]
["X.US.ZREPMPUDIF","Rough Rice Producer/Merchant/Processor/User Long/Short Diff"]
["X.US.ZREPMPUSHT","Rough Rice Producer/Merchant/Processor/User Short"]
["X.US.ZRESDLONG","Rough Rice Swap Dealers Long"]
["X.US.ZRESDDIFF","Rough Rice Swap Dealers Long/Short Diff"]
["X.US.ZRESDSHT","Rough Rice Swap Dealers Short"]
["X.US.ZRESDSPR","Rough Rice Swap Dealers Spreading"]
["X.US.RU6AMILONG","Russian Ruble Asset Manager/Institutional Long"]
["X.US.RU6AMIDIFF","Russian Ruble Asset Manager/Institutional Long/Short Diff"]
["X.US.RU6AMISHT","Russian Ruble Asset Manager/Institutional Short"]
["X.US.RU6AMISPR","Russian Ruble Asset Manager/Institutional Spreading"]
["X.US.RU6DILONG","Russian Ruble Dealer Intermediary Long"]
["X.US.RU6DIDIFF","Russian Ruble Dealer Intermediary Long/Short Diff"]
["X.US.RU6DISHT","Russian Ruble Dealer Intermediary Short"]
["X.US.RU6DISPR","Russian Ruble Dealer Intermediary Spreading"]
["X.US.RU6LFLONG","Russian Ruble Leveraged Funds Long"]
["X.US.RU6LFDIFF","Russian Ruble Leveraged Funds Long/Short Diff"]
["X.US.RU6LFSHT","Russian Ruble Leveraged Funds Short"]
["X.US.RU6LFSPR","Russian Ruble Leveraged Funds Spreading"]
["X.US.RU6DNRLONG","Russian Ruble Nonreportable Long"]
["X.US.RU6DNRDIFF","Russian Ruble Nonreportable Long/Short Diff"]
["X.US.RU6DNRSHT","Russian Ruble Nonreportable Short"]
["X.US.RU6OFAMILONG","Russian Ruble Options and Futures Combined Asset Manager/Institutional Long"]
["X.US.RU6OFAMIDIFF","Russian Ruble Options and Futures Combined Asset Manager/Institutional Long/Short Diff"]
["X.US.RU6OFAMISHT","Russian Ruble Options and Futures Combined Asset Manager/Institutional Short"]
["X.US.RU6OFAMISPR","Russian Ruble Options and Futures Combined Asset Manager/Institutional Spreading"]
["X.US.RU6OFDILONG","Russian Ruble Options and Futures Combined Dealer Intermediary Long"]
["X.US.RU6OFDIDIFF","Russian Ruble Options and Futures Combined Dealer Intermediary Long/Short Diff"]
["X.US.RU6OFDISHT","Russian Ruble Options and Futures Combined Dealer Intermediary Short"]
["X.US.RU6OFDISPR","Russian Ruble Options and Futures Combined Dealer Intermediary Spreading"]
["X.US.RU6OFLFLONG","Russian Ruble Options and Futures Combined Leveraged Funds Long"]
["X.US.RU6OFLFDIFF","Russian Ruble Options and Futures Combined Leveraged Funds Long/Short Diff"]
["X.US.RU6OFLFSHT","Russian Ruble Options and Futures Combined Leveraged Funds Short"]
["X.US.RU6OFLFSPR","Russian Ruble Options and Futures Combined Leveraged Funds Spreading"]
["X.US.RU6OFNRLONG","Russian Ruble Options and Futures Combined Nonreportable Long"]
["X.US.RU6OFNRDIFF","Russian Ruble Options and Futures Combined Nonreportable Long/Short Diff"]
["X.US.RU6OFNRSHT","Russian Ruble Options and Futures Combined Nonreportable Short"]
["X.US.RU6OFORLONG","Russian Ruble Options and Futures Combined Other Reportables Long"]
["X.US.RU6OFORDIFF","Russian Ruble Options and Futures Combined Other Reportables Long/Short Diff"]
["X.US.RU6OFORSHT","Russian Ruble Options and Futures Combined Other Reportables Short"]
["X.US.RU6OFORSPR","Russian Ruble Options and Futures Combined Other Reportables Spreading"]
["X.US.RU6ORLONG","Russian Ruble Other Reportables Long"]
["X.US.RU6ORDIFF","Russian Ruble Other Reportables Long/Short Diff"]
["X.US.RU6ORSHT","Russian Ruble Other Reportables Short"]
["X.US.RU6ORSPR","Russian Ruble Other Reportables Spreading"]
["X.US.SIEMMLONG","Silver Managed Money Long"]
["X.US.SIEMMDIFF","Silver Managed Money Long/Short Diff"]
["X.US.SIEMMSHT","Silver Managed Money Short"]
["X.US.SIEMMSPR","Silver Managed Money Spreading"]
["X.US.SIEDNRLONG","Silver Nonreportable Long"]
["X.US.SIEDNRDIFF","Silver Nonreportable Long/Short Diff"]
["X.US.SIEDNRSHT","Silver Nonreportable Short"]
["X.US.SIEOFMMLONG","Silver Options and Futures Combined Managed Money Long"]
["X.US.SIEOFMMDIFF","Silver Options and Futures Combined Managed Money Long/Short Diff"]
["X.US.SIEOFMMSHT","Silver Options and Futures Combined Managed Money Short"]
["X.US.SIEOFMMSPR","Silver Options and Futures Combined Managed Money Spreading"]
["X.US.SIEOFNRLONG","Silver Options and Futures Combined Nonreportable Long"]
["X.US.SIEOFNRDIFF","Silver Options and Futures Combined Nonreportable Long/Short Diff"]
["X.US.SIEOFNRSHT","Silver Options and Futures Combined Nonreportable Short"]
["X.US.SIEOFORLONG","Silver Options and Futures Combined Other Reportables Long"]
["X.US.SIEOFORDIFF","Silver Options and Futures Combined Other Reportables Long/Short Diff"]
["X.US.SIEOFORSHT","Silver Options and Futures Combined Other Reportables Short"]
["X.US.SIEOFORSPR","Silver Options and Futures Combined Other Reportables Spreading"]
["X.US.SIEOFPMPULONG","Silver Options and Futures Combined Producer/Merchant/Processor/User Long"]
["X.US.SIEOFPMPUDIFF","Silver Options and Futures Combined Producer/Merchant/Processor/User Long/Short Diff"]
["X.US.SIEOFPMPUSHT","Silver Options and Futures Combined Producer/Merchant/Processor/User Short"]
["X.US.SIEOFSDLONG","Silver Options and Futures Combined Swap Dealers Long"]
["X.US.SIEOFSDDIFF","Silver Options and Futures Combined Swap Dealers Long/Short Diff"]
["X.US.SIEOFSDSHT","Silver Options and Futures Combined Swap Dealers Short"]
["X.US.SIEOFSDSPR","Silver Options and Futures Combined Swap Dealers Spreading"]
["X.US.SIEORLONG","Silver Other Reportables Long"]
["X.US.SIEORDIFF","Silver Other Reportables Long/Short Diff"]
["X.US.SIEORSHT","Silver Other Reportables Short"]
["X.US.SIEORSPR","Silver Other Reportables Spreading"]
["X.US.SIEPMPULNG","Silver Producer/Merchant/Processor/User Long"]
["X.US.SIEPMPUDIF","Silver Producer/Merchant/Processor/User Long/Short Diff"]
["X.US.SIEPMPUSHT","Silver Producer/Merchant/Processor/User Short"]
["X.US.SIESDLONG","Silver Swap Dealers Long"]
["X.US.SIESDDIFF","Silver Swap Dealers Long/Short Diff"]
["X.US.SIESDSHT","Silver Swap Dealers Short"]
["X.US.SIESDSPR","Silver Swap Dealers Spreading"]
["X.US.SR1AMILONG","SOFR 1M Asset Manager/Institutional Long"]
["X.US.SR1AMIDIFF","SOFR 1M Asset Manager/Institutional Long/Short Diff"]
["X.US.SR1AMISHT","SOFR 1M Asset Manager/Institutional Short"]
["X.US.SR1AMISPR","SOFR 1M Asset Manager/Institutional Spreading"]
["X.US.SR1DILONG","SOFR 1M Dealer Intermediary Long"]
["X.US.SR1DIDIFF","SOFR 1M Dealer Intermediary Long/Short Diff"]
["X.US.SR1DISHT","SOFR 1M Dealer Intermediary Short"]
["X.US.SR1DISPR","SOFR 1M Dealer Intermediary Spreading"]
["X.US.SR1LFLONG","SOFR 1M Leveraged Funds Long"]
["X.US.SR1LFDIFF","SOFR 1M Leveraged Funds Long/Short Diff"]
["X.US.SR1LFSHT","SOFR 1M Leveraged Funds Short"]
["X.US.SR1LFSPR","SOFR 1M Leveraged Funds Spreading"]
["X.US.SR1DNRLONG","SOFR 1M Nonreportable Long"]
["X.US.SR1DNRDIFF","SOFR 1M Nonreportable Long/Short Diff"]
["X.US.SR1DNRSHT","SOFR 1M Nonreportable Short"]
["X.US.SR1OFAMILONG","SOFR 1M Options and Futures Combined Asset Manager/Institutional Long"]
["X.US.SR1OFAMIDIFF","SOFR 1M Options and Futures Combined Asset Manager/Institutional Long/Short Diff"]
["X.US.SR1OFAMISHT","SOFR 1M Options and Futures Combined Asset Manager/Institutional Short"]
["X.US.SR1OFAMISPR","SOFR 1M Options and Futures Combined Asset Manager/Institutional Spreading"]
["X.US.SR1OFDILONG","SOFR 1M Options and Futures Combined Dealer Intermediary Long"]
["X.US.SR1OFDIDIFF","SOFR 1M Options and Futures Combined Dealer Intermediary Long/Short Diff"]
["X.US.SR1OFDISHT","SOFR 1M Options and Futures Combined Dealer Intermediary Short"]
["X.US.SR1OFDISPR","SOFR 1M Options and Futures Combined Dealer Intermediary Spreading"]
["X.US.SR1OFLFLONG","SOFR 1M Options and Futures Combined Leveraged Funds Long"]
["X.US.SR1OFLFDIFF","SOFR 1M Options and Futures Combined Leveraged Funds Long/Short Diff"]
["X.US.SR1OFLFSHT","SOFR 1M Options and Futures Combined Leveraged Funds Short"]
["X.US.SR1OFLFSPR","SOFR 1M Options and Futures Combined Leveraged Funds Spreading"]
["X.US.SR1OFNRLONG","SOFR 1M Options and Futures Combined Nonreportable Long"]
["X.US.SR1OFNRDIFF","SOFR 1M Options and Futures Combined Nonreportable Long/Short Diff"]
["X.US.SR1OFNRSHT","SOFR 1M Options and Futures Combined Nonreportable Short"]
["X.US.SR1OFORLONG","SOFR 1M Options and Futures Combined Other Reportables Long"]
["X.US.SR1OFORDIFF","SOFR 1M Options and Futures Combined Other Reportables Long/Short Diff"]
["X.US.SR1OFORSHT","SOFR 1M Options and Futures Combined Other Reportables Short"]
["X.US.SR1OFORSPR","SOFR 1M Options and Futures Combined Other Reportables Spreading"]
["X.US.SR1ORLONG","SOFR 1M Other Reportables Long"]
["X.US.SR1ORDIFF","SOFR 1M Other Reportables Long/Short Diff"]
["X.US.SR1ORSHT","SOFR 1M Other Reportables Short"]
["X.US.SR1ORSPR","SOFR 1M Other Reportables Spreading"]
["X.US.SR3AMILONG","SOFR 3M Asset Manager/Institutional Long"]
["X.US.SR3AMIDIFF","SOFR 3M Asset Manager/Institutional Long/Short Diff"]
["X.US.SR3AMISHT","SOFR 3M Asset Manager/Institutional Short"]
["X.US.SR3AMISPR","SOFR 3M Asset Manager/Institutional Spreading"]
["X.US.SR3DILONG","SOFR 3M Dealer Intermediary Long"]
["X.US.SR3DIDIFF","SOFR 3M Dealer Intermediary Long/Short Diff"]
["X.US.SR3DISHT","SOFR 3M Dealer Intermediary Short"]
["X.US.SR3DISPR","SOFR 3M Dealer Intermediary Spreading"]
["X.US.SR3LFLONG","SOFR 3M Leveraged Funds Long"]
["X.US.SR3LFDIFF","SOFR 3M Leveraged Funds Long/Short Diff"]
["X.US.SR3LFSHT","SOFR 3M Leveraged Funds Short"]
["X.US.SR3LFSPR","SOFR 3M Leveraged Funds Spreading"]
["X.US.SR3DNRLONG","SOFR 3M Nonreportable Long"]
["X.US.SR3DNRDIFF","SOFR 3M Nonreportable Long/Short Diff"]
["X.US.SR3DNRSHT","SOFR 3M Nonreportable Short"]
["X.US.SR3OFAMILONG","SOFR 3M Options and Futures Combined Asset Manager/Institutional Long"]
["X.US.SR3OFAMIDIFF","SOFR 3M Options and Futures Combined Asset Manager/Institutional Long/Short Diff"]
["X.US.SR3OFAMISHT","SOFR 3M Options and Futures Combined Asset Manager/Institutional Short"]
["X.US.SR3OFAMISPR","SOFR 3M Options and Futures Combined Asset Manager/Institutional Spreading"]
["X.US.SR3OFDILONG","SOFR 3M Options and Futures Combined Dealer Intermediary Long"]
["X.US.SR3OFDIDIFF","SOFR 3M Options and Futures Combined Dealer Intermediary Long/Short Diff"]
["X.US.SR3OFDISHT","SOFR 3M Options and Futures Combined Dealer Intermediary Short"]
["X.US.SR3OFDISPR","SOFR 3M Options and Futures Combined Dealer Intermediary Spreading"]
["X.US.SR3OFLFLONG","SOFR 3M Options and Futures Combined Leveraged Funds Long"]
["X.US.SR3OFLFDIFF","SOFR 3M Options and Futures Combined Leveraged Funds Long/Short Diff"]
["X.US.SR3OFLFSHT","SOFR 3M Options and Futures Combined Leveraged Funds Short"]
["X.US.SR3OFLFSPR","SOFR 3M Options and Futures Combined Leveraged Funds Spreading"]
["X.US.SR3OFNRLONG","SOFR 3M Options and Futures Combined Nonreportable Long"]
["X.US.SR3OFNRDIFF","SOFR 3M Options and Futures Combined Nonreportable Long/Short Diff"]
["X.US.SR3OFNRSHT","SOFR 3M Options and Futures Combined Nonreportable Short"]
["X.US.SR3OFORLONG","SOFR 3M Options and Futures Combined Other Reportables Long"]
["X.US.SR3OFORDIFF","SOFR 3M Options and Futures Combined Other Reportables Long/Short Diff"]
["X.US.SR3OFORSHT","SOFR 3M Options and Futures Combined Other Reportables Short"]
["X.US.SR3OFORSPR","SOFR 3M Options and Futures Combined Other Reportables Spreading"]
["X.US.SR3ORLONG","SOFR 3M Other Reportables Long"]
["X.US.SR3ORDIFF","SOFR 3M Other Reportables Long/Short Diff"]
["X.US.SR3ORSHT","SOFR 3M Other Reportables Short"]
["X.US.SR3ORSPR","SOFR 3M Other Reportables Spreading"]
["X.US.SA6AMILONG","South African Rand Asset Manager/Institutional Long"]
["X.US.SA6AMIDIFF","South African Rand Asset Manager/Institutional Long/Short Diff"]
["X.US.SA6AMISHT","South African Rand Asset Manager/Institutional Short"]
["X.US.SA6AMISPR","South African Rand Asset Manager/Institutional Spreading"]
["X.US.SA6DILONG","South African Rand Dealer Intermediary Long"]
["X.US.SA6DIDIFF","South African Rand Dealer Intermediary Long/Short Diff"]
["X.US.SA6DISHT","South African Rand Dealer Intermediary Short"]
["X.US.SA6DISPR","South African Rand Dealer Intermediary Spreading"]
["X.US.SA6LFLONG","South African Rand Leveraged Funds Long"]
["X.US.SA6LFDIFF","South African Rand Leveraged Funds Long/Short Diff"]
["X.US.SA6LFSHT","South African Rand Leveraged Funds Short"]
["X.US.SA6LFSPR","South African Rand Leveraged Funds Spreading"]
["X.US.SA6DNRLONG","South African Rand Nonreportable Long"]
["X.US.SA6DNRDIFF","South African Rand Nonreportable Long/Short Diff"]
["X.US.SA6DNRSHT","South African Rand Nonreportable Short"]
["X.US.SA6OFAMILONG","South African Rand Options and Futures Combined Asset Manager/Institutional Long"]
["X.US.SA6OFAMIDIFF","South African Rand Options and Futures Combined Asset Manager/Institutional Long/Short Diff"]
["X.US.SA6OFAMISHT","South African Rand Options and Futures Combined Asset Manager/Institutional Short"]
["X.US.SA6OFAMISPR","South African Rand Options and Futures Combined Asset Manager/Institutional Spreading"]
["X.US.SA6OFDILONG","South African Rand Options and Futures Combined Dealer Intermediary Long"]
["X.US.SA6OFDIDIFF","South African Rand Options and Futures Combined Dealer Intermediary Long/Short Diff"]
["X.US.SA6OFDISHT","South African Rand Options and Futures Combined Dealer Intermediary Short"]
["X.US.SA6OFDISPR","South African Rand Options and Futures Combined Dealer Intermediary Spreading"]
["X.US.SA6OFLFLONG","South African Rand Options and Futures Combined Leveraged Funds Long"]
["X.US.SA6OFLFDIFF","South African Rand Options and Futures Combined Leveraged Funds Long/Short Diff"]
["X.US.SA6OFLFSHT","South African Rand Options and Futures Combined Leveraged Funds Short"]
["X.US.SA6OFLFSPR","South African Rand Options and Futures Combined Leveraged Funds Spreading"]
["X.US.SA6OFNRLONG","South African Rand Options and Futures Combined Nonreportable Long"]
["X.US.SA6OFNRDIFF","South African Rand Options and Futures Combined Nonreportable Long/Short Diff"]
["X.US.SA6OFNRSHT","South African Rand Options and Futures Combined Nonreportable Short"]
["X.US.SA6OFORLONG","South African Rand Options and Futures Combined Other Reportables Long"]
["X.US.SA6OFORDIFF","South African Rand Options and Futures Combined Other Reportables Long/Short Diff"]
["X.US.SA6OFORSHT","South African Rand Options and Futures Combined Other Reportables Short"]
["X.US.SA6OFORSPR","South African Rand Options and Futures Combined Other Reportables Spreading"]
["X.US.SA6ORLONG","South African Rand Other Reportables Long"]
["X.US.SA6ORDIFF","South African Rand Other Reportables Long/Short Diff"]
["X.US.SA6ORSHT","South African Rand Other Reportables Short"]
["X.US.SA6ORSPR","South African Rand Other Reportables Spreading"]
["X.US.ZMEMMLONG","Soybean Meal Managed Money Long"]
["X.US.ZMEMMDIFF","Soybean Meal Managed Money Long/Short Diff"]
["X.US.ZMEMMSHT","Soybean Meal Managed Money Short"]
["X.US.ZMEMMSPR","Soybean Meal Managed Money Spreading"]
["X.US.ZMEDNRLONG","Soybean Meal Nonreportable Long"]
["X.US.ZMEDNRDIFF","Soybean Meal Nonreportable Long/Short Diff"]
["X.US.ZMEDNRSHT","Soybean Meal Nonreportable Short"]
["X.US.ZMEOFMMLONG","Soybean Meal Options and Futures Combined Managed Money Long"]
["X.US.ZMEOFMMDIFF","Soybean Meal Options and Futures Combined Managed Money Long/Short Diff"]
["X.US.ZMEOFMMSHT","Soybean Meal Options and Futures Combined Managed Money Short"]
["X.US.ZMEOFMMSPR","Soybean Meal Options and Futures Combined Managed Money Spreading"]
["X.US.ZMEOFNRLONG","Soybean Meal Options and Futures Combined Nonreportable Long"]
["X.US.ZMEOFNRDIFF","Soybean Meal Options and Futures Combined Nonreportable Long/Short Diff"]
["X.US.ZMEOFNRSHT","Soybean Meal Options and Futures Combined Nonreportable Short"]
["X.US.ZMEOFORLONG","Soybean Meal Options and Futures Combined Other Reportables Long"]
["X.US.ZMEOFORDIFF","Soybean Meal Options and Futures Combined Other Reportables Long/Short Diff"]
["X.US.ZMEOFORSHT","Soybean Meal Options and Futures Combined Other Reportables Short"]
["X.US.ZMEOFORSPR","Soybean Meal Options and Futures Combined Other Reportables Spreading"]
["X.US.ZMEOFPMPULONG","Soybean Meal Options and Futures Combined Producer/Merchant/Processor/User Long"]
["X.US.ZMEOFPMPUDIFF","Soybean Meal Options and Futures Combined Producer/Merchant/Processor/User Long/Short Diff"]
["X.US.ZMEOFPMPUSHT","Soybean Meal Options and Futures Combined Producer/Merchant/Processor/User Short"]
["X.US.ZMEOFSDLONG","Soybean Meal Options and Futures Combined Swap Dealers Long"]
["X.US.ZMEOFSDDIFF","Soybean Meal Options and Futures Combined Swap Dealers Long/Short Diff"]
["X.US.ZMEOFSDSHT","Soybean Meal Options and Futures Combined Swap Dealers Short"]
["X.US.ZMEOFSDSPR","Soybean Meal Options and Futures Combined Swap Dealers Spreading"]
["X.US.ZMEORLONG","Soybean Meal Other Reportables Long"]
["X.US.ZMEORDIFF","Soybean Meal Other Reportables Long/Short Diff"]
["X.US.ZMEORSHT","Soybean Meal Other Reportables Short"]
["X.US.ZMEORSPR","Soybean Meal Other Reportables Spreading"]
["X.US.ZMEPMPULNG","Soybean Meal Producer/Merchant/Processor/User Long"]
["X.US.ZMEPMPUDIF","Soybean Meal Producer/Merchant/Processor/User Long/Short Diff"]
["X.US.ZMEPMPUSHT","Soybean Meal Producer/Merchant/Processor/User Short"]
["X.US.ZMESDLONG","Soybean Meal Swap Dealers Long"]
["X.US.ZMESDDIFF","Soybean Meal Swap Dealers Long/Short Diff"]
["X.US.ZMESDSHT","Soybean Meal Swap Dealers Short"]
["X.US.ZMESDSPR","Soybean Meal Swap Dealers Spreading"]
["X.US.ZLEMMLONG","Soybean Oil Managed Money Long"]
["X.US.ZLEMMDIFF","Soybean Oil Managed Money Long/Short Diff"]
["X.US.ZLEMMSHT","Soybean Oil Managed Money Short"]
["X.US.ZLEMMSPR","Soybean Oil Managed Money Spreading"]
["X.US.ZLEDNRLONG","Soybean Oil Nonreportable Long"]
["X.US.ZLEDNRDIFF","Soybean Oil Nonreportable Long/Short Diff"]
["X.US.ZLEDNRSHT","Soybean Oil Nonreportable Short"]
["X.US.ZLEOFMMLONG","Soybean Oil Options and Futures Combined Managed Money Long"]
["X.US.ZLEOFMMDIFF","Soybean Oil Options and Futures Combined Managed Money Long/Short Diff"]
["X.US.ZLEOFMMSHT","Soybean Oil Options and Futures Combined Managed Money Short"]
["X.US.ZLEOFMMSPR","Soybean Oil Options and Futures Combined Managed Money Spreading"]
["X.US.ZLEOFNRLONG","Soybean Oil Options and Futures Combined Nonreportable Long"]
["X.US.ZLEOFNRDIFF","Soybean Oil Options and Futures Combined Nonreportable Long/Short Diff"]
["X.US.ZLEOFNRSHT","Soybean Oil Options and Futures Combined Nonreportable Short"]
["X.US.ZLEOFORLONG","Soybean Oil Options and Futures Combined Other Reportables Long"]
["X.US.ZLEOFORDIFF","Soybean Oil Options and Futures Combined Other Reportables Long/Short Diff"]
["X.US.ZLEOFORSHT","Soybean Oil Options and Futures Combined Other Reportables Short"]
["X.US.ZLEOFORSPR","Soybean Oil Options and Futures Combined Other Reportables Spreading"]
["X.US.ZLEOFPMPULONG","Soybean Oil Options and Futures Combined Producer/Merchant/Processor/User Long"]
["X.US.ZLEOFPMPUDIFF","Soybean Oil Options and Futures Combined Producer/Merchant/Processor/User Long/Short Diff"]
["X.US.ZLEOFPMPUSHT","Soybean Oil Options and Futures Combined Producer/Merchant/Processor/User Short"]
["X.US.ZLEOFSDLONG","Soybean Oil Options and Futures Combined Swap Dealers Long"]
["X.US.ZLEOFSDDIFF","Soybean Oil Options and Futures Combined Swap Dealers Long/Short Diff"]
["X.US.ZLEOFSDSHT","Soybean Oil Options and Futures Combined Swap Dealers Short"]
["X.US.ZLEOFSDSPR","Soybean Oil Options and Futures Combined Swap Dealers Spreading"]
["X.US.ZLEORLONG","Soybean Oil Other Reportables Long"]
["X.US.ZLEORDIFF","Soybean Oil Other Reportables Long/Short Diff"]
["X.US.ZLEORSHT","Soybean Oil Other Reportables Short"]
["X.US.ZLEORSPR","Soybean Oil Other Reportables Spreading"]
["X.US.ZLEPMPULNG","Soybean Oil Producer/Merchant/Processor/User Long"]
["X.US.ZLEPMPUDIF","Soybean Oil Producer/Merchant/Processor/User Long/Short Diff"]
["X.US.ZLEPMPUSHT","Soybean Oil Producer/Merchant/Processor/User Short"]
["X.US.ZLESDLONG","Soybean Oil Swap Dealers Long"]
["X.US.ZLESDDIFF","Soybean Oil Swap Dealers Long/Short Diff"]
["X.US.ZLESDSHT","Soybean Oil Swap Dealers Short"]
["X.US.ZLESDSPR","Soybean Oil Swap Dealers Spreading"]
["X.US.ZSEMMLONG","Soybeans Managed Money Long"]
["X.US.ZSEMMDIFF","Soybeans Managed Money Long/Short Diff"]
["X.US.ZSEMMSHT","Soybeans Managed Money Short"]
["X.US.ZSEMMSPR","Soybeans Managed Money Spreading"]
["X.US.ZSEDNRLONG","Soybeans Nonreportable Long"]
["X.US.ZSEDNRDIFF","Soybeans Nonreportable Long/Short Diff"]
["X.US.ZSEDNRSHT","Soybeans Nonreportable Short"]
["X.US.ZSEOFMMLONG","Soybeans Options and Futures Combined Managed Money Long"]
["X.US.ZSEOFMMDIFF","Soybeans Options and Futures Combined Managed Money Long/Short Diff"]
["X.US.ZSEOFMMSHT","Soybeans Options and Futures Combined Managed Money Short"]
["X.US.ZSEOFMMSPR","Soybeans Options and Futures Combined Managed Money Spreading"]
["X.US.ZSEOFNRLONG","Soybeans Options and Futures Combined Nonreportable Long"]
["X.US.ZSEOFNRDIFF","Soybeans Options and Futures Combined Nonreportable Long/Short Diff"]
["X.US.ZSEOFNRSHT","Soybeans Options and Futures Combined Nonreportable Short"]
["X.US.ZSEOFORLONG","Soybeans Options and Futures Combined Other Reportables Long"]
["X.US.ZSEOFORDIFF","Soybeans Options and Futures Combined Other Reportables Long/Short Diff"]
["X.US.ZSEOFORSHT","Soybeans Options and Futures Combined Other Reportables Short"]
["X.US.ZSEOFORSPR","Soybeans Options and Futures Combined Other Reportables Spreading"]
["X.US.ZSEOFPMPULONG","Soybeans Options and Futures Combined Producer/Merchant/Processor/User Long"]
["X.US.ZSEOFPMPUDIFF","Soybeans Options and Futures Combined Producer/Merchant/Processor/User Long/Short Diff"]
["X.US.ZSEOFPMPUSHT","Soybeans Options and Futures Combined Producer/Merchant/Processor/User Short"]
["X.US.ZSEOFSDLONG","Soybeans Options and Futures Combined Swap Dealers Long"]
["X.US.ZSEOFSDDIFF","Soybeans Options and Futures Combined Swap Dealers Long/Short Diff"]
["X.US.ZSEOFSDSHT","Soybeans Options and Futures Combined Swap Dealers Short"]
["X.US.ZSEOFSDSPR","Soybeans Options and Futures Combined Swap Dealers Spreading"]
["X.US.ZSEORLONG","Soybeans Other Reportables Long"]
["X.US.ZSEORDIFF","Soybeans Other Reportables Long/Short Diff"]
["X.US.ZSEORSHT","Soybeans Other Reportables Short"]
["X.US.ZSEORSPR","Soybeans Other Reportables Spreading"]
["X.US.ZSEPMPULNG","Soybeans Producer/Merchant/Processor/User Long"]
["X.US.ZSEPMPUDIF","Soybeans Producer/Merchant/Processor/User Long/Short Diff"]
["X.US.ZSEPMPUSHT","Soybeans Producer/Merchant/Processor/User Short"]
["X.US.ZSESDLONG","Soybeans Swap Dealers Long"]
["X.US.ZSESDDIFF","Soybeans Swap Dealers Long/Short Diff"]
["X.US.ZSESDSHT","Soybeans Swap Dealers Short"]
["X.US.ZSESDSPR","Soybeans Swap Dealers Spreading"]
["X.US.SPAAMILONG","SP500 Asset Manager/Institutional Long"]
["X.US.SPAAMIDIFF","SP500 Asset Manager/Institutional Long/Short Diff"]
["X.US.SPAAMISHT","SP500 Asset Manager/Institutional Short"]
["X.US.SPAAMISPR","SP500 Asset Manager/Institutional Spreading"]
["X.US.SPADILONG","SP500 Dealer Intermediary Long"]
["X.US.SPADIDIFF","SP500 Dealer Intermediary Long/Short Diff"]
["X.US.SPADISHT","SP500 Dealer Intermediary Short"]
["X.US.SPADISPR","SP500 Dealer Intermediary Spreading"]
["X.US.SDAAMILONG","SP500 Div Asset Manager/Institutional Long"]
["X.US.SDAAMIDIFF","SP500 Div Asset Manager/Institutional Long/Short Diff"]
["X.US.SDAAMISHT","SP500 Div Asset Manager/Institutional Short"]
["X.US.SDAAMISPR","SP500 Div Asset Manager/Institutional Spreading"]
["X.US.SDADILONG","SP500 Div Dealer Intermediary Long"]
["X.US.SDADIDIFF","SP500 Div Dealer Intermediary Long/Short Diff"]
["X.US.SDADISHT","SP500 Div Dealer Intermediary Short"]
["X.US.SDADISPR","SP500 Div Dealer Intermediary Spreading"]
["X.US.SDALFLONG","SP500 Div Leveraged Funds Long"]
["X.US.SDALFDIFF","SP500 Div Leveraged Funds Long/Short Diff"]
["X.US.SDALFSHT","SP500 Div Leveraged Funds Short"]
["X.US.SDALFSPR","SP500 Div Leveraged Funds Spreading"]
["X.US.SDADNRLONG","SP500 Div Nonreportable Long"]
["X.US.SDADNRDIFF","SP500 Div Nonreportable Long/Short Diff"]
["X.US.SDADNRSHT","SP500 Div Nonreportable Short"]
["X.US.SDAOFAMILONG","SP500 Div Options and Futures Combined Asset Manager/Institutional Long"]
["X.US.SDAOFAMIDIFF","SP500 Div Options and Futures Combined Asset Manager/Institutional Long/Short Diff"]
["X.US.SDAOFAMISHT","SP500 Div Options and Futures Combined Asset Manager/Institutional Short"]
["X.US.SDAOFAMISPR","SP500 Div Options and Futures Combined Asset Manager/Institutional Spreading"]
["X.US.SDAOFDILONG","SP500 Div Options and Futures Combined Dealer Intermediary Long"]
["X.US.SDAOFDIDIFF","SP500 Div Options and Futures Combined Dealer Intermediary Long/Short Diff"]
["X.US.SDAOFDISHT","SP500 Div Options and Futures Combined Dealer Intermediary Short"]
["X.US.SDAOFDISPR","SP500 Div Options and Futures Combined Dealer Intermediary Spreading"]
["X.US.SDAOFLFLONG","SP500 Div Options and Futures Combined Leveraged Funds Long"]
["X.US.SDAOFLFDIFF","SP500 Div Options and Futures Combined Leveraged Funds Long/Short Diff"]
["X.US.SDAOFLFSHT","SP500 Div Options and Futures Combined Leveraged Funds Short"]
["X.US.SDAOFLFSPR","SP500 Div Options and Futures Combined Leveraged Funds Spreading"]
["X.US.SDAOFNRLONG","SP500 Div Options and Futures Combined Nonreportable Long"]
["X.US.SDAOFNRDIFF","SP500 Div Options and Futures Combined Nonreportable Long/Short Diff"]
["X.US.SDAOFNRSHT","SP500 Div Options and Futures Combined Nonreportable Short"]
["X.US.SDAOFORLONG","SP500 Div Options and Futures Combined Other Reportables Long"]
["X.US.SDAOFORDIFF","SP500 Div Options and Futures Combined Other Reportables Long/Short Diff"]
["X.US.SDAOFORSHT","SP500 Div Options and Futures Combined Other Reportables Short"]
["X.US.SDAOFORSPR","SP500 Div Options and Futures Combined Other Reportables Spreading"]
["X.US.SDAORLONG","SP500 Div Other Reportables Long"]
["X.US.SDAORDIFF","SP500 Div Other Reportables Long/Short Diff"]
["X.US.SDAORSHT","SP500 Div Other Reportables Short"]
["X.US.SDAORSPR","SP500 Div Other Reportables Spreading"]
["X.US.SPALFLONG","SP500 Leveraged Funds Long"]
["X.US.SPALFDIFF","SP500 Leveraged Funds Long/Short Diff"]
["X.US.SPALFSHT","SP500 Leveraged Funds Short"]
["X.US.SPALFSPR","SP500 Leveraged Funds Spreading"]
["X.US.SPADNRLONG","SP500 Nonreportable Long"]
["X.US.SPADNRDIFF","SP500 Nonreportable Long/Short Diff"]
["X.US.SPADNRSHT","SP500 Nonreportable Short"]
["X.US.SPAOFAMILONG","SP500 Options and Futures Combined Asset Manager/Institutional Long"]
["X.US.SPAOFAMIDIFF","SP500 Options and Futures Combined Asset Manager/Institutional Long/Short Diff"]
["X.US.SPAOFAMISHT","SP500 Options and Futures Combined Asset Manager/Institutional Short"]
["X.US.SPAOFAMISPR","SP500 Options and Futures Combined Asset Manager/Institutional Spreading"]
["X.US.SPAOFDILONG","SP500 Options and Futures Combined Dealer Intermediary Long"]
["X.US.SPAOFDIDIFF","SP500 Options and Futures Combined Dealer Intermediary Long/Short Diff"]
["X.US.SPAOFDISHT","SP500 Options and Futures Combined Dealer Intermediary Short"]
["X.US.SPAOFDISPR","SP500 Options and Futures Combined Dealer Intermediary Spreading"]
["X.US.SPAOFLFLONG","SP500 Options and Futures Combined Leveraged Funds Long"]
["X.US.SPAOFLFDIFF","SP500 Options and Futures Combined Leveraged Funds Long/Short Diff"]
["X.US.SPAOFLFSHT","SP500 Options and Futures Combined Leveraged Funds Short"]
["X.US.SPAOFLFSPR","SP500 Options and Futures Combined Leveraged Funds Spreading"]
["X.US.SPAOFNRLONG","SP500 Options and Futures Combined Nonreportable Long"]
["X.US.SPAOFNRDIFF","SP500 Options and Futures Combined Nonreportable Long/Short Diff"]
["X.US.SPAOFNRSHT","SP500 Options and Futures Combined Nonreportable Short"]
["X.US.SPAOFORLONG","SP500 Options and Futures Combined Other Reportables Long"]
["X.US.SPAOFORDIFF","SP500 Options and Futures Combined Other Reportables Long/Short Diff"]
["X.US.SPAOFORSHT","SP500 Options and Futures Combined Other Reportables Short"]
["X.US.SPAOFORSPR","SP500 Options and Futures Combined Other Reportables Spreading"]
["X.US.SPAORLONG","SP500 Other Reportables Long"]
["X.US.SPAORDIFF","SP500 Other Reportables Long/Short Diff"]
["X.US.SPAORSHT","SP500 Other Reportables Short"]
["X.US.SPAORSPR","SP500 Other Reportables Spreading"]
["X.US.SBEMMLONG","Sugar N11 Managed Money Long"]
["X.US.SBEMMDIFF","Sugar N11 Managed Money Long/Short Diff"]
["X.US.SBEMMSHT","Sugar N11 Managed Money Short"]
["X.US.SBEMMSPR","Sugar N11 Managed Money Spreading"]
["X.US.SBEDNRLONG","Sugar N11 Nonreportable Long"]
["X.US.SBEDNRDIFF","Sugar N11 Nonreportable Long/Short Diff"]
["X.US.SBEDNRSHT","Sugar N11 Nonreportable Short"]
["X.US.SBEOFMMLONG","Sugar N11 Options and Futures Combined Managed Money Long"]
["X.US.SBEOFMMDIFF","Sugar N11 Options and Futures Combined Managed Money Long/Short Diff"]
["X.US.SBEOFMMSHT","Sugar N11 Options and Futures Combined Managed Money Short"]
["X.US.SBEOFMMSPR","Sugar N11 Options and Futures Combined Managed Money Spreading"]
["X.US.SBEOFNRLONG","Sugar N11 Options and Futures Combined Nonreportable Long"]
["X.US.SBEOFNRDIFF","Sugar N11 Options and Futures Combined Nonreportable Long/Short Diff"]
["X.US.SBEOFNRSHT","Sugar N11 Options and Futures Combined Nonreportable Short"]
["X.US.SBEOFORLONG","Sugar N11 Options and Futures Combined Other Reportables Long"]
["X.US.SBEOFORDIFF","Sugar N11 Options and Futures Combined Other Reportables Long/Short Diff"]
["X.US.SBEOFORSHT","Sugar N11 Options and Futures Combined Other Reportables Short"]
["X.US.SBEOFORSPR","Sugar N11 Options and Futures Combined Other Reportables Spreading"]
["X.US.SBEOFPMPULONG","Sugar N11 Options and Futures Combined Producer/Merchant/Processor/User Long"]
["X.US.SBEOFPMPUDIFF","Sugar N11 Options and Futures Combined Producer/Merchant/Processor/User Long/Short Diff"]
["X.US.SBEOFPMPUSHT","Sugar N11 Options and Futures Combined Producer/Merchant/Processor/User Short"]
["X.US.SBEOFSDLONG","Sugar N11 Options and Futures Combined Swap Dealers Long"]
["X.US.SBEOFSDDIFF","Sugar N11 Options and Futures Combined Swap Dealers Long/Short Diff"]
["X.US.SBEOFSDSHT","Sugar N11 Options and Futures Combined Swap Dealers Short"]
["X.US.SBEOFSDSPR","Sugar N11 Options and Futures Combined Swap Dealers Spreading"]
["X.US.SBEORLONG","Sugar N11 Other Reportables Long"]
["X.US.SBEORDIFF","Sugar N11 Other Reportables Long/Short Diff"]
["X.US.SBEORSHT","Sugar N11 Other Reportables Short"]
["X.US.SBEORSPR","Sugar N11 Other Reportables Spreading"]
["X.US.SBEPMPULNG","Sugar N11 Producer/Merchant/Processor/User Long"]
["X.US.SBEPMPUDIF","Sugar N11 Producer/Merchant/Processor/User Long/Short Diff"]
["X.US.SBEPMPUSHT","Sugar N11 Producer/Merchant/Processor/User Short"]
["X.US.SBESDLONG","Sugar N11 Swap Dealers Long"]
["X.US.SBESDDIFF","Sugar N11 Swap Dealers Long/Short Diff"]
["X.US.SBESDSHT","Sugar N11 Swap Dealers Short"]
["X.US.SBESDSPR","Sugar N11 Swap Dealers Spreading"]
["X.US.SF6AMILONG","Swiss Franc Asset Manager/Institutional Long"]
["X.US.SF6AMIDIFF","Swiss Franc Asset Manager/Institutional Long/Short Diff"]
["X.US.SF6AMISHT","Swiss Franc Asset Manager/Institutional Short"]
["X.US.SF6AMISPR","Swiss Franc Asset Manager/Institutional Spreading"]
["X.US.SF6DILONG","Swiss Franc Dealer Intermediary Long"]
["X.US.SF6DIDIFF","Swiss Franc Dealer Intermediary Long/Short Diff"]
["X.US.SF6DISHT","Swiss Franc Dealer Intermediary Short"]
["X.US.SF6DISPR","Swiss Franc Dealer Intermediary Spreading"]
["X.US.SF6LFLONG","Swiss Franc Leveraged Funds Long"]
["X.US.SF6LFDIFF","Swiss Franc Leveraged Funds Long/Short Diff"]
["X.US.SF6LFSHT","Swiss Franc Leveraged Funds Short"]
["X.US.SF6LFSPR","Swiss Franc Leveraged Funds Spreading"]
["X.US.SF6DNRLONG","Swiss Franc Nonreportable Long"]
["X.US.SF6DNRDIFF","Swiss Franc Nonreportable Long/Short Diff"]
["X.US.SF6DNRSHT","Swiss Franc Nonreportable Short"]
["X.US.SF6OFAMILONG","Swiss Franc Options and Futures Combined Asset Manager/Institutional Long"]
["X.US.SF6OFAMIDIFF","Swiss Franc Options and Futures Combined Asset Manager/Institutional Long/Short Diff"]
["X.US.SF6OFAMISHT","Swiss Franc Options and Futures Combined Asset Manager/Institutional Short"]
["X.US.SF6OFAMISPR","Swiss Franc Options and Futures Combined Asset Manager/Institutional Spreading"]
["X.US.SF6OFDILONG","Swiss Franc Options and Futures Combined Dealer Intermediary Long"]
["X.US.SF6OFDIDIFF","Swiss Franc Options and Futures Combined Dealer Intermediary Long/Short Diff"]
["X.US.SF6OFDISHT","Swiss Franc Options and Futures Combined Dealer Intermediary Short"]
["X.US.SF6OFDISPR","Swiss Franc Options and Futures Combined Dealer Intermediary Spreading"]
["X.US.SF6OFLFLONG","Swiss Franc Options and Futures Combined Leveraged Funds Long"]
["X.US.SF6OFLFDIFF","Swiss Franc Options and Futures Combined Leveraged Funds Long/Short Diff"]
["X.US.SF6OFLFSHT","Swiss Franc Options and Futures Combined Leveraged Funds Short"]
["X.US.SF6OFLFSPR","Swiss Franc Options and Futures Combined Leveraged Funds Spreading"]
["X.US.SF6OFNRLONG","Swiss Franc Options and Futures Combined Nonreportable Long"]
["X.US.SF6OFNRDIFF","Swiss Franc Options and Futures Combined Nonreportable Long/Short Diff"]
["X.US.SF6OFNRSHT","Swiss Franc Options and Futures Combined Nonreportable Short"]
["X.US.SF6OFORLONG","Swiss Franc Options and Futures Combined Other Reportables Long"]
["X.US.SF6OFORDIFF","Swiss Franc Options and Futures Combined Other Reportables Long/Short Diff"]
["X.US.SF6OFORSHT","Swiss Franc Options and Futures Combined Other Reportables Short"]
["X.US.SF6OFORSPR","Swiss Franc Options and Futures Combined Other Reportables Spreading"]
["X.US.SF6ORLONG","Swiss Franc Other Reportables Long"]
["X.US.SF6ORDIFF","Swiss Franc Other Reportables Long/Short Diff"]
["X.US.SF6ORSHT","Swiss Franc Other Reportables Short"]
["X.US.SF6ORSPR","Swiss Franc Other Reportables Spreading"]
["X.US.TNAAMILONG","Ultra 10Y T-note Asset Manager/Institutional Long"]
["X.US.TNAAMIDIFF","Ultra 10Y T-note Asset Manager/Institutional Long/Short Diff"]
["X.US.TNAAMISHT","Ultra 10Y T-note Asset Manager/Institutional Short"]
["X.US.TNAAMISPR","Ultra 10Y T-note Asset Manager/Institutional Spreading"]
["X.US.TNADILONG","Ultra 10Y T-note Dealer Intermediary Long"]
["X.US.TNADIDIFF","Ultra 10Y T-note Dealer Intermediary Long/Short Diff"]
["X.US.TNADISHT","Ultra 10Y T-note Dealer Intermediary Short"]
["X.US.TNADISPR","Ultra 10Y T-note Dealer Intermediary Spreading"]
["X.US.TNALFLONG","Ultra 10Y T-note Leveraged Funds Long"]
["X.US.TNALFDIFF","Ultra 10Y T-note Leveraged Funds Long/Short Diff"]
["X.US.TNALFSHT","Ultra 10Y T-note Leveraged Funds Short"]
["X.US.TNALFSPR","Ultra 10Y T-note Leveraged Funds Spreading"]
["X.US.TNADNRLONG","Ultra 10Y T-note Nonreportable Long"]
["X.US.TNADNRDIFF","Ultra 10Y T-note Nonreportable Long/Short Diff"]
["X.US.TNADNRSHT","Ultra 10Y T-note Nonreportable Short"]
["X.US.TNAOFAMILONG","Ultra 10Y T-note Options and Futures Combined Asset Manager/Institutional Long"]
["X.US.TNAOFAMIDIFF","Ultra 10Y T-note Options and Futures Combined Asset Manager/Institutional Long/Short Diff"]
["X.US.TNAOFAMISHT","Ultra 10Y T-note Options and Futures Combined Asset Manager/Institutional Short"]
["X.US.TNAOFAMISPR","Ultra 10Y T-note Options and Futures Combined Asset Manager/Institutional Spreading"]
["X.US.TNAOFDILONG","Ultra 10Y T-note Options and Futures Combined Dealer Intermediary Long"]
["X.US.TNAOFDIDIFF","Ultra 10Y T-note Options and Futures Combined Dealer Intermediary Long/Short Diff"]
["X.US.TNAOFDISHT","Ultra 10Y T-note Options and Futures Combined Dealer Intermediary Short"]
["X.US.TNAOFDISPR","Ultra 10Y T-note Options and Futures Combined Dealer Intermediary Spreading"]
["X.US.TNAOFLFLONG","Ultra 10Y T-note Options and Futures Combined Leveraged Funds Long"]
["X.US.TNAOFLFDIFF","Ultra 10Y T-note Options and Futures Combined Leveraged Funds Long/Short Diff"]
["X.US.TNAOFLFSHT","Ultra 10Y T-note Options and Futures Combined Leveraged Funds Short"]
["X.US.TNAOFLFSPR","Ultra 10Y T-note Options and Futures Combined Leveraged Funds Spreading"]
["X.US.TNAOFNRLONG","Ultra 10Y T-note Options and Futures Combined Nonreportable Long"]
["X.US.TNAOFNRDIFF","Ultra 10Y T-note Options and Futures Combined Nonreportable Long/Short Diff"]
["X.US.TNAOFNRSHT","Ultra 10Y T-note Options and Futures Combined Nonreportable Short"]
["X.US.TNAOFORLONG","Ultra 10Y T-note Options and Futures Combined Other Reportables Long"]
["X.US.TNAOFORDIFF","Ultra 10Y T-note Options and Futures Combined Other Reportables Long/Short Diff"]
["X.US.TNAOFORSHT","Ultra 10Y T-note Options and Futures Combined Other Reportables Short"]
["X.US.TNAOFORSPR","Ultra 10Y T-note Options and Futures Combined Other Reportables Spreading"]
["X.US.TNAORLONG","Ultra 10Y T-note Other Reportables Long"]
["X.US.TNAORDIFF","Ultra 10Y T-note Other Reportables Long/Short Diff"]
["X.US.TNAORSHT","Ultra 10Y T-note Other Reportables Short"]
["X.US.TNAORSPR","Ultra 10Y T-note Other Reportables Spreading"]
["X.US.ULAAMILONG","Ultra T-Bond Asset Manager/Institutional Long"]
["X.US.ULAAMIDIFF","Ultra T-Bond Asset Manager/Institutional Long/Short Diff"]
["X.US.ULAAMISHT","Ultra T-Bond Asset Manager/Institutional Short"]
["X.US.ULAAMISPR","Ultra T-Bond Asset Manager/Institutional Spreading"]
["X.US.ULADILONG","Ultra T-Bond Dealer Intermediary Long"]
["X.US.ULADIDIFF","Ultra T-Bond Dealer Intermediary Long/Short Diff"]
["X.US.ULADISHT","Ultra T-Bond Dealer Intermediary Short"]
["X.US.ULADISPR","Ultra T-Bond Dealer Intermediary Spreading"]
["X.US.ULALFLONG","Ultra T-Bond Leveraged Funds Long"]
["X.US.ULALFDIFF","Ultra T-Bond Leveraged Funds Long/Short Diff"]
["X.US.ULALFSHT","Ultra T-Bond Leveraged Funds Short"]
["X.US.ULALFSPR","Ultra T-Bond Leveraged Funds Spreading"]
["X.US.ULADNRLONG","Ultra T-Bond Nonreportable Long"]
["X.US.ULADNRDIFF","Ultra T-Bond Nonreportable Long/Short Diff"]
["X.US.ULADNRSHT","Ultra T-Bond Nonreportable Short"]
["X.US.ULAOFAMILONG","Ultra T-Bond Options and Futures Combined Asset Manager/Institutional Long"]
["X.US.ULAOFAMIDIFF","Ultra T-Bond Options and Futures Combined Asset Manager/Institutional Long/Short Diff"]
["X.US.ULAOFAMISHT","Ultra T-Bond Options and Futures Combined Asset Manager/Institutional Short"]
["X.US.ULAOFAMISPR","Ultra T-Bond Options and Futures Combined Asset Manager/Institutional Spreading"]
["X.US.ULAOFDILONG","Ultra T-Bond Options and Futures Combined Dealer Intermediary Long"]
["X.US.ULAOFDIDIFF","Ultra T-Bond Options and Futures Combined Dealer Intermediary Long/Short Diff"]
["X.US.ULAOFDISHT","Ultra T-Bond Options and Futures Combined Dealer Intermediary Short"]
["X.US.ULAOFDISPR","Ultra T-Bond Options and Futures Combined Dealer Intermediary Spreading"]
["X.US.ULAOFLFLONG","Ultra T-Bond Options and Futures Combined Leveraged Funds Long"]
["X.US.ULAOFLFDIFF","Ultra T-Bond Options and Futures Combined Leveraged Funds Long/Short Diff"]
["X.US.ULAOFLFSHT","Ultra T-Bond Options and Futures Combined Leveraged Funds Short"]
["X.US.ULAOFLFSPR","Ultra T-Bond Options and Futures Combined Leveraged Funds Spreading"]
["X.US.ULAOFNRLONG","Ultra T-Bond Options and Futures Combined Nonreportable Long"]
["X.US.ULAOFNRDIFF","Ultra T-Bond Options and Futures Combined Nonreportable Long/Short Diff"]
["X.US.ULAOFNRSHT","Ultra T-Bond Options and Futures Combined Nonreportable Short"]
["X.US.ULAOFORLONG","Ultra T-Bond Options and Futures Combined Other Reportables Long"]
["X.US.ULAOFORDIFF","Ultra T-Bond Options and Futures Combined Other Reportables Long/Short Diff"]
["X.US.ULAOFORSHT","Ultra T-Bond Options and Futures Combined Other Reportables Short"]
["X.US.ULAOFORSPR","Ultra T-Bond Options and Futures Combined Other Reportables Spreading"]
["X.US.ULAORLONG","Ultra T-Bond Other Reportables Long"]
["X.US.ULAORDIFF","Ultra T-Bond Other Reportables Long/Short Diff"]
["X.US.ULAORSHT","Ultra T-Bond Other Reportables Short"]
["X.US.ULAORSPR","Ultra T-Bond Other Reportables Spreading"]
["X.US.TUAAMILONG","US 2Y T-note Asset Manager/Institutional Long"]
["X.US.TUAAMIDIFF","US 2Y T-note Asset Manager/Institutional Long/Short Diff"]
["X.US.TUAAMISHT","US 2Y T-note Asset Manager/Institutional Short"]
["X.US.TUAAMISPR","US 2Y T-note Asset Manager/Institutional Spreading"]
["X.US.TUADILONG","US 2Y T-note Dealer Intermediary Long"]
["X.US.TUADIDIFF","US 2Y T-note Dealer Intermediary Long/Short Diff"]
["X.US.TUADISHT","US 2Y T-note Dealer Intermediary Short"]
["X.US.TUADISPR","US 2Y T-note Dealer Intermediary Spreading"]
["X.US.TUALFLONG","US 2Y T-note Leveraged Funds Long"]
["X.US.TUALFDIFF","US 2Y T-note Leveraged Funds Long/Short Diff"]
["X.US.TUALFSHT","US 2Y T-note Leveraged Funds Short"]
["X.US.TUALFSPR","US 2Y T-note Leveraged Funds Spreading"]
["X.US.TUADNRLONG","US 2Y T-note Nonreportable Long"]
["X.US.TUADNRDIFF","US 2Y T-note Nonreportable Long/Short Diff"]
["X.US.TUADNRSHT","US 2Y T-note Nonreportable Short"]
["X.US.TUAOFAMILONG","US 2Y T-note Options and Futures Combined Asset Manager/Institutional Long"]
["X.US.TUAOFAMIDIFF","US 2Y T-note Options and Futures Combined Asset Manager/Institutional Long/Short Diff"]
["X.US.TUAOFAMISHT","US 2Y T-note Options and Futures Combined Asset Manager/Institutional Short"]
["X.US.TUAOFAMISPR","US 2Y T-note Options and Futures Combined Asset Manager/Institutional Spreading"]
["X.US.TUAOFDILONG","US 2Y T-note Options and Futures Combined Dealer Intermediary Long"]
["X.US.TUAOFDIDIFF","US 2Y T-note Options and Futures Combined Dealer Intermediary Long/Short Diff"]
["X.US.TUAOFDISHT","US 2Y T-note Options and Futures Combined Dealer Intermediary Short"]
["X.US.TUAOFDISPR","US 2Y T-note Options and Futures Combined Dealer Intermediary Spreading"]
["X.US.TUAOFLFLONG","US 2Y T-note Options and Futures Combined Leveraged Funds Long"]
["X.US.TUAOFLFDIFF","US 2Y T-note Options and Futures Combined Leveraged Funds Long/Short Diff"]
["X.US.TUAOFLFSHT","US 2Y T-note Options and Futures Combined Leveraged Funds Short"]
["X.US.TUAOFLFSPR","US 2Y T-note Options and Futures Combined Leveraged Funds Spreading"]
["X.US.TUAOFNRLONG","US 2Y T-note Options and Futures Combined Nonreportable Long"]
["X.US.TUAOFNRDIFF","US 2Y T-note Options and Futures Combined Nonreportable Long/Short Diff"]
["X.US.TUAOFNRSHT","US 2Y T-note Options and Futures Combined Nonreportable Short"]
["X.US.TUAOFORLONG","US 2Y T-note Options and Futures Combined Other Reportables Long"]
["X.US.TUAOFORDIFF","US 2Y T-note Options and Futures Combined Other Reportables Long/Short Diff"]
["X.US.TUAOFORSHT","US 2Y T-note Options and Futures Combined Other Reportables Short"]
["X.US.TUAOFORSPR","US 2Y T-note Options and Futures Combined Other Reportables Spreading"]
["X.US.TUAORLONG","US 2Y T-note Other Reportables Long"]
["X.US.TUAORDIFF","US 2Y T-note Other Reportables Long/Short Diff"]
["X.US.TUAORSHT","US 2Y T-note Other Reportables Short"]
["X.US.TUAORSPR","US 2Y T-note Other Reportables Spreading"]
["X.US.FVAAMILONG","US 5Y T-note Asset Manager/Institutional Long"]
["X.US.FVAAMIDIFF","US 5Y T-note Asset Manager/Institutional Long/Short Diff"]
["X.US.FVAAMISHT","US 5Y T-note Asset Manager/Institutional Short"]
["X.US.FVAAMISPR","US 5Y T-note Asset Manager/Institutional Spreading"]
["X.US.FVADILONG","US 5Y T-note Dealer Intermediary Long"]
["X.US.FVADIDIFF","US 5Y T-note Dealer Intermediary Long/Short Diff"]
["X.US.FVADISHT","US 5Y T-note Dealer Intermediary Short"]
["X.US.FVADISPR","US 5Y T-note Dealer Intermediary Spreading"]
["X.US.FVALFLONG","US 5Y T-note Leveraged Funds Long"]
["X.US.FVALFDIFF","US 5Y T-note Leveraged Funds Long/Short Diff"]
["X.US.FVALFSHT","US 5Y T-note Leveraged Funds Short"]
["X.US.FVALFSPR","US 5Y T-note Leveraged Funds Spreading"]
["X.US.FVADNRLONG","US 5Y T-note Nonreportable Long"]
["X.US.FVADNRDIFF","US 5Y T-note Nonreportable Long/Short Diff"]
["X.US.FVADNRSHT","US 5Y T-note Nonreportable Short"]
["X.US.FVAOFAMILONG","US 5Y T-note Options and Futures Combined Asset Manager/Institutional Long"]
["X.US.FVAOFAMIDIFF","US 5Y T-note Options and Futures Combined Asset Manager/Institutional Long/Short Diff"]
["X.US.FVAOFAMISHT","US 5Y T-note Options and Futures Combined Asset Manager/Institutional Short"]
["X.US.FVAOFAMISPR","US 5Y T-note Options and Futures Combined Asset Manager/Institutional Spreading"]
["X.US.FVAOFDILONG","US 5Y T-note Options and Futures Combined Dealer Intermediary Long"]
["X.US.FVAOFDIDIFF","US 5Y T-note Options and Futures Combined Dealer Intermediary Long/Short Diff"]
["X.US.FVAOFDISHT","US 5Y T-note Options and Futures Combined Dealer Intermediary Short"]
["X.US.FVAOFDISPR","US 5Y T-note Options and Futures Combined Dealer Intermediary Spreading"]
["X.US.FVAOFLFLONG","US 5Y T-note Options and Futures Combined Leveraged Funds Long"]
["X.US.FVAOFLFDIFF","US 5Y T-note Options and Futures Combined Leveraged Funds Long/Short Diff"]
["X.US.FVAOFLFSHT","US 5Y T-note Options and Futures Combined Leveraged Funds Short"]
["X.US.FVAOFLFSPR","US 5Y T-note Options and Futures Combined Leveraged Funds Spreading"]
["X.US.FVAOFNRLONG","US 5Y T-note Options and Futures Combined Nonreportable Long"]
["X.US.FVAOFNRDIFF","US 5Y T-note Options and Futures Combined Nonreportable Long/Short Diff"]
["X.US.FVAOFNRSHT","US 5Y T-note Options and Futures Combined Nonreportable Short"]
["X.US.FVAOFORLONG","US 5Y T-note Options and Futures Combined Other Reportables Long"]
["X.US.FVAOFORDIFF","US 5Y T-note Options and Futures Combined Other Reportables Long/Short Diff"]
["X.US.FVAOFORSHT","US 5Y T-note Options and Futures Combined Other Reportables Short"]
["X.US.FVAOFORSPR","US 5Y T-note Options and Futures Combined Other Reportables Spreading"]
["X.US.FVAORLONG","US 5Y T-note Other Reportables Long"]
["X.US.FVAORDIFF","US 5Y T-note Other Reportables Long/Short Diff"]
["X.US.FVAORSHT","US 5Y T-note Other Reportables Short"]
["X.US.FVAORSPR","US 5Y T-note Other Reportables Spreading"]
["X.US.TYAAMILONG","US 10Y T-note Asset Manager/Institutional Long"]
["X.US.TYAAMIDIFF","US 10Y T-note Asset Manager/Institutional Long/Short Diff"]
["X.US.TYAAMISHT","US 10Y T-note Asset Manager/Institutional Short"]
["X.US.TYAAMISPR","US 10Y T-note Asset Manager/Institutional Spreading"]
["X.US.TYADILONG","US 10Y T-note Dealer Intermediary Long"]
["X.US.TYADIDIFF","US 10Y T-note Dealer Intermediary Long/Short Diff"]
["X.US.TYADISHT","US 10Y T-note Dealer Intermediary Short"]
["X.US.TYADISPR","US 10Y T-note Dealer Intermediary Spreading"]
["X.US.TYALFLONG","US 10Y T-note Leveraged Funds Long"]
["X.US.TYALFDIFF","US 10Y T-note Leveraged Funds Long/Short Diff"]
["X.US.TYALFSHT","US 10Y T-note Leveraged Funds Short"]
["X.US.TYALFSPR","US 10Y T-note Leveraged Funds Spreading"]
["X.US.TYADNRLONG","US 10Y T-note Nonreportable Long"]
["X.US.TYADNRDIFF","US 10Y T-note Nonreportable Long/Short Diff"]
["X.US.TYADNRSHT","US 10Y T-note Nonreportable Short"]
["X.US.TYAOFAMILONG","US 10Y T-note Options and Futures Combined Asset Manager/Institutional Long"]
["X.US.TYAOFAMIDIFF","US 10Y T-note Options and Futures Combined Asset Manager/Institutional Long/Short Diff"]
["X.US.TYAOFAMISHT","US 10Y T-note Options and Futures Combined Asset Manager/Institutional Short"]
["X.US.TYAOFAMISPR","US 10Y T-note Options and Futures Combined Asset Manager/Institutional Spreading"]
["X.US.TYAOFDILONG","US 10Y T-note Options and Futures Combined Dealer Intermediary Long"]
["X.US.TYAOFDIDIFF","US 10Y T-note Options and Futures Combined Dealer Intermediary Long/Short Diff"]
["X.US.TYAOFDISHT","US 10Y T-note Options and Futures Combined Dealer Intermediary Short"]
["X.US.TYAOFDISPR","US 10Y T-note Options and Futures Combined Dealer Intermediary Spreading"]
["X.US.TYAOFLFLONG","US 10Y T-note Options and Futures Combined Leveraged Funds Long"]
["X.US.TYAOFLFDIFF","US 10Y T-note Options and Futures Combined Leveraged Funds Long/Short Diff"]
["X.US.TYAOFLFSHT","US 10Y T-note Options and Futures Combined Leveraged Funds Short"]
["X.US.TYAOFLFSPR","US 10Y T-note Options and Futures Combined Leveraged Funds Spreading"]
["X.US.TYAOFNRLONG","US 10Y T-note Options and Futures Combined Nonreportable Long"]
["X.US.TYAOFNRDIFF","US 10Y T-note Options and Futures Combined Nonreportable Long/Short Diff"]
["X.US.TYAOFNRSHT","US 10Y T-note Options and Futures Combined Nonreportable Short"]
["X.US.TYAOFORLONG","US 10Y T-note Options and Futures Combined Other Reportables Long"]
["X.US.TYAOFORDIFF","US 10Y T-note Options and Futures Combined Other Reportables Long/Short Diff"]
["X.US.TYAOFORSHT","US 10Y T-note Options and Futures Combined Other Reportables Short"]
["X.US.TYAOFORSPR","US 10Y T-note Options and Futures Combined Other Reportables Spreading"]
["X.US.TYAORLONG","US 10Y T-note Other Reportables Long"]
["X.US.TYAORDIFF","US 10Y T-note Other Reportables Long/Short Diff"]
["X.US.TYAORSHT","US 10Y T-note Other Reportables Short"]
["X.US.TYAORSPR","US 10Y T-note Other Reportables Spreading"]
["X.US.USAAMILONG","US T-Bond Asset Manager/Institutional Long"]
["X.US.USAAMIDIFF","US T-Bond Asset Manager/Institutional Long/Short Diff"]
["X.US.USAAMISHT","US T-Bond Asset Manager/Institutional Short"]
["X.US.USAAMISPR","US T-Bond Asset Manager/Institutional Spreading"]
["X.US.USADILONG","US T-Bond Dealer Intermediary Long"]
["X.US.USADIDIFF","US T-Bond Dealer Intermediary Long/Short Diff"]
["X.US.USADISHT","US T-Bond Dealer Intermediary Short"]
["X.US.USADISPR","US T-Bond Dealer Intermediary Spreading"]
["X.US.USALFLONG","US T-Bond Leveraged Funds Long"]
["X.US.USALFDIFF","US T-Bond Leveraged Funds Long/Short Diff"]
["X.US.USALFSHT","US T-Bond Leveraged Funds Short"]
["X.US.USALFSPR","US T-Bond Leveraged Funds Spreading"]
["X.US.USADNRLONG","US T-Bond Nonreportable Long"]
["X.US.USADNRDIFF","US T-Bond Nonreportable Long/Short Diff"]
["X.US.USADNRSHT","US T-Bond Nonreportable Short"]
["X.US.USAOFAMILONG","US T-Bond Options and Futures Combined Asset Manager/Institutional Long"]
["X.US.USAOFAMIDIFF","US T-Bond Options and Futures Combined Asset Manager/Institutional Long/Short Diff"]
["X.US.USAOFAMISHT","US T-Bond Options and Futures Combined Asset Manager/Institutional Short"]
["X.US.USAOFAMISPR","US T-Bond Options and Futures Combined Asset Manager/Institutional Spreading"]
["X.US.USAOFDILONG","US T-Bond Options and Futures Combined Dealer Intermediary Long"]
["X.US.USAOFDIDIFF","US T-Bond Options and Futures Combined Dealer Intermediary Long/Short Diff"]
["X.US.USAOFDISHT","US T-Bond Options and Futures Combined Dealer Intermediary Short"]
["X.US.USAOFDISPR","US T-Bond Options and Futures Combined Dealer Intermediary Spreading"]
["X.US.USAOFLFLONG","US T-Bond Options and Futures Combined Leveraged Funds Long"]
["X.US.USAOFLFDIFF","US T-Bond Options and Futures Combined Leveraged Funds Long/Short Diff"]
["X.US.USAOFLFSHT","US T-Bond Options and Futures Combined Leveraged Funds Short"]
["X.US.USAOFLFSPR","US T-Bond Options and Futures Combined Leveraged Funds Spreading"]
["X.US.USAOFNRLONG","US T-Bond Options and Futures Combined Nonreportable Long"]
["X.US.USAOFNRDIFF","US T-Bond Options and Futures Combined Nonreportable Long/Short Diff"]
["X.US.USAOFNRSHT","US T-Bond Options and Futures Combined Nonreportable Short"]
["X.US.USAOFORLONG","US T-Bond Options and Futures Combined Other Reportables Long"]
["X.US.USAOFORDIFF","US T-Bond Options and Futures Combined Other Reportables Long/Short Diff"]
["X.US.USAOFORSHT","US T-Bond Options and Futures Combined Other Reportables Short"]
["X.US.USAOFORSPR","US T-Bond Options and Futures Combined Other Reportables Spreading"]
["X.US.USAORLONG","US T-Bond Other Reportables Long"]
["X.US.USAORDIFF","US T-Bond Other Reportables Long/Short Diff"]
["X.US.USAORSHT","US T-Bond Other Reportables Short"]
["X.US.USAORSPR","US T-Bond Other Reportables Spreading"]
["X.US.ZWAMMLONG","Wheat Managed Money Long"]
["X.US.ZWAMMDIFF","Wheat Managed Money Long/Short Diff"]
["X.US.ZWAMMSHT","Wheat Managed Money Short"]
["X.US.ZWAMMSPR","Wheat Managed Money Spreading"]
["X.US.ZWADNRLONG","Wheat Nonreportable Long"]
["X.US.ZWADNRDIFF","Wheat Nonreportable Long/Short Diff"]
["X.US.ZWADNRSHT","Wheat Nonreportable Short"]
["X.US.ZWAOFMMLONG","Wheat Options and Futures Combined Managed Money Long"]
["X.US.ZWAOFMMDIFF","Wheat Options and Futures Combined Managed Money Long/Short Diff"]
["X.US.ZWAOFMMSHT","Wheat Options and Futures Combined Managed Money Short"]
["X.US.ZWAOFMMSPR","Wheat Options and Futures Combined Managed Money Spreading"]
["X.US.ZWAOFNRLONG","Wheat Options and Futures Combined Nonreportable Long"]
["X.US.ZWAOFNRDIFF","Wheat Options and Futures Combined Nonreportable Long/Short Diff"]
["X.US.ZWAOFNRSHT","Wheat Options and Futures Combined Nonreportable Short"]
["X.US.ZWAOFORLONG","Wheat Options and Futures Combined Other Reportables Long"]
["X.US.ZWAOFORDIFF","Wheat Options and Futures Combined Other Reportables Long/Short Diff"]
["X.US.ZWAOFORSHT","Wheat Options and Futures Combined Other Reportables Short"]
["X.US.ZWAOFORSPR","Wheat Options and Futures Combined Other Reportables Spreading"]
["X.US.ZWAOFPMPULONG","Wheat Options and Futures Combined Producer/Merchant/Processor/User Long"]
["X.US.ZWAOFPMPUDIFF","Wheat Options and Futures Combined Producer/Merchant/Processor/User Long/Short Diff"]
["X.US.ZWAOFPMPUSHT","Wheat Options and Futures Combined Producer/Merchant/Processor/User Short"]
["X.US.ZWAOFSDLONG","Wheat Options and Futures Combined Swap Dealers Long"]
["X.US.ZWAOFSDDIFF","Wheat Options and Futures Combined Swap Dealers Long/Short Diff"]
["X.US.ZWAOFSDSHT","Wheat Options and Futures Combined Swap Dealers Short"]
["X.US.ZWAOFSDSPR","Wheat Options and Futures Combined Swap Dealers Spreading"]
["X.US.ZWAORLONG","Wheat Other Reportables Long"]
["X.US.ZWAORDIFF","Wheat Other Reportables Long/Short Diff"]
["X.US.ZWAORSHT","Wheat Other Reportables Short"]
["X.US.ZWAORSPR","Wheat Other Reportables Spreading"]
["X.US.ZWAPMPULNG","Wheat Producer/Merchant/Processor/User Long"]
["X.US.ZWAPMPUDIF","Wheat Producer/Merchant/Processor/User Long/Short Diff"]
["X.US.ZWAPMPUSHT","Wheat Producer/Merchant/Processor/User Short"]
["X.US.ZWASDLONG","Wheat Swap Dealers Long"]
["X.US.ZWASDDIFF","Wheat Swap Dealers Long/Short Diff"]
["X.US.ZWASDSHT","Wheat Swap Dealers Short"]
["X.US.ZWASDSPR","Wheat Swap Dealers Spreading"]